Workbook

Sheet Instructions
B2: Catchment Case Aide & Provider Resource billing form Instructions
C6: FTE Billing Form Instructions:
C8: Fill out Invoice Date, Month of Service, Provider Name and Catchment area. Note: FTE billing form tab will roll up data entered under the ‘Employee Log tab’.
C9: Go to the Employee Log Tab, fill out with the following information:
C10: Column A – indicate the number of days the employee was actively employed during the month of reporting.
C11: Column B – select the FTE percentage by the amount of time the employee worked within their assigned role.
C12: Column C – insert employee’s name.
C13: Column F – select the position the employee is assigned under.
C14: Column G – based on the information entered in column A through F, an FTE percentage will be provided of actual time worked for each employee entered.
C15: Column H – this column will indicate if an employee has worked more than the percentage allotted according to caseload standards highlighted in the fee table based on the information entered into columns A through F.
C16: Column I – this column will provide the amount that can be billed based on the information entered in columns A through F.
C23: Catchment Case Aide & Provider Resource Roll Up
C24: The Roll-Up tab is a billing summary using the data from the "Case Aide" tab and "Provider Level" tab to generate the invoice broken down by DCYF Region.
C26: The only action required on this tab is the completion of the header:
C37: Simpl
C39: With the basic provider information.
C43: Catchment Case Aide / Case Specific - by column
C45: Please Note, this is not a complete roster of youths in the Catchment Area, rather it only for youths for which you provided case aide hours
C47: Column A | D47: Month of Service
C48: Columns B - E | D48: Case Specific Information
C49: Columns F-G | D49: Tribal Information - Is the youth member of a tribe in and if so which tribe do they belong to
C50: Columns H-I | D50: Serice Start/Service End Dates - Since caregivers are able to opt in and out you will need to provide the dates if applicable
C51: Column J | D51: The County in which the Youth is sleeping - This is very important as it impacts the rate for case aide (See Fee Table for Specifics)
C52: Columns K-M | D52: DCYF Region/Office Information
C53: Column N | D53: Child Support Level - Important as it impacts the allowed amount of Case Aide Hours
C62: Column O | D62: The Number of Case Aide Hours Provided (Must Fall Within the above table)
C63: Column Q | D63: The Number of Case Aide Travel Time Hours Provided (Does Not Count Towards the Authorized Hours of Case Services Allowed)
C64: Column R | D64: The Sum of Columns O and Q Used to Determine the total amount owed
C65: Column S | D65: The Total Dollar Amount Owed using Column R and Column J to determine the applicable hourly rate
C66: Column T | D66: A Check to ensure that the amount of hours (Column Q) does not exceed the maximum allowed in the fee table
C67: Column U | D67: Mileage Associated with the case over the month of service
C69: If these columns have been filled out correclty the dollar amounts will sum and be brought forward to the "Roll Up" tab
C73: Catchment Provider Resource Support Level / Case Specific - by Column
C75: Please Note, this is not a complete roster of youths in the Catchment Area, rather it only for youths for which you have not received payment for the "Catchment Provider Level"
C77: Column A | D77: Month of Service
C78: Columns B - E | D78: Case Specific Information
C79: Columns F-G | D79: Tribal Information - Is the youth a member of a tribe in and if so which tribe do they belong to
C80: Columns H: | D80: indicate the date the caregiver was contacted within the initial 72 hours from notification of placement within the catchment area.
C81: Column J: | D81: indicate the date the assigned DCYF caseworker was contacted regarding initiating caregiver support services with the caregiver within the initial 72 hours from notification of placement within the catchment area.
C82: Column L: | D82: Service start date, this automatically defaults what ever date is later between column H and column I
C83: Column M: | D83: indicate a ‘yes’ or ‘no’ to attest as to whether the service provider and caregiver created or reviewed the Caregiver Support Plan within 30 days of the initial 72-hour contact.
C84: Column N: | D84: Service End Date, the date the case went inactive.
C85: Column O: | D85: DCYF Region
C86: Column P: | D86: Child Support Level - Important as it determines what service will need to be opened
C87: Column Q: | D87: The Name of the Assigned Support Manager (This is a drop down based on the information entered on the "Employee Log")
C88: Column S | D88: A Yes/No Check for if you have received the "Catchment Provider Level" Payment fo the youth
C90: This generates a count on the "Roll Up" tab that indicates to the DCYF Fiduciary that need to open up the payment on the case file.

Sheet FTE Billing Form
C1: WASHINGTON STATE DEPARTMENT OF CHILDREN, YOUTH, AND FAMILIES
C2: FTE Billing Form
C5: Invoice Date: | G5: Month of Service: | J5: January
C7: Provider Name:
C11: * Complete Employee Log Tab | G11: Catchment Area: | K11: Snohomish
C14: Is There an FTE Working Over the Allotted Amount: | J14: =IFERROR(VLOOKUP(Sheet4!I3,'Employee Log'!H6:H103,1,0),"Ok") -> Ok
C16: Number of FTEs Working Over Alloted Amount: | J16: =COUNTIFS('Employee Log'!H:H,"""WorkingOverAllowedAmount") -> 0
E18: Allowed | G18: Actual - FTE Count | J18: Billed (Prorated)
C20: Support Manager | E20: =VLOOKUP(K11,Sheet4!A:B,2,0) -> 10.725 | G20: =SUMIFS('Employee Log'!B6:B103,'Employee Log'!F6:F103,'FTE Billing Form'!C20) -> 0 | J20: =SUMIFS('Employee Log'!I:I,'Employee Log'!F:F,C20) -> 0
C22: Case Aide | E22: =VLOOKUP(K11,Sheet4!A:C,3,0) -> 10 | G22: =SUMIFS('Employee Log'!B6:B103,'Employee Log'!F6:F103,'FTE Billing Form'!C22) -> 0 | J22: =SUMIFS('Employee Log'!I:I,'Employee Log'!F:F,C22) -> 0
C24: Program Manager Supplemental | J24: =IFERROR(ROUND(PRODUCT(VLOOKUP(K11,'Manager Payment Supplement'!D74:H87,5,0),IF(SUM(G20,G22)/6>=1,0,1-SUM(G20,G22)/6)),2), "Select Catchment") -> 8702.57
G26: TOTAL BILLED: | J26: =SUM(J20,J22,J24) -> 8702.57
B28: Comments
C34: Provider's Certificate
C36: I hereby certify under penalty of perjury that the invoice above are correct and are proper charges for services furnished to the State of Washington DCYF.
C41: Provider's Authorized Signature/Name | K41: Date
C44: DCYF Approval
C46: I hereby certify that the above charges by the Provider are correct and approve payment.
C51: DCYF Authorized Signature | K51: Date
C54: FAMLINK BILLING FORM (2/2025)
C55: Created by the Fiscal Integrity Unit

Sheet Employee Log
A1: FTE LOG | G1: *Yellow Columns are Derived from Formulas and do not Require Manual Entry
A5: Days Employed in Month (Select MOS On Billing Form Tab) | B5: Percentage of FTE Allocated (Round to Nearest) | C5: Name | F5: Position | G5: Percentage of FTE Actually Working | H5: Is Employee Working More than Allocated | I5: Billed | J5: Max | K5: Full Month
B6: [Select] | F6: [Select] | G6: =SUMIFS('Provider Level'!T:T,'Provider Level'!S:S,'Employee Log'!C6) -> 0 | H6: =IF(G6>B6,"Working Over Allowed Amount","Ok") -> Ok | I6: =IFERROR(IFERROR(ROUND(IF($K6="yes",$J6,($J6/30.42)*$A6),2),"Complete Log")*B6,0) -> 0 | J6: =INDEX(Index!$C:$C,MATCH(1,(Index!$A:$A='FTE Billing Form'!$K$11)*(Index!$B:$B=$F6),0)) ->  | K6: =IF($A6=VLOOKUP('FTE Billing Form'!$J$5:$K$5,Dropdown!$A:$B,2,0),"yes","no") -> no
B7: [Select] | F7: [Select] | G7: =SUMIFS('Provider Level'!T:T,'Provider Level'!S:S,'Employee Log'!C7) -> 0 | H7: =IF(G7>B7,"Working Over Allowed Amount","Ok") -> Ok | I7: 0 | J7: =INDEX(Index!$C:$C,MATCH(1,(Index!$A:$A='FTE Billing Form'!$K$11)*(Index!$B:$B=$F7),0)) ->  | K7: =IF($A7=VLOOKUP('FTE Billing Form'!$J$5:$K$5,Dropdown!$A:$B,2,0),"yes","no") -> no
B8: [Select] | F8: [Select] | G8: =SUMIFS('Provider Level'!T:T,'Provider Level'!S:S,'Employee Log'!C8) -> 0 | H8: Ok | I8: 0 | J8: =INDEX(Index!$C:$C,MATCH(1,(Index!$A:$A='FTE Billing Form'!$K$11)*(Index!$B:$B=$F8),0)) ->  | K8: =IF($A8=VLOOKUP('FTE Billing Form'!$J$5:$K$5,Dropdown!$A:$B,2,0),"yes","no") -> no
B9: [Select] | F9: [Select] | G9: =SUMIFS('Provider Level'!T:T,'Provider Level'!S:S,'Employee Log'!C9) -> 0 | H9: Ok | I9: 0 | J9: =INDEX(Index!$C:$C,MATCH(1,(Index!$A:$A='FTE Billing Form'!$K$11)*(Index!$B:$B=$F9),0)) ->  | K9: =IF($A9=VLOOKUP('FTE Billing Form'!$J$5:$K$5,Dropdown!$A:$B,2,0),"yes","no") -> no
B10: [Select] | F10: [Select] | G10: =SUMIFS('Provider Level'!T:T,'Provider Level'!S:S,'Employee Log'!C10) -> 0 | H10: Ok | I10: 0 | J10: =INDEX(Index!$C:$C,MATCH(1,(Index!$A:$A='FTE Billing Form'!$K$11)*(Index!$B:$B=$F10),0)) ->  | K10: =IF($A10=VLOOKUP('FTE Billing Form'!$J$5:$K$5,Dropdown!$A:$B,2,0),"yes","no") -> no
B11: [Select] | F11: [Select] | G11: =SUMIFS('Provider Level'!T:T,'Provider Level'!S:S,'Employee Log'!C11) -> 0 | H11: Ok | I11: 0 | J11: =INDEX(Index!$C:$C,MATCH(1,(Index!$A:$A='FTE Billing Form'!$K$11)*(Index!$B:$B=$F11),0)) ->  | K11: =IF($A11=VLOOKUP('FTE Billing Form'!$J$5:$K$5,Dropdown!$A:$B,2,0),"yes","no") -> no
B12: [Select] | F12: [Select] | G12: =SUMIFS('Provider Level'!T:T,'Provider Level'!S:S,'Employee Log'!C12) -> 0 | H12: Ok | I12: 0 | J12: =INDEX(Index!$C:$C,MATCH(1,(Index!$A:$A='FTE Billing Form'!$K$11)*(Index!$B:$B=$F12),0)) ->  | K12: =IF($A12=VLOOKUP('FTE Billing Form'!$J$5:$K$5,Dropdown!$A:$B,2,0),"yes","no") -> no
B13: [Select] | F13: [Select] | G13: =SUMIFS('Provider Level'!T:T,'Provider Level'!S:S,'Employee Log'!C13) -> 0 | H13: Ok | I13: 0 | J13: =INDEX(Index!$C:$C,MATCH(1,(Index!$A:$A='FTE Billing Form'!$K$11)*(Index!$B:$B=$F13),0)) ->  | K13: =IF($A13=VLOOKUP('FTE Billing Form'!$J$5:$K$5,Dropdown!$A:$B,2,0),"yes","no") -> no
B14: [Select] | F14: [Select] | G14: =SUMIFS('Provider Level'!T:T,'Provider Level'!S:S,'Employee Log'!C14) -> 0 | H14: Ok | I14: 0 | J14: =INDEX(Index!$C:$C,MATCH(1,(Index!$A:$A='FTE Billing Form'!$K$11)*(Index!$B:$B=$F14),0)) ->  | K14: =IF($A14=VLOOKUP('FTE Billing Form'!$J$5:$K$5,Dropdown!$A:$B,2,0),"yes","no") -> no
B15: [Select] | F15: [Select] | G15: =SUMIFS('Provider Level'!T:T,'Provider Level'!S:S,'Employee Log'!C15) -> 0 | H15: Ok | I15: 0 | J15: =INDEX(Index!$C:$C,MATCH(1,(Index!$A:$A='FTE Billing Form'!$K$11)*(Index!$B:$B=$F15),0)) ->  | K15: =IF($A15=VLOOKUP('FTE Billing Form'!$J$5:$K$5,Dropdown!$A:$B,2,0),"yes","no") -> no
B16: [Select] | F16: [Select] | G16: =SUMIFS('Provider Level'!T:T,'Provider Level'!S:S,'Employee Log'!C16) -> 0 | H16: Ok | I16: 0 | J16: =INDEX(Index!$C:$C,MATCH(1,(Index!$A:$A='FTE Billing Form'!$K$11)*(Index!$B:$B=$F16),0)) ->  | K16: =IF($A16=VLOOKUP('FTE Billing Form'!$J$5:$K$5,Dropdown!$A:$B,2,0),"yes","no") -> no
B17: [Select] | F17: [Select] | G17: =SUMIFS('Provider Level'!T:T,'Provider Level'!S:S,'Employee Log'!C17) -> 0 | H17: Ok | I17: 0 | J17: =INDEX(Index!$C:$C,MATCH(1,(Index!$A:$A='FTE Billing Form'!$K$11)*(Index!$B:$B=$F17),0)) ->  | K17: =IF($A17=VLOOKUP('FTE Billing Form'!$J$5:$K$5,Dropdown!$A:$B,2,0),"yes","no") -> no
B18: [Select] | F18: [Select] | G18: =SUMIFS('Provider Level'!T:T,'Provider Level'!S:S,'Employee Log'!C18) -> 0 | H18: Ok | I18: 0 | J18: =INDEX(Index!$C:$C,MATCH(1,(Index!$A:$A='FTE Billing Form'!$K$11)*(Index!$B:$B=$F18),0)) ->  | K18: =IF($A18=VLOOKUP('FTE Billing Form'!$J$5:$K$5,Dropdown!$A:$B,2,0),"yes","no") -> no
B19: [Select] | F19: [Select] | G19: =SUMIFS('Provider Level'!T:T,'Provider Level'!S:S,'Employee Log'!C19) -> 0 | H19: Ok | I19: 0 | J19: =INDEX(Index!$C:$C,MATCH(1,(Index!$A:$A='FTE Billing Form'!$K$11)*(Index!$B:$B=$F19),0)) ->  | K19: =IF($A19=VLOOKUP('FTE Billing Form'!$J$5:$K$5,Dropdown!$A:$B,2,0),"yes","no") -> no
B20: [Select] | F20: [Select] | G20: =SUMIFS('Provider Level'!T:T,'Provider Level'!S:S,'Employee Log'!C20) -> 0 | H20: Ok | I20: 0 | J20: =INDEX(Index!$C:$C,MATCH(1,(Index!$A:$A='FTE Billing Form'!$K$11)*(Index!$B:$B=$F20),0)) ->  | K20: =IF($A20=VLOOKUP('FTE Billing Form'!$J$5:$K$5,Dropdown!$A:$B,2,0),"yes","no") -> no
B21: [Select] | F21: [Select] | G21: =SUMIFS('Provider Level'!T:T,'Provider Level'!S:S,'Employee Log'!C21) -> 0 | H21: Ok | I21: 0 | J21: =INDEX(Index!$C:$C,MATCH(1,(Index!$A:$A='FTE Billing Form'!$K$11)*(Index!$B:$B=$F21),0)) ->  | K21: =IF($A21=VLOOKUP('FTE Billing Form'!$J$5:$K$5,Dropdown!$A:$B,2,0),"yes","no") -> no
B22: [Select] | F22: [Select] | G22: =SUMIFS('Provider Level'!T:T,'Provider Level'!S:S,'Employee Log'!C22) -> 0 | H22: Ok | I22: 0 | J22: =INDEX(Index!$C:$C,MATCH(1,(Index!$A:$A='FTE Billing Form'!$K$11)*(Index!$B:$B=$F22),0)) ->  | K22: =IF($A22=VLOOKUP('FTE Billing Form'!$J$5:$K$5,Dropdown!$A:$B,2,0),"yes","no") -> no
B23: [Select] | F23: [Select] | G23: =SUMIFS('Provider Level'!T:T,'Provider Level'!S:S,'Employee Log'!C23) -> 0 | H23: Ok | I23: 0 | J23: =INDEX(Index!$C:$C,MATCH(1,(Index!$A:$A='FTE Billing Form'!$K$11)*(Index!$B:$B=$F23),0)) ->  | K23: =IF($A23=VLOOKUP('FTE Billing Form'!$J$5:$K$5,Dropdown!$A:$B,2,0),"yes","no") -> no
B24: [Select] | F24: [Select] | G24: =SUMIFS('Provider Level'!T:T,'Provider Level'!S:S,'Employee Log'!C24) -> 0 | H24: Ok | I24: 0 | J24: =INDEX(Index!$C:$C,MATCH(1,(Index!$A:$A='FTE Billing Form'!$K$11)*(Index!$B:$B=$F24),0)) ->  | K24: =IF($A24=VLOOKUP('FTE Billing Form'!$J$5:$K$5,Dropdown!$A:$B,2,0),"yes","no") -> no
B25: [Select] | F25: [Select] | G25: =SUMIFS('Provider Level'!T:T,'Provider Level'!S:S,'Employee Log'!C25) -> 0 | H25: Ok | I25: 0 | J25: =INDEX(Index!$C:$C,MATCH(1,(Index!$A:$A='FTE Billing Form'!$K$11)*(Index!$B:$B=$F25),0)) ->  | K25: =IF($A25=VLOOKUP('FTE Billing Form'!$J$5:$K$5,Dropdown!$A:$B,2,0),"yes","no") -> no
B26: [Select] | F26: [Select] | G26: =SUMIFS('Provider Level'!T:T,'Provider Level'!S:S,'Employee Log'!C26) -> 0 | H26: Ok | I26: 0 | J26: =INDEX(Index!$C:$C,MATCH(1,(Index!$A:$A='FTE Billing Form'!$K$11)*(Index!$B:$B=$F26),0)) ->  | K26: =IF($A26=VLOOKUP('FTE Billing Form'!$J$5:$K$5,Dropdown!$A:$B,2,0),"yes","no") -> no
B27: [Select] | F27: [Select] | G27: =SUMIFS('Provider Level'!T:T,'Provider Level'!S:S,'Employee Log'!C27) -> 0 | H27: Ok | I27: 0 | J27: =INDEX(Index!$C:$C,MATCH(1,(Index!$A:$A='FTE Billing Form'!$K$11)*(Index!$B:$B=$F27),0)) ->  | K27: =IF($A27=VLOOKUP('FTE Billing Form'!$J$5:$K$5,Dropdown!$A:$B,2,0),"yes","no") -> no
B28: [Select] | F28: [Select] | G28: =SUMIFS('Provider Level'!T:T,'Provider Level'!S:S,'Employee Log'!C28) -> 0 | H28: Ok | I28: 0 | J28: =INDEX(Index!$C:$C,MATCH(1,(Index!$A:$A='FTE Billing Form'!$K$11)*(Index!$B:$B=$F28),0)) ->  | K28: =IF($A28=VLOOKUP('FTE Billing Form'!$J$5:$K$5,Dropdown!$A:$B,2,0),"yes","no") -> no
B29: [Select] | F29: [Select] | G29: =SUMIFS('Provider Level'!T:T,'Provider Level'!S:S,'Employee Log'!C29) -> 0 | H29: Ok | I29: 0 | J29: =INDEX(Index!$C:$C,MATCH(1,(Index!$A:$A='FTE Billing Form'!$K$11)*(Index!$B:$B=$F29),0)) ->  | K29: =IF($A29=VLOOKUP('FTE Billing Form'!$J$5:$K$5,Dropdown!$A:$B,2,0),"yes","no") -> no
B30: [Select] | F30: [Select] | G30: =SUMIFS('Provider Level'!T:T,'Provider Level'!S:S,'Employee Log'!C30) -> 0 | H30: Ok | I30: 0 | J30: =INDEX(Index!$C:$C,MATCH(1,(Index!$A:$A='FTE Billing Form'!$K$11)*(Index!$B:$B=$F30),0)) ->  | K30: =IF($A30=VLOOKUP('FTE Billing Form'!$J$5:$K$5,Dropdown!$A:$B,2,0),"yes","no") -> no
B31: [Select] | F31: [Select] | G31: =SUMIFS('Provider Level'!T:T,'Provider Level'!S:S,'Employee Log'!C31) -> 0 | H31: Ok | I31: 0 | J31: =INDEX(Index!$C:$C,MATCH(1,(Index!$A:$A='FTE Billing Form'!$K$11)*(Index!$B:$B=$F31),0)) ->  | K31: =IF($A31=VLOOKUP('FTE Billing Form'!$J$5:$K$5,Dropdown!$A:$B,2,0),"yes","no") -> no
B32: [Select] | F32: [Select] | G32: =SUMIFS('Provider Level'!T:T,'Provider Level'!S:S,'Employee Log'!C32) -> 0 | H32: Ok | I32: 0 | J32: =INDEX(Index!$C:$C,MATCH(1,(Index!$A:$A='FTE Billing Form'!$K$11)*(Index!$B:$B=$F32),0)) ->  | K32: =IF($A32=VLOOKUP('FTE Billing Form'!$J$5:$K$5,Dropdown!$A:$B,2,0),"yes","no") -> no
B33: [Select] | F33: [Select] | G33: =SUMIFS('Provider Level'!T:T,'Provider Level'!S:S,'Employee Log'!C33) -> 0 | H33: Ok | I33: 0 | J33: =INDEX(Index!$C:$C,MATCH(1,(Index!$A:$A='FTE Billing Form'!$K$11)*(Index!$B:$B=$F33),0)) ->  | K33: =IF($A33=VLOOKUP('FTE Billing Form'!$J$5:$K$5,Dropdown!$A:$B,2,0),"yes","no") -> no
B34: [Select] | F34: [Select] | G34: =SUMIFS('Provider Level'!T:T,'Provider Level'!S:S,'Employee Log'!C34) -> 0 | H34: Ok | I34: 0 | J34: =INDEX(Index!$C:$C,MATCH(1,(Index!$A:$A='FTE Billing Form'!$K$11)*(Index!$B:$B=$F34),0)) ->  | K34: =IF($A34=VLOOKUP('FTE Billing Form'!$J$5:$K$5,Dropdown!$A:$B,2,0),"yes","no") -> no
B35: [Select] | F35: [Select] | G35: =SUMIFS('Provider Level'!T:T,'Provider Level'!S:S,'Employee Log'!C35) -> 0 | H35: Ok | I35: 0 | J35: =INDEX(Index!$C:$C,MATCH(1,(Index!$A:$A='FTE Billing Form'!$K$11)*(Index!$B:$B=$F35),0)) ->  | K35: =IF($A35=VLOOKUP('FTE Billing Form'!$J$5:$K$5,Dropdown!$A:$B,2,0),"yes","no") -> no
B36: [Select] | F36: [Select] | G36: =SUMIFS('Provider Level'!T:T,'Provider Level'!S:S,'Employee Log'!C36) -> 0 | H36: Ok | I36: 0 | J36: =INDEX(Index!$C:$C,MATCH(1,(Index!$A:$A='FTE Billing Form'!$K$11)*(Index!$B:$B=$F36),0)) ->  | K36: =IF($A36=VLOOKUP('FTE Billing Form'!$J$5:$K$5,Dropdown!$A:$B,2,0),"yes","no") -> no
B37: [Select] | F37: [Select] | G37: =SUMIFS('Provider Level'!T:T,'Provider Level'!S:S,'Employee Log'!C37) -> 0 | H37: Ok | I37: 0 | J37: =INDEX(Index!$C:$C,MATCH(1,(Index!$A:$A='FTE Billing Form'!$K$11)*(Index!$B:$B=$F37),0)) ->  | K37: =IF($A37=VLOOKUP('FTE Billing Form'!$J$5:$K$5,Dropdown!$A:$B,2,0),"yes","no") -> no
B38: [Select] | F38: [Select] | G38: =SUMIFS('Provider Level'!T:T,'Provider Level'!S:S,'Employee Log'!C38) -> 0 | H38: Ok | I38: =IFERROR(IFERROR(ROUND(IF($K38="yes",$J38,($J38/30.42)*$A38),2),"Complete Log")*B38,0) -> 0 | J38: =INDEX(Index!$C:$C,MATCH(1,(Index!$A:$A='FTE Billing Form'!$K$11)*(Index!$B:$B=$F38),0)) ->  | K38: =IF($A38=VLOOKUP('FTE Billing Form'!$J$5:$K$5,Dropdown!$A:$B,2,0),"yes","no") -> no
B39: [Select] | F39: [Select] | G39: =SUMIFS('Provider Level'!T:T,'Provider Level'!S:S,'Employee Log'!C39) -> 0 | H39: Ok | I39: 0 | J39: =INDEX(Index!$C:$C,MATCH(1,(Index!$A:$A='FTE Billing Form'!$K$11)*(Index!$B:$B=$F39),0)) ->  | K39: =IF($A39=VLOOKUP('FTE Billing Form'!$J$5:$K$5,Dropdown!$A:$B,2,0),"yes","no") -> no
B40: [Select] | F40: [Select] | G40: =SUMIFS('Provider Level'!T:T,'Provider Level'!S:S,'Employee Log'!C40) -> 0 | H40: Ok | I40: 0 | J40: =INDEX(Index!$C:$C,MATCH(1,(Index!$A:$A='FTE Billing Form'!$K$11)*(Index!$B:$B=$F40),0)) ->  | K40: =IF($A40=VLOOKUP('FTE Billing Form'!$J$5:$K$5,Dropdown!$A:$B,2,0),"yes","no") -> no
B41: [Select] | F41: [Select] | G41: =SUMIFS('Provider Level'!T:T,'Provider Level'!S:S,'Employee Log'!C41) -> 0 | H41: Ok | I41: 0 | J41: =INDEX(Index!$C:$C,MATCH(1,(Index!$A:$A='FTE Billing Form'!$K$11)*(Index!$B:$B=$F41),0)) ->  | K41: =IF($A41=VLOOKUP('FTE Billing Form'!$J$5:$K$5,Dropdown!$A:$B,2,0),"yes","no") -> no
B42: [Select] | F42: [Select] | G42: =SUMIFS('Provider Level'!T:T,'Provider Level'!S:S,'Employee Log'!C42) -> 0 | H42: Ok | I42: 0 | J42: =INDEX(Index!$C:$C,MATCH(1,(Index!$A:$A='FTE Billing Form'!$K$11)*(Index!$B:$B=$F42),0)) ->  | K42: =IF($A42=VLOOKUP('FTE Billing Form'!$J$5:$K$5,Dropdown!$A:$B,2,0),"yes","no") -> no
B43: [Select] | F43: [Select] | G43: =SUMIFS('Provider Level'!T:T,'Provider Level'!S:S,'Employee Log'!C43) -> 0 | H43: Ok | I43: 0 | J43: =INDEX(Index!$C:$C,MATCH(1,(Index!$A:$A='FTE Billing Form'!$K$11)*(Index!$B:$B=$F43),0)) ->  | K43: =IF($A43=VLOOKUP('FTE Billing Form'!$J$5:$K$5,Dropdown!$A:$B,2,0),"yes","no") -> no
B44: [Select] | F44: [Select] | G44: =SUMIFS('Provider Level'!T:T,'Provider Level'!S:S,'Employee Log'!C44) -> 0 | H44: Ok | I44: 0 | J44: =INDEX(Index!$C:$C,MATCH(1,(Index!$A:$A='FTE Billing Form'!$K$11)*(Index!$B:$B=$F44),0)) ->  | K44: =IF($A44=VLOOKUP('FTE Billing Form'!$J$5:$K$5,Dropdown!$A:$B,2,0),"yes","no") -> no
B45: [Select] | F45: [Select] | G45: =SUMIFS('Provider Level'!T:T,'Provider Level'!S:S,'Employee Log'!C45) -> 0 | H45: Ok | I45: 0 | J45: =INDEX(Index!$C:$C,MATCH(1,(Index!$A:$A='FTE Billing Form'!$K$11)*(Index!$B:$B=$F45),0)) ->  | K45: =IF($A45=VLOOKUP('FTE Billing Form'!$J$5:$K$5,Dropdown!$A:$B,2,0),"yes","no") -> no
B46: [Select] | F46: [Select] | G46: =SUMIFS('Provider Level'!T:T,'Provider Level'!S:S,'Employee Log'!C46) -> 0 | H46: Ok | I46: 0 | J46: =INDEX(Index!$C:$C,MATCH(1,(Index!$A:$A='FTE Billing Form'!$K$11)*(Index!$B:$B=$F46),0)) ->  | K46: =IF($A46=VLOOKUP('FTE Billing Form'!$J$5:$K$5,Dropdown!$A:$B,2,0),"yes","no") -> no
B47: [Select] | F47: [Select] | G47: =SUMIFS('Provider Level'!T:T,'Provider Level'!S:S,'Employee Log'!C47) -> 0 | H47: Ok | I47: 0 | J47: =INDEX(Index!$C:$C,MATCH(1,(Index!$A:$A='FTE Billing Form'!$K$11)*(Index!$B:$B=$F47),0)) ->  | K47: =IF($A47=VLOOKUP('FTE Billing Form'!$J$5:$K$5,Dropdown!$A:$B,2,0),"yes","no") -> no
B48: [Select] | F48: [Select] | G48: =SUMIFS('Provider Level'!T:T,'Provider Level'!S:S,'Employee Log'!C48) -> 0 | H48: Ok | I48: 0 | J48: =INDEX(Index!$C:$C,MATCH(1,(Index!$A:$A='FTE Billing Form'!$K$11)*(Index!$B:$B=$F48),0)) ->  | K48: =IF($A48=VLOOKUP('FTE Billing Form'!$J$5:$K$5,Dropdown!$A:$B,2,0),"yes","no") -> no
B49: [Select] | F49: [Select] | G49: =SUMIFS('Provider Level'!T:T,'Provider Level'!S:S,'Employee Log'!C49) -> 0 | H49: Ok | I49: 0 | J49: =INDEX(Index!$C:$C,MATCH(1,(Index!$A:$A='FTE Billing Form'!$K$11)*(Index!$B:$B=$F49),0)) ->  | K49: =IF($A49=VLOOKUP('FTE Billing Form'!$J$5:$K$5,Dropdown!$A:$B,2,0),"yes","no") -> no
B50: [Select] | F50: [Select] | G50: =SUMIFS('Provider Level'!T:T,'Provider Level'!S:S,'Employee Log'!C50) -> 0 | H50: Ok | I50: 0 | J50: =INDEX(Index!$C:$C,MATCH(1,(Index!$A:$A='FTE Billing Form'!$K$11)*(Index!$B:$B=$F50),0)) ->  | K50: =IF($A50=VLOOKUP('FTE Billing Form'!$J$5:$K$5,Dropdown!$A:$B,2,0),"yes","no") -> no
B51: [Select] | F51: [Select] | G51: =SUMIFS('Provider Level'!T:T,'Provider Level'!S:S,'Employee Log'!C51) -> 0 | H51: Ok | I51: 0 | J51: =INDEX(Index!$C:$C,MATCH(1,(Index!$A:$A='FTE Billing Form'!$K$11)*(Index!$B:$B=$F51),0)) ->  | K51: =IF($A51=VLOOKUP('FTE Billing Form'!$J$5:$K$5,Dropdown!$A:$B,2,0),"yes","no") -> no
B52: [Select] | F52: [Select] | G52: =SUMIFS('Provider Level'!T:T,'Provider Level'!S:S,'Employee Log'!C52) -> 0 | H52: Ok | I52: 0 | J52: =INDEX(Index!$C:$C,MATCH(1,(Index!$A:$A='FTE Billing Form'!$K$11)*(Index!$B:$B=$F52),0)) ->  | K52: =IF($A52=VLOOKUP('FTE Billing Form'!$J$5:$K$5,Dropdown!$A:$B,2,0),"yes","no") -> no
B53: [Select] | F53: [Select] | G53: =SUMIFS('Provider Level'!T:T,'Provider Level'!S:S,'Employee Log'!C53) -> 0 | H53: Ok | I53: 0 | J53: =INDEX(Index!$C:$C,MATCH(1,(Index!$A:$A='FTE Billing Form'!$K$11)*(Index!$B:$B=$F53),0)) ->  | K53: =IF($A53=VLOOKUP('FTE Billing Form'!$J$5:$K$5,Dropdown!$A:$B,2,0),"yes","no") -> no
B54: [Select] | F54: [Select] | G54: =SUMIFS('Provider Level'!T:T,'Provider Level'!S:S,'Employee Log'!C54) -> 0 | H54: Ok | I54: 0 | J54: =INDEX(Index!$C:$C,MATCH(1,(Index!$A:$A='FTE Billing Form'!$K$11)*(Index!$B:$B=$F54),0)) ->  | K54: =IF($A54=VLOOKUP('FTE Billing Form'!$J$5:$K$5,Dropdown!$A:$B,2,0),"yes","no") -> no
B55: [Select] | F55: [Select] | G55: =SUMIFS('Provider Level'!T:T,'Provider Level'!S:S,'Employee Log'!C55) -> 0 | H55: Ok | I55: 0 | J55: =INDEX(Index!$C:$C,MATCH(1,(Index!$A:$A='FTE Billing Form'!$K$11)*(Index!$B:$B=$F55),0)) ->  | K55: =IF($A55=VLOOKUP('FTE Billing Form'!$J$5:$K$5,Dropdown!$A:$B,2,0),"yes","no") -> no
B56: [Select] | F56: [Select] | G56: =SUMIFS('Provider Level'!T:T,'Provider Level'!S:S,'Employee Log'!C56) -> 0 | H56: Ok | I56: 0 | J56: =INDEX(Index!$C:$C,MATCH(1,(Index!$A:$A='FTE Billing Form'!$K$11)*(Index!$B:$B=$F56),0)) ->  | K56: =IF($A56=VLOOKUP('FTE Billing Form'!$J$5:$K$5,Dropdown!$A:$B,2,0),"yes","no") -> no
B57: [Select] | F57: [Select] | G57: =SUMIFS('Provider Level'!T:T,'Provider Level'!S:S,'Employee Log'!C57) -> 0 | H57: Ok | I57: 0 | J57: =INDEX(Index!$C:$C,MATCH(1,(Index!$A:$A='FTE Billing Form'!$K$11)*(Index!$B:$B=$F57),0)) ->  | K57: =IF($A57=VLOOKUP('FTE Billing Form'!$J$5:$K$5,Dropdown!$A:$B,2,0),"yes","no") -> no
B58: [Select] | F58: [Select] | G58: =SUMIFS('Provider Level'!T:T,'Provider Level'!S:S,'Employee Log'!C58) -> 0 | H58: Ok | I58: 0 | J58: =INDEX(Index!$C:$C,MATCH(1,(Index!$A:$A='FTE Billing Form'!$K$11)*(Index!$B:$B=$F58),0)) ->  | K58: =IF($A58=VLOOKUP('FTE Billing Form'!$J$5:$K$5,Dropdown!$A:$B,2,0),"yes","no") -> no
B59: [Select] | F59: [Select] | G59: =SUMIFS('Provider Level'!T:T,'Provider Level'!S:S,'Employee Log'!C59) -> 0 | H59: Ok | I59: 0 | J59: =INDEX(Index!$C:$C,MATCH(1,(Index!$A:$A='FTE Billing Form'!$K$11)*(Index!$B:$B=$F59),0)) ->  | K59: =IF($A59=VLOOKUP('FTE Billing Form'!$J$5:$K$5,Dropdown!$A:$B,2,0),"yes","no") -> no
B60: [Select] | F60: [Select] | G60: =SUMIFS('Provider Level'!T:T,'Provider Level'!S:S,'Employee Log'!C60) -> 0 | H60: Ok | I60: 0 | J60: =INDEX(Index!$C:$C,MATCH(1,(Index!$A:$A='FTE Billing Form'!$K$11)*(Index!$B:$B=$F60),0)) ->  | K60: =IF($A60=VLOOKUP('FTE Billing Form'!$J$5:$K$5,Dropdown!$A:$B,2,0),"yes","no") -> no
B61: [Select] | F61: [Select] | G61: =SUMIFS('Provider Level'!T:T,'Provider Level'!S:S,'Employee Log'!C61) -> 0 | H61: Ok | I61: 0 | J61: =INDEX(Index!$C:$C,MATCH(1,(Index!$A:$A='FTE Billing Form'!$K$11)*(Index!$B:$B=$F61),0)) ->  | K61: =IF($A61=VLOOKUP('FTE Billing Form'!$J$5:$K$5,Dropdown!$A:$B,2,0),"yes","no") -> no
B62: [Select] | F62: [Select] | G62: =SUMIFS('Provider Level'!T:T,'Provider Level'!S:S,'Employee Log'!C62) -> 0 | H62: Ok | I62: 0 | J62: =INDEX(Index!$C:$C,MATCH(1,(Index!$A:$A='FTE Billing Form'!$K$11)*(Index!$B:$B=$F62),0)) ->  | K62: =IF($A62=VLOOKUP('FTE Billing Form'!$J$5:$K$5,Dropdown!$A:$B,2,0),"yes","no") -> no
B63: [Select] | F63: [Select] | G63: =SUMIFS('Provider Level'!T:T,'Provider Level'!S:S,'Employee Log'!C63) -> 0 | H63: Ok | I63: 0 | J63: =INDEX(Index!$C:$C,MATCH(1,(Index!$A:$A='FTE Billing Form'!$K$11)*(Index!$B:$B=$F63),0)) ->  | K63: =IF($A63=VLOOKUP('FTE Billing Form'!$J$5:$K$5,Dropdown!$A:$B,2,0),"yes","no") -> no
B64: [Select] | F64: [Select] | G64: =SUMIFS('Provider Level'!T:T,'Provider Level'!S:S,'Employee Log'!C64) -> 0 | H64: Ok | I64: 0 | J64: =INDEX(Index!$C:$C,MATCH(1,(Index!$A:$A='FTE Billing Form'!$K$11)*(Index!$B:$B=$F64),0)) ->  | K64: =IF($A64=VLOOKUP('FTE Billing Form'!$J$5:$K$5,Dropdown!$A:$B,2,0),"yes","no") -> no
B65: [Select] | F65: [Select] | G65: =SUMIFS('Provider Level'!T:T,'Provider Level'!S:S,'Employee Log'!C65) -> 0 | H65: Ok | I65: 0 | J65: =INDEX(Index!$C:$C,MATCH(1,(Index!$A:$A='FTE Billing Form'!$K$11)*(Index!$B:$B=$F65),0)) ->  | K65: =IF($A65=VLOOKUP('FTE Billing Form'!$J$5:$K$5,Dropdown!$A:$B,2,0),"yes","no") -> no
B66: [Select] | F66: [Select] | G66: =SUMIFS('Provider Level'!T:T,'Provider Level'!S:S,'Employee Log'!C66) -> 0 | H66: Ok | I66: 0 | J66: =INDEX(Index!$C:$C,MATCH(1,(Index!$A:$A='FTE Billing Form'!$K$11)*(Index!$B:$B=$F66),0)) ->  | K66: =IF($A66=VLOOKUP('FTE Billing Form'!$J$5:$K$5,Dropdown!$A:$B,2,0),"yes","no") -> no
B67: [Select] | F67: [Select] | G67: =SUMIFS('Provider Level'!T:T,'Provider Level'!S:S,'Employee Log'!C67) -> 0 | H67: Ok | I67: 0 | J67: =INDEX(Index!$C:$C,MATCH(1,(Index!$A:$A='FTE Billing Form'!$K$11)*(Index!$B:$B=$F67),0)) ->  | K67: =IF($A67=VLOOKUP('FTE Billing Form'!$J$5:$K$5,Dropdown!$A:$B,2,0),"yes","no") -> no
B68: [Select] | F68: [Select] | G68: =SUMIFS('Provider Level'!T:T,'Provider Level'!S:S,'Employee Log'!C68) -> 0 | H68: Ok | I68: 0 | J68: =INDEX(Index!$C:$C,MATCH(1,(Index!$A:$A='FTE Billing Form'!$K$11)*(Index!$B:$B=$F68),0)) ->  | K68: =IF($A68=VLOOKUP('FTE Billing Form'!$J$5:$K$5,Dropdown!$A:$B,2,0),"yes","no") -> no
B69: [Select] | F69: [Select] | G69: =SUMIFS('Provider Level'!T:T,'Provider Level'!S:S,'Employee Log'!C69) -> 0 | H69: Ok | I69: 0 | J69: =INDEX(Index!$C:$C,MATCH(1,(Index!$A:$A='FTE Billing Form'!$K$11)*(Index!$B:$B=$F69),0)) ->  | K69: =IF($A69=VLOOKUP('FTE Billing Form'!$J$5:$K$5,Dropdown!$A:$B,2,0),"yes","no") -> no
B70: [Select] | F70: [Select] | G70: =SUMIFS('Provider Level'!T:T,'Provider Level'!S:S,'Employee Log'!C70) -> 0 | H70: Ok | I70: =IFERROR(IFERROR(ROUND(IF($K70="yes",$J70,($J70/30.42)*$A70),2),"Complete Log")*B70,0) -> 0 | J70: =INDEX(Index!$C:$C,MATCH(1,(Index!$A:$A='FTE Billing Form'!$K$11)*(Index!$B:$B=$F70),0)) ->  | K70: =IF($A70=VLOOKUP('FTE Billing Form'!$J$5:$K$5,Dropdown!$A:$B,2,0),"yes","no") -> no
B71: [Select] | F71: [Select] | G71: =SUMIFS('Provider Level'!T:T,'Provider Level'!S:S,'Employee Log'!C71) -> 0 | H71: =IF(G71>B71,"Working Over Allowed Amount","Ok") -> Ok | I71: 0 | J71: =INDEX(Index!$C:$C,MATCH(1,(Index!$A:$A='FTE Billing Form'!$K$11)*(Index!$B:$B=$F71),0)) ->  | K71: =IF($A71=VLOOKUP('FTE Billing Form'!$J$5:$K$5,Dropdown!$A:$B,2,0),"yes","no") -> no
B72: [Select] | F72: [Select] | G72: =SUMIFS('Provider Level'!T:T,'Provider Level'!S:S,'Employee Log'!C72) -> 0 | H72: Ok | I72: 0 | J72: =INDEX(Index!$C:$C,MATCH(1,(Index!$A:$A='FTE Billing Form'!$K$11)*(Index!$B:$B=$F72),0)) ->  | K72: =IF($A72=VLOOKUP('FTE Billing Form'!$J$5:$K$5,Dropdown!$A:$B,2,0),"yes","no") -> no
B73: [Select] | F73: [Select] | G73: =SUMIFS('Provider Level'!T:T,'Provider Level'!S:S,'Employee Log'!C73) -> 0 | H73: Ok | I73: 0 | J73: =INDEX(Index!$C:$C,MATCH(1,(Index!$A:$A='FTE Billing Form'!$K$11)*(Index!$B:$B=$F73),0)) ->  | K73: =IF($A73=VLOOKUP('FTE Billing Form'!$J$5:$K$5,Dropdown!$A:$B,2,0),"yes","no") -> no
B74: [Select] | F74: [Select] | G74: =SUMIFS('Provider Level'!T:T,'Provider Level'!S:S,'Employee Log'!C74) -> 0 | H74: Ok | I74: 0 | J74: =INDEX(Index!$C:$C,MATCH(1,(Index!$A:$A='FTE Billing Form'!$K$11)*(Index!$B:$B=$F74),0)) ->  | K74: =IF($A74=VLOOKUP('FTE Billing Form'!$J$5:$K$5,Dropdown!$A:$B,2,0),"yes","no") -> no
B75: [Select] | F75: [Select] | G75: =SUMIFS('Provider Level'!T:T,'Provider Level'!S:S,'Employee Log'!C75) -> 0 | H75: Ok | I75: 0 | J75: =INDEX(Index!$C:$C,MATCH(1,(Index!$A:$A='FTE Billing Form'!$K$11)*(Index!$B:$B=$F75),0)) ->  | K75: =IF($A75=VLOOKUP('FTE Billing Form'!$J$5:$K$5,Dropdown!$A:$B,2,0),"yes","no") -> no
B76: [Select] | F76: [Select] | G76: =SUMIFS('Provider Level'!T:T,'Provider Level'!S:S,'Employee Log'!C76) -> 0 | H76: Ok | I76: 0 | J76: =INDEX(Index!$C:$C,MATCH(1,(Index!$A:$A='FTE Billing Form'!$K$11)*(Index!$B:$B=$F76),0)) ->  | K76: =IF($A76=VLOOKUP('FTE Billing Form'!$J$5:$K$5,Dropdown!$A:$B,2,0),"yes","no") -> no
B77: [Select] | F77: [Select] | G77: =SUMIFS('Provider Level'!T:T,'Provider Level'!S:S,'Employee Log'!C77) -> 0 | H77: Ok | I77: 0 | J77: =INDEX(Index!$C:$C,MATCH(1,(Index!$A:$A='FTE Billing Form'!$K$11)*(Index!$B:$B=$F77),0)) ->  | K77: =IF($A77=VLOOKUP('FTE Billing Form'!$J$5:$K$5,Dropdown!$A:$B,2,0),"yes","no") -> no
B78: [Select] | F78: [Select] | G78: =SUMIFS('Provider Level'!T:T,'Provider Level'!S:S,'Employee Log'!C78) -> 0 | H78: Ok | I78: 0 | J78: =INDEX(Index!$C:$C,MATCH(1,(Index!$A:$A='FTE Billing Form'!$K$11)*(Index!$B:$B=$F78),0)) ->  | K78: =IF($A78=VLOOKUP('FTE Billing Form'!$J$5:$K$5,Dropdown!$A:$B,2,0),"yes","no") -> no
B79: [Select] | F79: [Select] | G79: =SUMIFS('Provider Level'!T:T,'Provider Level'!S:S,'Employee Log'!C79) -> 0 | H79: Ok | I79: 0 | J79: =INDEX(Index!$C:$C,MATCH(1,(Index!$A:$A='FTE Billing Form'!$K$11)*(Index!$B:$B=$F79),0)) ->  | K79: =IF($A79=VLOOKUP('FTE Billing Form'!$J$5:$K$5,Dropdown!$A:$B,2,0),"yes","no") -> no
B80: [Select] | F80: [Select] | G80: =SUMIFS('Provider Level'!T:T,'Provider Level'!S:S,'Employee Log'!C80) -> 0 | H80: Ok | I80: 0 | J80: =INDEX(Index!$C:$C,MATCH(1,(Index!$A:$A='FTE Billing Form'!$K$11)*(Index!$B:$B=$F80),0)) ->  | K80: =IF($A80=VLOOKUP('FTE Billing Form'!$J$5:$K$5,Dropdown!$A:$B,2,0),"yes","no") -> no
B81: [Select] | F81: [Select] | G81: =SUMIFS('Provider Level'!T:T,'Provider Level'!S:S,'Employee Log'!C81) -> 0 | H81: Ok | I81: 0 | J81: =INDEX(Index!$C:$C,MATCH(1,(Index!$A:$A='FTE Billing Form'!$K$11)*(Index!$B:$B=$F81),0)) ->  | K81: =IF($A81=VLOOKUP('FTE Billing Form'!$J$5:$K$5,Dropdown!$A:$B,2,0),"yes","no") -> no
B82: [Select] | F82: [Select] | G82: =SUMIFS('Provider Level'!T:T,'Provider Level'!S:S,'Employee Log'!C82) -> 0 | H82: Ok | I82: 0 | J82: =INDEX(Index!$C:$C,MATCH(1,(Index!$A:$A='FTE Billing Form'!$K$11)*(Index!$B:$B=$F82),0)) ->  | K82: =IF($A82=VLOOKUP('FTE Billing Form'!$J$5:$K$5,Dropdown!$A:$B,2,0),"yes","no") -> no
B83: [Select] | F83: [Select] | G83: =SUMIFS('Provider Level'!T:T,'Provider Level'!S:S,'Employee Log'!C83) -> 0 | H83: Ok | I83: 0 | J83: =INDEX(Index!$C:$C,MATCH(1,(Index!$A:$A='FTE Billing Form'!$K$11)*(Index!$B:$B=$F83),0)) ->  | K83: =IF($A83=VLOOKUP('FTE Billing Form'!$J$5:$K$5,Dropdown!$A:$B,2,0),"yes","no") -> no
B84: [Select] | F84: [Select] | G84: =SUMIFS('Provider Level'!T:T,'Provider Level'!S:S,'Employee Log'!C84) -> 0 | H84: Ok | I84: 0 | J84: =INDEX(Index!$C:$C,MATCH(1,(Index!$A:$A='FTE Billing Form'!$K$11)*(Index!$B:$B=$F84),0)) ->  | K84: =IF($A84=VLOOKUP('FTE Billing Form'!$J$5:$K$5,Dropdown!$A:$B,2,0),"yes","no") -> no
B85: [Select] | F85: [Select] | G85: =SUMIFS('Provider Level'!T:T,'Provider Level'!S:S,'Employee Log'!C85) -> 0 | H85: Ok | I85: 0 | J85: =INDEX(Index!$C:$C,MATCH(1,(Index!$A:$A='FTE Billing Form'!$K$11)*(Index!$B:$B=$F85),0)) ->  | K85: =IF($A85=VLOOKUP('FTE Billing Form'!$J$5:$K$5,Dropdown!$A:$B,2,0),"yes","no") -> no
B86: [Select] | F86: [Select] | G86: =SUMIFS('Provider Level'!T:T,'Provider Level'!S:S,'Employee Log'!C86) -> 0 | H86: Ok | I86: 0 | J86: =INDEX(Index!$C:$C,MATCH(1,(Index!$A:$A='FTE Billing Form'!$K$11)*(Index!$B:$B=$F86),0)) ->  | K86: =IF($A86=VLOOKUP('FTE Billing Form'!$J$5:$K$5,Dropdown!$A:$B,2,0),"yes","no") -> no
B87: [Select] | F87: [Select] | G87: =SUMIFS('Provider Level'!T:T,'Provider Level'!S:S,'Employee Log'!C87) -> 0 | H87: Ok | I87: 0 | J87: =INDEX(Index!$C:$C,MATCH(1,(Index!$A:$A='FTE Billing Form'!$K$11)*(Index!$B:$B=$F87),0)) ->  | K87: =IF($A87=VLOOKUP('FTE Billing Form'!$J$5:$K$5,Dropdown!$A:$B,2,0),"yes","no") -> no
B88: [Select] | F88: [Select] | G88: =SUMIFS('Provider Level'!T:T,'Provider Level'!S:S,'Employee Log'!C88) -> 0 | H88: Ok | I88: 0 | J88: =INDEX(Index!$C:$C,MATCH(1,(Index!$A:$A='FTE Billing Form'!$K$11)*(Index!$B:$B=$F88),0)) ->  | K88: =IF($A88=VLOOKUP('FTE Billing Form'!$J$5:$K$5,Dropdown!$A:$B,2,0),"yes","no") -> no
B89: [Select] | F89: [Select] | G89: =SUMIFS('Provider Level'!T:T,'Provider Level'!S:S,'Employee Log'!C89) -> 0 | H89: Ok | I89: 0 | J89: =INDEX(Index!$C:$C,MATCH(1,(Index!$A:$A='FTE Billing Form'!$K$11)*(Index!$B:$B=$F89),0)) ->  | K89: =IF($A89=VLOOKUP('FTE Billing Form'!$J$5:$K$5,Dropdown!$A:$B,2,0),"yes","no") -> no
B90: [Select] | F90: [Select] | G90: =SUMIFS('Provider Level'!T:T,'Provider Level'!S:S,'Employee Log'!C90) -> 0 | H90: Ok | I90: 0 | J90: =INDEX(Index!$C:$C,MATCH(1,(Index!$A:$A='FTE Billing Form'!$K$11)*(Index!$B:$B=$F90),0)) ->  | K90: =IF($A90=VLOOKUP('FTE Billing Form'!$J$5:$K$5,Dropdown!$A:$B,2,0),"yes","no") -> no
B91: [Select] | F91: [Select] | G91: =SUMIFS('Provider Level'!T:T,'Provider Level'!S:S,'Employee Log'!C91) -> 0 | H91: Ok | I91: 0 | J91: =INDEX(Index!$C:$C,MATCH(1,(Index!$A:$A='FTE Billing Form'!$K$11)*(Index!$B:$B=$F91),0)) ->  | K91: =IF($A91=VLOOKUP('FTE Billing Form'!$J$5:$K$5,Dropdown!$A:$B,2,0),"yes","no") -> no
B92: [Select] | F92: [Select] | G92: =SUMIFS('Provider Level'!T:T,'Provider Level'!S:S,'Employee Log'!C92) -> 0 | H92: Ok | I92: 0 | J92: =INDEX(Index!$C:$C,MATCH(1,(Index!$A:$A='FTE Billing Form'!$K$11)*(Index!$B:$B=$F92),0)) ->  | K92: =IF($A92=VLOOKUP('FTE Billing Form'!$J$5:$K$5,Dropdown!$A:$B,2,0),"yes","no") -> no
B93: [Select] | F93: [Select] | G93: =SUMIFS('Provider Level'!T:T,'Provider Level'!S:S,'Employee Log'!C93) -> 0 | H93: Ok | I93: 0 | J93: =INDEX(Index!$C:$C,MATCH(1,(Index!$A:$A='FTE Billing Form'!$K$11)*(Index!$B:$B=$F93),0)) ->  | K93: =IF($A93=VLOOKUP('FTE Billing Form'!$J$5:$K$5,Dropdown!$A:$B,2,0),"yes","no") -> no
B94: [Select] | F94: [Select] | G94: =SUMIFS('Provider Level'!T:T,'Provider Level'!S:S,'Employee Log'!C94) -> 0 | H94: Ok | I94: 0 | J94: =INDEX(Index!$C:$C,MATCH(1,(Index!$A:$A='FTE Billing Form'!$K$11)*(Index!$B:$B=$F94),0)) ->  | K94: =IF($A94=VLOOKUP('FTE Billing Form'!$J$5:$K$5,Dropdown!$A:$B,2,0),"yes","no") -> no
B95: [Select] | F95: [Select] | G95: =SUMIFS('Provider Level'!T:T,'Provider Level'!S:S,'Employee Log'!C95) -> 0 | H95: Ok | I95: 0 | J95: =INDEX(Index!$C:$C,MATCH(1,(Index!$A:$A='FTE Billing Form'!$K$11)*(Index!$B:$B=$F95),0)) ->  | K95: =IF($A95=VLOOKUP('FTE Billing Form'!$J$5:$K$5,Dropdown!$A:$B,2,0),"yes","no") -> no
B96: [Select] | F96: [Select] | G96: =SUMIFS('Provider Level'!T:T,'Provider Level'!S:S,'Employee Log'!C96) -> 0 | H96: Ok | I96: 0 | J96: =INDEX(Index!$C:$C,MATCH(1,(Index!$A:$A='FTE Billing Form'!$K$11)*(Index!$B:$B=$F96),0)) ->  | K96: =IF($A96=VLOOKUP('FTE Billing Form'!$J$5:$K$5,Dropdown!$A:$B,2,0),"yes","no") -> no
B97: [Select] | F97: [Select] | G97: =SUMIFS('Provider Level'!T:T,'Provider Level'!S:S,'Employee Log'!C97) -> 0 | H97: Ok | I97: 0 | J97: =INDEX(Index!$C:$C,MATCH(1,(Index!$A:$A='FTE Billing Form'!$K$11)*(Index!$B:$B=$F97),0)) ->  | K97: =IF($A97=VLOOKUP('FTE Billing Form'!$J$5:$K$5,Dropdown!$A:$B,2,0),"yes","no") -> no
B98: [Select] | F98: [Select] | G98: =SUMIFS('Provider Level'!T:T,'Provider Level'!S:S,'Employee Log'!C98) -> 0 | H98: Ok | I98: 0 | J98: =INDEX(Index!$C:$C,MATCH(1,(Index!$A:$A='FTE Billing Form'!$K$11)*(Index!$B:$B=$F98),0)) ->  | K98: =IF($A98=VLOOKUP('FTE Billing Form'!$J$5:$K$5,Dropdown!$A:$B,2,0),"yes","no") -> no
B99: [Select] | F99: [Select] | G99: =SUMIFS('Provider Level'!T:T,'Provider Level'!S:S,'Employee Log'!C99) -> 0 | H99: Ok | I99: 0 | J99: =INDEX(Index!$C:$C,MATCH(1,(Index!$A:$A='FTE Billing Form'!$K$11)*(Index!$B:$B=$F99),0)) ->  | K99: =IF($A99=VLOOKUP('FTE Billing Form'!$J$5:$K$5,Dropdown!$A:$B,2,0),"yes","no") -> no
B100: [Select] | F100: [Select] | G100: =SUMIFS('Provider Level'!T:T,'Provider Level'!S:S,'Employee Log'!C100) -> 0 | H100: Ok | I100: 0 | J100: =INDEX(Index!$C:$C,MATCH(1,(Index!$A:$A='FTE Billing Form'!$K$11)*(Index!$B:$B=$F100),0)) ->  | K100: =IF($A100=VLOOKUP('FTE Billing Form'!$J$5:$K$5,Dropdown!$A:$B,2,0),"yes","no") -> no
B101: [Select] | F101: [Select] | G101: =SUMIFS('Provider Level'!T:T,'Provider Level'!S:S,'Employee Log'!C101) -> 0 | H101: Ok | I101: 0 | J101: =INDEX(Index!$C:$C,MATCH(1,(Index!$A:$A='FTE Billing Form'!$K$11)*(Index!$B:$B=$F101),0)) ->  | K101: =IF($A101=VLOOKUP('FTE Billing Form'!$J$5:$K$5,Dropdown!$A:$B,2,0),"yes","no") -> no
B102: [Select] | F102: [Select] | G102: =SUMIFS('Provider Level'!T:T,'Provider Level'!S:S,'Employee Log'!C102) -> 0 | H102: Ok | I102: 0 | J102: =INDEX(Index!$C:$C,MATCH(1,(Index!$A:$A='FTE Billing Form'!$K$11)*(Index!$B:$B=$F102),0)) ->  | K102: =IF($A102=VLOOKUP('FTE Billing Form'!$J$5:$K$5,Dropdown!$A:$B,2,0),"yes","no") -> no
B103: [Select] | F103: [Select] | G103: =SUMIFS('Provider Level'!T:T,'Provider Level'!S:S,'Employee Log'!C103) -> 0 | H103: Ok | I103: 0 | J103: =INDEX(Index!$C:$C,MATCH(1,(Index!$A:$A='FTE Billing Form'!$K$11)*(Index!$B:$B=$F103),0)) ->  | K103: =IF($A103=VLOOKUP('FTE Billing Form'!$J$5:$K$5,Dropdown!$A:$B,2,0),"yes","no") -> no

Sheet Dropdown (hidden)
A1: Month of Service | C1: Catchement | D1: Position | G1: Percent of FTE
A2: [Select] | B2: Select MOS | C2: [Select] | D2: [Select] | G2: [Select]
A3: January | B3: 31 | C3: North-East | D3: Support Manager | G3: 0.05
A4: February | B4: 28 | C4: South-Central | D4: Case Aide | G4: 0.1
A5: March | B5: 31 | C5: Pacific-Mountain | G5: 0.2
A6: April | B6: 30 | C6: South-East | G6: 0.3
A7: May | B7: 31 | C7: North-Central | G7: 0.4
A8: June | B8: 30 | C8: Central | G8: 0.5
A9: July | B9: 31 | C9: South-West | G9: 0.6
A10: August | B10: 31 | C10: Olympic | G10: 0.7
A11: September | B11: 30 | C11: West Tacoma-Pierce | G11: 0.8
A12: October | B12: 31 | C12: East Tacoma-Pierce | G12: 0.9
A13: November | B13: 30 | C13: Snohomish | G13: 1
A14: December | B14: 31 | C14: North-West
C15: North Seattle-King
C16: South Seattle-King

Sheet Index (hidden)
A1: [Select] | B1: [Select] | C1: Select Position
A2: [Select] | B2: Support Manager | C2: Select Catchement
A3: North-East | B3: Support Manager | C3: 5191.642214
A4: South-Central | B4: Support Manager | C4: 5167.260891
A5: Pacific-Mountain | B5: Support Manager | C5: 5503.65069
A6: South-East | B6: Support Manager | C6: 5503.65069
A7: North-Central | B7: Support Manager | C7: 5503.65069
A8: Central | B8: Support Manager | C8: 5503.65069
A9: South-West | B9: Support Manager | C9: 5300.256053
A10: Olympic | B10: Support Manager | C10: 5300.256053
A11: West Tacoma-Pierce | B11: Support Manager | C11: 5300.256053
A12: East Tacoma-Pierce | B12: Support Manager | C12: 5300.256053
A13: Snohomish | B13: Support Manager | C13: 5300.256053
A14: North-West | B14: Support Manager | C14: 5300.256053
A15: North Seattle-King | B15: Support Manager | C15: 5863.404022
A16: South Seattle-King | B16: Support Manager | C16: 5863.404022
A17: [Select] | B17: [Select] | C17: Select Position
A18: [Select] | B18: Case Aide | C18: Select Catchement
A19: North-East | B19: Case Aide | C19: 4666.049393
A20: South-Central | B20: Case Aide | C20: 4641.668071
A21: Pacific-Mountain | B21: Case Aide | C21: 4812.68428
A22: South-East | B22: Case Aide | C22: 4812.68428
A23: North-Central | B23: Case Aide | C23: 4812.68428
A24: Central | B24: Case Aide | C24: 4812.68428
A25: South-West | B25: Case Aide | C25: 4719.471899
A26: Olympic | B26: Case Aide | C26: 4719.471899
A27: West Tacoma-Pierce | B27: Case Aide | C27: 4719.471899
A28: East Tacoma-Pierce | B28: Case Aide | C28: 4719.471899
A29: Snohomish | B29: Case Aide | C29: 4719.471899
A30: North-West | B30: Case Aide | C30: 4719.471899
A31: North Seattle-King | B31: Case Aide | C31: 5215.152484
A32: South Seattle-King | B32: Case Aide | C32: 5215.152484

Sheet Manager Payment Supplement (hidden)
D1: 2025-09-24
D2: DRAFT PM Supplemental Payment
E9: Utilization/Enrollment
D10: Support | E10: 0.25
D11: Case Aide | E11: 0.1
E13: FTE estimate
D14: Support Manager | E14: =$E$10*E119 -> 5.95 | F14: 2.425 | G14: 5.55 | H14: 4.75 | I14: 0.375 | J14: 2.875 | K14: 6.025 | L14: 2.05 | M14: 3.575 | N14: 3.325 | O14: 3.475 | P14: 2.6 | Q14: 2.75 | R14: 3.875
D15: Case Aide | E15: =$E$11*E120 -> 5.53 | F15: 2.25 | G15: 5.15 | H15: 4.41 | I15: 0.33 | J15: 2.67 | K15: 5.6 | L15: 1.91 | M15: 3.32 | N15: 3.1 | O15: 3.23 | P15: 2.41 | Q15: 2.54 | R15: 3.59
D17: Supervisor funded | E17: =(E15+E14)/'Rate Assumption '!$C$43 -> 1.913333333 | F17: =(F15+F14)/'Rate Assumption '!$C$43 -> 0.7791666667 | G17: =(G15+G14)/'Rate Assumption '!$C$43 -> 1.783333333 | H17: =(H15+H14)/'Rate Assumption '!$C$43 -> 1.526666667 | I17: =(I15+I14)/'Rate Assumption '!$C$43 -> 0.1175 | J17: =(J15+J14)/'Rate Assumption '!$C$43 -> 0.9241666667 | K17: =(K15+K14)/'Rate Assumption '!$C$43 -> 1.9375 | L17: =(L15+L14)/'Rate Assumption '!$C$43 -> 0.66 | M17: =(M15+M14)/'Rate Assumption '!$C$43 -> 1.149166667 | N17: =(N15+N14)/'Rate Assumption '!$C$43 -> 1.070833333 | O17: =(O15+O14)/'Rate Assumption '!$C$43 -> 1.1175 | P17: =(P15+P14)/'Rate Assumption '!$C$43 -> 0.835 | Q17: =(Q15+Q14)/'Rate Assumption '!$C$43 -> 0.8816666667 | R17: =(R15+R14)/'Rate Assumption '!$C$43 -> 1.244166667
D18: Manager FTE(PM + CQI) | E18: =ROUND((E17/'Rate Assumption '!$C$44)+(E17*'Rate Assumption '!$C$46),1) -> 0.4 | F18: =ROUND((F17/'Rate Assumption '!$C$44)+(F17*'Rate Assumption '!$C$46),1) -> 0.2 | G18: =ROUND((G17/'Rate Assumption '!$C$44)+(G17*'Rate Assumption '!$C$46),1) -> 0.4 | H18: =ROUND((H17/'Rate Assumption '!$C$44)+(H17*'Rate Assumption '!$C$46),1) -> 0.3 | I18: =ROUND((I17/'Rate Assumption '!$C$44)+(I17*'Rate Assumption '!$C$46),1) -> 0 | J18: =ROUND((J17/'Rate Assumption '!$C$44)+(J17*'Rate Assumption '!$C$46),1) -> 0.2 | K18: =ROUND((K17/'Rate Assumption '!$C$44)+(K17*'Rate Assumption '!$C$46),1) -> 0.4 | L18: =ROUND((L17/'Rate Assumption '!$C$44)+(L17*'Rate Assumption '!$C$46),1) -> 0.1 | M18: =ROUND((M17/'Rate Assumption '!$C$44)+(M17*'Rate Assumption '!$C$46),1) -> 0.2 | N18: =ROUND((N17/'Rate Assumption '!$C$44)+(N17*'Rate Assumption '!$C$46),1) -> 0.2 | O18: =ROUND((O17/'Rate Assumption '!$C$44)+(O17*'Rate Assumption '!$C$46),1) -> 0.2 | P18: =ROUND((P17/'Rate Assumption '!$C$44)+(P17*'Rate Assumption '!$C$46),1) -> 0.2 | Q18: =ROUND((Q17/'Rate Assumption '!$C$44)+(Q17*'Rate Assumption '!$C$46),1) -> 0.2 | R18: =ROUND((R17/'Rate Assumption '!$C$44)+(R17*'Rate Assumption '!$C$46),1) -> 0.3
D22: Monthly Supplemental Manager Payment | E22: =IF(E18<1,(1-E18)*E$42,0)/12 -> 5311.90209 | F22: 7082.53612 | G22: 5745.926752 | H22: 6703.581211 | I22: 9576.544587 | J22: 7661.23567 | K22: 5481.540487 | L22: 8222.310731 | M22: 7308.72065 | N22: 7308.72065 | O22: 7308.72065 | P22: 7308.72065 | Q22: 8221.02347 | R22: 7193.395536
E23: =E22*12 -> 63742.82508 | F23: =F22*12 -> 84990.43344 | G23: 68951.12103 | H23: 80442.97453 | I23: 114918.535 | J23: 91934.82804 | K23: 65778.48585 | L23: 98667.72877 | M23: 87704.6478 | N23: 87704.6478 | O23: 87704.6478 | P23: 87704.6478 | Q23: 98652.28164 | R23: 86320.74643 | S23: =SUM(E23:R23) -> 1205218.551
D41: PM FTE monthly | E41: =E42/12 -> 8853.17015 | F41: =F42/12 -> 8853.17015 | G41: 9576.544587 | H41: 9576.544587 | I41: 9576.544587 | J41: 9576.544587 | K41: 9135.900813 | L41: 9135.900813 | M41: 9135.900813 | N41: 9135.900813 | O41: 9135.900813 | P41: 9135.900813 | Q41: 10276.27934 | R41: 10276.27934
D42: PM FTE Yearly | E42: =SUM(E43:E46) -> 106238.0418 | F42: =SUM(F43:F46) -> 106238.0418 | G42: 114918.535 | H42: 114918.535 | I42: 114918.535 | J42: 114918.535 | K42: 109630.8098 | L42: 109630.8098 | M42: 109630.8098 | N42: 109630.8098 | O42: 109630.8098 | P42: 109630.8098 | Q42: 123315.3521 | R42: 123315.3521
D43: Wages | E43: 77057.66667 | F43: 77057.66667 | G43: 83802.41667 | H43: 83802.41667 | I43: 83802.41667 | J43: 83802.41667 | K43: 79693.85 | L43: 79693.85 | M43: 79693.85 | N43: 79693.85 | O43: 79693.85 | P43: 79693.85 | Q43: 90326.75 | R43: 90326.75
D44: Benefits | E44: =E43*SUM('[2]Rate Assumption '!$D$15:$D$16) -> 7705.766667 | F44: =F43*SUM('[2]Rate Assumption '!$D$15:$D$16) -> 7705.766667 | G44: =G43*SUM('[2]Rate Assumption '!$D$15:$D$16) -> 8380.241667 | H44: =H43*SUM('[2]Rate Assumption '!$D$15:$D$16) -> 8380.241667 | I44: =I43*SUM('[2]Rate Assumption '!$D$15:$D$16) -> 8380.241667 | J44: =J43*SUM('[2]Rate Assumption '!$D$15:$D$16) -> 8380.241667 | K44: =K43*SUM('[2]Rate Assumption '!$D$15:$D$16) -> 7969.385 | L44: =L43*SUM('[2]Rate Assumption '!$D$15:$D$16) -> 7969.385 | M44: =M43*SUM('[2]Rate Assumption '!$D$15:$D$16) -> 7969.385 | N44: =N43*SUM('[2]Rate Assumption '!$D$15:$D$16) -> 7969.385 | O44: =O43*SUM('[2]Rate Assumption '!$D$15:$D$16) -> 7969.385 | P44: =P43*SUM('[2]Rate Assumption '!$D$15:$D$16) -> 7969.385 | Q44: =Q43*SUM('[2]Rate Assumption '!$D$15:$D$16) -> 9032.675 | R44: =R43*SUM('[2]Rate Assumption '!$D$15:$D$16) -> 9032.675
D45: Operational | E45: =(SUM('[2]Rate Assumption '!$C$57:$C$65)+(SUM('[2]Rate Assumption '!$C$57:$C$65*'[2]Rate Assumption '!$C$70)))*12 -> 7064.8248 | F45: =(SUM('[2]Rate Assumption '!$C$57:$C$65)+(SUM('[2]Rate Assumption '!$C$57:$C$65*'[2]Rate Assumption '!$C$70)))*12 -> 7064.8248 | G45: =(SUM('[2]Rate Assumption '!$C$57:$C$65)+(SUM('[2]Rate Assumption '!$C$57:$C$65*'[2]Rate Assumption '!$C$70)))*12 -> 7064.8248 | H45: =(SUM('[2]Rate Assumption '!$C$57:$C$65)+(SUM('[2]Rate Assumption '!$C$57:$C$65*'[2]Rate Assumption '!$C$70)))*12 -> 7064.8248 | I45: =(SUM('[2]Rate Assumption '!$C$57:$C$65)+(SUM('[2]Rate Assumption '!$C$57:$C$65*'[2]Rate Assumption '!$C$70)))*12 -> 7064.8248 | J45: =(SUM('[2]Rate Assumption '!$C$57:$C$65)+(SUM('[2]Rate Assumption '!$C$57:$C$65*'[2]Rate Assumption '!$C$70)))*12 -> 7064.8248 | K45: =(SUM('[2]Rate Assumption '!$C$57:$C$65)+(SUM('[2]Rate Assumption '!$C$57:$C$65*'[2]Rate Assumption '!$C$70)))*12 -> 7064.8248 | L45: =(SUM('[2]Rate Assumption '!$C$57:$C$65)+(SUM('[2]Rate Assumption '!$C$57:$C$65*'[2]Rate Assumption '!$C$70)))*12 -> 7064.8248 | M45: =(SUM('[2]Rate Assumption '!$C$57:$C$65)+(SUM('[2]Rate Assumption '!$C$57:$C$65*'[2]Rate Assumption '!$C$70)))*12 -> 7064.8248 | N45: =(SUM('[2]Rate Assumption '!$C$57:$C$65)+(SUM('[2]Rate Assumption '!$C$57:$C$65*'[2]Rate Assumption '!$C$70)))*12 -> 7064.8248 | O45: =(SUM('[2]Rate Assumption '!$C$57:$C$65)+(SUM('[2]Rate Assumption '!$C$57:$C$65*'[2]Rate Assumption '!$C$70)))*12 -> 7064.8248 | P45: =(SUM('[2]Rate Assumption '!$C$57:$C$65)+(SUM('[2]Rate Assumption '!$C$57:$C$65*'[2]Rate Assumption '!$C$70)))*12 -> 7064.8248 | Q45: =(SUM('[2]Rate Assumption '!$C$57:$C$65)+(SUM('[2]Rate Assumption '!$C$57:$C$65*'[2]Rate Assumption '!$C$70)))*12 -> 7064.8248 | R45: =(SUM('[2]Rate Assumption '!$C$57:$C$65)+(SUM('[2]Rate Assumption '!$C$57:$C$65*'[2]Rate Assumption '!$C$70)))*12 -> 7064.8248
D46: Taxes | E46: =SUM(E43:E44)*'[2]Rate Assumption '!$C$10 -> 14409.78367 | F46: =SUM(F43:F44)*'[2]Rate Assumption '!$C$10 -> 14409.78367 | G46: =SUM(G43:G44)*'[2]Rate Assumption '!$C$10 -> 15671.05192 | H46: =SUM(H43:H44)*'[2]Rate Assumption '!$C$10 -> 15671.05192 | I46: =SUM(I43:I44)*'[2]Rate Assumption '!$C$10 -> 15671.05192 | J46: =SUM(J43:J44)*'[2]Rate Assumption '!$C$10 -> 15671.05192 | K46: =SUM(K43:K44)*'[2]Rate Assumption '!$C$10 -> 14902.74995 | L46: =SUM(L43:L44)*'[2]Rate Assumption '!$C$10 -> 14902.74995 | M46: =SUM(M43:M44)*'[2]Rate Assumption '!$C$10 -> 14902.74995 | N46: =SUM(N43:N44)*'[2]Rate Assumption '!$C$10 -> 14902.74995 | O46: =SUM(O43:O44)*'[2]Rate Assumption '!$C$10 -> 14902.74995 | P46: =SUM(P43:P44)*'[2]Rate Assumption '!$C$10 -> 14902.74995 | Q46: =SUM(Q43:Q44)*'[2]Rate Assumption '!$C$10 -> 16891.10225 | R46: =SUM(R43:R44)*'[2]Rate Assumption '!$C$10 -> 16891.10225
G50: Placement data | H50: new
E57: North-East | F57: South-Central | G57: Pacific Mountain | H57: South-East | I57: North-Central | J57: Central | K57: South-West | L57: Olympic | M57: Pierce-North | N57: Pierce-South | O57: Snohomish | P57: North-West | Q57: King-North | R57: King-South
E58: Fee-for-Service payments Case Manager
D59: Lvl 1 | E59: =(E106*$E$10*'[2]Fee Table'!$D$51) -> 11115.25 | F59: =('Manager Payment Supplement'!F106*$E$10*'[2]Fee Table'!$D51) -> 4561.75 | G59: =('Manager Payment Supplement'!G106*$E$10*'[2]Fee Table'!$H51) -> 11068.75 | H59: =('Manager Payment Supplement'!H106*$E$10*'[2]Fee Table'!$H51) -> 9487.5 | I59: =('Manager Payment Supplement'!I106*$E$10*'[2]Fee Table'!$H51) -> 756.25 | J59: =('Manager Payment Supplement'!J106*$E$10*'[2]Fee Table'!$H51) -> 5775 | K59: =('Manager Payment Supplement'!K106*$E$10*'[2]Fee Table'!$L51) -> 11550 | L59: =('Manager Payment Supplement'!L106*$E$10*'[2]Fee Table'!$L51) -> 3960 | M59: =('Manager Payment Supplement'!M106*$E$10*'[2]Fee Table'!$L51) -> 6864 | N59: =('Manager Payment Supplement'!N106*$E$10*'[2]Fee Table'!$L51) -> 6402 | O59: =('Manager Payment Supplement'!O106*$E$10*'[2]Fee Table'!$L51) -> 6666 | P59: =('Manager Payment Supplement'!P106*$E$10*'[2]Fee Table'!$L51) -> 5016 | Q59: =('Manager Payment Supplement'!Q106*$E$10*'[2]Fee Table'!$P51) -> 5860 | R59: =('Manager Payment Supplement'!R106*$E$10*'[2]Fee Table'!$P51) -> 8204
D60: Lvl 2 | E60: =('Manager Payment Supplement'!E107*$E$10*'[2]Fee Table'!D52) -> 2493 | F60: =('Manager Payment Supplement'!F107*$E$10*'[2]Fee Table'!$D52) -> 1038.75 | G60: =('Manager Payment Supplement'!G107*$E$10*'[2]Fee Table'!$H52) -> 2442 | H60: =('Manager Payment Supplement'!H107*$E$10*'[2]Fee Table'!$H52) -> 2072 | I60: =('Manager Payment Supplement'!I107*$E$10*'[2]Fee Table'!$H52) -> 222 | J60: =('Manager Payment Supplement'!J107*$E$10*'[2]Fee Table'!$H52) -> 1258 | K60: =('Manager Payment Supplement'!K107*$E$10*'[2]Fee Table'!$L52) -> 2556 | L60: =('Manager Payment Supplement'!L107*$E$10*'[2]Fee Table'!$L52) -> 923 | M60: =('Manager Payment Supplement'!M107*$E$10*'[2]Fee Table'!$L52) -> 1562 | N60: =('Manager Payment Supplement'!N107*$E$10*'[2]Fee Table'!$L52) -> 1420 | O60: =('Manager Payment Supplement'!O107*$E$10*'[2]Fee Table'!$L52) -> 1491 | P60: =('Manager Payment Supplement'!P107*$E$10*'[2]Fee Table'!$L52) -> 1136 | Q60: =('Manager Payment Supplement'!Q107*$E$10*'[2]Fee Table'!$P52) -> 1343 | R60: =('Manager Payment Supplement'!R107*$E$10*'[2]Fee Table'!$P52) -> 1817
D61: Lvl 3 | E61: =('Manager Payment Supplement'!E108*$E$10*'[2]Fee Table'!D53) -> 4650 | F61: =('Manager Payment Supplement'!F108*$E$10*'[2]Fee Table'!$D53) -> 1950 | G61: =('Manager Payment Supplement'!G108*$E$10*'[2]Fee Table'!$H53) -> 4640 | H61: =('Manager Payment Supplement'!H108*$E$10*'[2]Fee Table'!$H53) -> 4000 | I61: =('Manager Payment Supplement'!I108*$E$10*'[2]Fee Table'!$H53) -> 320 | J61: =('Manager Payment Supplement'!J108*$E$10*'[2]Fee Table'!$H53) -> 2400 | K61: =('Manager Payment Supplement'!K108*$E$10*'[2]Fee Table'!$L53) -> 4851 | L61: =('Manager Payment Supplement'!L108*$E$10*'[2]Fee Table'!$L53) -> 1694 | M61: =('Manager Payment Supplement'!M108*$E$10*'[2]Fee Table'!$L53) -> 2926 | N61: =('Manager Payment Supplement'!N108*$E$10*'[2]Fee Table'!$L53) -> 2695 | O61: =('Manager Payment Supplement'!O108*$E$10*'[2]Fee Table'!$L53) -> 2849 | P61: =('Manager Payment Supplement'!P108*$E$10*'[2]Fee Table'!$L53) -> 2079 | Q61: =('Manager Payment Supplement'!Q108*$E$10*'[2]Fee Table'!$P53) -> 2479.5 | R61: =('Manager Payment Supplement'!R108*$E$10*'[2]Fee Table'!$P53) -> 3505.5
D62: Lvl 4 | E62: =('Manager Payment Supplement'!E109*$E$10*'[2]Fee Table'!D54) -> 2460 | F62: =('Manager Payment Supplement'!F109*$E$10*'[2]Fee Table'!$D54) -> 1066 | G62: =('Manager Payment Supplement'!G109*$E$10*'[2]Fee Table'!$H54) -> 2450 | H62: =('Manager Payment Supplement'!H109*$E$10*'[2]Fee Table'!$H54) -> 2100 | I62: =('Manager Payment Supplement'!I109*$E$10*'[2]Fee Table'!$H54) -> 175 | J62: =('Manager Payment Supplement'!J109*$E$10*'[2]Fee Table'!$H54) -> 1312.5 | K62: =('Manager Payment Supplement'!K109*$E$10*'[2]Fee Table'!$L54) -> 2611.75 | L62: =('Manager Payment Supplement'!L109*$E$10*'[2]Fee Table'!$L54) -> 926.75 | M62: =('Manager Payment Supplement'!M109*$E$10*'[2]Fee Table'!$L54) -> 1516.5 | N62: =('Manager Payment Supplement'!N109*$E$10*'[2]Fee Table'!$L54) -> 1432.25 | O62: =('Manager Payment Supplement'!O109*$E$10*'[2]Fee Table'!$L54) -> 1516.5 | P62: =('Manager Payment Supplement'!P109*$E$10*'[2]Fee Table'!$L54) -> 1095.25 | Q62: =('Manager Payment Supplement'!Q109*$E$10*'[2]Fee Table'!$P54) -> 1305.5 | R62: =('Manager Payment Supplement'!R109*$E$10*'[2]Fee Table'!$P54) -> 1865
D63: Lvl 5 | E63: =('Manager Payment Supplement'!E110*$E$10*'[2]Fee Table'!D55) -> 4375.25 | F63: =('Manager Payment Supplement'!F110*$E$10*'[2]Fee Table'!$D55) -> 1831.5 | G63: =('Manager Payment Supplement'!G110*$E$10*'[2]Fee Table'!$H55) -> 4340 | H63: =('Manager Payment Supplement'!H110*$E$10*'[2]Fee Table'!$H55) -> 3797.5 | I63: =('Manager Payment Supplement'!I110*$E$10*'[2]Fee Table'!$H55) -> 325.5 | J63: =('Manager Payment Supplement'!J110*$E$10*'[2]Fee Table'!$H55) -> 2278.5 | K63: =('Manager Payment Supplement'!K110*$E$10*'[2]Fee Table'!$L55) -> 4598 | L63: =('Manager Payment Supplement'!L110*$E$10*'[2]Fee Table'!$L55) -> 1567.5 | M63: =('Manager Payment Supplement'!M110*$E$10*'[2]Fee Table'!$L55) -> 2717 | N63: =('Manager Payment Supplement'!N110*$E$10*'[2]Fee Table'!$L55) -> 2612.5 | O63: =('Manager Payment Supplement'!O110*$E$10*'[2]Fee Table'!$L55) -> 2717 | P63: =('Manager Payment Supplement'!P110*$E$10*'[2]Fee Table'!$L55) -> 1985.5 | Q63: =('Manager Payment Supplement'!Q110*$E$10*'[2]Fee Table'!$P55) -> 2315 | R63: =('Manager Payment Supplement'!R110*$E$10*'[2]Fee Table'!$P55) -> 3241
D64: Lvl 6 | E64: =('Manager Payment Supplement'!E111*$E$10*'[2]Fee Table'!D56) -> 7036.25 | F64: =('Manager Payment Supplement'!F111*$E$10*'[2]Fee Table'!$D56) -> 2922.75 | G64: =('Manager Payment Supplement'!G111*$E$10*'[2]Fee Table'!$H56) -> 6930 | H64: =('Manager Payment Supplement'!H111*$E$10*'[2]Fee Table'!$H56) -> 6006 | I64: =('Manager Payment Supplement'!I111*$E$10*'[2]Fee Table'!$H56) -> 462 | J64: =('Manager Payment Supplement'!J111*$E$10*'[2]Fee Table'!$H56) -> 3696 | K64: =('Manager Payment Supplement'!K111*$E$10*'[2]Fee Table'!$L56) -> 7342.5 | L64: =('Manager Payment Supplement'!L111*$E$10*'[2]Fee Table'!$L56) -> 2558.75 | M64: =('Manager Payment Supplement'!M111*$E$10*'[2]Fee Table'!$L56) -> 4338.75 | N64: =('Manager Payment Supplement'!N111*$E$10*'[2]Fee Table'!$L56) -> 4116.25 | O64: =('Manager Payment Supplement'!O111*$E$10*'[2]Fee Table'!$L56) -> 4227.5 | P64: =('Manager Payment Supplement'!P111*$E$10*'[2]Fee Table'!$L56) -> 3226.25 | Q64: =('Manager Payment Supplement'!Q111*$E$10*'[2]Fee Table'!$P56) -> 3697.5 | R64: =('Manager Payment Supplement'!R111*$E$10*'[2]Fee Table'!$P56) -> 5176.5
D65: Lvl 7 | E65: =('Manager Payment Supplement'!E112*$E$10*'[2]Fee Table'!D57) -> 4000 | F65: =('Manager Payment Supplement'!F112*$E$10*'[2]Fee Table'!$D57) -> 1625 | G65: =('Manager Payment Supplement'!G112*$E$10*'[2]Fee Table'!$H57) -> 3997.5 | H65: =('Manager Payment Supplement'!H112*$E$10*'[2]Fee Table'!$H57) -> 3464.5 | I65: =('Manager Payment Supplement'!I112*$E$10*'[2]Fee Table'!$H57) -> 266.5 | J65: =('Manager Payment Supplement'!J112*$E$10*'[2]Fee Table'!$H57) -> 2132 | K65: =('Manager Payment Supplement'!K112*$E$10*'[2]Fee Table'!$L57) -> 4104 | L65: =('Manager Payment Supplement'!L112*$E$10*'[2]Fee Table'!$L57) -> 1410.75 | M65: =('Manager Payment Supplement'!M112*$E$10*'[2]Fee Table'!$L57) -> 2436.75 | N65: =('Manager Payment Supplement'!N112*$E$10*'[2]Fee Table'!$L57) -> 2308.5 | O65: =('Manager Payment Supplement'!O112*$E$10*'[2]Fee Table'!$L57) -> 2436.75 | P65: =('Manager Payment Supplement'!P112*$E$10*'[2]Fee Table'!$L57) -> 1795.5 | Q65: =('Manager Payment Supplement'!Q112*$E$10*'[2]Fee Table'!$P57) -> 2130 | R65: =('Manager Payment Supplement'!R112*$E$10*'[2]Fee Table'!$P57) -> 2982
D66: FFS - case manager only | E66: =SUM(E59:E65) -> 36129.75 | F66: =SUM(F59:F65) -> 14995.75 | G66: 35868.25 | H66: 30927.5 | I66: 2527.25 | J66: 18852 | K66: 37613.25 | L66: 13040.75 | M66: 22361 | N66: 20986.5 | O66: 21903.75 | P66: 16333.5 | Q66: 19130.5 | R66: 26791
D67: Capacity - avg estimate | E67: =E14*'[2]Fee Table'!D41+(E15*'[2]Fee Table'!D38) -> 56409.37455 | F67: =F14*'[2]Fee Table'!E41+(F15*'[2]Fee Table'!E38) -> 22972.6292 | G67: =G14*'[2]Fee Table'!F41+(G15*'[2]Fee Table'!F38) -> 55326.62209 | H67: =H14*'[2]Fee Table'!G41+(H15*'[2]Fee Table'!G38) -> 47362.88559 | I67: =I14*'[2]Fee Table'!H41+(I15*'[2]Fee Table'!H38) -> 3651.793689 | J67: =J14*'[2]Fee Table'!I41+(J15*'[2]Fee Table'!I38) -> 28670.80889 | K67: =K14*'[2]Fee Table'!J41+(K15*'[2]Fee Table'!J38) -> 58358.77946 | L67: =L14*'[2]Fee Table'!K41+(L15*'[2]Fee Table'!K38) -> 19878.24946 | M67: =M14*'[2]Fee Table'!L41+(M15*'[2]Fee Table'!L38) -> 34614.50819 | N67: =N14*'[2]Fee Table'!M41+(N15*'[2]Fee Table'!M38) -> 32251.33445 | O67: =O14*'[2]Fee Table'!N41+(O15*'[2]Fee Table'!N38) -> 33659.80049 | P67: =P14*'[2]Fee Table'!O41+(P15*'[2]Fee Table'!O38) -> 25152.73731 | Q67: =Q14*'[2]Fee Table'!P41+(Q15*'[2]Fee Table'!P38) -> 29368.88896 | R67: =R14*'[2]Fee Table'!Q41+(R15*'[2]Fee Table'!Q38) -> 41440.32297
E73: Manger Wages | F73: Benefits | G73: Payrol Tax | H73: Total
D74: North-East | E74: 77057.66667 | F74: =E74*0.12 -> 9246.92 | G74: =SUM(E74:F74)*0.17 -> 14671.77973 | H74: =SUM(E74:G74)/12 -> 8414.6972
D75: South-Central | E75: 77057.66667 | F75: =E75*0.12 -> 9246.92 | G75: =SUM(E75:F75)*0.17 -> 14671.77973 | H75: =SUM(E75:G75)/12 -> 8414.6972
D76: Pacific-Mountain | E76: 83802.41667 | F76: 10056.29 | G76: 15955.98013 | H76: 9151.2239
D77: South-East | E77: 83802.41667 | F77: 10056.29 | G77: 15955.98013 | H77: 9151.2239
D78: North-Central | E78: 83802.41667 | F78: 10056.29 | G78: 15955.98013 | H78: 9151.2239
D79: Central | E79: 83802.41667 | F79: 10056.29 | G79: 15955.98013 | H79: 9151.2239
D80: South-West | E80: 79693.85 | F80: 9563.262 | G80: 15173.70904 | H80: 8702.56842
D81: Olympic | E81: 79693.85 | F81: 9563.262 | G81: 15173.70904 | H81: 8702.56842
D82: West Tacoma-Pierce | E82: 79693.85 | F82: 9563.262 | G82: 15173.70904 | H82: 8702.56842
D83: East Tacoma-Pierce | E83: 79693.85 | F83: 9563.262 | G83: 15173.70904 | H83: 8702.56842
D84: Snohomish | E84: 79693.85 | F84: 9563.262 | G84: 15173.70904 | H84: 8702.56842
D85: North-West | E85: 79693.85 | F85: 9563.262 | G85: 15173.70904 | H85: 8702.56842
D86: North Seattle-King | E86: 90326.75 | F86: 10839.21 | G86: 17198.2132 | H86: 9863.6811
D87: South Seattle-King | E87: 90326.75 | F87: 10839.21 | G87: 17198.2132 | H87: 9863.6811
C96: Reference Values
C101: Estimated Portion of Service Population by Level | E101: Estimated Total Service Population by Catchment as of January 2024
E102: North-East | F102: South-Central | G102: Pacific Mountain | H102: South-East | I102: North-Central | J102: Central | K102: South-West | L102: Olympic | M102: Pierce-North | N102: Pierce-South | O102: Snohomish | P102: North-West | Q102: King-North | R102: King-South
D103: Change | E103: =(E104-E105)/E105 -> -0.3813559322 | F103: =(F104-F105)/F105 -> -0.4686567164 | G103: -0.2688172043 | H103: -0.08157894737 | I103: -0.6119402985 | J103: -0.1134453782 | K103: -0.09775967413 | L103: -0.3911290323 | M103: -0.281420765 | N103: -0.3603133159 | O103: -0.3227513228 | P103: -0.1198156682 | Q103: -0.371875 | R103: -0.07792207792
D104: 2024-11-24 | E104: =VLOOKUP(E102,'[3]Placement Summary'!$G$33:$H$46,2,FALSE) -> 438 | F104: =VLOOKUP(F102,'[3]Placement Summary'!$G$33:$H$46,2,FALSE) -> 178 | G104: =VLOOKUP(G102,'[3]Placement Summary'!$G$33:$H$46,2,FALSE) -> 408 | H104: =VLOOKUP(H102,'[3]Placement Summary'!$G$33:$H$46,2,FALSE) -> 349 | I104: =VLOOKUP(I102,'[3]Placement Summary'!$G$33:$H$46,2,FALSE) -> 26 | J104: =VLOOKUP(J102,'[3]Placement Summary'!$G$33:$H$46,2,FALSE) -> 211 | K104: =VLOOKUP(K102,'[3]Placement Summary'!$G$33:$H$46,2,FALSE) -> 443 | L104: =VLOOKUP(L102,'[3]Placement Summary'!$G$33:$H$46,2,FALSE) -> 151 | M104: ='[3]Placement Summary'!$H$41 -> 263 | N104: ='[3]Placement Summary'!$H$42 -> 245 | O104: =VLOOKUP(O102,'[3]Placement Summary'!$G$33:$H$46,2,FALSE) -> 256 | P104: =VLOOKUP(P102,'[3]Placement Summary'!$G$33:$H$46,2,FALSE) -> 191 | Q104: ='[3]Placement Summary'!$H$39 -> 201 | R104: ='[3]Placement Summary'!$H$40 -> 284
D105: 2024-01-23 | E105: 708 | F105: 335 | G105: 558 | H105: 380 | I105: 67 | J105: 238 | K105: 491 | L105: 248 | M105: 366 | N105: 383 | O105: 378 | P105: 217 | Q105: 320 | R105: 308 | S105: =E105*0.25 -> 177
C106: Level 1 | D106: 0.394 | E106: =ROUNDUP(IF($H$50=$B$115,E$104*$D106,E$105*$D106),0) -> 173 | F106: 71 | G106: 161 | H106: 138 | I106: 11 | J106: 84 | K106: 175 | L106: 60 | M106: 104 | N106: 97 | O106: 101 | P106: 76 | Q106: 80 | R106: 112 | S106: =(E106:E112)*0.25 -> 43.25
C107: Level 2 | D107: 0.08 | E107: 36 | F107: 15 | G107: 33 | H107: 28 | I107: 3 | J107: 17 | K107: 36 | L107: 13 | M107: 22 | N107: 20 | O107: 21 | P107: 16 | Q107: 17 | R107: 23 | S107: 9
C108: Level 3 | D108: 0.141 | E108: 62 | F108: 26 | G108: 58 | H108: 50 | I108: 4 | J108: 30 | K108: 63 | L108: 22 | M108: 38 | N108: 35 | O108: 37 | P108: 27 | Q108: 29 | R108: 41 | S108: 15.5
C109: Level 4 | D109: 0.068 | E109: 30 | F109: 13 | G109: 28 | H109: 24 | I109: 2 | J109: 15 | K109: 31 | L109: 11 | M109: 18 | N109: 17 | O109: 18 | P109: 13 | Q109: 14 | R109: 20 | S109: 7.5
C110: Level 5 | D110: 0.098 | E110: 43 | F110: 18 | G110: 40 | H110: 35 | I110: 3 | J110: 21 | K110: 44 | L110: 15 | M110: 26 | N110: 25 | O110: 26 | P110: 19 | Q110: 20 | R110: 28 | S110: 10.75
C111: Level 6 | D111: 0.147 | E111: 65 | F111: 27 | G111: 60 | H111: 52 | I111: 4 | J111: 32 | K111: 66 | L111: 23 | M111: 39 | N111: 37 | O111: 38 | P111: 29 | Q111: 30 | R111: 42 | S111: 16.25
C112: Level 7 | D112: 0.072 | E112: 32 | F112: 13 | G112: 30 | H112: 26 | I112: 2 | J112: 16 | K112: 32 | L112: 11 | M112: 19 | N112: 18 | O112: 19 | P112: 14 | Q112: 15 | R112: 21 | S112: 8
B115: new
B116: old
D117: FTE Assumptions by Position - at Full Operations*
E118: North-East | F118: South-Central | G118: Pacific Mountain | H118: South-East | I118: North-Central ** | J118: Central | K118: South-West | L118: Olympic | M118: Pierce-North | N118: Pierce-South | O118: Snohomish | P118: North-West | Q118: King-North | R118: King-South
D119: Support Manager | E119: =ROUNDUP(IF($H$50=$B$115,'Manager Payment Supplement'!E104/AVERAGE('[2]Rate Assumption '!$C$28:$C$34)*$E$131,'Manager Payment Supplement'!E105/AVERAGE('[2]Rate Assumption '!$C$28:$C$34)*$E$131),1) -> 23.8 | F119: =ROUNDUP(IF($H$50=$B$115,'Manager Payment Supplement'!F104/AVERAGE('[2]Rate Assumption '!$C$28:$C$34)*$E$131,'Manager Payment Supplement'!F105/AVERAGE('[2]Rate Assumption '!$C$28:$C$34)*$E$131),1) -> 9.7 | G119: =ROUNDUP(IF($H$50=$B$115,'Manager Payment Supplement'!G104/AVERAGE('[2]Rate Assumption '!$C$28:$C$34)*$E$131,'Manager Payment Supplement'!G105/AVERAGE('[2]Rate Assumption '!$C$28:$C$34)*$E$131),1) -> 22.2 | H119: =ROUNDUP(IF($H$50=$B$115,'Manager Payment Supplement'!H104/AVERAGE('[2]Rate Assumption '!$C$28:$C$34)*$E$131,'Manager Payment Supplement'!H105/AVERAGE('[2]Rate Assumption '!$C$28:$C$34)*$E$131),1) -> 19 | I119: =ROUNDUP(IF($H$50=$B$115,'Manager Payment Supplement'!I104/AVERAGE('[2]Rate Assumption '!$C$28:$C$34)*$E$131,'Manager Payment Supplement'!I105/AVERAGE('[2]Rate Assumption '!$C$28:$C$34)*$E$131),1) -> 1.5 | J119: =ROUNDUP(IF($H$50=$B$115,'Manager Payment Supplement'!J104/AVERAGE('[2]Rate Assumption '!$C$28:$C$34)*$E$131,'Manager Payment Supplement'!J105/AVERAGE('[2]Rate Assumption '!$C$28:$C$34)*$E$131),1) -> 11.5 | K119: =ROUNDUP(IF($H$50=$B$115,'Manager Payment Supplement'!K104/AVERAGE('[2]Rate Assumption '!$C$28:$C$34)*$E$131,'Manager Payment Supplement'!K105/AVERAGE('[2]Rate Assumption '!$C$28:$C$34)*$E$131),1) -> 24.1 | L119: =ROUNDUP(IF($H$50=$B$115,'Manager Payment Supplement'!L104/AVERAGE('[2]Rate Assumption '!$C$28:$C$34)*$E$131,'Manager Payment Supplement'!L105/AVERAGE('[2]Rate Assumption '!$C$28:$C$34)*$E$131),1) -> 8.2 | M119: =ROUNDUP(IF($H$50=$B$115,'Manager Payment Supplement'!M104/AVERAGE('[2]Rate Assumption '!$C$28:$C$34)*$E$131,'Manager Payment Supplement'!M105/AVERAGE('[2]Rate Assumption '!$C$28:$C$34)*$E$131),1) -> 14.3 | N119: =ROUNDUP(IF($H$50=$B$115,'Manager Payment Supplement'!N104/AVERAGE('[2]Rate Assumption '!$C$28:$C$34)*$E$131,'Manager Payment Supplement'!N105/AVERAGE('[2]Rate Assumption '!$C$28:$C$34)*$E$131),1) -> 13.3 | O119: =ROUNDUP(IF($H$50=$B$115,'Manager Payment Supplement'!O104/AVERAGE('[2]Rate Assumption '!$C$28:$C$34)*$E$131,'Manager Payment Supplement'!O105/AVERAGE('[2]Rate Assumption '!$C$28:$C$34)*$E$131),1) -> 13.9 | P119: =ROUNDUP(IF($H$50=$B$115,'Manager Payment Supplement'!P104/AVERAGE('[2]Rate Assumption '!$C$28:$C$34)*$E$131,'Manager Payment Supplement'!P105/AVERAGE('[2]Rate Assumption '!$C$28:$C$34)*$E$131),1) -> 10.4 | Q119: =ROUNDUP(IF($H$50=$B$115,'Manager Payment Supplement'!Q104/AVERAGE('[2]Rate Assumption '!$C$28:$C$34)*$E$131,'Manager Payment Supplement'!Q105/AVERAGE('[2]Rate Assumption '!$C$28:$C$34)*$E$131),1) -> 11 | R119: =ROUNDUP(IF($H$50=$B$115,'Manager Payment Supplement'!R104/AVERAGE('[2]Rate Assumption '!$C$28:$C$34)*$E$131,'Manager Payment Supplement'!R105/AVERAGE('[2]Rate Assumption '!$C$28:$C$34)*$E$131),1) -> 15.5
D120: Case Aide | E120: =ROUND(IF($H$50=$B$115,(AVERAGE(('[2]Fee Table'!$D$64:$D$68)*1.5)*'Manager Payment Supplement'!E$104*'Manager Payment Supplement'!$E$132)/(2080/12),(AVERAGE(('[2]Fee Table'!$D$64:$D$68)*1.5)*'Manager Payment Supplement'!E$105*'Manager Payment Supplement'!$E$132)/(2080/12)),1) -> 55.3 | F120: =ROUND(IF($H$50=$B$115,(AVERAGE(('[2]Fee Table'!$D$64:$D$68)*1.5)*'Manager Payment Supplement'!F$104*'Manager Payment Supplement'!$E$132)/(2080/12),(AVERAGE(('[2]Fee Table'!$D$64:$D$68)*1.5)*'Manager Payment Supplement'!F$105*'Manager Payment Supplement'!$E$132)/(2080/12)),1) -> 22.5 | G120: =ROUND(IF($H$50=$B$115,(AVERAGE(('[2]Fee Table'!$D$64:$D$68)*1.5)*'Manager Payment Supplement'!G$104*'Manager Payment Supplement'!$E$132)/(2080/12),(AVERAGE(('[2]Fee Table'!$D$64:$D$68)*1.5)*'Manager Payment Supplement'!G$105*'Manager Payment Supplement'!$E$132)/(2080/12)),1) -> 51.5 | H120: =ROUND(IF($H$50=$B$115,(AVERAGE(('[2]Fee Table'!$D$64:$D$68)*1.5)*'Manager Payment Supplement'!H$104*'Manager Payment Supplement'!$E$132)/(2080/12),(AVERAGE(('[2]Fee Table'!$D$64:$D$68)*1.5)*'Manager Payment Supplement'!H$105*'Manager Payment Supplement'!$E$132)/(2080/12)),1) -> 44.1 | I120: =ROUND(IF($H$50=$B$115,(AVERAGE(('[2]Fee Table'!$D$64:$D$68)*1.5)*'Manager Payment Supplement'!I$104*'Manager Payment Supplement'!$E$132)/(2080/12),(AVERAGE(('[2]Fee Table'!$D$64:$D$68)*1.5)*'Manager Payment Supplement'!I$105*'Manager Payment Supplement'!$E$132)/(2080/12)),1) -> 3.3 | J120: =ROUND(IF($H$50=$B$115,(AVERAGE(('[2]Fee Table'!$D$64:$D$68)*1.5)*'Manager Payment Supplement'!J$104*'Manager Payment Supplement'!$E$132)/(2080/12),(AVERAGE(('[2]Fee Table'!$D$64:$D$68)*1.5)*'Manager Payment Supplement'!J$105*'Manager Payment Supplement'!$E$132)/(2080/12)),1) -> 26.7 | K120: =ROUND(IF($H$50=$B$115,(AVERAGE(('[2]Fee Table'!$D$64:$D$68)*1.5)*'Manager Payment Supplement'!K$104*'Manager Payment Supplement'!$E$132)/(2080/12),(AVERAGE(('[2]Fee Table'!$D$64:$D$68)*1.5)*'Manager Payment Supplement'!K$105*'Manager Payment Supplement'!$E$132)/(2080/12)),1) -> 56 | L120: =ROUND(IF($H$50=$B$115,(AVERAGE(('[2]Fee Table'!$D$64:$D$68)*1.5)*'Manager Payment Supplement'!L$104*'Manager Payment Supplement'!$E$132)/(2080/12),(AVERAGE(('[2]Fee Table'!$D$64:$D$68)*1.5)*'Manager Payment Supplement'!L$105*'Manager Payment Supplement'!$E$132)/(2080/12)),1) -> 19.1 | M120: =ROUND(IF($H$50=$B$115,(AVERAGE(('[2]Fee Table'!$D$64:$D$68)*1.5)*'Manager Payment Supplement'!M$104*'Manager Payment Supplement'!$E$132)/(2080/12),(AVERAGE(('[2]Fee Table'!$D$64:$D$68)*1.5)*'Manager Payment Supplement'!M$105*'Manager Payment Supplement'!$E$132)/(2080/12)),1) -> 33.2 | N120: =ROUND(IF($H$50=$B$115,(AVERAGE(('[2]Fee Table'!$D$64:$D$68)*1.5)*'Manager Payment Supplement'!N$104*'Manager Payment Supplement'!$E$132)/(2080/12),(AVERAGE(('[2]Fee Table'!$D$64:$D$68)*1.5)*'Manager Payment Supplement'!N$105*'Manager Payment Supplement'!$E$132)/(2080/12)),1) -> 31 | O120: =ROUND(IF($H$50=$B$115,(AVERAGE(('[2]Fee Table'!$D$64:$D$68)*1.5)*'Manager Payment Supplement'!O$104*'Manager Payment Supplement'!$E$132)/(2080/12),(AVERAGE(('[2]Fee Table'!$D$64:$D$68)*1.5)*'Manager Payment Supplement'!O$105*'Manager Payment Supplement'!$E$132)/(2080/12)),1) -> 32.3 | P120: =ROUND(IF($H$50=$B$115,(AVERAGE(('[2]Fee Table'!$D$64:$D$68)*1.5)*'Manager Payment Supplement'!P$104*'Manager Payment Supplement'!$E$132)/(2080/12),(AVERAGE(('[2]Fee Table'!$D$64:$D$68)*1.5)*'Manager Payment Supplement'!P$105*'Manager Payment Supplement'!$E$132)/(2080/12)),1) -> 24.1 | Q120: =ROUND(IF($H$50=$B$115,(AVERAGE(('[2]Fee Table'!$D$64:$D$68)*1.5)*'Manager Payment Supplement'!Q$104*'Manager Payment Supplement'!$E$132)/(2080/12),(AVERAGE(('[2]Fee Table'!$D$64:$D$68)*1.5)*'Manager Payment Supplement'!Q$105*'Manager Payment Supplement'!$E$132)/(2080/12)),1) -> 25.4 | R120: =ROUND(IF($H$50=$B$115,(AVERAGE(('[2]Fee Table'!$D$64:$D$68)*1.5)*'Manager Payment Supplement'!R$104*'Manager Payment Supplement'!$E$132)/(2080/12),(AVERAGE(('[2]Fee Table'!$D$64:$D$68)*1.5)*'Manager Payment Supplement'!R$105*'Manager Payment Supplement'!$E$132)/(2080/12)),1) -> 35.9
D122: Supervisor | E122: =ROUND(SUM(E119:E120)/'[2]Rate Assumption '!C43,1) -> 13.2 | F122: =ROUND(SUM(F119:F120)/6,1) -> 5.4 | G122: =ROUND(SUM(G119:G120)/6,1) -> 12.3 | H122: =ROUND(SUM(H119:H120)/6,1) -> 10.5 | I122: 1 | J122: =ROUND(SUM(J119:J120)/6,1) -> 6.4 | K122: 13.4 | L122: 4.6 | M122: 7.9 | N122: 7.4 | O122: 7.7 | P122: 5.8 | Q122: 6.1 | R122: 8.6
D123: Program Managers | E123: =ROUND(SUM(E122)/'[2]Rate Assumption '!$C$44,1) -> 2.2 | F123: =ROUND(SUM(F122)/'[2]Rate Assumption '!$C$44,1) -> 0.9 | G123: =ROUND(SUM(G122)/'[2]Rate Assumption '!$C$44,1) -> 2.1 | H123: =ROUND(SUM(H122)/'[2]Rate Assumption '!$C$44,1) -> 1.8 | I123: 0.5 | J123: =ROUND(SUM(J122)/'[2]Rate Assumption '!$C$44,1) -> 1.1 | K123: =ROUND(SUM(K122)/'[2]Rate Assumption '!$C$44,1) -> 2.2 | L123: =ROUND(SUM(L122)/'[2]Rate Assumption '!$C$44,1) -> 0.8 | M123: =ROUND(SUM(M122)/'[2]Rate Assumption '!$C$44,1) -> 1.3 | N123: =ROUND(SUM(N122)/'[2]Rate Assumption '!$C$44,1) -> 1.2 | O123: =ROUND(SUM(O122)/'[2]Rate Assumption '!$C$44,1) -> 1.3 | P123: =ROUND(SUM(P122)/'[2]Rate Assumption '!$C$44,1) -> 1 | Q123: =ROUND(SUM(Q122)/'[2]Rate Assumption '!$C$44,1) -> 1 | R123: =ROUND(SUM(R122)/'[2]Rate Assumption '!$C$44,1) -> 1.4
D124: After Hours coverage | E124: =ROUND(E119*'[2]Rate Assumption '!$C$45,1) -> 1.2 | F124: =ROUND(F119*'[2]Rate Assumption '!$C$45,1) -> 0.5 | G124: =ROUND(G119*'[2]Rate Assumption '!$C$45,1) -> 1.1 | H124: =ROUND(H119*'[2]Rate Assumption '!$C$45,1) -> 1 | I124: 0.5 | J124: =ROUND(J119*'[2]Rate Assumption '!$C$45,1) -> 0.6 | K124: =ROUND(K119*'[2]Rate Assumption '!$C$45,1) -> 1.2 | L124: =ROUND(L119*'[2]Rate Assumption '!$C$45,1) -> 0.4 | M124: =ROUND(M119*'[2]Rate Assumption '!$C$45,1) -> 0.7 | N124: =ROUND(N119*'[2]Rate Assumption '!$C$45,1) -> 0.7 | O124: =ROUND(O119*'[2]Rate Assumption '!$C$45,1) -> 0.7 | P124: =ROUND(P119*'[2]Rate Assumption '!$C$45,1) -> 0.5 | Q124: =ROUND(Q119*'[2]Rate Assumption '!$C$45,1) -> 0.6 | R124: =ROUND(R119*'[2]Rate Assumption '!$C$45,1) -> 0.8
D125: CQI/PBC Managers | E125: =ROUND(E119*'[2]Rate Assumption '!$C$46,1) -> 1.2 | F125: =ROUND(F119*'[2]Rate Assumption '!$C$46,1) -> 0.5 | G125: =ROUND(G119*'[2]Rate Assumption '!$C$46,1) -> 1.1 | H125: =ROUND(H119*'[2]Rate Assumption '!$C$46,1) -> 1 | I125: 0.25 | J125: =ROUND(J119*'[2]Rate Assumption '!$C$46,1) -> 0.6 | K125: =ROUND(K119*'[2]Rate Assumption '!$C$46,1) -> 1.2 | L125: =ROUND(L119*'[2]Rate Assumption '!$C$46,1) -> 0.4 | M125: =ROUND(M119*'[2]Rate Assumption '!$C$46,1) -> 0.7 | N125: =ROUND(N119*'[2]Rate Assumption '!$C$46,1) -> 0.7 | O125: =ROUND(O119*'[2]Rate Assumption '!$C$46,1) -> 0.7 | P125: =ROUND(P119*'[2]Rate Assumption '!$C$46,1) -> 0.5 | Q125: =ROUND(Q119*'[2]Rate Assumption '!$C$46,1) -> 0.6 | R125: =ROUND(R119*'[2]Rate Assumption '!$C$46,1) -> 0.8
D126: Executive/Dir | E126: =ROUND(E123/'[2]Rate Assumption '!$C$47,1) -> 0.9 | F126: =ROUND(F123/'[2]Rate Assumption '!$C$47,1) -> 0.4 | G126: =ROUND(G123/'[2]Rate Assumption '!$C$47,1) -> 0.8 | H126: =ROUND(H123/'[2]Rate Assumption '!$C$47,1) -> 0.7 | I126: =ROUND(I123/'[2]Rate Assumption '!$C$47,1) -> 0.2 | J126: =ROUND(J123/'[2]Rate Assumption '!$C$47,1) -> 0.4 | K126: =ROUND(K123/'[2]Rate Assumption '!$C$47,1) -> 0.9 | L126: =ROUND(L123/'[2]Rate Assumption '!$C$47,1) -> 0.3 | M126: =ROUND(M123/'[2]Rate Assumption '!$C$47,1) -> 0.5 | N126: =ROUND(N123/'[2]Rate Assumption '!$C$47,1) -> 0.5 | O126: =ROUND(O123/'[2]Rate Assumption '!$C$47,1) -> 0.5 | P126: =ROUND(P123/'[2]Rate Assumption '!$C$47,1) -> 0.4 | Q126: =ROUND(Q123/'[2]Rate Assumption '!$C$47,1) -> 0.4 | R126: =ROUND(R123/'[2]Rate Assumption '!$C$47,1) -> 0.6
D127: Administrative/data entry | E127: =ROUND(E119/'[2]Rate Assumption '!$C$48,1) -> 2.4 | F127: =ROUND(F119/'[2]Rate Assumption '!$C$48,1) -> 1 | G127: =ROUND(G119/'[2]Rate Assumption '!$C$48,1) -> 2.2 | H127: =ROUND(H119/'[2]Rate Assumption '!$C$48,1) -> 1.9 | I127: =ROUND(I119/'[2]Rate Assumption '!$C$48,1) -> 0.2 | J127: =ROUND(J119/'[2]Rate Assumption '!$C$48,1) -> 1.2 | K127: =ROUND(K119/'[2]Rate Assumption '!$C$48,1) -> 2.4 | L127: =ROUND(L119/'[2]Rate Assumption '!$C$48,1) -> 0.8 | M127: =ROUND(M119/'[2]Rate Assumption '!$C$48,1) -> 1.4 | N127: =ROUND(N119/'[2]Rate Assumption '!$C$48,1) -> 1.3 | O127: =ROUND(O119/'[2]Rate Assumption '!$C$48,1) -> 1.4 | P127: =ROUND(P119/'[2]Rate Assumption '!$C$48,1) -> 1 | Q127: =ROUND(Q119/'[2]Rate Assumption '!$C$48,1) -> 1.1 | R127: =ROUND(R119/'[2]Rate Assumption '!$C$48,1) -> 1.6
D131: Access of support services | E131: 1
D132: Access of case aide | E132: 1 | F132: do not change
D134: ** Some element manually adjusted

Sheet Sheet4 (hidden)
B1: Support Manager | C1: Case Aide | D1: Rate SM | E1: Rate CA | F1: PM FTE Mon | I1: Working Over Allocated Amount
A2: [Select] | B2: Select Catchment | C2: Select Catchment | D2: Select Catchment | E2: Select Catchment | F2: Select Catchment | I2: OK | J2: Ok
A3: North-East | B3: 18.6 | C3: 17.3 | D3: 5191.642214 | E3: 4666.049393 | F3: 106238.0418 | I3: Working Over Allowed Amount | J3: Check Employee Log
A4: South-Central | B4: 7.425 | C4: 6.9 | D4: 5167.260891 | E4: 4641.668071 | F4: 106238.0418
A5: Pacific-Mountain | B5: 16.65 | C5: 15.5 | D5: 5503.65069 | E5: 4812.68428 | F5: 114918.535
A6: South-East | B6: 13.575 | C6: 12.6 | D6: 5503.65069 | E6: 4812.68428 | F6: 114918.535
A7: North-Central | B7: 1.2 | C7: 1.1 | D7: 5503.65069 | E7: 4812.68428 | F7: 114918.535
A8: Central | B8: 8.775 | C8: 8.1 | D8: 5503.65069 | E8: 4812.68428 | F8: 114918.535
A9: South-West | B9: 16.575 | C9: 15.5 | D9: 5300.256053 | E9: 4719.471899 | F9: 109630.8098
A10: Olympic | B10: 5.55 | C10: 5.2 | D10: 5300.256053 | E10: 4719.471899 | F10: 109630.8098
A11: West Tacoma-Pierce | B11: 11.4 | C11: 10.6 | D11: 5300.256053 | E11: 4719.471899 | F11: 109630.8098
A12: East Tacoma-Pierce | B12: 10.125 | C12: 9.4 | D12: 5300.256053 | E12: 4719.471899 | F12: 109630.8098
A13: Snohomish | B13: 10.725 | C13: 10 | D13: 5300.256053 | E13: 4719.471899 | F13: 109630.8098
A14: North-West | B14: 7.725 | C14: 7.2 | D14: 5300.256053 | E14: 4719.471899 | F14: 109630.8098
A15: North Seattle-King | B15: 8.25 | C15: 7.7 | D15: 5863.404022 | E15: 5215.152484 | F15: 123315.3521
A16: South Seattle-King | B16: 11.7 | C16: 10.9 | D16: 5863.404022 | E16: 5215.152484 | F16: 123315.3521

Sheet Rate Assumption (hidden)
B2: These assumption are used to drive the model and may be changed here to impact the modeling. Effective April 1, 2024
B7: Taxes
B8: Type of Taxes | C8: Yearly
B9: Federal | C9: 0.2
B10: Payroll Taxes | C10: 0.17
B11: Washington B&O Tax | C11: 0.015
B13: Benefits and Training
B14: Type of Benefits | C14: Hours or Dollars (Yearly) | D14: % of 2080 Hrs. (Yearly)
B15: PTO - 120 hrs. yearly | C15: 120 | D15: =C15/2080 -> 0.05769230769
B16: Holiday - 88 hrs. yearly | C16: 88 | D16: =C16/2080 -> 0.04230769231
B17: Training - 40 hrs. yearly | C17: 40 | D17: =C17/2080 -> 0.01923076923
B18: Staff Health Insurance per FTE per year | C18: =3300+900 -> 4200
C21: Qualifications & Standards
B22: Case Aide | C22: Follows WAC 110-145-1445
B23: Case Aide - hours weekly supervision | C23: 0.5
B24: Support Manager | C24: Follows WAC 110-145-1440
B26: Caseload Standards
B28: Support Manager Lvl 1 | C28: 25 | D28: =C28*'[2]Operational estimates'!D106 -> 9.85
B29: Support Manager Lvl 2 | C29: 23 | D29: =C29*'[2]Operational estimates'!D107 -> 1.84
B30: Support Manager Lvl 3 | C30: 21 | D30: =C30*'[2]Operational estimates'!D108 -> 2.961
B31: Support Manager Lvl 4 | C31: 19 | D31: =C31*'[2]Operational estimates'!D109 -> 1.292
B32: Support Manager Lvl 5 | C32: 15 | D32: =C32*'[2]Operational estimates'!D110 -> 1.47
B33: Support Manager Lvl 6 | C33: 14 | D33: =C33*'[2]Operational estimates'!D111 -> 2.058
B34: Support Manager Lvl 7 | C34: 12 | D34: =C34*'[2]Operational estimates'!D112 -> 0.864
B36: Case Aide Lvl 3 | D36: =SUM(D28:D35) -> 20.335
B37: Case Aide Lvl 4
B38: Case Aide Lvl 5
B39: Case Aide Lvl 6
B40: Case Aide Lvl 7
C42: Ratio | D42: Notes
B43: Supervisor | C43: 6 | D43: Staff to supervisor
B44: Program Managers | C44: 6 | D44: Supervisors to Managers
B45: After Hours coverage | C45: 0.05 | D45: Per FTE Per Case Manager
B46: CQI/PBC Managers | C46: 0.05 | D46: Per Case Manager & Case Aide FTE
B47: Executive/Dir | C47: 2.5 | D47: Program Manager to Exec
B48: Administrative/data entry | C48: 10 | D48: Workforce per FTE
B50: Services Delivery
B52: Semi-Annual In-Home Support Planning visit | C52: 45 | D52: minutes - on avg
C53: 2 | D53: meetings a year
B56: Overhead
B57: Office Space rent - avg | C57: 29.62 | D57: 100 sq. ft Per FTE - Avg cost
B58: Utilities (phone, electric, Internet) | C58: 2.1 | D58: Per sq ft per month
B59: Office supplies/Tech/furniture/Janitorial | C59: 53 | D59: Per FTE per month
B61: Bookkeeping & Payroll | C61: 86 | D61: Per FTE per month
B62: Insurance (property and liability) | C62: 210 | D62: Per service delivery FTE per year
B63: HR & Payroll | C63: 86 | D63: per FTE per month
B64: Staff Equipment - Phones, Laptops, etc. | C64: 55 | D64: Per FTE per month
B65: Cloud storage and related software | C65: =342/12 -> 28.5 | D65: Per month cost
B67: Cost of staff attendance training(Coverage) | C67: =C17/2080 -> 0.01923076923 | D67: Per FTE per Year
B68: Cost of Trainings (external trainings) | C68: 250 | D68: Per Person Per year
B70: General Overhead - see notes | C70: 0.07 | D70: See notes

Sheet Sheet2 (2) (hidden)
A1: [Select] | D1: [Select]
A2: 1 | D2: Yes
A3: No Payment | D3: No

Sheet Sheet1 (hidden)
A1: [Select] | C1: [Select]
A2: January | C2: 2022
A3: February | C3: 2023
A4: March | C4: 2024
A5: April | C5: 2025
A6: May | C6: 2026
A7: June | C7: 2027
A8: July | C8: 2028
A9: August | C9: 2029
A10: September | C10: 2030
A11: October | C11: 2031
A12: November | C12: 2032
A13: December | C13: 2033

Sheet Sheet2 (hidden)
A1: Cheat sheet | H1: Cheat Sheet
A2: Support Manager | H2: Yes
A3: =IFERROR(_xlfn._xlws.FILTER('Employee Log'!C:C,'Employee Log'!F:F=Sheet2!A2),"Complete Employee Log") -> Complete Employee Log | H3: Complete Provider Level
H4: =IFERROR(_xlfn._xlws.FILTER('Provider Level'!$B:$B,'Provider Level'!$V:$V=Sheet2!$H$2),"Complete Provider Level") -> Complete Provider Level

Sheet Fee For Service Roll Up
E1: WASHINGTON STATE DEPARTMENT OF CHILDREN, YOUTH, AND FAMILIES
E2: Catchment Provider Billing Form
C4: Month of Service: | E4: Select | G4: Year: | I4: Select
C6: Provider Name:
C8: FamLink Provider #:
B10: Please Complete the "Case Aide" and "Provider Level" Tab
C13: - This Billing Form is Meant to provide a monthly invoice for case aide. - Provider Resource Support Levels will be opened independently without the need for paperwork; however, this form allows for the catchment to note which cases have not received an invoice for Provider Resource Support to reduce delays in payment.
C19: Region 1: Mileage is Paid Lump Sum | I19: Dollar Amounts | J19: Count
C22: One | E22: Provider Resource Support | I22: - | J22: =COUNTIFS('Provider Level'!$P:$P,'Fee For Service Roll Up'!C22,'Provider Level'!$U:$U,"No") -> 0
E23: Case Aide | I23: =SUMIFS('Case Aide'!$R:$R,'Case Aide'!$K:$K,$C$22) -> 0 | J23: =COUNTIFS('Case Aide'!$K:$K,'Fee For Service Roll Up'!C22,'Case Aide'!$N:$N,">0") -> 0
E24: Mileage | I24: =SUMIFS('Case Aide'!$U:$U,'Case Aide'!$K:$K,$C$22) -> 0 | J24: =COUNTIFS('Case Aide'!$K:$K,'Fee For Service Roll Up'!C22,'Case Aide'!$T:$T,">0") -> 0
G25: Total: | I25: =SUM(I22:I24) -> 0 | J25: =SUM(J22:J24) -> 0
C28: Region 2: Mileage is Paid Lump Sum | I28: Dollar Amounts | J28: Count
C29: Region 2 | I29: Dollar Amounts | J29: Count
C31: Two | E31: Provider Resource Support | I31: - | J31: =COUNTIFS('Provider Level'!$P:$P,'Fee For Service Roll Up'!C31,'Provider Level'!$U:$U,"No") -> 0
E32: Case Aide | I32: =SUMIFS('Case Aide'!R:R,'Case Aide'!$K:$K,$C$31) -> 0 | J32: =COUNTIFS('Case Aide'!$K:$K,'Fee For Service Roll Up'!C31,'Case Aide'!$N:$N,">0") -> 0
E33: Mileage | I33: =SUMIFS('Case Aide'!$U:$U,'Case Aide'!$K:$K,$C$31) -> 0 | J33: =COUNTIFS('Case Aide'!$K:$K,'Fee For Service Roll Up'!C31,'Case Aide'!$T:$T,">0") -> 0
G34: Total: | I34: =SUM(I31:I33) -> 0 | J34: =SUM(J31:J33) -> 0
C37: Region 3: Mileage is Paid Lump Sum | I37: Dollar Amounts | J37: Count
C38: Region 3 | I38: Dollar Amounts | J38: Count
C40: Three | E40: Provider Resource Support | I40: - | J40: =COUNTIFS('Provider Level'!$P:$P,'Fee For Service Roll Up'!C40,'Provider Level'!$U:$U,"No") -> 0
E41: Case Aide | I41: =SUMIFS('Case Aide'!$R:$R,'Case Aide'!$K:$K,$C$40) -> 0 | J41: =COUNTIFS('Case Aide'!$K:$K,'Fee For Service Roll Up'!C40,'Case Aide'!$N:$N,">0") -> 0
E42: Mileage | I42: =SUMIFS('Case Aide'!$U:$U,'Case Aide'!$K:$K,$C$40) -> 0 | J42: =COUNTIFS('Case Aide'!$K:$K,'Fee For Service Roll Up'!C40,'Case Aide'!$T:$T,">0") -> 0
G43: Total: | I43: =SUM(I40:I42) -> 0 | J43: =SUM(J40:J42) -> 0
C46: Region 4: Mileage is Paid Lump Sum | I46: Dollar Amounts | J46: Count
C47: Region 4 | I47: Dollar Amounts | J47: Count
C49: Four | E49: Provider Resource Support | I49: - | J49: =COUNTIFS('Provider Level'!$P:$P,'Fee For Service Roll Up'!C49,'Provider Level'!$U:$U,"No") -> 0
E50: Case Aide | I50: =SUMIFS('Case Aide'!$R:$R,'Case Aide'!$K:$K,$C$49) -> 0 | J50: =COUNTIFS('Case Aide'!$K:$K,'Fee For Service Roll Up'!C49,'Case Aide'!$N:$N,">0") -> 0
E51: Mileage | I51: =SUMIFS('Case Aide'!$U:$U,'Case Aide'!$K:$K,$C$49) -> 0 | J51: =COUNTIFS('Case Aide'!$K:$K,'Fee For Service Roll Up'!C49,'Case Aide'!$T:$T,">0") -> 0
G52: Total: | I52: =SUM(I49:I51) -> 0 | J52: =SUM(J49:J51) -> 0
C55: Region 5: Mileage is Paid Lump Sum | I55: Dollar Amounts | J55: Count
C56: Region 5 | I56: Dollar Amounts | J56: Count
C58: Five | E58: Provider Resource Support | I58: - | J58: =COUNTIFS('Provider Level'!$P:$P,'Fee For Service Roll Up'!C58,'Provider Level'!$U:$U,"No") -> 0
E59: Case Aide | I59: =SUMIFS('Case Aide'!$R:$R,'Case Aide'!$K:$K,$C$58) -> 0 | J59: =COUNTIFS('Case Aide'!$K:$K,'Fee For Service Roll Up'!C58,'Case Aide'!$N:$N,">0") -> 0
E60: Mileage | I60: =SUMIFS('Case Aide'!$U:$U,'Case Aide'!$K:$K,$C$58) -> 0 | J60: =COUNTIFS('Case Aide'!$K:$K,'Fee For Service Roll Up'!C58,'Case Aide'!$T:$T,">0") -> 0
G61: Total: | I61: =SUM(I58:I60) -> 0 | J61: =SUM(J58:J60) -> 0
C64: Region 6: Mileage is Paid Lump Sum | I64: Dollar Amounts | J64: Count
C65: Region 6 | I65: Dollar Amounts | J65: Count
C67: Six | E67: Provider Resource Support | I67: - | J67: =COUNTIFS('Provider Level'!$P:$P,'Fee For Service Roll Up'!C67,'Provider Level'!$U:$U,"No") -> 0
E68: Case Aide | I68: =SUMIFS('Case Aide'!$R:$R,'Case Aide'!$K:$K,$C$67) -> 0 | J68: =COUNTIFS('Case Aide'!$K:$K,'Fee For Service Roll Up'!C67,'Case Aide'!$N:$N,">0") -> 0
E69: Mileage | I69: =SUMIFS('Case Aide'!$U:$U,'Case Aide'!$K:$K,$C$67) -> 0 | J69: =COUNTIFS('Case Aide'!$K:$K,'Fee For Service Roll Up'!C67,'Case Aide'!$T:$T,">0") -> 0
G70: Total: | I70: =SUM(I67:I69) -> 0 | J70: =SUM(J67:J69) -> 0
C73: State-Wide | I73: Dollar Amounts | J73: Count
C74: Region 6 | I74: Dollar Amounts | J74: Count
E76: Provider Resource Support | I76: - | J76: =SUM(J67,J58,J49,J40,J31,J22) -> 0
E77: Case Aide | I77: 0 | J77: 0
E78: Mileage | I78: 0 | J78: 0
G79: Total: | I79: =SUM(I76:I78) -> 0 | J79: =SUM(J76:J78) -> 0
B83: Comments
B88: Provider's Certification
B90: I hereby certify under penalty of perjury that the invoice above are correct and are proper charges for services furnished to the State of Washington DCYF.
B95: Provider Authorized Signature | J95: Date
B99: DCYF Approval
B101: I hereby certify that the above chargeswere submitted timely and the form is complete.
B106: DCYF Authorized Signature | J106: Date
B108: FAMLINK INVOICE FORM (2/21/2025)
B109: Created by the Fiscal Integrity Unit

Sheet Case Aide
A1: Month of Service | B1: Child Name | C1: Child ID | D1: Case Name | E1: Case Number | F1: Is Youth TPO? | G1: Tribe Name | H1: Date of Service Start | I1: Service End Date | J1: County Where Youth Resides | K1: DCYF Case Region | L1: DCYF Case Office | M1: Child Support Level | N1: Case Aide Hours | O1: Hide Column | P1: Case Aide Travel Time | Q1: Total Case Aide | R1: Case Aide Due | S1: Is Billing Allowed | T1: Mileage | U1: Mileage Due (Paid by Lump Sum)
A2: =IF(B2="Complete Provider Level","Select",'Fee For Service Roll Up'!$E$4) -> Select | B2: Complete Provider Level | C2: =IFERROR(VLOOKUP(Table1[[#This Row],[Child Name]],'Provider Level'!B:C,2,0),"-") -> - | D2: =IFERROR(VLOOKUP(Table1[[#This Row],[Child Name]],'Provider Level'!B:D,3,0),"-") -> - | E2: =IFERROR(VLOOKUP(Table1[[#This Row],[Child Name]],'Provider Level'!B:E,4,0),"-") -> - | F2: =IFERROR(VLOOKUP(Table1[[#This Row],[Child Name]],'Provider Level'!B:F,5,0),"-") -> - | G2: =IFERROR(VLOOKUP(Table1[[#This Row],[Child Name]],'Provider Level'!B:H,6,0),"-") -> - | H2: =IFERROR(VLOOKUP(Table1[[#This Row],[Child Name]],'Provider Level'!B:L,11,0),"-") -> - | I2: =IFERROR(VLOOKUP(Table1[[#This Row],[Child Name]],'Provider Level'!B:N,13,0),"-") -> - | J2: =IFERROR(VLOOKUP(Table1[[#This Row],[Child Name]],'Provider Level'!B:O,14,0),"-") -> - | K2: =IFERROR(VLOOKUP(Table1[[#This Row],[Child Name]],'Provider Level'!B:P,15,0),"-") -> - | L2: =IFERROR(VLOOKUP(Table1[[#This Row],[Child Name]],'Provider Level'!B:Q,16,0),"-") -> - | M2: =IFERROR(VLOOKUP(Table1[[#This Row],[Child Name]],'Provider Level'!B:R,17,0),"-") -> - | N2: 0 | O2: =IFERROR(IF(N2>VLOOKUP(M2,'Drop Down'!$A$3:$B$10,2,0),"1","0"),"-") -> - | P2: 0 | Q2: =SUM($N2,$P2) -> 0 | R2: =IFERROR(IF(M2="Select","Select Support Level", PRODUCT($Q2,VLOOKUP($J2,'Drop Down'!K:M,3,0))),"-") -> - | S2: =IF(O2="1","Cannot Bill","Ok") -> Ok | T2: 0 | U2: =IF($T2="",0,ROUND(PRODUCT(T2,0.7),2)) -> 0
A3: =IF(B3="Complete Provider Level","Select",'Fee For Service Roll Up'!$E$4) -> Select | B3: Complete Provider Level | C3: =IFERROR(VLOOKUP(Table1[[#This Row],[Child Name]],'Provider Level'!B:C,2,0),"-") -> - | D3: =IFERROR(VLOOKUP(Table1[[#This Row],[Child Name]],'Provider Level'!B:D,3,0),"-") -> - | E3: =IFERROR(VLOOKUP(Table1[[#This Row],[Child Name]],'Provider Level'!B:E,4,0),"-") -> - | F3: =IFERROR(VLOOKUP(Table1[[#This Row],[Child Name]],'Provider Level'!B:F,5,0),"-") -> - | G3: =IFERROR(VLOOKUP(Table1[[#This Row],[Child Name]],'Provider Level'!B:H,6,0),"-") -> - | H3: =IFERROR(VLOOKUP(Table1[[#This Row],[Child Name]],'Provider Level'!B:L,11,0),"-") -> - | I3: =IFERROR(VLOOKUP(Table1[[#This Row],[Child Name]],'Provider Level'!B:N,13,0),"-") -> - | J3: =IFERROR(VLOOKUP(Table1[[#This Row],[Child Name]],'Provider Level'!B:O,14,0),"-") -> - | K3: =IFERROR(VLOOKUP(Table1[[#This Row],[Child Name]],'Provider Level'!B:P,15,0),"-") -> - | L3: =IFERROR(VLOOKUP(Table1[[#This Row],[Child Name]],'Provider Level'!B:Q,16,0),"-") -> - | M3: =IFERROR(VLOOKUP(Table1[[#This Row],[Child Name]],'Provider Level'!B:R,17,0),"-") -> - | N3: - | O3: =IFERROR(IF(N3>VLOOKUP(M3,'Drop Down'!$A$3:$B$10,2,0),"1","0"),"-") -> - | P3: 0 | Q3: =SUM($N3,$P3) -> 0 | R3: =IFERROR(IF(M3="Select","Select Support Level", PRODUCT($Q3,VLOOKUP($J3,'Drop Down'!K:M,3,0))),"-") -> - | S3: Ok | T3: 0 | U3: 0
A4: =IF(B4="Complete Provider Level","Select",'Fee For Service Roll Up'!$E$4) -> Select | B4: Complete Provider Level | C4: =IFERROR(VLOOKUP(Table1[[#This Row],[Child Name]],'Provider Level'!B:C,2,0),"-") -> - | D4: =IFERROR(VLOOKUP(Table1[[#This Row],[Child Name]],'Provider Level'!B:D,3,0),"-") -> - | E4: =IFERROR(VLOOKUP(Table1[[#This Row],[Child Name]],'Provider Level'!B:E,4,0),"-") -> - | F4: =IFERROR(VLOOKUP(Table1[[#This Row],[Child Name]],'Provider Level'!B:F,5,0),"-") -> - | G4: =IFERROR(VLOOKUP(Table1[[#This Row],[Child Name]],'Provider Level'!B:H,6,0),"-") -> - | H4: =IFERROR(VLOOKUP(Table1[[#This Row],[Child Name]],'Provider Level'!B:L,11,0),"-") -> - | I4: =IFERROR(VLOOKUP(Table1[[#This Row],[Child Name]],'Provider Level'!B:N,13,0),"-") -> - | J4: =IFERROR(VLOOKUP(Table1[[#This Row],[Child Name]],'Provider Level'!B:O,14,0),"-") -> - | K4: =IFERROR(VLOOKUP(Table1[[#This Row],[Child Name]],'Provider Level'!B:P,15,0),"-") -> - | L4: =IFERROR(VLOOKUP(Table1[[#This Row],[Child Name]],'Provider Level'!B:Q,16,0),"-") -> - | M4: =IFERROR(VLOOKUP(Table1[[#This Row],[Child Name]],'Provider Level'!B:R,17,0),"-") -> - | N4: 0 | O4: =IFERROR(IF(N4>VLOOKUP(M4,'Drop Down'!$A$3:$B$10,2,0),"1","0"),"-") -> - | P4: 0 | Q4: 0 | R4: =IFERROR(IF(M4="Select","Select Support Level", PRODUCT($Q4,VLOOKUP($J4,'Drop Down'!K:M,3,0))),"-") -> - | S4: Ok | T4: 0 | U4: 0
A5: =IF(B5="Complete Provider Level","Select",'Fee For Service Roll Up'!$E$4) -> Select | B5: Complete Provider Level | C5: =IFERROR(VLOOKUP(Table1[[#This Row],[Child Name]],'Provider Level'!B:C,2,0),"-") -> - | D5: =IFERROR(VLOOKUP(Table1[[#This Row],[Child Name]],'Provider Level'!B:D,3,0),"-") -> - | E5: =IFERROR(VLOOKUP(Table1[[#This Row],[Child Name]],'Provider Level'!B:E,4,0),"-") -> - | F5: =IFERROR(VLOOKUP(Table1[[#This Row],[Child Name]],'Provider Level'!B:F,5,0),"-") -> - | G5: =IFERROR(VLOOKUP(Table1[[#This Row],[Child Name]],'Provider Level'!B:H,6,0),"-") -> - | H5: =IFERROR(VLOOKUP(Table1[[#This Row],[Child Name]],'Provider Level'!B:L,11,0),"-") -> - | I5: =IFERROR(VLOOKUP(Table1[[#This Row],[Child Name]],'Provider Level'!B:N,13,0),"-") -> - | J5: =IFERROR(VLOOKUP(Table1[[#This Row],[Child Name]],'Provider Level'!B:O,14,0),"-") -> - | K5: =IFERROR(VLOOKUP(Table1[[#This Row],[Child Name]],'Provider Level'!B:P,15,0),"-") -> - | L5: =IFERROR(VLOOKUP(Table1[[#This Row],[Child Name]],'Provider Level'!B:Q,16,0),"-") -> - | M5: =IFERROR(VLOOKUP(Table1[[#This Row],[Child Name]],'Provider Level'!B:R,17,0),"-") -> - | N5: 0 | O5: =IFERROR(IF(N5>VLOOKUP(M5,'Drop Down'!$A$3:$B$10,2,0),"1","0"),"-") -> - | P5: 0 | Q5: 0 | R5: =IFERROR(IF(M5="Select","Select Support Level", PRODUCT($Q5,VLOOKUP($J5,'Drop Down'!K:M,3,0))),"-") -> - | S5: Ok | T5: 0 | U5: 0
A6: =IF(B6="Complete Provider Level","Select",'Fee For Service Roll Up'!$E$4) -> Select | B6: Complete Provider Level | C6: =IFERROR(VLOOKUP(Table1[[#This Row],[Child Name]],'Provider Level'!B:C,2,0),"-") -> - | D6: =IFERROR(VLOOKUP(Table1[[#This Row],[Child Name]],'Provider Level'!B:D,3,0),"-") -> - | E6: =IFERROR(VLOOKUP(Table1[[#This Row],[Child Name]],'Provider Level'!B:E,4,0),"-") -> - | F6: =IFERROR(VLOOKUP(Table1[[#This Row],[Child Name]],'Provider Level'!B:F,5,0),"-") -> - | G6: =IFERROR(VLOOKUP(Table1[[#This Row],[Child Name]],'Provider Level'!B:H,6,0),"-") -> - | H6: =IFERROR(VLOOKUP(Table1[[#This Row],[Child Name]],'Provider Level'!B:L,11,0),"-") -> - | I6: =IFERROR(VLOOKUP(Table1[[#This Row],[Child Name]],'Provider Level'!B:N,13,0),"-") -> - | J6: =IFERROR(VLOOKUP(Table1[[#This Row],[Child Name]],'Provider Level'!B:O,14,0),"-") -> - | K6: =IFERROR(VLOOKUP(Table1[[#This Row],[Child Name]],'Provider Level'!B:P,15,0),"-") -> - | L6: =IFERROR(VLOOKUP(Table1[[#This Row],[Child Name]],'Provider Level'!B:Q,16,0),"-") -> - | M6: =IFERROR(VLOOKUP(Table1[[#This Row],[Child Name]],'Provider Level'!B:R,17,0),"-") -> - | N6: 0 | O6: =IFERROR(IF(N6>VLOOKUP(M6,'Drop Down'!$A$3:$B$10,2,0),"1","0"),"-") -> - | P6: 0 | Q6: 0 | R6: =IFERROR(IF(M6="Select","Select Support Level", PRODUCT($Q6,VLOOKUP($J6,'Drop Down'!K:M,3,0))),"-") -> - | S6: Ok | T6: 0 | U6: 0
A7: =IF(B7="Complete Provider Level","Select",'Fee For Service Roll Up'!$E$4) -> Select | B7: Complete Provider Level | C7: =IFERROR(VLOOKUP(Table1[[#This Row],[Child Name]],'Provider Level'!B:C,2,0),"-") -> - | D7: =IFERROR(VLOOKUP(Table1[[#This Row],[Child Name]],'Provider Level'!B:D,3,0),"-") -> - | E7: =IFERROR(VLOOKUP(Table1[[#This Row],[Child Name]],'Provider Level'!B:E,4,0),"-") -> - | F7: =IFERROR(VLOOKUP(Table1[[#This Row],[Child Name]],'Provider Level'!B:F,5,0),"-") -> - | G7: =IFERROR(VLOOKUP(Table1[[#This Row],[Child Name]],'Provider Level'!B:H,6,0),"-") -> - | H7: =IFERROR(VLOOKUP(Table1[[#This Row],[Child Name]],'Provider Level'!B:L,11,0),"-") -> - | I7: =IFERROR(VLOOKUP(Table1[[#This Row],[Child Name]],'Provider Level'!B:N,13,0),"-") -> - | J7: =IFERROR(VLOOKUP(Table1[[#This Row],[Child Name]],'Provider Level'!B:O,14,0),"-") -> - | K7: =IFERROR(VLOOKUP(Table1[[#This Row],[Child Name]],'Provider Level'!B:P,15,0),"-") -> - | L7: =IFERROR(VLOOKUP(Table1[[#This Row],[Child Name]],'Provider Level'!B:Q,16,0),"-") -> - | M7: =IFERROR(VLOOKUP(Table1[[#This Row],[Child Name]],'Provider Level'!B:R,17,0),"-") -> - | N7: 0 | O7: =IFERROR(IF(N7>VLOOKUP(M7,'Drop Down'!$A$3:$B$10,2,0),"1","0"),"-") -> - | P7: 0 | Q7: 0 | R7: =IFERROR(IF(M7="Select","Select Support Level", PRODUCT($Q7,VLOOKUP($J7,'Drop Down'!K:M,3,0))),"-") -> - | S7: Ok | T7: 0 | U7: 0
A8: =IF(B8="Complete Provider Level","Select",'Fee For Service Roll Up'!$E$4) -> Select | B8: Complete Provider Level | C8: =IFERROR(VLOOKUP(Table1[[#This Row],[Child Name]],'Provider Level'!B:C,2,0),"-") -> - | D8: =IFERROR(VLOOKUP(Table1[[#This Row],[Child Name]],'Provider Level'!B:D,3,0),"-") -> - | E8: =IFERROR(VLOOKUP(Table1[[#This Row],[Child Name]],'Provider Level'!B:E,4,0),"-") -> - | F8: =IFERROR(VLOOKUP(Table1[[#This Row],[Child Name]],'Provider Level'!B:F,5,0),"-") -> - | G8: =IFERROR(VLOOKUP(Table1[[#This Row],[Child Name]],'Provider Level'!B:H,6,0),"-") -> - | H8: =IFERROR(VLOOKUP(Table1[[#This Row],[Child Name]],'Provider Level'!B:L,11,0),"-") -> - | I8: =IFERROR(VLOOKUP(Table1[[#This Row],[Child Name]],'Provider Level'!B:N,13,0),"-") -> - | J8: =IFERROR(VLOOKUP(Table1[[#This Row],[Child Name]],'Provider Level'!B:O,14,0),"-") -> - | K8: =IFERROR(VLOOKUP(Table1[[#This Row],[Child Name]],'Provider Level'!B:P,15,0),"-") -> - | L8: =IFERROR(VLOOKUP(Table1[[#This Row],[Child Name]],'Provider Level'!B:Q,16,0),"-") -> - | M8: =IFERROR(VLOOKUP(Table1[[#This Row],[Child Name]],'Provider Level'!B:R,17,0),"-") -> - | N8: 0 | O8: =IFERROR(IF(N8>VLOOKUP(M8,'Drop Down'!$A$3:$B$10,2,0),"1","0"),"-") -> - | P8: 0 | Q8: 0 | R8: =IFERROR(IF(M8="Select","Select Support Level", PRODUCT($Q8,VLOOKUP($J8,'Drop Down'!K:M,3,0))),"-") -> - | S8: Ok | T8: 0 | U8: 0
A9: =IF(B9="Complete Provider Level","Select",'Fee For Service Roll Up'!$E$4) -> Select | B9: Complete Provider Level | C9: =IFERROR(VLOOKUP(Table1[[#This Row],[Child Name]],'Provider Level'!B:C,2,0),"-") -> - | D9: =IFERROR(VLOOKUP(Table1[[#This Row],[Child Name]],'Provider Level'!B:D,3,0),"-") -> - | E9: =IFERROR(VLOOKUP(Table1[[#This Row],[Child Name]],'Provider Level'!B:E,4,0),"-") -> - | F9: =IFERROR(VLOOKUP(Table1[[#This Row],[Child Name]],'Provider Level'!B:F,5,0),"-") -> - | G9: =IFERROR(VLOOKUP(Table1[[#This Row],[Child Name]],'Provider Level'!B:H,6,0),"-") -> - | H9: =IFERROR(VLOOKUP(Table1[[#This Row],[Child Name]],'Provider Level'!B:L,11,0),"-") -> - | I9: =IFERROR(VLOOKUP(Table1[[#This Row],[Child Name]],'Provider Level'!B:N,13,0),"-") -> - | J9: =IFERROR(VLOOKUP(Table1[[#This Row],[Child Name]],'Provider Level'!B:O,14,0),"-") -> - | K9: =IFERROR(VLOOKUP(Table1[[#This Row],[Child Name]],'Provider Level'!B:P,15,0),"-") -> - | L9: =IFERROR(VLOOKUP(Table1[[#This Row],[Child Name]],'Provider Level'!B:Q,16,0),"-") -> - | M9: =IFERROR(VLOOKUP(Table1[[#This Row],[Child Name]],'Provider Level'!B:R,17,0),"-") -> - | N9: 0 | O9: =IFERROR(IF(N9>VLOOKUP(M9,'Drop Down'!$A$3:$B$10,2,0),"1","0"),"-") -> - | P9: 0 | Q9: 0 | R9: =IFERROR(IF(M9="Select","Select Support Level", PRODUCT($Q9,VLOOKUP($J9,'Drop Down'!K:M,3,0))),"-") -> - | S9: Ok | T9: 0 | U9: 0
A10: =IF(B10="Complete Provider Level","Select",'Fee For Service Roll Up'!$E$4) -> Select | B10: Complete Provider Level | C10: =IFERROR(VLOOKUP(Table1[[#This Row],[Child Name]],'Provider Level'!B:C,2,0),"-") -> - | D10: =IFERROR(VLOOKUP(Table1[[#This Row],[Child Name]],'Provider Level'!B:D,3,0),"-") -> - | E10: =IFERROR(VLOOKUP(Table1[[#This Row],[Child Name]],'Provider Level'!B:E,4,0),"-") -> - | F10: =IFERROR(VLOOKUP(Table1[[#This Row],[Child Name]],'Provider Level'!B:F,5,0),"-") -> - | G10: =IFERROR(VLOOKUP(Table1[[#This Row],[Child Name]],'Provider Level'!B:H,6,0),"-") -> - | H10: =IFERROR(VLOOKUP(Table1[[#This Row],[Child Name]],'Provider Level'!B:L,11,0),"-") -> - | I10: =IFERROR(VLOOKUP(Table1[[#This Row],[Child Name]],'Provider Level'!B:N,13,0),"-") -> - | J10: =IFERROR(VLOOKUP(Table1[[#This Row],[Child Name]],'Provider Level'!B:O,14,0),"-") -> - | K10: =IFERROR(VLOOKUP(Table1[[#This Row],[Child Name]],'Provider Level'!B:P,15,0),"-") -> - | L10: =IFERROR(VLOOKUP(Table1[[#This Row],[Child Name]],'Provider Level'!B:Q,16,0),"-") -> - | M10: =IFERROR(VLOOKUP(Table1[[#This Row],[Child Name]],'Provider Level'!B:R,17,0),"-") -> - | N10: 0 | O10: =IFERROR(IF(N10>VLOOKUP(M10,'Drop Down'!$A$3:$B$10,2,0),"1","0"),"-") -> - | P10: 0 | Q10: 0 | R10: =IFERROR(IF(M10="Select","Select Support Level", PRODUCT($Q10,VLOOKUP($J10,'Drop Down'!K:M,3,0))),"-") -> - | S10: Ok | T10: 0 | U10: 0
A11: =IF(B11="Complete Provider Level","Select",'Fee For Service Roll Up'!$E$4) -> Select | B11: Complete Provider Level | C11: =IFERROR(VLOOKUP(Table1[[#This Row],[Child Name]],'Provider Level'!B:C,2,0),"-") -> - | D11: =IFERROR(VLOOKUP(Table1[[#This Row],[Child Name]],'Provider Level'!B:D,3,0),"-") -> - | E11: =IFERROR(VLOOKUP(Table1[[#This Row],[Child Name]],'Provider Level'!B:E,4,0),"-") -> - | F11: =IFERROR(VLOOKUP(Table1[[#This Row],[Child Name]],'Provider Level'!B:F,5,0),"-") -> - | G11: =IFERROR(VLOOKUP(Table1[[#This Row],[Child Name]],'Provider Level'!B:H,6,0),"-") -> - | H11: =IFERROR(VLOOKUP(Table1[[#This Row],[Child Name]],'Provider Level'!B:L,11,0),"-") -> - | I11: =IFERROR(VLOOKUP(Table1[[#This Row],[Child Name]],'Provider Level'!B:N,13,0),"-") -> - | J11: =IFERROR(VLOOKUP(Table1[[#This Row],[Child Name]],'Provider Level'!B:O,14,0),"-") -> - | K11: =IFERROR(VLOOKUP(Table1[[#This Row],[Child Name]],'Provider Level'!B:P,15,0),"-") -> - | L11: =IFERROR(VLOOKUP(Table1[[#This Row],[Child Name]],'Provider Level'!B:Q,16,0),"-") -> - | M11: =IFERROR(VLOOKUP(Table1[[#This Row],[Child Name]],'Provider Level'!B:R,17,0),"-") -> - | N11: 0 | O11: =IFERROR(IF(N11>VLOOKUP(M11,'Drop Down'!$A$3:$B$10,2,0),"1","0"),"-") -> - | P11: 0 | Q11: 0 | R11: =IFERROR(IF(M11="Select","Select Support Level", PRODUCT($Q11,VLOOKUP($J11,'Drop Down'!K:M,3,0))),"-") -> - | S11: Ok | T11: 0 | U11: 0
A12: =IF(B12="Complete Provider Level","Select",'Fee For Service Roll Up'!$E$4) -> Select | B12: Complete Provider Level | C12: =IFERROR(VLOOKUP(Table1[[#This Row],[Child Name]],'Provider Level'!B:C,2,0),"-") -> - | D12: =IFERROR(VLOOKUP(Table1[[#This Row],[Child Name]],'Provider Level'!B:D,3,0),"-") -> - | E12: =IFERROR(VLOOKUP(Table1[[#This Row],[Child Name]],'Provider Level'!B:E,4,0),"-") -> - | F12: =IFERROR(VLOOKUP(Table1[[#This Row],[Child Name]],'Provider Level'!B:F,5,0),"-") -> - | G12: =IFERROR(VLOOKUP(Table1[[#This Row],[Child Name]],'Provider Level'!B:H,6,0),"-") -> - | H12: =IFERROR(VLOOKUP(Table1[[#This Row],[Child Name]],'Provider Level'!B:L,11,0),"-") -> - | I12: =IFERROR(VLOOKUP(Table1[[#This Row],[Child Name]],'Provider Level'!B:N,13,0),"-") -> - | J12: =IFERROR(VLOOKUP(Table1[[#This Row],[Child Name]],'Provider Level'!B:O,14,0),"-") -> - | K12: =IFERROR(VLOOKUP(Table1[[#This Row],[Child Name]],'Provider Level'!B:P,15,0),"-") -> - | L12: =IFERROR(VLOOKUP(Table1[[#This Row],[Child Name]],'Provider Level'!B:Q,16,0),"-") -> - | M12: =IFERROR(VLOOKUP(Table1[[#This Row],[Child Name]],'Provider Level'!B:R,17,0),"-") -> - | N12: 0 | O12: =IFERROR(IF(N12>VLOOKUP(M12,'Drop Down'!$A$3:$B$10,2,0),"1","0"),"-") -> - | P12: 0 | Q12: 0 | R12: =IFERROR(IF(M12="Select","Select Support Level", PRODUCT($Q12,VLOOKUP($J12,'Drop Down'!K:M,3,0))),"-") -> - | S12: Ok | T12: 0 | U12: 0
A13: =IF(B13="Complete Provider Level","Select",'Fee For Service Roll Up'!$E$4) -> Select | B13: Complete Provider Level | C13: =IFERROR(VLOOKUP(Table1[[#This Row],[Child Name]],'Provider Level'!B:C,2,0),"-") -> - | D13: =IFERROR(VLOOKUP(Table1[[#This Row],[Child Name]],'Provider Level'!B:D,3,0),"-") -> - | E13: =IFERROR(VLOOKUP(Table1[[#This Row],[Child Name]],'Provider Level'!B:E,4,0),"-") -> - | F13: =IFERROR(VLOOKUP(Table1[[#This Row],[Child Name]],'Provider Level'!B:F,5,0),"-") -> - | G13: =IFERROR(VLOOKUP(Table1[[#This Row],[Child Name]],'Provider Level'!B:H,6,0),"-") -> - | H13: =IFERROR(VLOOKUP(Table1[[#This Row],[Child Name]],'Provider Level'!B:L,11,0),"-") -> - | I13: =IFERROR(VLOOKUP(Table1[[#This Row],[Child Name]],'Provider Level'!B:N,13,0),"-") -> - | J13: =IFERROR(VLOOKUP(Table1[[#This Row],[Child Name]],'Provider Level'!B:O,14,0),"-") -> - | K13: =IFERROR(VLOOKUP(Table1[[#This Row],[Child Name]],'Provider Level'!B:P,15,0),"-") -> - | L13: =IFERROR(VLOOKUP(Table1[[#This Row],[Child Name]],'Provider Level'!B:Q,16,0),"-") -> - | M13: =IFERROR(VLOOKUP(Table1[[#This Row],[Child Name]],'Provider Level'!B:R,17,0),"-") -> - | N13: 0 | O13: =IFERROR(IF(N13>VLOOKUP(M13,'Drop Down'!$A$3:$B$10,2,0),"1","0"),"-") -> - | P13: 0 | Q13: 0 | R13: =IFERROR(IF(M13="Select","Select Support Level", PRODUCT($Q13,VLOOKUP($J13,'Drop Down'!K:M,3,0))),"-") -> - | S13: Ok | T13: 0 | U13: 0
A14: =IF(B14="Complete Provider Level","Select",'Fee For Service Roll Up'!$E$4) -> Select | B14: Complete Provider Level | C14: =IFERROR(VLOOKUP(Table1[[#This Row],[Child Name]],'Provider Level'!B:C,2,0),"-") -> - | D14: =IFERROR(VLOOKUP(Table1[[#This Row],[Child Name]],'Provider Level'!B:D,3,0),"-") -> - | E14: =IFERROR(VLOOKUP(Table1[[#This Row],[Child Name]],'Provider Level'!B:E,4,0),"-") -> - | F14: =IFERROR(VLOOKUP(Table1[[#This Row],[Child Name]],'Provider Level'!B:F,5,0),"-") -> - | G14: =IFERROR(VLOOKUP(Table1[[#This Row],[Child Name]],'Provider Level'!B:H,6,0),"-") -> - | H14: =IFERROR(VLOOKUP(Table1[[#This Row],[Child Name]],'Provider Level'!B:L,11,0),"-") -> - | I14: =IFERROR(VLOOKUP(Table1[[#This Row],[Child Name]],'Provider Level'!B:N,13,0),"-") -> - | J14: =IFERROR(VLOOKUP(Table1[[#This Row],[Child Name]],'Provider Level'!B:O,14,0),"-") -> - | K14: =IFERROR(VLOOKUP(Table1[[#This Row],[Child Name]],'Provider Level'!B:P,15,0),"-") -> - | L14: =IFERROR(VLOOKUP(Table1[[#This Row],[Child Name]],'Provider Level'!B:Q,16,0),"-") -> - | M14: =IFERROR(VLOOKUP(Table1[[#This Row],[Child Name]],'Provider Level'!B:R,17,0),"-") -> - | N14: 0 | O14: =IFERROR(IF(N14>VLOOKUP(M14,'Drop Down'!$A$3:$B$10,2,0),"1","0"),"-") -> - | P14: 0 | Q14: 0 | R14: =IFERROR(IF(M14="Select","Select Support Level", PRODUCT($Q14,VLOOKUP($J14,'Drop Down'!K:M,3,0))),"-") -> - | S14: Ok | T14: 0 | U14: 0
A15: =IF(B15="Complete Provider Level","Select",'Fee For Service Roll Up'!$E$4) -> Select | B15: Complete Provider Level | C15: =IFERROR(VLOOKUP(Table1[[#This Row],[Child Name]],'Provider Level'!B:C,2,0),"-") -> - | D15: =IFERROR(VLOOKUP(Table1[[#This Row],[Child Name]],'Provider Level'!B:D,3,0),"-") -> - | E15: =IFERROR(VLOOKUP(Table1[[#This Row],[Child Name]],'Provider Level'!B:E,4,0),"-") -> - | F15: =IFERROR(VLOOKUP(Table1[[#This Row],[Child Name]],'Provider Level'!B:F,5,0),"-") -> - | G15: =IFERROR(VLOOKUP(Table1[[#This Row],[Child Name]],'Provider Level'!B:H,6,0),"-") -> - | H15: =IFERROR(VLOOKUP(Table1[[#This Row],[Child Name]],'Provider Level'!B:L,11,0),"-") -> - | I15: =IFERROR(VLOOKUP(Table1[[#This Row],[Child Name]],'Provider Level'!B:N,13,0),"-") -> - | J15: =IFERROR(VLOOKUP(Table1[[#This Row],[Child Name]],'Provider Level'!B:O,14,0),"-") -> - | K15: =IFERROR(VLOOKUP(Table1[[#This Row],[Child Name]],'Provider Level'!B:P,15,0),"-") -> - | L15: =IFERROR(VLOOKUP(Table1[[#This Row],[Child Name]],'Provider Level'!B:Q,16,0),"-") -> - | M15: =IFERROR(VLOOKUP(Table1[[#This Row],[Child Name]],'Provider Level'!B:R,17,0),"-") -> - | N15: 0 | O15: =IFERROR(IF(N15>VLOOKUP(M15,'Drop Down'!$A$3:$B$10,2,0),"1","0"),"-") -> - | P15: 0 | Q15: 0 | R15: =IFERROR(IF(M15="Select","Select Support Level", PRODUCT($Q15,VLOOKUP($J15,'Drop Down'!K:M,3,0))),"-") -> - | S15: Ok | T15: 0 | U15: 0
A16: =IF(B16="Complete Provider Level","Select",'Fee For Service Roll Up'!$E$4) -> Select | B16: Complete Provider Level | C16: =IFERROR(VLOOKUP(Table1[[#This Row],[Child Name]],'Provider Level'!B:C,2,0),"-") -> - | D16: =IFERROR(VLOOKUP(Table1[[#This Row],[Child Name]],'Provider Level'!B:D,3,0),"-") -> - | E16: =IFERROR(VLOOKUP(Table1[[#This Row],[Child Name]],'Provider Level'!B:E,4,0),"-") -> - | F16: =IFERROR(VLOOKUP(Table1[[#This Row],[Child Name]],'Provider Level'!B:F,5,0),"-") -> - | G16: =IFERROR(VLOOKUP(Table1[[#This Row],[Child Name]],'Provider Level'!B:H,6,0),"-") -> - | H16: =IFERROR(VLOOKUP(Table1[[#This Row],[Child Name]],'Provider Level'!B:L,11,0),"-") -> - | I16: =IFERROR(VLOOKUP(Table1[[#This Row],[Child Name]],'Provider Level'!B:N,13,0),"-") -> - | J16: =IFERROR(VLOOKUP(Table1[[#This Row],[Child Name]],'Provider Level'!B:O,14,0),"-") -> - | K16: =IFERROR(VLOOKUP(Table1[[#This Row],[Child Name]],'Provider Level'!B:P,15,0),"-") -> - | L16: =IFERROR(VLOOKUP(Table1[[#This Row],[Child Name]],'Provider Level'!B:Q,16,0),"-") -> - | M16: =IFERROR(VLOOKUP(Table1[[#This Row],[Child Name]],'Provider Level'!B:R,17,0),"-") -> - | N16: 0 | O16: =IFERROR(IF(N16>VLOOKUP(M16,'Drop Down'!$A$3:$B$10,2,0),"1","0"),"-") -> - | P16: 0 | Q16: 0 | R16: =IFERROR(IF(M16="Select","Select Support Level", PRODUCT($Q16,VLOOKUP($J16,'Drop Down'!K:M,3,0))),"-") -> - | S16: Ok | T16: 0 | U16: 0
A17: =IF(B17="Complete Provider Level","Select",'Fee For Service Roll Up'!$E$4) -> Select | B17: Complete Provider Level | C17: =IFERROR(VLOOKUP(Table1[[#This Row],[Child Name]],'Provider Level'!B:C,2,0),"-") -> - | D17: =IFERROR(VLOOKUP(Table1[[#This Row],[Child Name]],'Provider Level'!B:D,3,0),"-") -> - | E17: =IFERROR(VLOOKUP(Table1[[#This Row],[Child Name]],'Provider Level'!B:E,4,0),"-") -> - | F17: =IFERROR(VLOOKUP(Table1[[#This Row],[Child Name]],'Provider Level'!B:F,5,0),"-") -> - | G17: =IFERROR(VLOOKUP(Table1[[#This Row],[Child Name]],'Provider Level'!B:H,6,0),"-") -> - | H17: =IFERROR(VLOOKUP(Table1[[#This Row],[Child Name]],'Provider Level'!B:L,11,0),"-") -> - | I17: =IFERROR(VLOOKUP(Table1[[#This Row],[Child Name]],'Provider Level'!B:N,13,0),"-") -> - | J17: =IFERROR(VLOOKUP(Table1[[#This Row],[Child Name]],'Provider Level'!B:O,14,0),"-") -> - | K17: =IFERROR(VLOOKUP(Table1[[#This Row],[Child Name]],'Provider Level'!B:P,15,0),"-") -> - | L17: =IFERROR(VLOOKUP(Table1[[#This Row],[Child Name]],'Provider Level'!B:Q,16,0),"-") -> - | M17: =IFERROR(VLOOKUP(Table1[[#This Row],[Child Name]],'Provider Level'!B:R,17,0),"-") -> - | N17: 0 | O17: =IFERROR(IF(N17>VLOOKUP(M17,'Drop Down'!$A$3:$B$10,2,0),"1","0"),"-") -> - | P17: 0 | Q17: 0 | R17: =IFERROR(IF(M17="Select","Select Support Level", PRODUCT($Q17,VLOOKUP($J17,'Drop Down'!K:M,3,0))),"-") -> - | S17: Ok | T17: 0 | U17: 0
A18: =IF(B18="Complete Provider Level","Select",'Fee For Service Roll Up'!$E$4) -> Select | B18: Complete Provider Level | C18: =IFERROR(VLOOKUP(Table1[[#This Row],[Child Name]],'Provider Level'!B:C,2,0),"-") -> - | D18: =IFERROR(VLOOKUP(Table1[[#This Row],[Child Name]],'Provider Level'!B:D,3,0),"-") -> - | E18: =IFERROR(VLOOKUP(Table1[[#This Row],[Child Name]],'Provider Level'!B:E,4,0),"-") -> - | F18: =IFERROR(VLOOKUP(Table1[[#This Row],[Child Name]],'Provider Level'!B:F,5,0),"-") -> - | G18: =IFERROR(VLOOKUP(Table1[[#This Row],[Child Name]],'Provider Level'!B:H,6,0),"-") -> - | H18: =IFERROR(VLOOKUP(Table1[[#This Row],[Child Name]],'Provider Level'!B:L,11,0),"-") -> - | I18: =IFERROR(VLOOKUP(Table1[[#This Row],[Child Name]],'Provider Level'!B:N,13,0),"-") -> - | J18: =IFERROR(VLOOKUP(Table1[[#This Row],[Child Name]],'Provider Level'!B:O,14,0),"-") -> - | K18: =IFERROR(VLOOKUP(Table1[[#This Row],[Child Name]],'Provider Level'!B:P,15,0),"-") -> - | L18: =IFERROR(VLOOKUP(Table1[[#This Row],[Child Name]],'Provider Level'!B:Q,16,0),"-") -> - | M18: =IFERROR(VLOOKUP(Table1[[#This Row],[Child Name]],'Provider Level'!B:R,17,0),"-") -> - | N18: 0 | O18: =IFERROR(IF(N18>VLOOKUP(M18,'Drop Down'!$A$3:$B$10,2,0),"1","0"),"-") -> - | P18: 0 | Q18: 0 | R18: =IFERROR(IF(M18="Select","Select Support Level", PRODUCT($Q18,VLOOKUP($J18,'Drop Down'!K:M,3,0))),"-") -> - | S18: Ok | T18: 0 | U18: 0
A19: =IF(B19="Complete Provider Level","Select",'Fee For Service Roll Up'!$E$4) -> Select | B19: Complete Provider Level | C19: =IFERROR(VLOOKUP(Table1[[#This Row],[Child Name]],'Provider Level'!B:C,2,0),"-") -> - | D19: =IFERROR(VLOOKUP(Table1[[#This Row],[Child Name]],'Provider Level'!B:D,3,0),"-") -> - | E19: =IFERROR(VLOOKUP(Table1[[#This Row],[Child Name]],'Provider Level'!B:E,4,0),"-") -> - | F19: =IFERROR(VLOOKUP(Table1[[#This Row],[Child Name]],'Provider Level'!B:F,5,0),"-") -> - | G19: =IFERROR(VLOOKUP(Table1[[#This Row],[Child Name]],'Provider Level'!B:H,6,0),"-") -> - | H19: =IFERROR(VLOOKUP(Table1[[#This Row],[Child Name]],'Provider Level'!B:L,11,0),"-") -> - | I19: =IFERROR(VLOOKUP(Table1[[#This Row],[Child Name]],'Provider Level'!B:N,13,0),"-") -> - | J19: =IFERROR(VLOOKUP(Table1[[#This Row],[Child Name]],'Provider Level'!B:O,14,0),"-") -> - | K19: =IFERROR(VLOOKUP(Table1[[#This Row],[Child Name]],'Provider Level'!B:P,15,0),"-") -> - | L19: =IFERROR(VLOOKUP(Table1[[#This Row],[Child Name]],'Provider Level'!B:Q,16,0),"-") -> - | M19: =IFERROR(VLOOKUP(Table1[[#This Row],[Child Name]],'Provider Level'!B:R,17,0),"-") -> - | N19: 0 | O19: =IFERROR(IF(N19>VLOOKUP(M19,'Drop Down'!$A$3:$B$10,2,0),"1","0"),"-") -> - | P19: 0 | Q19: 0 | R19: =IFERROR(IF(M19="Select","Select Support Level", PRODUCT($Q19,VLOOKUP($J19,'Drop Down'!K:M,3,0))),"-") -> - | S19: Ok | T19: 0 | U19: 0
A20: =IF(B20="Complete Provider Level","Select",'Fee For Service Roll Up'!$E$4) -> Select | B20: Complete Provider Level | C20: =IFERROR(VLOOKUP(Table1[[#This Row],[Child Name]],'Provider Level'!B:C,2,0),"-") -> - | D20: =IFERROR(VLOOKUP(Table1[[#This Row],[Child Name]],'Provider Level'!B:D,3,0),"-") -> - | E20: =IFERROR(VLOOKUP(Table1[[#This Row],[Child Name]],'Provider Level'!B:E,4,0),"-") -> - | F20: =IFERROR(VLOOKUP(Table1[[#This Row],[Child Name]],'Provider Level'!B:F,5,0),"-") -> - | G20: =IFERROR(VLOOKUP(Table1[[#This Row],[Child Name]],'Provider Level'!B:H,6,0),"-") -> - | H20: =IFERROR(VLOOKUP(Table1[[#This Row],[Child Name]],'Provider Level'!B:L,11,0),"-") -> - | I20: =IFERROR(VLOOKUP(Table1[[#This Row],[Child Name]],'Provider Level'!B:N,13,0),"-") -> - | J20: =IFERROR(VLOOKUP(Table1[[#This Row],[Child Name]],'Provider Level'!B:O,14,0),"-") -> - | K20: =IFERROR(VLOOKUP(Table1[[#This Row],[Child Name]],'Provider Level'!B:P,15,0),"-") -> - | L20: =IFERROR(VLOOKUP(Table1[[#This Row],[Child Name]],'Provider Level'!B:Q,16,0),"-") -> - | M20: =IFERROR(VLOOKUP(Table1[[#This Row],[Child Name]],'Provider Level'!B:R,17,0),"-") -> - | N20: 0 | O20: =IFERROR(IF(N20>VLOOKUP(M20,'Drop Down'!$A$3:$B$10,2,0),"1","0"),"-") -> - | P20: 0 | Q20: 0 | R20: =IFERROR(IF(M20="Select","Select Support Level", PRODUCT($Q20,VLOOKUP($J20,'Drop Down'!K:M,3,0))),"-") -> - | S20: Ok | T20: 0 | U20: 0
A21: =IF(B21="Complete Provider Level","Select",'Fee For Service Roll Up'!$E$4) -> Select | B21: Complete Provider Level | C21: =IFERROR(VLOOKUP(Table1[[#This Row],[Child Name]],'Provider Level'!B:C,2,0),"-") -> - | D21: =IFERROR(VLOOKUP(Table1[[#This Row],[Child Name]],'Provider Level'!B:D,3,0),"-") -> - | E21: =IFERROR(VLOOKUP(Table1[[#This Row],[Child Name]],'Provider Level'!B:E,4,0),"-") -> - | F21: =IFERROR(VLOOKUP(Table1[[#This Row],[Child Name]],'Provider Level'!B:F,5,0),"-") -> - | G21: =IFERROR(VLOOKUP(Table1[[#This Row],[Child Name]],'Provider Level'!B:H,6,0),"-") -> - | H21: =IFERROR(VLOOKUP(Table1[[#This Row],[Child Name]],'Provider Level'!B:L,11,0),"-") -> - | I21: =IFERROR(VLOOKUP(Table1[[#This Row],[Child Name]],'Provider Level'!B:N,13,0),"-") -> - | J21: =IFERROR(VLOOKUP(Table1[[#This Row],[Child Name]],'Provider Level'!B:O,14,0),"-") -> - | K21: =IFERROR(VLOOKUP(Table1[[#This Row],[Child Name]],'Provider Level'!B:P,15,0),"-") -> - | L21: =IFERROR(VLOOKUP(Table1[[#This Row],[Child Name]],'Provider Level'!B:Q,16,0),"-") -> - | M21: =IFERROR(VLOOKUP(Table1[[#This Row],[Child Name]],'Provider Level'!B:R,17,0),"-") -> - | N21: 0 | O21: =IFERROR(IF(N21>VLOOKUP(M21,'Drop Down'!$A$3:$B$10,2,0),"1","0"),"-") -> - | P21: 0 | Q21: 0 | R21: =IFERROR(IF(M21="Select","Select Support Level", PRODUCT($Q21,VLOOKUP($J21,'Drop Down'!K:M,3,0))),"-") -> - | S21: Ok | T21: 0 | U21: 0
A22: =IF(B22="Complete Provider Level","Select",'Fee For Service Roll Up'!$E$4) -> Select | B22: Complete Provider Level | C22: =IFERROR(VLOOKUP(Table1[[#This Row],[Child Name]],'Provider Level'!B:C,2,0),"-") -> - | D22: =IFERROR(VLOOKUP(Table1[[#This Row],[Child Name]],'Provider Level'!B:D,3,0),"-") -> - | E22: =IFERROR(VLOOKUP(Table1[[#This Row],[Child Name]],'Provider Level'!B:E,4,0),"-") -> - | F22: =IFERROR(VLOOKUP(Table1[[#This Row],[Child Name]],'Provider Level'!B:F,5,0),"-") -> - | G22: =IFERROR(VLOOKUP(Table1[[#This Row],[Child Name]],'Provider Level'!B:H,6,0),"-") -> - | H22: =IFERROR(VLOOKUP(Table1[[#This Row],[Child Name]],'Provider Level'!B:L,11,0),"-") -> - | I22: =IFERROR(VLOOKUP(Table1[[#This Row],[Child Name]],'Provider Level'!B:N,13,0),"-") -> - | J22: =IFERROR(VLOOKUP(Table1[[#This Row],[Child Name]],'Provider Level'!B:O,14,0),"-") -> - | K22: =IFERROR(VLOOKUP(Table1[[#This Row],[Child Name]],'Provider Level'!B:P,15,0),"-") -> - | L22: =IFERROR(VLOOKUP(Table1[[#This Row],[Child Name]],'Provider Level'!B:Q,16,0),"-") -> - | M22: =IFERROR(VLOOKUP(Table1[[#This Row],[Child Name]],'Provider Level'!B:R,17,0),"-") -> - | N22: 0 | O22: =IFERROR(IF(N22>VLOOKUP(M22,'Drop Down'!$A$3:$B$10,2,0),"1","0"),"-") -> - | P22: 0 | Q22: 0 | R22: =IFERROR(IF(M22="Select","Select Support Level", PRODUCT($Q22,VLOOKUP($J22,'Drop Down'!K:M,3,0))),"-") -> - | S22: Ok | T22: 0 | U22: 0
A23: =IF(B23="Complete Provider Level","Select",'Fee For Service Roll Up'!$E$4) -> Select | B23: Complete Provider Level | C23: =IFERROR(VLOOKUP(Table1[[#This Row],[Child Name]],'Provider Level'!B:C,2,0),"-") -> - | D23: =IFERROR(VLOOKUP(Table1[[#This Row],[Child Name]],'Provider Level'!B:D,3,0),"-") -> - | E23: =IFERROR(VLOOKUP(Table1[[#This Row],[Child Name]],'Provider Level'!B:E,4,0),"-") -> - | F23: =IFERROR(VLOOKUP(Table1[[#This Row],[Child Name]],'Provider Level'!B:F,5,0),"-") -> - | G23: =IFERROR(VLOOKUP(Table1[[#This Row],[Child Name]],'Provider Level'!B:H,6,0),"-") -> - | H23: =IFERROR(VLOOKUP(Table1[[#This Row],[Child Name]],'Provider Level'!B:L,11,0),"-") -> - | I23: =IFERROR(VLOOKUP(Table1[[#This Row],[Child Name]],'Provider Level'!B:N,13,0),"-") -> - | J23: =IFERROR(VLOOKUP(Table1[[#This Row],[Child Name]],'Provider Level'!B:O,14,0),"-") -> - | K23: =IFERROR(VLOOKUP(Table1[[#This Row],[Child Name]],'Provider Level'!B:P,15,0),"-") -> - | L23: =IFERROR(VLOOKUP(Table1[[#This Row],[Child Name]],'Provider Level'!B:Q,16,0),"-") -> - | M23: =IFERROR(VLOOKUP(Table1[[#This Row],[Child Name]],'Provider Level'!B:R,17,0),"-") -> - | N23: 0 | O23: =IFERROR(IF(N23>VLOOKUP(M23,'Drop Down'!$A$3:$B$10,2,0),"1","0"),"-") -> - | P23: 0 | Q23: 0 | R23: =IFERROR(IF(M23="Select","Select Support Level", PRODUCT($Q23,VLOOKUP($J23,'Drop Down'!K:M,3,0))),"-") -> - | S23: Ok | T23: 0 | U23: 0
A24: =IF(B24="Complete Provider Level","Select",'Fee For Service Roll Up'!$E$4) -> Select | B24: Complete Provider Level | C24: =IFERROR(VLOOKUP(Table1[[#This Row],[Child Name]],'Provider Level'!B:C,2,0),"-") -> - | D24: =IFERROR(VLOOKUP(Table1[[#This Row],[Child Name]],'Provider Level'!B:D,3,0),"-") -> - | E24: =IFERROR(VLOOKUP(Table1[[#This Row],[Child Name]],'Provider Level'!B:E,4,0),"-") -> - | F24: =IFERROR(VLOOKUP(Table1[[#This Row],[Child Name]],'Provider Level'!B:F,5,0),"-") -> - | G24: =IFERROR(VLOOKUP(Table1[[#This Row],[Child Name]],'Provider Level'!B:H,6,0),"-") -> - | H24: =IFERROR(VLOOKUP(Table1[[#This Row],[Child Name]],'Provider Level'!B:L,11,0),"-") -> - | I24: =IFERROR(VLOOKUP(Table1[[#This Row],[Child Name]],'Provider Level'!B:N,13,0),"-") -> - | J24: =IFERROR(VLOOKUP(Table1[[#This Row],[Child Name]],'Provider Level'!B:O,14,0),"-") -> - | K24: =IFERROR(VLOOKUP(Table1[[#This Row],[Child Name]],'Provider Level'!B:P,15,0),"-") -> - | L24: =IFERROR(VLOOKUP(Table1[[#This Row],[Child Name]],'Provider Level'!B:Q,16,0),"-") -> - | M24: =IFERROR(VLOOKUP(Table1[[#This Row],[Child Name]],'Provider Level'!B:R,17,0),"-") -> - | N24: 0 | O24: =IFERROR(IF(N24>VLOOKUP(M24,'Drop Down'!$A$3:$B$10,2,0),"1","0"),"-") -> - | P24: 0 | Q24: 0 | R24: =IFERROR(IF(M24="Select","Select Support Level", PRODUCT($Q24,VLOOKUP($J24,'Drop Down'!K:M,3,0))),"-") -> - | S24: Ok | T24: 0 | U24: 0
A25: =IF(B25="Complete Provider Level","Select",'Fee For Service Roll Up'!$E$4) -> Select | B25: Complete Provider Level | C25: =IFERROR(VLOOKUP(Table1[[#This Row],[Child Name]],'Provider Level'!B:C,2,0),"-") -> - | D25: =IFERROR(VLOOKUP(Table1[[#This Row],[Child Name]],'Provider Level'!B:D,3,0),"-") -> - | E25: =IFERROR(VLOOKUP(Table1[[#This Row],[Child Name]],'Provider Level'!B:E,4,0),"-") -> - | F25: =IFERROR(VLOOKUP(Table1[[#This Row],[Child Name]],'Provider Level'!B:F,5,0),"-") -> - | G25: =IFERROR(VLOOKUP(Table1[[#This Row],[Child Name]],'Provider Level'!B:H,6,0),"-") -> - | H25: =IFERROR(VLOOKUP(Table1[[#This Row],[Child Name]],'Provider Level'!B:L,11,0),"-") -> - | I25: =IFERROR(VLOOKUP(Table1[[#This Row],[Child Name]],'Provider Level'!B:N,13,0),"-") -> - | J25: =IFERROR(VLOOKUP(Table1[[#This Row],[Child Name]],'Provider Level'!B:O,14,0),"-") -> - | K25: =IFERROR(VLOOKUP(Table1[[#This Row],[Child Name]],'Provider Level'!B:P,15,0),"-") -> - | L25: =IFERROR(VLOOKUP(Table1[[#This Row],[Child Name]],'Provider Level'!B:Q,16,0),"-") -> - | M25: =IFERROR(VLOOKUP(Table1[[#This Row],[Child Name]],'Provider Level'!B:R,17,0),"-") -> - | N25: 0 | O25: =IFERROR(IF(N25>VLOOKUP(M25,'Drop Down'!$A$3:$B$10,2,0),"1","0"),"-") -> - | P25: 0 | Q25: 0 | R25: =IFERROR(IF(M25="Select","Select Support Level", PRODUCT($Q25,VLOOKUP($J25,'Drop Down'!K:M,3,0))),"-") -> - | S25: Ok | T25: 0 | U25: 0
A26: =IF(B26="Complete Provider Level","Select",'Fee For Service Roll Up'!$E$4) -> Select | B26: Complete Provider Level | C26: =IFERROR(VLOOKUP(Table1[[#This Row],[Child Name]],'Provider Level'!B:C,2,0),"-") -> - | D26: =IFERROR(VLOOKUP(Table1[[#This Row],[Child Name]],'Provider Level'!B:D,3,0),"-") -> - | E26: =IFERROR(VLOOKUP(Table1[[#This Row],[Child Name]],'Provider Level'!B:E,4,0),"-") -> - | F26: =IFERROR(VLOOKUP(Table1[[#This Row],[Child Name]],'Provider Level'!B:F,5,0),"-") -> - | G26: =IFERROR(VLOOKUP(Table1[[#This Row],[Child Name]],'Provider Level'!B:H,6,0),"-") -> - | H26: =IFERROR(VLOOKUP(Table1[[#This Row],[Child Name]],'Provider Level'!B:L,11,0),"-") -> - | I26: =IFERROR(VLOOKUP(Table1[[#This Row],[Child Name]],'Provider Level'!B:N,13,0),"-") -> - | J26: =IFERROR(VLOOKUP(Table1[[#This Row],[Child Name]],'Provider Level'!B:O,14,0),"-") -> - | K26: =IFERROR(VLOOKUP(Table1[[#This Row],[Child Name]],'Provider Level'!B:P,15,0),"-") -> - | L26: =IFERROR(VLOOKUP(Table1[[#This Row],[Child Name]],'Provider Level'!B:Q,16,0),"-") -> - | M26: =IFERROR(VLOOKUP(Table1[[#This Row],[Child Name]],'Provider Level'!B:R,17,0),"-") -> - | N26: 0 | O26: =IFERROR(IF(N26>VLOOKUP(M26,'Drop Down'!$A$3:$B$10,2,0),"1","0"),"-") -> - | P26: 0 | Q26: 0 | R26: =IFERROR(IF(M26="Select","Select Support Level", PRODUCT($Q26,VLOOKUP($J26,'Drop Down'!K:M,3,0))),"-") -> - | S26: Ok | T26: 0 | U26: 0
A27: =IF(B27="Complete Provider Level","Select",'Fee For Service Roll Up'!$E$4) -> Select | B27: Complete Provider Level | C27: =IFERROR(VLOOKUP(Table1[[#This Row],[Child Name]],'Provider Level'!B:C,2,0),"-") -> - | D27: =IFERROR(VLOOKUP(Table1[[#This Row],[Child Name]],'Provider Level'!B:D,3,0),"-") -> - | E27: =IFERROR(VLOOKUP(Table1[[#This Row],[Child Name]],'Provider Level'!B:E,4,0),"-") -> - | F27: =IFERROR(VLOOKUP(Table1[[#This Row],[Child Name]],'Provider Level'!B:F,5,0),"-") -> - | G27: =IFERROR(VLOOKUP(Table1[[#This Row],[Child Name]],'Provider Level'!B:H,6,0),"-") -> - | H27: =IFERROR(VLOOKUP(Table1[[#This Row],[Child Name]],'Provider Level'!B:L,11,0),"-") -> - | I27: =IFERROR(VLOOKUP(Table1[[#This Row],[Child Name]],'Provider Level'!B:N,13,0),"-") -> - | J27: =IFERROR(VLOOKUP(Table1[[#This Row],[Child Name]],'Provider Level'!B:O,14,0),"-") -> - | K27: =IFERROR(VLOOKUP(Table1[[#This Row],[Child Name]],'Provider Level'!B:P,15,0),"-") -> - | L27: =IFERROR(VLOOKUP(Table1[[#This Row],[Child Name]],'Provider Level'!B:Q,16,0),"-") -> - | M27: =IFERROR(VLOOKUP(Table1[[#This Row],[Child Name]],'Provider Level'!B:R,17,0),"-") -> - | N27: 0 | O27: =IFERROR(IF(N27>VLOOKUP(M27,'Drop Down'!$A$3:$B$10,2,0),"1","0"),"-") -> - | P27: 0 | Q27: 0 | R27: =IFERROR(IF(M27="Select","Select Support Level", PRODUCT($Q27,VLOOKUP($J27,'Drop Down'!K:M,3,0))),"-") -> - | S27: Ok | T27: 0 | U27: 0
A28: =IF(B28="Complete Provider Level","Select",'Fee For Service Roll Up'!$E$4) -> Select | B28: Complete Provider Level | C28: =IFERROR(VLOOKUP(Table1[[#This Row],[Child Name]],'Provider Level'!B:C,2,0),"-") -> - | D28: =IFERROR(VLOOKUP(Table1[[#This Row],[Child Name]],'Provider Level'!B:D,3,0),"-") -> - | E28: =IFERROR(VLOOKUP(Table1[[#This Row],[Child Name]],'Provider Level'!B:E,4,0),"-") -> - | F28: =IFERROR(VLOOKUP(Table1[[#This Row],[Child Name]],'Provider Level'!B:F,5,0),"-") -> - | G28: =IFERROR(VLOOKUP(Table1[[#This Row],[Child Name]],'Provider Level'!B:H,6,0),"-") -> - | H28: =IFERROR(VLOOKUP(Table1[[#This Row],[Child Name]],'Provider Level'!B:L,11,0),"-") -> - | I28: =IFERROR(VLOOKUP(Table1[[#This Row],[Child Name]],'Provider Level'!B:N,13,0),"-") -> - | J28: =IFERROR(VLOOKUP(Table1[[#This Row],[Child Name]],'Provider Level'!B:O,14,0),"-") -> - | K28: =IFERROR(VLOOKUP(Table1[[#This Row],[Child Name]],'Provider Level'!B:P,15,0),"-") -> - | L28: =IFERROR(VLOOKUP(Table1[[#This Row],[Child Name]],'Provider Level'!B:Q,16,0),"-") -> - | M28: =IFERROR(VLOOKUP(Table1[[#This Row],[Child Name]],'Provider Level'!B:R,17,0),"-") -> - | N28: 0 | O28: =IFERROR(IF(N28>VLOOKUP(M28,'Drop Down'!$A$3:$B$10,2,0),"1","0"),"-") -> - | P28: 0 | Q28: 0 | R28: =IFERROR(IF(M28="Select","Select Support Level", PRODUCT($Q28,VLOOKUP($J28,'Drop Down'!K:M,3,0))),"-") -> - | S28: Ok | T28: 0 | U28: 0
A29: =IF(B29="Complete Provider Level","Select",'Fee For Service Roll Up'!$E$4) -> Select | B29: Complete Provider Level | C29: =IFERROR(VLOOKUP(Table1[[#This Row],[Child Name]],'Provider Level'!B:C,2,0),"-") -> - | D29: =IFERROR(VLOOKUP(Table1[[#This Row],[Child Name]],'Provider Level'!B:D,3,0),"-") -> - | E29: =IFERROR(VLOOKUP(Table1[[#This Row],[Child Name]],'Provider Level'!B:E,4,0),"-") -> - | F29: =IFERROR(VLOOKUP(Table1[[#This Row],[Child Name]],'Provider Level'!B:F,5,0),"-") -> - | G29: =IFERROR(VLOOKUP(Table1[[#This Row],[Child Name]],'Provider Level'!B:H,6,0),"-") -> - | H29: =IFERROR(VLOOKUP(Table1[[#This Row],[Child Name]],'Provider Level'!B:L,11,0),"-") -> - | I29: =IFERROR(VLOOKUP(Table1[[#This Row],[Child Name]],'Provider Level'!B:N,13,0),"-") -> - | J29: =IFERROR(VLOOKUP(Table1[[#This Row],[Child Name]],'Provider Level'!B:O,14,0),"-") -> - | K29: =IFERROR(VLOOKUP(Table1[[#This Row],[Child Name]],'Provider Level'!B:P,15,0),"-") -> - | L29: =IFERROR(VLOOKUP(Table1[[#This Row],[Child Name]],'Provider Level'!B:Q,16,0),"-") -> - | M29: =IFERROR(VLOOKUP(Table1[[#This Row],[Child Name]],'Provider Level'!B:R,17,0),"-") -> - | N29: 0 | O29: =IFERROR(IF(N29>VLOOKUP(M29,'Drop Down'!$A$3:$B$10,2,0),"1","0"),"-") -> - | P29: 0 | Q29: 0 | R29: =IFERROR(IF(M29="Select","Select Support Level", PRODUCT($Q29,VLOOKUP($J29,'Drop Down'!K:M,3,0))),"-") -> - | S29: Ok | T29: 0 | U29: 0
A30: =IF(B30="Complete Provider Level","Select",'Fee For Service Roll Up'!$E$4) -> Select | B30: Complete Provider Level | C30: =IFERROR(VLOOKUP(Table1[[#This Row],[Child Name]],'Provider Level'!B:C,2,0),"-") -> - | D30: =IFERROR(VLOOKUP(Table1[[#This Row],[Child Name]],'Provider Level'!B:D,3,0),"-") -> - | E30: =IFERROR(VLOOKUP(Table1[[#This Row],[Child Name]],'Provider Level'!B:E,4,0),"-") -> - | F30: =IFERROR(VLOOKUP(Table1[[#This Row],[Child Name]],'Provider Level'!B:F,5,0),"-") -> - | G30: =IFERROR(VLOOKUP(Table1[[#This Row],[Child Name]],'Provider Level'!B:H,6,0),"-") -> - | H30: =IFERROR(VLOOKUP(Table1[[#This Row],[Child Name]],'Provider Level'!B:L,11,0),"-") -> - | I30: =IFERROR(VLOOKUP(Table1[[#This Row],[Child Name]],'Provider Level'!B:N,13,0),"-") -> - | J30: =IFERROR(VLOOKUP(Table1[[#This Row],[Child Name]],'Provider Level'!B:O,14,0),"-") -> - | K30: =IFERROR(VLOOKUP(Table1[[#This Row],[Child Name]],'Provider Level'!B:P,15,0),"-") -> - | L30: =IFERROR(VLOOKUP(Table1[[#This Row],[Child Name]],'Provider Level'!B:Q,16,0),"-") -> - | M30: =IFERROR(VLOOKUP(Table1[[#This Row],[Child Name]],'Provider Level'!B:R,17,0),"-") -> - | N30: 0 | O30: =IFERROR(IF(N30>VLOOKUP(M30,'Drop Down'!$A$3:$B$10,2,0),"1","0"),"-") -> - | P30: 0 | Q30: 0 | R30: =IFERROR(IF(M30="Select","Select Support Level", PRODUCT($Q30,VLOOKUP($J30,'Drop Down'!K:M,3,0))),"-") -> - | S30: Ok | T30: 0 | U30: 0
A31: =IF(B31="Complete Provider Level","Select",'Fee For Service Roll Up'!$E$4) -> Select | B31: Complete Provider Level | C31: =IFERROR(VLOOKUP(Table1[[#This Row],[Child Name]],'Provider Level'!B:C,2,0),"-") -> - | D31: =IFERROR(VLOOKUP(Table1[[#This Row],[Child Name]],'Provider Level'!B:D,3,0),"-") -> - | E31: =IFERROR(VLOOKUP(Table1[[#This Row],[Child Name]],'Provider Level'!B:E,4,0),"-") -> - | F31: =IFERROR(VLOOKUP(Table1[[#This Row],[Child Name]],'Provider Level'!B:F,5,0),"-") -> - | G31: =IFERROR(VLOOKUP(Table1[[#This Row],[Child Name]],'Provider Level'!B:H,6,0),"-") -> - | H31: =IFERROR(VLOOKUP(Table1[[#This Row],[Child Name]],'Provider Level'!B:L,11,0),"-") -> - | I31: =IFERROR(VLOOKUP(Table1[[#This Row],[Child Name]],'Provider Level'!B:N,13,0),"-") -> - | J31: =IFERROR(VLOOKUP(Table1[[#This Row],[Child Name]],'Provider Level'!B:O,14,0),"-") -> - | K31: =IFERROR(VLOOKUP(Table1[[#This Row],[Child Name]],'Provider Level'!B:P,15,0),"-") -> - | L31: =IFERROR(VLOOKUP(Table1[[#This Row],[Child Name]],'Provider Level'!B:Q,16,0),"-") -> - | M31: =IFERROR(VLOOKUP(Table1[[#This Row],[Child Name]],'Provider Level'!B:R,17,0),"-") -> - | N31: 0 | O31: =IFERROR(IF(N31>VLOOKUP(M31,'Drop Down'!$A$3:$B$10,2,0),"1","0"),"-") -> - | P31: 0 | Q31: 0 | R31: =IFERROR(IF(M31="Select","Select Support Level", PRODUCT($Q31,VLOOKUP($J31,'Drop Down'!K:M,3,0))),"-") -> - | S31: Ok | T31: 0 | U31: 0
A32: =IF(B32="Complete Provider Level","Select",'Fee For Service Roll Up'!$E$4) -> Select | B32: Complete Provider Level | C32: =IFERROR(VLOOKUP(Table1[[#This Row],[Child Name]],'Provider Level'!B:C,2,0),"-") -> - | D32: =IFERROR(VLOOKUP(Table1[[#This Row],[Child Name]],'Provider Level'!B:D,3,0),"-") -> - | E32: =IFERROR(VLOOKUP(Table1[[#This Row],[Child Name]],'Provider Level'!B:E,4,0),"-") -> - | F32: =IFERROR(VLOOKUP(Table1[[#This Row],[Child Name]],'Provider Level'!B:F,5,0),"-") -> - | G32: =IFERROR(VLOOKUP(Table1[[#This Row],[Child Name]],'Provider Level'!B:H,6,0),"-") -> - | H32: =IFERROR(VLOOKUP(Table1[[#This Row],[Child Name]],'Provider Level'!B:L,11,0),"-") -> - | I32: =IFERROR(VLOOKUP(Table1[[#This Row],[Child Name]],'Provider Level'!B:N,13,0),"-") -> - | J32: =IFERROR(VLOOKUP(Table1[[#This Row],[Child Name]],'Provider Level'!B:O,14,0),"-") -> - | K32: =IFERROR(VLOOKUP(Table1[[#This Row],[Child Name]],'Provider Level'!B:P,15,0),"-") -> - | L32: =IFERROR(VLOOKUP(Table1[[#This Row],[Child Name]],'Provider Level'!B:Q,16,0),"-") -> - | M32: =IFERROR(VLOOKUP(Table1[[#This Row],[Child Name]],'Provider Level'!B:R,17,0),"-") -> - | N32: 0 | O32: =IFERROR(IF(N32>VLOOKUP(M32,'Drop Down'!$A$3:$B$10,2,0),"1","0"),"-") -> - | P32: 0 | Q32: 0 | R32: =IFERROR(IF(M32="Select","Select Support Level", PRODUCT($Q32,VLOOKUP($J32,'Drop Down'!K:M,3,0))),"-") -> - | S32: Ok | T32: 0 | U32: 0
A33: =IF(B33="Complete Provider Level","Select",'Fee For Service Roll Up'!$E$4) -> Select | B33: Complete Provider Level | C33: =IFERROR(VLOOKUP(Table1[[#This Row],[Child Name]],'Provider Level'!B:C,2,0),"-") -> - | D33: =IFERROR(VLOOKUP(Table1[[#This Row],[Child Name]],'Provider Level'!B:D,3,0),"-") -> - | E33: =IFERROR(VLOOKUP(Table1[[#This Row],[Child Name]],'Provider Level'!B:E,4,0),"-") -> - | F33: =IFERROR(VLOOKUP(Table1[[#This Row],[Child Name]],'Provider Level'!B:F,5,0),"-") -> - | G33: =IFERROR(VLOOKUP(Table1[[#This Row],[Child Name]],'Provider Level'!B:H,6,0),"-") -> - | H33: =IFERROR(VLOOKUP(Table1[[#This Row],[Child Name]],'Provider Level'!B:L,11,0),"-") -> - | I33: =IFERROR(VLOOKUP(Table1[[#This Row],[Child Name]],'Provider Level'!B:N,13,0),"-") -> - | J33: =IFERROR(VLOOKUP(Table1[[#This Row],[Child Name]],'Provider Level'!B:O,14,0),"-") -> - | K33: =IFERROR(VLOOKUP(Table1[[#This Row],[Child Name]],'Provider Level'!B:P,15,0),"-") -> - | L33: =IFERROR(VLOOKUP(Table1[[#This Row],[Child Name]],'Provider Level'!B:Q,16,0),"-") -> - | M33: =IFERROR(VLOOKUP(Table1[[#This Row],[Child Name]],'Provider Level'!B:R,17,0),"-") -> - | N33: 0 | O33: =IFERROR(IF(N33>VLOOKUP(M33,'Drop Down'!$A$3:$B$10,2,0),"1","0"),"-") -> - | P33: 0 | Q33: 0 | R33: =IFERROR(IF(M33="Select","Select Support Level", PRODUCT($Q33,VLOOKUP($J33,'Drop Down'!K:M,3,0))),"-") -> - | S33: Ok | T33: 0 | U33: 0
A34: =IF(B34="Complete Provider Level","Select",'Fee For Service Roll Up'!$E$4) -> Select | B34: Complete Provider Level | C34: =IFERROR(VLOOKUP(Table1[[#This Row],[Child Name]],'Provider Level'!B:C,2,0),"-") -> - | D34: =IFERROR(VLOOKUP(Table1[[#This Row],[Child Name]],'Provider Level'!B:D,3,0),"-") -> - | E34: =IFERROR(VLOOKUP(Table1[[#This Row],[Child Name]],'Provider Level'!B:E,4,0),"-") -> - | F34: =IFERROR(VLOOKUP(Table1[[#This Row],[Child Name]],'Provider Level'!B:F,5,0),"-") -> - | G34: =IFERROR(VLOOKUP(Table1[[#This Row],[Child Name]],'Provider Level'!B:H,6,0),"-") -> - | H34: =IFERROR(VLOOKUP(Table1[[#This Row],[Child Name]],'Provider Level'!B:L,11,0),"-") -> - | I34: =IFERROR(VLOOKUP(Table1[[#This Row],[Child Name]],'Provider Level'!B:N,13,0),"-") -> - | J34: =IFERROR(VLOOKUP(Table1[[#This Row],[Child Name]],'Provider Level'!B:O,14,0),"-") -> - | K34: =IFERROR(VLOOKUP(Table1[[#This Row],[Child Name]],'Provider Level'!B:P,15,0),"-") -> - | L34: =IFERROR(VLOOKUP(Table1[[#This Row],[Child Name]],'Provider Level'!B:Q,16,0),"-") -> - | M34: =IFERROR(VLOOKUP(Table1[[#This Row],[Child Name]],'Provider Level'!B:R,17,0),"-") -> - | N34: 0 | O34: =IFERROR(IF(N34>VLOOKUP(M34,'Drop Down'!$A$3:$B$10,2,0),"1","0"),"-") -> - | P34: 0 | Q34: 0 | R34: =IFERROR(IF(M34="Select","Select Support Level", PRODUCT($Q34,VLOOKUP($J34,'Drop Down'!K:M,3,0))),"-") -> - | S34: Ok | T34: 0 | U34: 0
A35: =IF(B35="Complete Provider Level","Select",'Fee For Service Roll Up'!$E$4) -> Select | B35: Complete Provider Level | C35: =IFERROR(VLOOKUP(Table1[[#This Row],[Child Name]],'Provider Level'!B:C,2,0),"-") -> - | D35: =IFERROR(VLOOKUP(Table1[[#This Row],[Child Name]],'Provider Level'!B:D,3,0),"-") -> - | E35: =IFERROR(VLOOKUP(Table1[[#This Row],[Child Name]],'Provider Level'!B:E,4,0),"-") -> - | F35: =IFERROR(VLOOKUP(Table1[[#This Row],[Child Name]],'Provider Level'!B:F,5,0),"-") -> - | G35: =IFERROR(VLOOKUP(Table1[[#This Row],[Child Name]],'Provider Level'!B:H,6,0),"-") -> - | H35: =IFERROR(VLOOKUP(Table1[[#This Row],[Child Name]],'Provider Level'!B:L,11,0),"-") -> - | I35: =IFERROR(VLOOKUP(Table1[[#This Row],[Child Name]],'Provider Level'!B:N,13,0),"-") -> - | J35: =IFERROR(VLOOKUP(Table1[[#This Row],[Child Name]],'Provider Level'!B:O,14,0),"-") -> - | K35: =IFERROR(VLOOKUP(Table1[[#This Row],[Child Name]],'Provider Level'!B:P,15,0),"-") -> - | L35: =IFERROR(VLOOKUP(Table1[[#This Row],[Child Name]],'Provider Level'!B:Q,16,0),"-") -> - | M35: =IFERROR(VLOOKUP(Table1[[#This Row],[Child Name]],'Provider Level'!B:R,17,0),"-") -> - | N35: 0 | O35: =IFERROR(IF(N35>VLOOKUP(M35,'Drop Down'!$A$3:$B$10,2,0),"1","0"),"-") -> - | P35: 0 | Q35: 0 | R35: =IFERROR(IF(M35="Select","Select Support Level", PRODUCT($Q35,VLOOKUP($J35,'Drop Down'!K:M,3,0))),"-") -> - | S35: Ok | T35: 0 | U35: 0
A36: =IF(B36="Complete Provider Level","Select",'Fee For Service Roll Up'!$E$4) -> Select | B36: Complete Provider Level | C36: =IFERROR(VLOOKUP(Table1[[#This Row],[Child Name]],'Provider Level'!B:C,2,0),"-") -> - | D36: =IFERROR(VLOOKUP(Table1[[#This Row],[Child Name]],'Provider Level'!B:D,3,0),"-") -> - | E36: =IFERROR(VLOOKUP(Table1[[#This Row],[Child Name]],'Provider Level'!B:E,4,0),"-") -> - | F36: =IFERROR(VLOOKUP(Table1[[#This Row],[Child Name]],'Provider Level'!B:F,5,0),"-") -> - | G36: =IFERROR(VLOOKUP(Table1[[#This Row],[Child Name]],'Provider Level'!B:H,6,0),"-") -> - | H36: =IFERROR(VLOOKUP(Table1[[#This Row],[Child Name]],'Provider Level'!B:L,11,0),"-") -> - | I36: =IFERROR(VLOOKUP(Table1[[#This Row],[Child Name]],'Provider Level'!B:N,13,0),"-") -> - | J36: =IFERROR(VLOOKUP(Table1[[#This Row],[Child Name]],'Provider Level'!B:O,14,0),"-") -> - | K36: =IFERROR(VLOOKUP(Table1[[#This Row],[Child Name]],'Provider Level'!B:P,15,0),"-") -> - | L36: =IFERROR(VLOOKUP(Table1[[#This Row],[Child Name]],'Provider Level'!B:Q,16,0),"-") -> - | M36: =IFERROR(VLOOKUP(Table1[[#This Row],[Child Name]],'Provider Level'!B:R,17,0),"-") -> - | N36: 0 | O36: =IFERROR(IF(N36>VLOOKUP(M36,'Drop Down'!$A$3:$B$10,2,0),"1","0"),"-") -> - | P36: 0 | Q36: 0 | R36: =IFERROR(IF(M36="Select","Select Support Level", PRODUCT($Q36,VLOOKUP($J36,'Drop Down'!K:M,3,0))),"-") -> - | S36: Ok | T36: 0 | U36: 0
A37: =IF(B37="Complete Provider Level","Select",'Fee For Service Roll Up'!$E$4) -> Select | B37: Complete Provider Level | C37: =IFERROR(VLOOKUP(Table1[[#This Row],[Child Name]],'Provider Level'!B:C,2,0),"-") -> - | D37: =IFERROR(VLOOKUP(Table1[[#This Row],[Child Name]],'Provider Level'!B:D,3,0),"-") -> - | E37: =IFERROR(VLOOKUP(Table1[[#This Row],[Child Name]],'Provider Level'!B:E,4,0),"-") -> - | F37: =IFERROR(VLOOKUP(Table1[[#This Row],[Child Name]],'Provider Level'!B:F,5,0),"-") -> - | G37: =IFERROR(VLOOKUP(Table1[[#This Row],[Child Name]],'Provider Level'!B:H,6,0),"-") -> - | H37: =IFERROR(VLOOKUP(Table1[[#This Row],[Child Name]],'Provider Level'!B:L,11,0),"-") -> - | I37: =IFERROR(VLOOKUP(Table1[[#This Row],[Child Name]],'Provider Level'!B:N,13,0),"-") -> - | J37: =IFERROR(VLOOKUP(Table1[[#This Row],[Child Name]],'Provider Level'!B:O,14,0),"-") -> - | K37: =IFERROR(VLOOKUP(Table1[[#This Row],[Child Name]],'Provider Level'!B:P,15,0),"-") -> - | L37: =IFERROR(VLOOKUP(Table1[[#This Row],[Child Name]],'Provider Level'!B:Q,16,0),"-") -> - | M37: =IFERROR(VLOOKUP(Table1[[#This Row],[Child Name]],'Provider Level'!B:R,17,0),"-") -> - | N37: 0 | O37: =IFERROR(IF(N37>VLOOKUP(M37,'Drop Down'!$A$3:$B$10,2,0),"1","0"),"-") -> - | P37: 0 | Q37: 0 | R37: =IFERROR(IF(M37="Select","Select Support Level", PRODUCT($Q37,VLOOKUP($J37,'Drop Down'!K:M,3,0))),"-") -> - | S37: Ok | T37: 0 | U37: 0
A38: =IF(B38="Complete Provider Level","Select",'Fee For Service Roll Up'!$E$4) -> Select | B38: Complete Provider Level | C38: =IFERROR(VLOOKUP(Table1[[#This Row],[Child Name]],'Provider Level'!B:C,2,0),"-") -> - | D38: =IFERROR(VLOOKUP(Table1[[#This Row],[Child Name]],'Provider Level'!B:D,3,0),"-") -> - | E38: =IFERROR(VLOOKUP(Table1[[#This Row],[Child Name]],'Provider Level'!B:E,4,0),"-") -> - | F38: =IFERROR(VLOOKUP(Table1[[#This Row],[Child Name]],'Provider Level'!B:F,5,0),"-") -> - | G38: =IFERROR(VLOOKUP(Table1[[#This Row],[Child Name]],'Provider Level'!B:H,6,0),"-") -> - | H38: =IFERROR(VLOOKUP(Table1[[#This Row],[Child Name]],'Provider Level'!B:L,11,0),"-") -> - | I38: =IFERROR(VLOOKUP(Table1[[#This Row],[Child Name]],'Provider Level'!B:N,13,0),"-") -> - | J38: =IFERROR(VLOOKUP(Table1[[#This Row],[Child Name]],'Provider Level'!B:O,14,0),"-") -> - | K38: =IFERROR(VLOOKUP(Table1[[#This Row],[Child Name]],'Provider Level'!B:P,15,0),"-") -> - | L38: =IFERROR(VLOOKUP(Table1[[#This Row],[Child Name]],'Provider Level'!B:Q,16,0),"-") -> - | M38: =IFERROR(VLOOKUP(Table1[[#This Row],[Child Name]],'Provider Level'!B:R,17,0),"-") -> - | N38: 0 | O38: =IFERROR(IF(N38>VLOOKUP(M38,'Drop Down'!$A$3:$B$10,2,0),"1","0"),"-") -> - | P38: 0 | Q38: 0 | R38: =IFERROR(IF(M38="Select","Select Support Level", PRODUCT($Q38,VLOOKUP($J38,'Drop Down'!K:M,3,0))),"-") -> - | S38: Ok | T38: 0 | U38: 0
A39: =IF(B39="Complete Provider Level","Select",'Fee For Service Roll Up'!$E$4) -> Select | B39: Complete Provider Level | C39: =IFERROR(VLOOKUP(Table1[[#This Row],[Child Name]],'Provider Level'!B:C,2,0),"-") -> - | D39: =IFERROR(VLOOKUP(Table1[[#This Row],[Child Name]],'Provider Level'!B:D,3,0),"-") -> - | E39: =IFERROR(VLOOKUP(Table1[[#This Row],[Child Name]],'Provider Level'!B:E,4,0),"-") -> - | F39: =IFERROR(VLOOKUP(Table1[[#This Row],[Child Name]],'Provider Level'!B:F,5,0),"-") -> - | G39: =IFERROR(VLOOKUP(Table1[[#This Row],[Child Name]],'Provider Level'!B:H,6,0),"-") -> - | H39: =IFERROR(VLOOKUP(Table1[[#This Row],[Child Name]],'Provider Level'!B:L,11,0),"-") -> - | I39: =IFERROR(VLOOKUP(Table1[[#This Row],[Child Name]],'Provider Level'!B:N,13,0),"-") -> - | J39: =IFERROR(VLOOKUP(Table1[[#This Row],[Child Name]],'Provider Level'!B:O,14,0),"-") -> - | K39: =IFERROR(VLOOKUP(Table1[[#This Row],[Child Name]],'Provider Level'!B:P,15,0),"-") -> - | L39: =IFERROR(VLOOKUP(Table1[[#This Row],[Child Name]],'Provider Level'!B:Q,16,0),"-") -> - | M39: =IFERROR(VLOOKUP(Table1[[#This Row],[Child Name]],'Provider Level'!B:R,17,0),"-") -> - | N39: 0 | O39: =IFERROR(IF(N39>VLOOKUP(M39,'Drop Down'!$A$3:$B$10,2,0),"1","0"),"-") -> - | P39: 0 | Q39: 0 | R39: =IFERROR(IF(M39="Select","Select Support Level", PRODUCT($Q39,VLOOKUP($J39,'Drop Down'!K:M,3,0))),"-") -> - | S39: Ok | T39: 0 | U39: 0
A40: =IF(B40="Complete Provider Level","Select",'Fee For Service Roll Up'!$E$4) -> Select | B40: Complete Provider Level | C40: =IFERROR(VLOOKUP(Table1[[#This Row],[Child Name]],'Provider Level'!B:C,2,0),"-") -> - | D40: =IFERROR(VLOOKUP(Table1[[#This Row],[Child Name]],'Provider Level'!B:D,3,0),"-") -> - | E40: =IFERROR(VLOOKUP(Table1[[#This Row],[Child Name]],'Provider Level'!B:E,4,0),"-") -> - | F40: =IFERROR(VLOOKUP(Table1[[#This Row],[Child Name]],'Provider Level'!B:F,5,0),"-") -> - | G40: =IFERROR(VLOOKUP(Table1[[#This Row],[Child Name]],'Provider Level'!B:H,6,0),"-") -> - | H40: =IFERROR(VLOOKUP(Table1[[#This Row],[Child Name]],'Provider Level'!B:L,11,0),"-") -> - | I40: =IFERROR(VLOOKUP(Table1[[#This Row],[Child Name]],'Provider Level'!B:N,13,0),"-") -> - | J40: =IFERROR(VLOOKUP(Table1[[#This Row],[Child Name]],'Provider Level'!B:O,14,0),"-") -> - | K40: =IFERROR(VLOOKUP(Table1[[#This Row],[Child Name]],'Provider Level'!B:P,15,0),"-") -> - | L40: =IFERROR(VLOOKUP(Table1[[#This Row],[Child Name]],'Provider Level'!B:Q,16,0),"-") -> - | M40: =IFERROR(VLOOKUP(Table1[[#This Row],[Child Name]],'Provider Level'!B:R,17,0),"-") -> - | N40: 0 | O40: =IFERROR(IF(N40>VLOOKUP(M40,'Drop Down'!$A$3:$B$10,2,0),"1","0"),"-") -> - | P40: 0 | Q40: 0 | R40: =IFERROR(IF(M40="Select","Select Support Level", PRODUCT($Q40,VLOOKUP($J40,'Drop Down'!K:M,3,0))),"-") -> - | S40: Ok | T40: 0 | U40: 0
A41: =IF(B41="Complete Provider Level","Select",'Fee For Service Roll Up'!$E$4) -> Select | B41: Complete Provider Level | C41: =IFERROR(VLOOKUP(Table1[[#This Row],[Child Name]],'Provider Level'!B:C,2,0),"-") -> - | D41: =IFERROR(VLOOKUP(Table1[[#This Row],[Child Name]],'Provider Level'!B:D,3,0),"-") -> - | E41: =IFERROR(VLOOKUP(Table1[[#This Row],[Child Name]],'Provider Level'!B:E,4,0),"-") -> - | F41: =IFERROR(VLOOKUP(Table1[[#This Row],[Child Name]],'Provider Level'!B:F,5,0),"-") -> - | G41: =IFERROR(VLOOKUP(Table1[[#This Row],[Child Name]],'Provider Level'!B:H,6,0),"-") -> - | H41: =IFERROR(VLOOKUP(Table1[[#This Row],[Child Name]],'Provider Level'!B:L,11,0),"-") -> - | I41: =IFERROR(VLOOKUP(Table1[[#This Row],[Child Name]],'Provider Level'!B:N,13,0),"-") -> - | J41: =IFERROR(VLOOKUP(Table1[[#This Row],[Child Name]],'Provider Level'!B:O,14,0),"-") -> - | K41: =IFERROR(VLOOKUP(Table1[[#This Row],[Child Name]],'Provider Level'!B:P,15,0),"-") -> - | L41: =IFERROR(VLOOKUP(Table1[[#This Row],[Child Name]],'Provider Level'!B:Q,16,0),"-") -> - | M41: =IFERROR(VLOOKUP(Table1[[#This Row],[Child Name]],'Provider Level'!B:R,17,0),"-") -> - | N41: 0 | O41: =IFERROR(IF(N41>VLOOKUP(M41,'Drop Down'!$A$3:$B$10,2,0),"1","0"),"-") -> - | P41: 0 | Q41: 0 | R41: =IFERROR(IF(M41="Select","Select Support Level", PRODUCT($Q41,VLOOKUP($J41,'Drop Down'!K:M,3,0))),"-") -> - | S41: Ok | T41: 0 | U41: 0
A42: =IF(B42="Complete Provider Level","Select",'Fee For Service Roll Up'!$E$4) -> Select | B42: Complete Provider Level | C42: =IFERROR(VLOOKUP(Table1[[#This Row],[Child Name]],'Provider Level'!B:C,2,0),"-") -> - | D42: =IFERROR(VLOOKUP(Table1[[#This Row],[Child Name]],'Provider Level'!B:D,3,0),"-") -> - | E42: =IFERROR(VLOOKUP(Table1[[#This Row],[Child Name]],'Provider Level'!B:E,4,0),"-") -> - | F42: =IFERROR(VLOOKUP(Table1[[#This Row],[Child Name]],'Provider Level'!B:F,5,0),"-") -> - | G42: =IFERROR(VLOOKUP(Table1[[#This Row],[Child Name]],'Provider Level'!B:H,6,0),"-") -> - | H42: =IFERROR(VLOOKUP(Table1[[#This Row],[Child Name]],'Provider Level'!B:L,11,0),"-") -> - | I42: =IFERROR(VLOOKUP(Table1[[#This Row],[Child Name]],'Provider Level'!B:N,13,0),"-") -> - | J42: =IFERROR(VLOOKUP(Table1[[#This Row],[Child Name]],'Provider Level'!B:O,14,0),"-") -> - | K42: =IFERROR(VLOOKUP(Table1[[#This Row],[Child Name]],'Provider Level'!B:P,15,0),"-") -> - | L42: =IFERROR(VLOOKUP(Table1[[#This Row],[Child Name]],'Provider Level'!B:Q,16,0),"-") -> - | M42: =IFERROR(VLOOKUP(Table1[[#This Row],[Child Name]],'Provider Level'!B:R,17,0),"-") -> - | N42: 0 | O42: =IFERROR(IF(N42>VLOOKUP(M42,'Drop Down'!$A$3:$B$10,2,0),"1","0"),"-") -> - | P42: 0 | Q42: 0 | R42: =IFERROR(IF(M42="Select","Select Support Level", PRODUCT($Q42,VLOOKUP($J42,'Drop Down'!K:M,3,0))),"-") -> - | S42: Ok | T42: 0 | U42: 0
A43: =IF(B43="Complete Provider Level","Select",'Fee For Service Roll Up'!$E$4) -> Select | B43: Complete Provider Level | C43: =IFERROR(VLOOKUP(Table1[[#This Row],[Child Name]],'Provider Level'!B:C,2,0),"-") -> - | D43: =IFERROR(VLOOKUP(Table1[[#This Row],[Child Name]],'Provider Level'!B:D,3,0),"-") -> - | E43: =IFERROR(VLOOKUP(Table1[[#This Row],[Child Name]],'Provider Level'!B:E,4,0),"-") -> - | F43: =IFERROR(VLOOKUP(Table1[[#This Row],[Child Name]],'Provider Level'!B:F,5,0),"-") -> - | G43: =IFERROR(VLOOKUP(Table1[[#This Row],[Child Name]],'Provider Level'!B:H,6,0),"-") -> - | H43: =IFERROR(VLOOKUP(Table1[[#This Row],[Child Name]],'Provider Level'!B:L,11,0),"-") -> - | I43: =IFERROR(VLOOKUP(Table1[[#This Row],[Child Name]],'Provider Level'!B:N,13,0),"-") -> - | J43: =IFERROR(VLOOKUP(Table1[[#This Row],[Child Name]],'Provider Level'!B:O,14,0),"-") -> - | K43: =IFERROR(VLOOKUP(Table1[[#This Row],[Child Name]],'Provider Level'!B:P,15,0),"-") -> - | L43: =IFERROR(VLOOKUP(Table1[[#This Row],[Child Name]],'Provider Level'!B:Q,16,0),"-") -> - | M43: =IFERROR(VLOOKUP(Table1[[#This Row],[Child Name]],'Provider Level'!B:R,17,0),"-") -> - | N43: 0 | O43: =IFERROR(IF(N43>VLOOKUP(M43,'Drop Down'!$A$3:$B$10,2,0),"1","0"),"-") -> - | P43: 0 | Q43: 0 | R43: =IFERROR(IF(M43="Select","Select Support Level", PRODUCT($Q43,VLOOKUP($J43,'Drop Down'!K:M,3,0))),"-") -> - | S43: Ok | T43: 0 | U43: 0
A44: =IF(B44="Complete Provider Level","Select",'Fee For Service Roll Up'!$E$4) -> Select | B44: Complete Provider Level | C44: =IFERROR(VLOOKUP(Table1[[#This Row],[Child Name]],'Provider Level'!B:C,2,0),"-") -> - | D44: =IFERROR(VLOOKUP(Table1[[#This Row],[Child Name]],'Provider Level'!B:D,3,0),"-") -> - | E44: =IFERROR(VLOOKUP(Table1[[#This Row],[Child Name]],'Provider Level'!B:E,4,0),"-") -> - | F44: =IFERROR(VLOOKUP(Table1[[#This Row],[Child Name]],'Provider Level'!B:F,5,0),"-") -> - | G44: =IFERROR(VLOOKUP(Table1[[#This Row],[Child Name]],'Provider Level'!B:H,6,0),"-") -> - | H44: =IFERROR(VLOOKUP(Table1[[#This Row],[Child Name]],'Provider Level'!B:L,11,0),"-") -> - | I44: =IFERROR(VLOOKUP(Table1[[#This Row],[Child Name]],'Provider Level'!B:N,13,0),"-") -> - | J44: =IFERROR(VLOOKUP(Table1[[#This Row],[Child Name]],'Provider Level'!B:O,14,0),"-") -> - | K44: =IFERROR(VLOOKUP(Table1[[#This Row],[Child Name]],'Provider Level'!B:P,15,0),"-") -> - | L44: =IFERROR(VLOOKUP(Table1[[#This Row],[Child Name]],'Provider Level'!B:Q,16,0),"-") -> - | M44: =IFERROR(VLOOKUP(Table1[[#This Row],[Child Name]],'Provider Level'!B:R,17,0),"-") -> - | N44: 0 | O44: =IFERROR(IF(N44>VLOOKUP(M44,'Drop Down'!$A$3:$B$10,2,0),"1","0"),"-") -> - | P44: 0 | Q44: 0 | R44: =IFERROR(IF(M44="Select","Select Support Level", PRODUCT($Q44,VLOOKUP($J44,'Drop Down'!K:M,3,0))),"-") -> - | S44: Ok | T44: 0 | U44: 0
A45: =IF(B45="Complete Provider Level","Select",'Fee For Service Roll Up'!$E$4) -> Select | B45: Complete Provider Level | C45: =IFERROR(VLOOKUP(Table1[[#This Row],[Child Name]],'Provider Level'!B:C,2,0),"-") -> - | D45: =IFERROR(VLOOKUP(Table1[[#This Row],[Child Name]],'Provider Level'!B:D,3,0),"-") -> - | E45: =IFERROR(VLOOKUP(Table1[[#This Row],[Child Name]],'Provider Level'!B:E,4,0),"-") -> - | F45: =IFERROR(VLOOKUP(Table1[[#This Row],[Child Name]],'Provider Level'!B:F,5,0),"-") -> - | G45: =IFERROR(VLOOKUP(Table1[[#This Row],[Child Name]],'Provider Level'!B:H,6,0),"-") -> - | H45: =IFERROR(VLOOKUP(Table1[[#This Row],[Child Name]],'Provider Level'!B:L,11,0),"-") -> - | I45: =IFERROR(VLOOKUP(Table1[[#This Row],[Child Name]],'Provider Level'!B:N,13,0),"-") -> - | J45: =IFERROR(VLOOKUP(Table1[[#This Row],[Child Name]],'Provider Level'!B:O,14,0),"-") -> - | K45: =IFERROR(VLOOKUP(Table1[[#This Row],[Child Name]],'Provider Level'!B:P,15,0),"-") -> - | L45: =IFERROR(VLOOKUP(Table1[[#This Row],[Child Name]],'Provider Level'!B:Q,16,0),"-") -> - | M45: =IFERROR(VLOOKUP(Table1[[#This Row],[Child Name]],'Provider Level'!B:R,17,0),"-") -> - | N45: 0 | O45: =IFERROR(IF(N45>VLOOKUP(M45,'Drop Down'!$A$3:$B$10,2,0),"1","0"),"-") -> - | P45: 0 | Q45: 0 | R45: =IFERROR(IF(M45="Select","Select Support Level", PRODUCT($Q45,VLOOKUP($J45,'Drop Down'!K:M,3,0))),"-") -> - | S45: Ok | T45: 0 | U45: 0
A46: =IF(B46="Complete Provider Level","Select",'Fee For Service Roll Up'!$E$4) -> Select | B46: Complete Provider Level | C46: =IFERROR(VLOOKUP(Table1[[#This Row],[Child Name]],'Provider Level'!B:C,2,0),"-") -> - | D46: =IFERROR(VLOOKUP(Table1[[#This Row],[Child Name]],'Provider Level'!B:D,3,0),"-") -> - | E46: =IFERROR(VLOOKUP(Table1[[#This Row],[Child Name]],'Provider Level'!B:E,4,0),"-") -> - | F46: =IFERROR(VLOOKUP(Table1[[#This Row],[Child Name]],'Provider Level'!B:F,5,0),"-") -> - | G46: =IFERROR(VLOOKUP(Table1[[#This Row],[Child Name]],'Provider Level'!B:H,6,0),"-") -> - | H46: =IFERROR(VLOOKUP(Table1[[#This Row],[Child Name]],'Provider Level'!B:L,11,0),"-") -> - | I46: =IFERROR(VLOOKUP(Table1[[#This Row],[Child Name]],'Provider Level'!B:N,13,0),"-") -> - | J46: =IFERROR(VLOOKUP(Table1[[#This Row],[Child Name]],'Provider Level'!B:O,14,0),"-") -> - | K46: =IFERROR(VLOOKUP(Table1[[#This Row],[Child Name]],'Provider Level'!B:P,15,0),"-") -> - | L46: =IFERROR(VLOOKUP(Table1[[#This Row],[Child Name]],'Provider Level'!B:Q,16,0),"-") -> - | M46: =IFERROR(VLOOKUP(Table1[[#This Row],[Child Name]],'Provider Level'!B:R,17,0),"-") -> - | N46: 0 | O46: =IFERROR(IF(N46>VLOOKUP(M46,'Drop Down'!$A$3:$B$10,2,0),"1","0"),"-") -> - | P46: 0 | Q46: 0 | R46: =IFERROR(IF(M46="Select","Select Support Level", PRODUCT($Q46,VLOOKUP($J46,'Drop Down'!K:M,3,0))),"-") -> - | S46: Ok | T46: 0 | U46: 0
A47: =IF(B47="Complete Provider Level","Select",'Fee For Service Roll Up'!$E$4) -> Select | B47: Complete Provider Level | C47: =IFERROR(VLOOKUP(Table1[[#This Row],[Child Name]],'Provider Level'!B:C,2,0),"-") -> - | D47: =IFERROR(VLOOKUP(Table1[[#This Row],[Child Name]],'Provider Level'!B:D,3,0),"-") -> - | E47: =IFERROR(VLOOKUP(Table1[[#This Row],[Child Name]],'Provider Level'!B:E,4,0),"-") -> - | F47: =IFERROR(VLOOKUP(Table1[[#This Row],[Child Name]],'Provider Level'!B:F,5,0),"-") -> - | G47: =IFERROR(VLOOKUP(Table1[[#This Row],[Child Name]],'Provider Level'!B:H,6,0),"-") -> - | H47: =IFERROR(VLOOKUP(Table1[[#This Row],[Child Name]],'Provider Level'!B:L,11,0),"-") -> - | I47: =IFERROR(VLOOKUP(Table1[[#This Row],[Child Name]],'Provider Level'!B:N,13,0),"-") -> - | J47: =IFERROR(VLOOKUP(Table1[[#This Row],[Child Name]],'Provider Level'!B:O,14,0),"-") -> - | K47: =IFERROR(VLOOKUP(Table1[[#This Row],[Child Name]],'Provider Level'!B:P,15,0),"-") -> - | L47: =IFERROR(VLOOKUP(Table1[[#This Row],[Child Name]],'Provider Level'!B:Q,16,0),"-") -> - | M47: =IFERROR(VLOOKUP(Table1[[#This Row],[Child Name]],'Provider Level'!B:R,17,0),"-") -> - | N47: 0 | O47: =IFERROR(IF(N47>VLOOKUP(M47,'Drop Down'!$A$3:$B$10,2,0),"1","0"),"-") -> - | P47: 0 | Q47: 0 | R47: =IFERROR(IF(M47="Select","Select Support Level", PRODUCT($Q47,VLOOKUP($J47,'Drop Down'!K:M,3,0))),"-") -> - | S47: Ok | T47: 0 | U47: 0
A48: =IF(B48="Complete Provider Level","Select",'Fee For Service Roll Up'!$E$4) -> Select | B48: Complete Provider Level | C48: =IFERROR(VLOOKUP(Table1[[#This Row],[Child Name]],'Provider Level'!B:C,2,0),"-") -> - | D48: =IFERROR(VLOOKUP(Table1[[#This Row],[Child Name]],'Provider Level'!B:D,3,0),"-") -> - | E48: =IFERROR(VLOOKUP(Table1[[#This Row],[Child Name]],'Provider Level'!B:E,4,0),"-") -> - | F48: =IFERROR(VLOOKUP(Table1[[#This Row],[Child Name]],'Provider Level'!B:F,5,0),"-") -> - | G48: =IFERROR(VLOOKUP(Table1[[#This Row],[Child Name]],'Provider Level'!B:H,6,0),"-") -> - | H48: =IFERROR(VLOOKUP(Table1[[#This Row],[Child Name]],'Provider Level'!B:L,11,0),"-") -> - | I48: =IFERROR(VLOOKUP(Table1[[#This Row],[Child Name]],'Provider Level'!B:N,13,0),"-") -> - | J48: =IFERROR(VLOOKUP(Table1[[#This Row],[Child Name]],'Provider Level'!B:O,14,0),"-") -> - | K48: =IFERROR(VLOOKUP(Table1[[#This Row],[Child Name]],'Provider Level'!B:P,15,0),"-") -> - | L48: =IFERROR(VLOOKUP(Table1[[#This Row],[Child Name]],'Provider Level'!B:Q,16,0),"-") -> - | M48: =IFERROR(VLOOKUP(Table1[[#This Row],[Child Name]],'Provider Level'!B:R,17,0),"-") -> - | N48: 0 | O48: =IFERROR(IF(N48>VLOOKUP(M48,'Drop Down'!$A$3:$B$10,2,0),"1","0"),"-") -> - | P48: 0 | Q48: 0 | R48: =IFERROR(IF(M48="Select","Select Support Level", PRODUCT($Q48,VLOOKUP($J48,'Drop Down'!K:M,3,0))),"-") -> - | S48: Ok | T48: 0 | U48: 0
A49: =IF(B49="Complete Provider Level","Select",'Fee For Service Roll Up'!$E$4) -> Select | B49: Complete Provider Level | C49: =IFERROR(VLOOKUP(Table1[[#This Row],[Child Name]],'Provider Level'!B:C,2,0),"-") -> - | D49: =IFERROR(VLOOKUP(Table1[[#This Row],[Child Name]],'Provider Level'!B:D,3,0),"-") -> - | E49: =IFERROR(VLOOKUP(Table1[[#This Row],[Child Name]],'Provider Level'!B:E,4,0),"-") -> - | F49: =IFERROR(VLOOKUP(Table1[[#This Row],[Child Name]],'Provider Level'!B:F,5,0),"-") -> - | G49: =IFERROR(VLOOKUP(Table1[[#This Row],[Child Name]],'Provider Level'!B:H,6,0),"-") -> - | H49: =IFERROR(VLOOKUP(Table1[[#This Row],[Child Name]],'Provider Level'!B:L,11,0),"-") -> - | I49: =IFERROR(VLOOKUP(Table1[[#This Row],[Child Name]],'Provider Level'!B:N,13,0),"-") -> - | J49: =IFERROR(VLOOKUP(Table1[[#This Row],[Child Name]],'Provider Level'!B:O,14,0),"-") -> - | K49: =IFERROR(VLOOKUP(Table1[[#This Row],[Child Name]],'Provider Level'!B:P,15,0),"-") -> - | L49: =IFERROR(VLOOKUP(Table1[[#This Row],[Child Name]],'Provider Level'!B:Q,16,0),"-") -> - | M49: =IFERROR(VLOOKUP(Table1[[#This Row],[Child Name]],'Provider Level'!B:R,17,0),"-") -> - | N49: 0 | O49: =IFERROR(IF(N49>VLOOKUP(M49,'Drop Down'!$A$3:$B$10,2,0),"1","0"),"-") -> - | P49: 0 | Q49: 0 | R49: =IFERROR(IF(M49="Select","Select Support Level", PRODUCT($Q49,VLOOKUP($J49,'Drop Down'!K:M,3,0))),"-") -> - | S49: Ok | T49: 0 | U49: 0
A50: =IF(B50="Complete Provider Level","Select",'Fee For Service Roll Up'!$E$4) -> Select | B50: Complete Provider Level | C50: =IFERROR(VLOOKUP(Table1[[#This Row],[Child Name]],'Provider Level'!B:C,2,0),"-") -> - | D50: =IFERROR(VLOOKUP(Table1[[#This Row],[Child Name]],'Provider Level'!B:D,3,0),"-") -> - | E50: =IFERROR(VLOOKUP(Table1[[#This Row],[Child Name]],'Provider Level'!B:E,4,0),"-") -> - | F50: =IFERROR(VLOOKUP(Table1[[#This Row],[Child Name]],'Provider Level'!B:F,5,0),"-") -> - | G50: =IFERROR(VLOOKUP(Table1[[#This Row],[Child Name]],'Provider Level'!B:H,6,0),"-") -> - | H50: =IFERROR(VLOOKUP(Table1[[#This Row],[Child Name]],'Provider Level'!B:L,11,0),"-") -> - | I50: =IFERROR(VLOOKUP(Table1[[#This Row],[Child Name]],'Provider Level'!B:N,13,0),"-") -> - | J50: =IFERROR(VLOOKUP(Table1[[#This Row],[Child Name]],'Provider Level'!B:O,14,0),"-") -> - | K50: =IFERROR(VLOOKUP(Table1[[#This Row],[Child Name]],'Provider Level'!B:P,15,0),"-") -> - | L50: =IFERROR(VLOOKUP(Table1[[#This Row],[Child Name]],'Provider Level'!B:Q,16,0),"-") -> - | M50: =IFERROR(VLOOKUP(Table1[[#This Row],[Child Name]],'Provider Level'!B:R,17,0),"-") -> - | N50: 0 | O50: =IFERROR(IF(N50>VLOOKUP(M50,'Drop Down'!$A$3:$B$10,2,0),"1","0"),"-") -> - | P50: 0 | Q50: 0 | R50: =IFERROR(IF(M50="Select","Select Support Level", PRODUCT($Q50,VLOOKUP($J50,'Drop Down'!K:M,3,0))),"-") -> - | S50: Ok | T50: 0 | U50: 0
A51: =IF(B51="Complete Provider Level","Select",'Fee For Service Roll Up'!$E$4) -> Select | B51: Complete Provider Level | C51: =IFERROR(VLOOKUP(Table1[[#This Row],[Child Name]],'Provider Level'!B:C,2,0),"-") -> - | D51: =IFERROR(VLOOKUP(Table1[[#This Row],[Child Name]],'Provider Level'!B:D,3,0),"-") -> - | E51: =IFERROR(VLOOKUP(Table1[[#This Row],[Child Name]],'Provider Level'!B:E,4,0),"-") -> - | F51: =IFERROR(VLOOKUP(Table1[[#This Row],[Child Name]],'Provider Level'!B:F,5,0),"-") -> - | G51: =IFERROR(VLOOKUP(Table1[[#This Row],[Child Name]],'Provider Level'!B:H,6,0),"-") -> - | H51: =IFERROR(VLOOKUP(Table1[[#This Row],[Child Name]],'Provider Level'!B:L,11,0),"-") -> - | I51: =IFERROR(VLOOKUP(Table1[[#This Row],[Child Name]],'Provider Level'!B:N,13,0),"-") -> - | J51: =IFERROR(VLOOKUP(Table1[[#This Row],[Child Name]],'Provider Level'!B:O,14,0),"-") -> - | K51: =IFERROR(VLOOKUP(Table1[[#This Row],[Child Name]],'Provider Level'!B:P,15,0),"-") -> - | L51: =IFERROR(VLOOKUP(Table1[[#This Row],[Child Name]],'Provider Level'!B:Q,16,0),"-") -> - | M51: =IFERROR(VLOOKUP(Table1[[#This Row],[Child Name]],'Provider Level'!B:R,17,0),"-") -> - | N51: 0 | O51: =IFERROR(IF(N51>VLOOKUP(M51,'Drop Down'!$A$3:$B$10,2,0),"1","0"),"-") -> - | P51: 0 | Q51: 0 | R51: =IFERROR(IF(M51="Select","Select Support Level", PRODUCT($Q51,VLOOKUP($J51,'Drop Down'!K:M,3,0))),"-") -> - | S51: Ok | T51: 0 | U51: 0
A52: =IF(B52="Complete Provider Level","Select",'Fee For Service Roll Up'!$E$4) -> Select | B52: Complete Provider Level | C52: =IFERROR(VLOOKUP(Table1[[#This Row],[Child Name]],'Provider Level'!B:C,2,0),"-") -> - | D52: =IFERROR(VLOOKUP(Table1[[#This Row],[Child Name]],'Provider Level'!B:D,3,0),"-") -> - | E52: =IFERROR(VLOOKUP(Table1[[#This Row],[Child Name]],'Provider Level'!B:E,4,0),"-") -> - | F52: =IFERROR(VLOOKUP(Table1[[#This Row],[Child Name]],'Provider Level'!B:F,5,0),"-") -> - | G52: =IFERROR(VLOOKUP(Table1[[#This Row],[Child Name]],'Provider Level'!B:H,6,0),"-") -> - | H52: =IFERROR(VLOOKUP(Table1[[#This Row],[Child Name]],'Provider Level'!B:L,11,0),"-") -> - | I52: =IFERROR(VLOOKUP(Table1[[#This Row],[Child Name]],'Provider Level'!B:N,13,0),"-") -> - | J52: =IFERROR(VLOOKUP(Table1[[#This Row],[Child Name]],'Provider Level'!B:O,14,0),"-") -> - | K52: =IFERROR(VLOOKUP(Table1[[#This Row],[Child Name]],'Provider Level'!B:P,15,0),"-") -> - | L52: =IFERROR(VLOOKUP(Table1[[#This Row],[Child Name]],'Provider Level'!B:Q,16,0),"-") -> - | M52: =IFERROR(VLOOKUP(Table1[[#This Row],[Child Name]],'Provider Level'!B:R,17,0),"-") -> - | N52: 0 | O52: =IFERROR(IF(N52>VLOOKUP(M52,'Drop Down'!$A$3:$B$10,2,0),"1","0"),"-") -> - | P52: 0 | Q52: 0 | R52: =IFERROR(IF(M52="Select","Select Support Level", PRODUCT($Q52,VLOOKUP($J52,'Drop Down'!K:M,3,0))),"-") -> - | S52: Ok | T52: 0 | U52: 0
A53: =IF(B53="Complete Provider Level","Select",'Fee For Service Roll Up'!$E$4) -> Select | B53: Complete Provider Level | C53: =IFERROR(VLOOKUP(Table1[[#This Row],[Child Name]],'Provider Level'!B:C,2,0),"-") -> - | D53: =IFERROR(VLOOKUP(Table1[[#This Row],[Child Name]],'Provider Level'!B:D,3,0),"-") -> - | E53: =IFERROR(VLOOKUP(Table1[[#This Row],[Child Name]],'Provider Level'!B:E,4,0),"-") -> - | F53: =IFERROR(VLOOKUP(Table1[[#This Row],[Child Name]],'Provider Level'!B:F,5,0),"-") -> - | G53: =IFERROR(VLOOKUP(Table1[[#This Row],[Child Name]],'Provider Level'!B:H,6,0),"-") -> - | H53: =IFERROR(VLOOKUP(Table1[[#This Row],[Child Name]],'Provider Level'!B:L,11,0),"-") -> - | I53: =IFERROR(VLOOKUP(Table1[[#This Row],[Child Name]],'Provider Level'!B:N,13,0),"-") -> - | J53: =IFERROR(VLOOKUP(Table1[[#This Row],[Child Name]],'Provider Level'!B:O,14,0),"-") -> - | K53: =IFERROR(VLOOKUP(Table1[[#This Row],[Child Name]],'Provider Level'!B:P,15,0),"-") -> - | L53: =IFERROR(VLOOKUP(Table1[[#This Row],[Child Name]],'Provider Level'!B:Q,16,0),"-") -> - | M53: =IFERROR(VLOOKUP(Table1[[#This Row],[Child Name]],'Provider Level'!B:R,17,0),"-") -> - | N53: 0 | O53: =IFERROR(IF(N53>VLOOKUP(M53,'Drop Down'!$A$3:$B$10,2,0),"1","0"),"-") -> - | P53: 0 | Q53: 0 | R53: =IFERROR(IF(M53="Select","Select Support Level", PRODUCT($Q53,VLOOKUP($J53,'Drop Down'!K:M,3,0))),"-") -> - | S53: Ok | T53: 0 | U53: 0
A54: =IF(B54="Complete Provider Level","Select",'Fee For Service Roll Up'!$E$4) -> Select | B54: Complete Provider Level | C54: =IFERROR(VLOOKUP(Table1[[#This Row],[Child Name]],'Provider Level'!B:C,2,0),"-") -> - | D54: =IFERROR(VLOOKUP(Table1[[#This Row],[Child Name]],'Provider Level'!B:D,3,0),"-") -> - | E54: =IFERROR(VLOOKUP(Table1[[#This Row],[Child Name]],'Provider Level'!B:E,4,0),"-") -> - | F54: =IFERROR(VLOOKUP(Table1[[#This Row],[Child Name]],'Provider Level'!B:F,5,0),"-") -> - | G54: =IFERROR(VLOOKUP(Table1[[#This Row],[Child Name]],'Provider Level'!B:H,6,0),"-") -> - | H54: =IFERROR(VLOOKUP(Table1[[#This Row],[Child Name]],'Provider Level'!B:L,11,0),"-") -> - | I54: =IFERROR(VLOOKUP(Table1[[#This Row],[Child Name]],'Provider Level'!B:N,13,0),"-") -> - | J54: =IFERROR(VLOOKUP(Table1[[#This Row],[Child Name]],'Provider Level'!B:O,14,0),"-") -> - | K54: =IFERROR(VLOOKUP(Table1[[#This Row],[Child Name]],'Provider Level'!B:P,15,0),"-") -> - | L54: =IFERROR(VLOOKUP(Table1[[#This Row],[Child Name]],'Provider Level'!B:Q,16,0),"-") -> - | M54: =IFERROR(VLOOKUP(Table1[[#This Row],[Child Name]],'Provider Level'!B:R,17,0),"-") -> - | N54: 0 | O54: =IFERROR(IF(N54>VLOOKUP(M54,'Drop Down'!$A$3:$B$10,2,0),"1","0"),"-") -> - | P54: 0 | Q54: 0 | R54: =IFERROR(IF(M54="Select","Select Support Level", PRODUCT($Q54,VLOOKUP($J54,'Drop Down'!K:M,3,0))),"-") -> - | S54: Ok | T54: 0 | U54: 0
A55: =IF(B55="Complete Provider Level","Select",'Fee For Service Roll Up'!$E$4) -> Select | B55: Complete Provider Level | C55: =IFERROR(VLOOKUP(Table1[[#This Row],[Child Name]],'Provider Level'!B:C,2,0),"-") -> - | D55: =IFERROR(VLOOKUP(Table1[[#This Row],[Child Name]],'Provider Level'!B:D,3,0),"-") -> - | E55: =IFERROR(VLOOKUP(Table1[[#This Row],[Child Name]],'Provider Level'!B:E,4,0),"-") -> - | F55: =IFERROR(VLOOKUP(Table1[[#This Row],[Child Name]],'Provider Level'!B:F,5,0),"-") -> - | G55: =IFERROR(VLOOKUP(Table1[[#This Row],[Child Name]],'Provider Level'!B:H,6,0),"-") -> - | H55: =IFERROR(VLOOKUP(Table1[[#This Row],[Child Name]],'Provider Level'!B:L,11,0),"-") -> - | I55: =IFERROR(VLOOKUP(Table1[[#This Row],[Child Name]],'Provider Level'!B:N,13,0),"-") -> - | J55: =IFERROR(VLOOKUP(Table1[[#This Row],[Child Name]],'Provider Level'!B:O,14,0),"-") -> - | K55: =IFERROR(VLOOKUP(Table1[[#This Row],[Child Name]],'Provider Level'!B:P,15,0),"-") -> - | L55: =IFERROR(VLOOKUP(Table1[[#This Row],[Child Name]],'Provider Level'!B:Q,16,0),"-") -> - | M55: =IFERROR(VLOOKUP(Table1[[#This Row],[Child Name]],'Provider Level'!B:R,17,0),"-") -> - | N55: 0 | O55: =IFERROR(IF(N55>VLOOKUP(M55,'Drop Down'!$A$3:$B$10,2,0),"1","0"),"-") -> - | P55: 0 | Q55: 0 | R55: =IFERROR(IF(M55="Select","Select Support Level", PRODUCT($Q55,VLOOKUP($J55,'Drop Down'!K:M,3,0))),"-") -> - | S55: Ok | T55: 0 | U55: 0
A56: =IF(B56="Complete Provider Level","Select",'Fee For Service Roll Up'!$E$4) -> Select | B56: Complete Provider Level | C56: =IFERROR(VLOOKUP(Table1[[#This Row],[Child Name]],'Provider Level'!B:C,2,0),"-") -> - | D56: =IFERROR(VLOOKUP(Table1[[#This Row],[Child Name]],'Provider Level'!B:D,3,0),"-") -> - | E56: =IFERROR(VLOOKUP(Table1[[#This Row],[Child Name]],'Provider Level'!B:E,4,0),"-") -> - | F56: =IFERROR(VLOOKUP(Table1[[#This Row],[Child Name]],'Provider Level'!B:F,5,0),"-") -> - | G56: =IFERROR(VLOOKUP(Table1[[#This Row],[Child Name]],'Provider Level'!B:H,6,0),"-") -> - | H56: =IFERROR(VLOOKUP(Table1[[#This Row],[Child Name]],'Provider Level'!B:L,11,0),"-") -> - | I56: =IFERROR(VLOOKUP(Table1[[#This Row],[Child Name]],'Provider Level'!B:N,13,0),"-") -> - | J56: =IFERROR(VLOOKUP(Table1[[#This Row],[Child Name]],'Provider Level'!B:O,14,0),"-") -> - | K56: =IFERROR(VLOOKUP(Table1[[#This Row],[Child Name]],'Provider Level'!B:P,15,0),"-") -> - | L56: =IFERROR(VLOOKUP(Table1[[#This Row],[Child Name]],'Provider Level'!B:Q,16,0),"-") -> - | M56: =IFERROR(VLOOKUP(Table1[[#This Row],[Child Name]],'Provider Level'!B:R,17,0),"-") -> - | N56: 0 | O56: =IFERROR(IF(N56>VLOOKUP(M56,'Drop Down'!$A$3:$B$10,2,0),"1","0"),"-") -> - | P56: 0 | Q56: 0 | R56: =IFERROR(IF(M56="Select","Select Support Level", PRODUCT($Q56,VLOOKUP($J56,'Drop Down'!K:M,3,0))),"-") -> - | S56: Ok | T56: 0 | U56: 0
A57: =IF(B57="Complete Provider Level","Select",'Fee For Service Roll Up'!$E$4) -> Select | B57: Complete Provider Level | C57: =IFERROR(VLOOKUP(Table1[[#This Row],[Child Name]],'Provider Level'!B:C,2,0),"-") -> - | D57: =IFERROR(VLOOKUP(Table1[[#This Row],[Child Name]],'Provider Level'!B:D,3,0),"-") -> - | E57: =IFERROR(VLOOKUP(Table1[[#This Row],[Child Name]],'Provider Level'!B:E,4,0),"-") -> - | F57: =IFERROR(VLOOKUP(Table1[[#This Row],[Child Name]],'Provider Level'!B:F,5,0),"-") -> - | G57: =IFERROR(VLOOKUP(Table1[[#This Row],[Child Name]],'Provider Level'!B:H,6,0),"-") -> - | H57: =IFERROR(VLOOKUP(Table1[[#This Row],[Child Name]],'Provider Level'!B:L,11,0),"-") -> - | I57: =IFERROR(VLOOKUP(Table1[[#This Row],[Child Name]],'Provider Level'!B:N,13,0),"-") -> - | J57: =IFERROR(VLOOKUP(Table1[[#This Row],[Child Name]],'Provider Level'!B:O,14,0),"-") -> - | K57: =IFERROR(VLOOKUP(Table1[[#This Row],[Child Name]],'Provider Level'!B:P,15,0),"-") -> - | L57: =IFERROR(VLOOKUP(Table1[[#This Row],[Child Name]],'Provider Level'!B:Q,16,0),"-") -> - | M57: =IFERROR(VLOOKUP(Table1[[#This Row],[Child Name]],'Provider Level'!B:R,17,0),"-") -> - | N57: 0 | O57: =IFERROR(IF(N57>VLOOKUP(M57,'Drop Down'!$A$3:$B$10,2,0),"1","0"),"-") -> - | P57: 0 | Q57: 0 | R57: =IFERROR(IF(M57="Select","Select Support Level", PRODUCT($Q57,VLOOKUP($J57,'Drop Down'!K:M,3,0))),"-") -> - | S57: Ok | T57: 0 | U57: 0
A58: =IF(B58="Complete Provider Level","Select",'Fee For Service Roll Up'!$E$4) -> Select | B58: Complete Provider Level | C58: =IFERROR(VLOOKUP(Table1[[#This Row],[Child Name]],'Provider Level'!B:C,2,0),"-") -> - | D58: =IFERROR(VLOOKUP(Table1[[#This Row],[Child Name]],'Provider Level'!B:D,3,0),"-") -> - | E58: =IFERROR(VLOOKUP(Table1[[#This Row],[Child Name]],'Provider Level'!B:E,4,0),"-") -> - | F58: =IFERROR(VLOOKUP(Table1[[#This Row],[Child Name]],'Provider Level'!B:F,5,0),"-") -> - | G58: =IFERROR(VLOOKUP(Table1[[#This Row],[Child Name]],'Provider Level'!B:H,6,0),"-") -> - | H58: =IFERROR(VLOOKUP(Table1[[#This Row],[Child Name]],'Provider Level'!B:L,11,0),"-") -> - | I58: =IFERROR(VLOOKUP(Table1[[#This Row],[Child Name]],'Provider Level'!B:N,13,0),"-") -> - | J58: =IFERROR(VLOOKUP(Table1[[#This Row],[Child Name]],'Provider Level'!B:O,14,0),"-") -> - | K58: =IFERROR(VLOOKUP(Table1[[#This Row],[Child Name]],'Provider Level'!B:P,15,0),"-") -> - | L58: =IFERROR(VLOOKUP(Table1[[#This Row],[Child Name]],'Provider Level'!B:Q,16,0),"-") -> - | M58: =IFERROR(VLOOKUP(Table1[[#This Row],[Child Name]],'Provider Level'!B:R,17,0),"-") -> - | N58: 0 | O58: =IFERROR(IF(N58>VLOOKUP(M58,'Drop Down'!$A$3:$B$10,2,0),"1","0"),"-") -> - | P58: 0 | Q58: 0 | R58: =IFERROR(IF(M58="Select","Select Support Level", PRODUCT($Q58,VLOOKUP($J58,'Drop Down'!K:M,3,0))),"-") -> - | S58: Ok | T58: 0 | U58: 0
A59: =IF(B59="Complete Provider Level","Select",'Fee For Service Roll Up'!$E$4) -> Select | B59: Complete Provider Level | C59: =IFERROR(VLOOKUP(Table1[[#This Row],[Child Name]],'Provider Level'!B:C,2,0),"-") -> - | D59: =IFERROR(VLOOKUP(Table1[[#This Row],[Child Name]],'Provider Level'!B:D,3,0),"-") -> - | E59: =IFERROR(VLOOKUP(Table1[[#This Row],[Child Name]],'Provider Level'!B:E,4,0),"-") -> - | F59: =IFERROR(VLOOKUP(Table1[[#This Row],[Child Name]],'Provider Level'!B:F,5,0),"-") -> - | G59: =IFERROR(VLOOKUP(Table1[[#This Row],[Child Name]],'Provider Level'!B:H,6,0),"-") -> - | H59: =IFERROR(VLOOKUP(Table1[[#This Row],[Child Name]],'Provider Level'!B:L,11,0),"-") -> - | I59: =IFERROR(VLOOKUP(Table1[[#This Row],[Child Name]],'Provider Level'!B:N,13,0),"-") -> - | J59: =IFERROR(VLOOKUP(Table1[[#This Row],[Child Name]],'Provider Level'!B:O,14,0),"-") -> - | K59: =IFERROR(VLOOKUP(Table1[[#This Row],[Child Name]],'Provider Level'!B:P,15,0),"-") -> - | L59: =IFERROR(VLOOKUP(Table1[[#This Row],[Child Name]],'Provider Level'!B:Q,16,0),"-") -> - | M59: =IFERROR(VLOOKUP(Table1[[#This Row],[Child Name]],'Provider Level'!B:R,17,0),"-") -> - | N59: 0 | O59: =IFERROR(IF(N59>VLOOKUP(M59,'Drop Down'!$A$3:$B$10,2,0),"1","0"),"-") -> - | P59: 0 | Q59: 0 | R59: =IFERROR(IF(M59="Select","Select Support Level", PRODUCT($Q59,VLOOKUP($J59,'Drop Down'!K:M,3,0))),"-") -> - | S59: Ok | T59: 0 | U59: 0
A60: =IF(B60="Complete Provider Level","Select",'Fee For Service Roll Up'!$E$4) -> Select | B60: Complete Provider Level | C60: =IFERROR(VLOOKUP(Table1[[#This Row],[Child Name]],'Provider Level'!B:C,2,0),"-") -> - | D60: =IFERROR(VLOOKUP(Table1[[#This Row],[Child Name]],'Provider Level'!B:D,3,0),"-") -> - | E60: =IFERROR(VLOOKUP(Table1[[#This Row],[Child Name]],'Provider Level'!B:E,4,0),"-") -> - | F60: =IFERROR(VLOOKUP(Table1[[#This Row],[Child Name]],'Provider Level'!B:F,5,0),"-") -> - | G60: =IFERROR(VLOOKUP(Table1[[#This Row],[Child Name]],'Provider Level'!B:H,6,0),"-") -> - | H60: =IFERROR(VLOOKUP(Table1[[#This Row],[Child Name]],'Provider Level'!B:L,11,0),"-") -> - | I60: =IFERROR(VLOOKUP(Table1[[#This Row],[Child Name]],'Provider Level'!B:N,13,0),"-") -> - | J60: =IFERROR(VLOOKUP(Table1[[#This Row],[Child Name]],'Provider Level'!B:O,14,0),"-") -> - | K60: =IFERROR(VLOOKUP(Table1[[#This Row],[Child Name]],'Provider Level'!B:P,15,0),"-") -> - | L60: =IFERROR(VLOOKUP(Table1[[#This Row],[Child Name]],'Provider Level'!B:Q,16,0),"-") -> - | M60: =IFERROR(VLOOKUP(Table1[[#This Row],[Child Name]],'Provider Level'!B:R,17,0),"-") -> - | N60: 0 | O60: =IFERROR(IF(N60>VLOOKUP(M60,'Drop Down'!$A$3:$B$10,2,0),"1","0"),"-") -> - | P60: 0 | Q60: 0 | R60: =IFERROR(IF(M60="Select","Select Support Level", PRODUCT($Q60,VLOOKUP($J60,'Drop Down'!K:M,3,0))),"-") -> - | S60: Ok | T60: 0 | U60: 0
A61: =IF(B61="Complete Provider Level","Select",'Fee For Service Roll Up'!$E$4) -> Select | B61: Complete Provider Level | C61: =IFERROR(VLOOKUP(Table1[[#This Row],[Child Name]],'Provider Level'!B:C,2,0),"-") -> - | D61: =IFERROR(VLOOKUP(Table1[[#This Row],[Child Name]],'Provider Level'!B:D,3,0),"-") -> - | E61: =IFERROR(VLOOKUP(Table1[[#This Row],[Child Name]],'Provider Level'!B:E,4,0),"-") -> - | F61: =IFERROR(VLOOKUP(Table1[[#This Row],[Child Name]],'Provider Level'!B:F,5,0),"-") -> - | G61: =IFERROR(VLOOKUP(Table1[[#This Row],[Child Name]],'Provider Level'!B:H,6,0),"-") -> - | H61: =IFERROR(VLOOKUP(Table1[[#This Row],[Child Name]],'Provider Level'!B:L,11,0),"-") -> - | I61: =IFERROR(VLOOKUP(Table1[[#This Row],[Child Name]],'Provider Level'!B:N,13,0),"-") -> - | J61: =IFERROR(VLOOKUP(Table1[[#This Row],[Child Name]],'Provider Level'!B:O,14,0),"-") -> - | K61: =IFERROR(VLOOKUP(Table1[[#This Row],[Child Name]],'Provider Level'!B:P,15,0),"-") -> - | L61: =IFERROR(VLOOKUP(Table1[[#This Row],[Child Name]],'Provider Level'!B:Q,16,0),"-") -> - | M61: =IFERROR(VLOOKUP(Table1[[#This Row],[Child Name]],'Provider Level'!B:R,17,0),"-") -> - | N61: 0 | O61: =IFERROR(IF(N61>VLOOKUP(M61,'Drop Down'!$A$3:$B$10,2,0),"1","0"),"-") -> - | P61: 0 | Q61: 0 | R61: =IFERROR(IF(M61="Select","Select Support Level", PRODUCT($Q61,VLOOKUP($J61,'Drop Down'!K:M,3,0))),"-") -> - | S61: Ok | T61: 0 | U61: 0
A62: =IF(B62="Complete Provider Level","Select",'Fee For Service Roll Up'!$E$4) -> Select | B62: Complete Provider Level | C62: =IFERROR(VLOOKUP(Table1[[#This Row],[Child Name]],'Provider Level'!B:C,2,0),"-") -> - | D62: =IFERROR(VLOOKUP(Table1[[#This Row],[Child Name]],'Provider Level'!B:D,3,0),"-") -> - | E62: =IFERROR(VLOOKUP(Table1[[#This Row],[Child Name]],'Provider Level'!B:E,4,0),"-") -> - | F62: =IFERROR(VLOOKUP(Table1[[#This Row],[Child Name]],'Provider Level'!B:F,5,0),"-") -> - | G62: =IFERROR(VLOOKUP(Table1[[#This Row],[Child Name]],'Provider Level'!B:H,6,0),"-") -> - | H62: =IFERROR(VLOOKUP(Table1[[#This Row],[Child Name]],'Provider Level'!B:L,11,0),"-") -> - | I62: =IFERROR(VLOOKUP(Table1[[#This Row],[Child Name]],'Provider Level'!B:N,13,0),"-") -> - | J62: =IFERROR(VLOOKUP(Table1[[#This Row],[Child Name]],'Provider Level'!B:O,14,0),"-") -> - | K62: =IFERROR(VLOOKUP(Table1[[#This Row],[Child Name]],'Provider Level'!B:P,15,0),"-") -> - | L62: =IFERROR(VLOOKUP(Table1[[#This Row],[Child Name]],'Provider Level'!B:Q,16,0),"-") -> - | M62: =IFERROR(VLOOKUP(Table1[[#This Row],[Child Name]],'Provider Level'!B:R,17,0),"-") -> - | N62: 0 | O62: =IFERROR(IF(N62>VLOOKUP(M62,'Drop Down'!$A$3:$B$10,2,0),"1","0"),"-") -> - | P62: 0 | Q62: 0 | R62: =IFERROR(IF(M62="Select","Select Support Level", PRODUCT($Q62,VLOOKUP($J62,'Drop Down'!K:M,3,0))),"-") -> - | S62: Ok | T62: 0 | U62: 0
A63: =IF(B63="Complete Provider Level","Select",'Fee For Service Roll Up'!$E$4) -> Select | B63: Complete Provider Level | C63: =IFERROR(VLOOKUP(Table1[[#This Row],[Child Name]],'Provider Level'!B:C,2,0),"-") -> - | D63: =IFERROR(VLOOKUP(Table1[[#This Row],[Child Name]],'Provider Level'!B:D,3,0),"-") -> - | E63: =IFERROR(VLOOKUP(Table1[[#This Row],[Child Name]],'Provider Level'!B:E,4,0),"-") -> - | F63: =IFERROR(VLOOKUP(Table1[[#This Row],[Child Name]],'Provider Level'!B:F,5,0),"-") -> - | G63: =IFERROR(VLOOKUP(Table1[[#This Row],[Child Name]],'Provider Level'!B:H,6,0),"-") -> - | H63: =IFERROR(VLOOKUP(Table1[[#This Row],[Child Name]],'Provider Level'!B:L,11,0),"-") -> - | I63: =IFERROR(VLOOKUP(Table1[[#This Row],[Child Name]],'Provider Level'!B:N,13,0),"-") -> - | J63: =IFERROR(VLOOKUP(Table1[[#This Row],[Child Name]],'Provider Level'!B:O,14,0),"-") -> - | K63: =IFERROR(VLOOKUP(Table1[[#This Row],[Child Name]],'Provider Level'!B:P,15,0),"-") -> - | L63: =IFERROR(VLOOKUP(Table1[[#This Row],[Child Name]],'Provider Level'!B:Q,16,0),"-") -> - | M63: =IFERROR(VLOOKUP(Table1[[#This Row],[Child Name]],'Provider Level'!B:R,17,0),"-") -> - | N63: 0 | O63: =IFERROR(IF(N63>VLOOKUP(M63,'Drop Down'!$A$3:$B$10,2,0),"1","0"),"-") -> - | P63: 0 | Q63: 0 | R63: =IFERROR(IF(M63="Select","Select Support Level", PRODUCT($Q63,VLOOKUP($J63,'Drop Down'!K:M,3,0))),"-") -> - | S63: Ok | T63: 0 | U63: 0
A64: =IF(B64="Complete Provider Level","Select",'Fee For Service Roll Up'!$E$4) -> Select | B64: Complete Provider Level | C64: =IFERROR(VLOOKUP(Table1[[#This Row],[Child Name]],'Provider Level'!B:C,2,0),"-") -> - | D64: =IFERROR(VLOOKUP(Table1[[#This Row],[Child Name]],'Provider Level'!B:D,3,0),"-") -> - | E64: =IFERROR(VLOOKUP(Table1[[#This Row],[Child Name]],'Provider Level'!B:E,4,0),"-") -> - | F64: =IFERROR(VLOOKUP(Table1[[#This Row],[Child Name]],'Provider Level'!B:F,5,0),"-") -> - | G64: =IFERROR(VLOOKUP(Table1[[#This Row],[Child Name]],'Provider Level'!B:H,6,0),"-") -> - | H64: =IFERROR(VLOOKUP(Table1[[#This Row],[Child Name]],'Provider Level'!B:L,11,0),"-") -> - | I64: =IFERROR(VLOOKUP(Table1[[#This Row],[Child Name]],'Provider Level'!B:N,13,0),"-") -> - | J64: =IFERROR(VLOOKUP(Table1[[#This Row],[Child Name]],'Provider Level'!B:O,14,0),"-") -> - | K64: =IFERROR(VLOOKUP(Table1[[#This Row],[Child Name]],'Provider Level'!B:P,15,0),"-") -> - | L64: =IFERROR(VLOOKUP(Table1[[#This Row],[Child Name]],'Provider Level'!B:Q,16,0),"-") -> - | M64: =IFERROR(VLOOKUP(Table1[[#This Row],[Child Name]],'Provider Level'!B:R,17,0),"-") -> - | N64: 0 | O64: =IFERROR(IF(N64>VLOOKUP(M64,'Drop Down'!$A$3:$B$10,2,0),"1","0"),"-") -> - | P64: 0 | Q64: 0 | R64: =IFERROR(IF(M64="Select","Select Support Level", PRODUCT($Q64,VLOOKUP($J64,'Drop Down'!K:M,3,0))),"-") -> - | S64: Ok | T64: 0 | U64: 0
A65: =IF(B65="Complete Provider Level","Select",'Fee For Service Roll Up'!$E$4) -> Select | B65: Complete Provider Level | C65: =IFERROR(VLOOKUP(Table1[[#This Row],[Child Name]],'Provider Level'!B:C,2,0),"-") -> - | D65: =IFERROR(VLOOKUP(Table1[[#This Row],[Child Name]],'Provider Level'!B:D,3,0),"-") -> - | E65: =IFERROR(VLOOKUP(Table1[[#This Row],[Child Name]],'Provider Level'!B:E,4,0),"-") -> - | F65: =IFERROR(VLOOKUP(Table1[[#This Row],[Child Name]],'Provider Level'!B:F,5,0),"-") -> - | G65: =IFERROR(VLOOKUP(Table1[[#This Row],[Child Name]],'Provider Level'!B:H,6,0),"-") -> - | H65: =IFERROR(VLOOKUP(Table1[[#This Row],[Child Name]],'Provider Level'!B:L,11,0),"-") -> - | I65: =IFERROR(VLOOKUP(Table1[[#This Row],[Child Name]],'Provider Level'!B:N,13,0),"-") -> - | J65: =IFERROR(VLOOKUP(Table1[[#This Row],[Child Name]],'Provider Level'!B:O,14,0),"-") -> - | K65: =IFERROR(VLOOKUP(Table1[[#This Row],[Child Name]],'Provider Level'!B:P,15,0),"-") -> - | L65: =IFERROR(VLOOKUP(Table1[[#This Row],[Child Name]],'Provider Level'!B:Q,16,0),"-") -> - | M65: =IFERROR(VLOOKUP(Table1[[#This Row],[Child Name]],'Provider Level'!B:R,17,0),"-") -> - | N65: 0 | O65: =IFERROR(IF(N65>VLOOKUP(M65,'Drop Down'!$A$3:$B$10,2,0),"1","0"),"-") -> - | P65: 0 | Q65: =SUM($N65,$P65) -> 0 | R65: =IFERROR(IF(M65="Select","Select Support Level", PRODUCT($Q65,VLOOKUP($J65,'Drop Down'!K:M,3,0))),"-") -> - | S65: =IF(O65="1","Cannot Bill","Ok") -> Ok | T65: 0 | U65: =IF($T65="",0,ROUND(PRODUCT(T65,0.7),2)) -> 0
A66: =IF(B66="Complete Provider Level","Select",'Fee For Service Roll Up'!$E$4) -> Select | B66: Complete Provider Level | C66: =IFERROR(VLOOKUP(Table1[[#This Row],[Child Name]],'Provider Level'!B:C,2,0),"-") -> - | D66: =IFERROR(VLOOKUP(Table1[[#This Row],[Child Name]],'Provider Level'!B:D,3,0),"-") -> - | E66: =IFERROR(VLOOKUP(Table1[[#This Row],[Child Name]],'Provider Level'!B:E,4,0),"-") -> - | F66: =IFERROR(VLOOKUP(Table1[[#This Row],[Child Name]],'Provider Level'!B:F,5,0),"-") -> - | G66: =IFERROR(VLOOKUP(Table1[[#This Row],[Child Name]],'Provider Level'!B:H,6,0),"-") -> - | H66: =IFERROR(VLOOKUP(Table1[[#This Row],[Child Name]],'Provider Level'!B:L,11,0),"-") -> - | I66: =IFERROR(VLOOKUP(Table1[[#This Row],[Child Name]],'Provider Level'!B:N,13,0),"-") -> - | J66: =IFERROR(VLOOKUP(Table1[[#This Row],[Child Name]],'Provider Level'!B:O,14,0),"-") -> - | K66: =IFERROR(VLOOKUP(Table1[[#This Row],[Child Name]],'Provider Level'!B:P,15,0),"-") -> - | L66: =IFERROR(VLOOKUP(Table1[[#This Row],[Child Name]],'Provider Level'!B:Q,16,0),"-") -> - | M66: =IFERROR(VLOOKUP(Table1[[#This Row],[Child Name]],'Provider Level'!B:R,17,0),"-") -> - | N66: 0 | O66: =IFERROR(IF(N66>VLOOKUP(M66,'Drop Down'!$A$3:$B$10,2,0),"1","0"),"-") -> - | P66: 0 | Q66: 0 | R66: =IFERROR(IF(M66="Select","Select Support Level", PRODUCT($Q66,VLOOKUP($J66,'Drop Down'!K:M,3,0))),"-") -> - | S66: Ok | T66: 0 | U66: 0
A67: =IF(B67="Complete Provider Level","Select",'Fee For Service Roll Up'!$E$4) -> Select | B67: Complete Provider Level | C67: =IFERROR(VLOOKUP(Table1[[#This Row],[Child Name]],'Provider Level'!B:C,2,0),"-") -> - | D67: =IFERROR(VLOOKUP(Table1[[#This Row],[Child Name]],'Provider Level'!B:D,3,0),"-") -> - | E67: =IFERROR(VLOOKUP(Table1[[#This Row],[Child Name]],'Provider Level'!B:E,4,0),"-") -> - | F67: =IFERROR(VLOOKUP(Table1[[#This Row],[Child Name]],'Provider Level'!B:F,5,0),"-") -> - | G67: =IFERROR(VLOOKUP(Table1[[#This Row],[Child Name]],'Provider Level'!B:H,6,0),"-") -> - | H67: =IFERROR(VLOOKUP(Table1[[#This Row],[Child Name]],'Provider Level'!B:L,11,0),"-") -> - | I67: =IFERROR(VLOOKUP(Table1[[#This Row],[Child Name]],'Provider Level'!B:N,13,0),"-") -> - | J67: =IFERROR(VLOOKUP(Table1[[#This Row],[Child Name]],'Provider Level'!B:O,14,0),"-") -> - | K67: =IFERROR(VLOOKUP(Table1[[#This Row],[Child Name]],'Provider Level'!B:P,15,0),"-") -> - | L67: =IFERROR(VLOOKUP(Table1[[#This Row],[Child Name]],'Provider Level'!B:Q,16,0),"-") -> - | M67: =IFERROR(VLOOKUP(Table1[[#This Row],[Child Name]],'Provider Level'!B:R,17,0),"-") -> - | N67: 0 | O67: =IFERROR(IF(N67>VLOOKUP(M67,'Drop Down'!$A$3:$B$10,2,0),"1","0"),"-") -> - | P67: 0 | Q67: 0 | R67: =IFERROR(IF(M67="Select","Select Support Level", PRODUCT($Q67,VLOOKUP($J67,'Drop Down'!K:M,3,0))),"-") -> - | S67: Ok | T67: 0 | U67: 0
A68: =IF(B68="Complete Provider Level","Select",'Fee For Service Roll Up'!$E$4) -> Select | B68: Complete Provider Level | C68: =IFERROR(VLOOKUP(Table1[[#This Row],[Child Name]],'Provider Level'!B:C,2,0),"-") -> - | D68: =IFERROR(VLOOKUP(Table1[[#This Row],[Child Name]],'Provider Level'!B:D,3,0),"-") -> - | E68: =IFERROR(VLOOKUP(Table1[[#This Row],[Child Name]],'Provider Level'!B:E,4,0),"-") -> - | F68: =IFERROR(VLOOKUP(Table1[[#This Row],[Child Name]],'Provider Level'!B:F,5,0),"-") -> - | G68: =IFERROR(VLOOKUP(Table1[[#This Row],[Child Name]],'Provider Level'!B:H,6,0),"-") -> - | H68: =IFERROR(VLOOKUP(Table1[[#This Row],[Child Name]],'Provider Level'!B:L,11,0),"-") -> - | I68: =IFERROR(VLOOKUP(Table1[[#This Row],[Child Name]],'Provider Level'!B:N,13,0),"-") -> - | J68: =IFERROR(VLOOKUP(Table1[[#This Row],[Child Name]],'Provider Level'!B:O,14,0),"-") -> - | K68: =IFERROR(VLOOKUP(Table1[[#This Row],[Child Name]],'Provider Level'!B:P,15,0),"-") -> - | L68: =IFERROR(VLOOKUP(Table1[[#This Row],[Child Name]],'Provider Level'!B:Q,16,0),"-") -> - | M68: =IFERROR(VLOOKUP(Table1[[#This Row],[Child Name]],'Provider Level'!B:R,17,0),"-") -> - | N68: 0 | O68: =IFERROR(IF(N68>VLOOKUP(M68,'Drop Down'!$A$3:$B$10,2,0),"1","0"),"-") -> - | P68: 0 | Q68: 0 | R68: =IFERROR(IF(M68="Select","Select Support Level", PRODUCT($Q68,VLOOKUP($J68,'Drop Down'!K:M,3,0))),"-") -> - | S68: Ok | T68: 0 | U68: 0
A69: =IF(B69="Complete Provider Level","Select",'Fee For Service Roll Up'!$E$4) -> Select | B69: Complete Provider Level | C69: =IFERROR(VLOOKUP(Table1[[#This Row],[Child Name]],'Provider Level'!B:C,2,0),"-") -> - | D69: =IFERROR(VLOOKUP(Table1[[#This Row],[Child Name]],'Provider Level'!B:D,3,0),"-") -> - | E69: =IFERROR(VLOOKUP(Table1[[#This Row],[Child Name]],'Provider Level'!B:E,4,0),"-") -> - | F69: =IFERROR(VLOOKUP(Table1[[#This Row],[Child Name]],'Provider Level'!B:F,5,0),"-") -> - | G69: =IFERROR(VLOOKUP(Table1[[#This Row],[Child Name]],'Provider Level'!B:H,6,0),"-") -> - | H69: =IFERROR(VLOOKUP(Table1[[#This Row],[Child Name]],'Provider Level'!B:L,11,0),"-") -> - | I69: =IFERROR(VLOOKUP(Table1[[#This Row],[Child Name]],'Provider Level'!B:N,13,0),"-") -> - | J69: =IFERROR(VLOOKUP(Table1[[#This Row],[Child Name]],'Provider Level'!B:O,14,0),"-") -> - | K69: =IFERROR(VLOOKUP(Table1[[#This Row],[Child Name]],'Provider Level'!B:P,15,0),"-") -> - | L69: =IFERROR(VLOOKUP(Table1[[#This Row],[Child Name]],'Provider Level'!B:Q,16,0),"-") -> - | M69: =IFERROR(VLOOKUP(Table1[[#This Row],[Child Name]],'Provider Level'!B:R,17,0),"-") -> - | N69: 0 | O69: =IFERROR(IF(N69>VLOOKUP(M69,'Drop Down'!$A$3:$B$10,2,0),"1","0"),"-") -> - | P69: 0 | Q69: 0 | R69: =IFERROR(IF(M69="Select","Select Support Level", PRODUCT($Q69,VLOOKUP($J69,'Drop Down'!K:M,3,0))),"-") -> - | S69: Ok | T69: 0 | U69: 0
A70: =IF(B70="Complete Provider Level","Select",'Fee For Service Roll Up'!$E$4) -> Select | B70: Complete Provider Level | C70: =IFERROR(VLOOKUP(Table1[[#This Row],[Child Name]],'Provider Level'!B:C,2,0),"-") -> - | D70: =IFERROR(VLOOKUP(Table1[[#This Row],[Child Name]],'Provider Level'!B:D,3,0),"-") -> - | E70: =IFERROR(VLOOKUP(Table1[[#This Row],[Child Name]],'Provider Level'!B:E,4,0),"-") -> - | F70: =IFERROR(VLOOKUP(Table1[[#This Row],[Child Name]],'Provider Level'!B:F,5,0),"-") -> - | G70: =IFERROR(VLOOKUP(Table1[[#This Row],[Child Name]],'Provider Level'!B:H,6,0),"-") -> - | H70: =IFERROR(VLOOKUP(Table1[[#This Row],[Child Name]],'Provider Level'!B:L,11,0),"-") -> - | I70: =IFERROR(VLOOKUP(Table1[[#This Row],[Child Name]],'Provider Level'!B:N,13,0),"-") -> - | J70: =IFERROR(VLOOKUP(Table1[[#This Row],[Child Name]],'Provider Level'!B:O,14,0),"-") -> - | K70: =IFERROR(VLOOKUP(Table1[[#This Row],[Child Name]],'Provider Level'!B:P,15,0),"-") -> - | L70: =IFERROR(VLOOKUP(Table1[[#This Row],[Child Name]],'Provider Level'!B:Q,16,0),"-") -> - | M70: =IFERROR(VLOOKUP(Table1[[#This Row],[Child Name]],'Provider Level'!B:R,17,0),"-") -> - | N70: 0 | O70: =IFERROR(IF(N70>VLOOKUP(M70,'Drop Down'!$A$3:$B$10,2,0),"1","0"),"-") -> - | P70: 0 | Q70: 0 | R70: =IFERROR(IF(M70="Select","Select Support Level", PRODUCT($Q70,VLOOKUP($J70,'Drop Down'!K:M,3,0))),"-") -> - | S70: Ok | T70: 0 | U70: 0
A71: =IF(B71="Complete Provider Level","Select",'Fee For Service Roll Up'!$E$4) -> Select | B71: Complete Provider Level | C71: =IFERROR(VLOOKUP(Table1[[#This Row],[Child Name]],'Provider Level'!B:C,2,0),"-") -> - | D71: =IFERROR(VLOOKUP(Table1[[#This Row],[Child Name]],'Provider Level'!B:D,3,0),"-") -> - | E71: =IFERROR(VLOOKUP(Table1[[#This Row],[Child Name]],'Provider Level'!B:E,4,0),"-") -> - | F71: =IFERROR(VLOOKUP(Table1[[#This Row],[Child Name]],'Provider Level'!B:F,5,0),"-") -> - | G71: =IFERROR(VLOOKUP(Table1[[#This Row],[Child Name]],'Provider Level'!B:H,6,0),"-") -> - | H71: =IFERROR(VLOOKUP(Table1[[#This Row],[Child Name]],'Provider Level'!B:L,11,0),"-") -> - | I71: =IFERROR(VLOOKUP(Table1[[#This Row],[Child Name]],'Provider Level'!B:N,13,0),"-") -> - | J71: =IFERROR(VLOOKUP(Table1[[#This Row],[Child Name]],'Provider Level'!B:O,14,0),"-") -> - | K71: =IFERROR(VLOOKUP(Table1[[#This Row],[Child Name]],'Provider Level'!B:P,15,0),"-") -> - | L71: =IFERROR(VLOOKUP(Table1[[#This Row],[Child Name]],'Provider Level'!B:Q,16,0),"-") -> - | M71: =IFERROR(VLOOKUP(Table1[[#This Row],[Child Name]],'Provider Level'!B:R,17,0),"-") -> - | N71: 0 | O71: =IFERROR(IF(N71>VLOOKUP(M71,'Drop Down'!$A$3:$B$10,2,0),"1","0"),"-") -> - | P71: 0 | Q71: 0 | R71: =IFERROR(IF(M71="Select","Select Support Level", PRODUCT($Q71,VLOOKUP($J71,'Drop Down'!K:M,3,0))),"-") -> - | S71: Ok | T71: 0 | U71: 0
A72: =IF(B72="Complete Provider Level","Select",'Fee For Service Roll Up'!$E$4) -> Select | B72: Complete Provider Level | C72: =IFERROR(VLOOKUP(Table1[[#This Row],[Child Name]],'Provider Level'!B:C,2,0),"-") -> - | D72: =IFERROR(VLOOKUP(Table1[[#This Row],[Child Name]],'Provider Level'!B:D,3,0),"-") -> - | E72: =IFERROR(VLOOKUP(Table1[[#This Row],[Child Name]],'Provider Level'!B:E,4,0),"-") -> - | F72: =IFERROR(VLOOKUP(Table1[[#This Row],[Child Name]],'Provider Level'!B:F,5,0),"-") -> - | G72: =IFERROR(VLOOKUP(Table1[[#This Row],[Child Name]],'Provider Level'!B:H,6,0),"-") -> - | H72: =IFERROR(VLOOKUP(Table1[[#This Row],[Child Name]],'Provider Level'!B:L,11,0),"-") -> - | I72: =IFERROR(VLOOKUP(Table1[[#This Row],[Child Name]],'Provider Level'!B:N,13,0),"-") -> - | J72: =IFERROR(VLOOKUP(Table1[[#This Row],[Child Name]],'Provider Level'!B:O,14,0),"-") -> - | K72: =IFERROR(VLOOKUP(Table1[[#This Row],[Child Name]],'Provider Level'!B:P,15,0),"-") -> - | L72: =IFERROR(VLOOKUP(Table1[[#This Row],[Child Name]],'Provider Level'!B:Q,16,0),"-") -> - | M72: =IFERROR(VLOOKUP(Table1[[#This Row],[Child Name]],'Provider Level'!B:R,17,0),"-") -> - | N72: 0 | O72: =IFERROR(IF(N72>VLOOKUP(M72,'Drop Down'!$A$3:$B$10,2,0),"1","0"),"-") -> - | P72: 0 | Q72: 0 | R72: =IFERROR(IF(M72="Select","Select Support Level", PRODUCT($Q72,VLOOKUP($J72,'Drop Down'!K:M,3,0))),"-") -> - | S72: Ok | T72: 0 | U72: 0
A73: =IF(B73="Complete Provider Level","Select",'Fee For Service Roll Up'!$E$4) -> Select | B73: Complete Provider Level | C73: =IFERROR(VLOOKUP(Table1[[#This Row],[Child Name]],'Provider Level'!B:C,2,0),"-") -> - | D73: =IFERROR(VLOOKUP(Table1[[#This Row],[Child Name]],'Provider Level'!B:D,3,0),"-") -> - | E73: =IFERROR(VLOOKUP(Table1[[#This Row],[Child Name]],'Provider Level'!B:E,4,0),"-") -> - | F73: =IFERROR(VLOOKUP(Table1[[#This Row],[Child Name]],'Provider Level'!B:F,5,0),"-") -> - | G73: =IFERROR(VLOOKUP(Table1[[#This Row],[Child Name]],'Provider Level'!B:H,6,0),"-") -> - | H73: =IFERROR(VLOOKUP(Table1[[#This Row],[Child Name]],'Provider Level'!B:L,11,0),"-") -> - | I73: =IFERROR(VLOOKUP(Table1[[#This Row],[Child Name]],'Provider Level'!B:N,13,0),"-") -> - | J73: =IFERROR(VLOOKUP(Table1[[#This Row],[Child Name]],'Provider Level'!B:O,14,0),"-") -> - | K73: =IFERROR(VLOOKUP(Table1[[#This Row],[Child Name]],'Provider Level'!B:P,15,0),"-") -> - | L73: =IFERROR(VLOOKUP(Table1[[#This Row],[Child Name]],'Provider Level'!B:Q,16,0),"-") -> - | M73: =IFERROR(VLOOKUP(Table1[[#This Row],[Child Name]],'Provider Level'!B:R,17,0),"-") -> - | N73: 0 | O73: =IFERROR(IF(N73>VLOOKUP(M73,'Drop Down'!$A$3:$B$10,2,0),"1","0"),"-") -> - | P73: 0 | Q73: 0 | R73: =IFERROR(IF(M73="Select","Select Support Level", PRODUCT($Q73,VLOOKUP($J73,'Drop Down'!K:M,3,0))),"-") -> - | S73: Ok | T73: 0 | U73: 0
A74: =IF(B74="Complete Provider Level","Select",'Fee For Service Roll Up'!$E$4) -> Select | B74: Complete Provider Level | C74: =IFERROR(VLOOKUP(Table1[[#This Row],[Child Name]],'Provider Level'!B:C,2,0),"-") -> - | D74: =IFERROR(VLOOKUP(Table1[[#This Row],[Child Name]],'Provider Level'!B:D,3,0),"-") -> - | E74: =IFERROR(VLOOKUP(Table1[[#This Row],[Child Name]],'Provider Level'!B:E,4,0),"-") -> - | F74: =IFERROR(VLOOKUP(Table1[[#This Row],[Child Name]],'Provider Level'!B:F,5,0),"-") -> - | G74: =IFERROR(VLOOKUP(Table1[[#This Row],[Child Name]],'Provider Level'!B:H,6,0),"-") -> - | H74: =IFERROR(VLOOKUP(Table1[[#This Row],[Child Name]],'Provider Level'!B:L,11,0),"-") -> - | I74: =IFERROR(VLOOKUP(Table1[[#This Row],[Child Name]],'Provider Level'!B:N,13,0),"-") -> - | J74: =IFERROR(VLOOKUP(Table1[[#This Row],[Child Name]],'Provider Level'!B:O,14,0),"-") -> - | K74: =IFERROR(VLOOKUP(Table1[[#This Row],[Child Name]],'Provider Level'!B:P,15,0),"-") -> - | L74: =IFERROR(VLOOKUP(Table1[[#This Row],[Child Name]],'Provider Level'!B:Q,16,0),"-") -> - | M74: =IFERROR(VLOOKUP(Table1[[#This Row],[Child Name]],'Provider Level'!B:R,17,0),"-") -> - | N74: 0 | O74: =IFERROR(IF(N74>VLOOKUP(M74,'Drop Down'!$A$3:$B$10,2,0),"1","0"),"-") -> - | P74: 0 | Q74: 0 | R74: =IFERROR(IF(M74="Select","Select Support Level", PRODUCT($Q74,VLOOKUP($J74,'Drop Down'!K:M,3,0))),"-") -> - | S74: Ok | T74: 0 | U74: 0
A75: =IF(B75="Complete Provider Level","Select",'Fee For Service Roll Up'!$E$4) -> Select | B75: Complete Provider Level | C75: =IFERROR(VLOOKUP(Table1[[#This Row],[Child Name]],'Provider Level'!B:C,2,0),"-") -> - | D75: =IFERROR(VLOOKUP(Table1[[#This Row],[Child Name]],'Provider Level'!B:D,3,0),"-") -> - | E75: =IFERROR(VLOOKUP(Table1[[#This Row],[Child Name]],'Provider Level'!B:E,4,0),"-") -> - | F75: =IFERROR(VLOOKUP(Table1[[#This Row],[Child Name]],'Provider Level'!B:F,5,0),"-") -> - | G75: =IFERROR(VLOOKUP(Table1[[#This Row],[Child Name]],'Provider Level'!B:H,6,0),"-") -> - | H75: =IFERROR(VLOOKUP(Table1[[#This Row],[Child Name]],'Provider Level'!B:L,11,0),"-") -> - | I75: =IFERROR(VLOOKUP(Table1[[#This Row],[Child Name]],'Provider Level'!B:N,13,0),"-") -> - | J75: =IFERROR(VLOOKUP(Table1[[#This Row],[Child Name]],'Provider Level'!B:O,14,0),"-") -> - | K75: =IFERROR(VLOOKUP(Table1[[#This Row],[Child Name]],'Provider Level'!B:P,15,0),"-") -> - | L75: =IFERROR(VLOOKUP(Table1[[#This Row],[Child Name]],'Provider Level'!B:Q,16,0),"-") -> - | M75: =IFERROR(VLOOKUP(Table1[[#This Row],[Child Name]],'Provider Level'!B:R,17,0),"-") -> - | N75: 0 | O75: =IFERROR(IF(N75>VLOOKUP(M75,'Drop Down'!$A$3:$B$10,2,0),"1","0"),"-") -> - | P75: 0 | Q75: 0 | R75: =IFERROR(IF(M75="Select","Select Support Level", PRODUCT($Q75,VLOOKUP($J75,'Drop Down'!K:M,3,0))),"-") -> - | S75: Ok | T75: 0 | U75: 0
A76: =IF(B76="Complete Provider Level","Select",'Fee For Service Roll Up'!$E$4) -> Select | B76: Complete Provider Level | C76: =IFERROR(VLOOKUP(Table1[[#This Row],[Child Name]],'Provider Level'!B:C,2,0),"-") -> - | D76: =IFERROR(VLOOKUP(Table1[[#This Row],[Child Name]],'Provider Level'!B:D,3,0),"-") -> - | E76: =IFERROR(VLOOKUP(Table1[[#This Row],[Child Name]],'Provider Level'!B:E,4,0),"-") -> - | F76: =IFERROR(VLOOKUP(Table1[[#This Row],[Child Name]],'Provider Level'!B:F,5,0),"-") -> - | G76: =IFERROR(VLOOKUP(Table1[[#This Row],[Child Name]],'Provider Level'!B:H,6,0),"-") -> - | H76: =IFERROR(VLOOKUP(Table1[[#This Row],[Child Name]],'Provider Level'!B:L,11,0),"-") -> - | I76: =IFERROR(VLOOKUP(Table1[[#This Row],[Child Name]],'Provider Level'!B:N,13,0),"-") -> - | J76: =IFERROR(VLOOKUP(Table1[[#This Row],[Child Name]],'Provider Level'!B:O,14,0),"-") -> - | K76: =IFERROR(VLOOKUP(Table1[[#This Row],[Child Name]],'Provider Level'!B:P,15,0),"-") -> - | L76: =IFERROR(VLOOKUP(Table1[[#This Row],[Child Name]],'Provider Level'!B:Q,16,0),"-") -> - | M76: =IFERROR(VLOOKUP(Table1[[#This Row],[Child Name]],'Provider Level'!B:R,17,0),"-") -> - | N76: 0 | O76: =IFERROR(IF(N76>VLOOKUP(M76,'Drop Down'!$A$3:$B$10,2,0),"1","0"),"-") -> - | P76: 0 | Q76: 0 | R76: =IFERROR(IF(M76="Select","Select Support Level", PRODUCT($Q76,VLOOKUP($J76,'Drop Down'!K:M,3,0))),"-") -> - | S76: Ok | T76: 0 | U76: 0
A77: =IF(B77="Complete Provider Level","Select",'Fee For Service Roll Up'!$E$4) -> Select | B77: Complete Provider Level | C77: =IFERROR(VLOOKUP(Table1[[#This Row],[Child Name]],'Provider Level'!B:C,2,0),"-") -> - | D77: =IFERROR(VLOOKUP(Table1[[#This Row],[Child Name]],'Provider Level'!B:D,3,0),"-") -> - | E77: =IFERROR(VLOOKUP(Table1[[#This Row],[Child Name]],'Provider Level'!B:E,4,0),"-") -> - | F77: =IFERROR(VLOOKUP(Table1[[#This Row],[Child Name]],'Provider Level'!B:F,5,0),"-") -> - | G77: =IFERROR(VLOOKUP(Table1[[#This Row],[Child Name]],'Provider Level'!B:H,6,0),"-") -> - | H77: =IFERROR(VLOOKUP(Table1[[#This Row],[Child Name]],'Provider Level'!B:L,11,0),"-") -> - | I77: =IFERROR(VLOOKUP(Table1[[#This Row],[Child Name]],'Provider Level'!B:N,13,0),"-") -> - | J77: =IFERROR(VLOOKUP(Table1[[#This Row],[Child Name]],'Provider Level'!B:O,14,0),"-") -> - | K77: =IFERROR(VLOOKUP(Table1[[#This Row],[Child Name]],'Provider Level'!B:P,15,0),"-") -> - | L77: =IFERROR(VLOOKUP(Table1[[#This Row],[Child Name]],'Provider Level'!B:Q,16,0),"-") -> - | M77: =IFERROR(VLOOKUP(Table1[[#This Row],[Child Name]],'Provider Level'!B:R,17,0),"-") -> - | N77: 0 | O77: =IFERROR(IF(N77>VLOOKUP(M77,'Drop Down'!$A$3:$B$10,2,0),"1","0"),"-") -> - | P77: 0 | Q77: 0 | R77: =IFERROR(IF(M77="Select","Select Support Level", PRODUCT($Q77,VLOOKUP($J77,'Drop Down'!K:M,3,0))),"-") -> - | S77: Ok | T77: 0 | U77: 0
A78: =IF(B78="Complete Provider Level","Select",'Fee For Service Roll Up'!$E$4) -> Select | B78: Complete Provider Level | C78: =IFERROR(VLOOKUP(Table1[[#This Row],[Child Name]],'Provider Level'!B:C,2,0),"-") -> - | D78: =IFERROR(VLOOKUP(Table1[[#This Row],[Child Name]],'Provider Level'!B:D,3,0),"-") -> - | E78: =IFERROR(VLOOKUP(Table1[[#This Row],[Child Name]],'Provider Level'!B:E,4,0),"-") -> - | F78: =IFERROR(VLOOKUP(Table1[[#This Row],[Child Name]],'Provider Level'!B:F,5,0),"-") -> - | G78: =IFERROR(VLOOKUP(Table1[[#This Row],[Child Name]],'Provider Level'!B:H,6,0),"-") -> - | H78: =IFERROR(VLOOKUP(Table1[[#This Row],[Child Name]],'Provider Level'!B:L,11,0),"-") -> - | I78: =IFERROR(VLOOKUP(Table1[[#This Row],[Child Name]],'Provider Level'!B:N,13,0),"-") -> - | J78: =IFERROR(VLOOKUP(Table1[[#This Row],[Child Name]],'Provider Level'!B:O,14,0),"-") -> - | K78: =IFERROR(VLOOKUP(Table1[[#This Row],[Child Name]],'Provider Level'!B:P,15,0),"-") -> - | L78: =IFERROR(VLOOKUP(Table1[[#This Row],[Child Name]],'Provider Level'!B:Q,16,0),"-") -> - | M78: =IFERROR(VLOOKUP(Table1[[#This Row],[Child Name]],'Provider Level'!B:R,17,0),"-") -> - | N78: 0 | O78: =IFERROR(IF(N78>VLOOKUP(M78,'Drop Down'!$A$3:$B$10,2,0),"1","0"),"-") -> - | P78: 0 | Q78: 0 | R78: =IFERROR(IF(M78="Select","Select Support Level", PRODUCT($Q78,VLOOKUP($J78,'Drop Down'!K:M,3,0))),"-") -> - | S78: Ok | T78: 0 | U78: 0
A79: =IF(B79="Complete Provider Level","Select",'Fee For Service Roll Up'!$E$4) -> Select | B79: Complete Provider Level | C79: =IFERROR(VLOOKUP(Table1[[#This Row],[Child Name]],'Provider Level'!B:C,2,0),"-") -> - | D79: =IFERROR(VLOOKUP(Table1[[#This Row],[Child Name]],'Provider Level'!B:D,3,0),"-") -> - | E79: =IFERROR(VLOOKUP(Table1[[#This Row],[Child Name]],'Provider Level'!B:E,4,0),"-") -> - | F79: =IFERROR(VLOOKUP(Table1[[#This Row],[Child Name]],'Provider Level'!B:F,5,0),"-") -> - | G79: =IFERROR(VLOOKUP(Table1[[#This Row],[Child Name]],'Provider Level'!B:H,6,0),"-") -> - | H79: =IFERROR(VLOOKUP(Table1[[#This Row],[Child Name]],'Provider Level'!B:L,11,0),"-") -> - | I79: =IFERROR(VLOOKUP(Table1[[#This Row],[Child Name]],'Provider Level'!B:N,13,0),"-") -> - | J79: =IFERROR(VLOOKUP(Table1[[#This Row],[Child Name]],'Provider Level'!B:O,14,0),"-") -> - | K79: =IFERROR(VLOOKUP(Table1[[#This Row],[Child Name]],'Provider Level'!B:P,15,0),"-") -> - | L79: =IFERROR(VLOOKUP(Table1[[#This Row],[Child Name]],'Provider Level'!B:Q,16,0),"-") -> - | M79: =IFERROR(VLOOKUP(Table1[[#This Row],[Child Name]],'Provider Level'!B:R,17,0),"-") -> - | N79: 0 | O79: =IFERROR(IF(N79>VLOOKUP(M79,'Drop Down'!$A$3:$B$10,2,0),"1","0"),"-") -> - | P79: 0 | Q79: 0 | R79: =IFERROR(IF(M79="Select","Select Support Level", PRODUCT($Q79,VLOOKUP($J79,'Drop Down'!K:M,3,0))),"-") -> - | S79: Ok | T79: 0 | U79: 0
A80: =IF(B80="Complete Provider Level","Select",'Fee For Service Roll Up'!$E$4) -> Select | B80: Complete Provider Level | C80: =IFERROR(VLOOKUP(Table1[[#This Row],[Child Name]],'Provider Level'!B:C,2,0),"-") -> - | D80: =IFERROR(VLOOKUP(Table1[[#This Row],[Child Name]],'Provider Level'!B:D,3,0),"-") -> - | E80: =IFERROR(VLOOKUP(Table1[[#This Row],[Child Name]],'Provider Level'!B:E,4,0),"-") -> - | F80: =IFERROR(VLOOKUP(Table1[[#This Row],[Child Name]],'Provider Level'!B:F,5,0),"-") -> - | G80: =IFERROR(VLOOKUP(Table1[[#This Row],[Child Name]],'Provider Level'!B:H,6,0),"-") -> - | H80: =IFERROR(VLOOKUP(Table1[[#This Row],[Child Name]],'Provider Level'!B:L,11,0),"-") -> - | I80: =IFERROR(VLOOKUP(Table1[[#This Row],[Child Name]],'Provider Level'!B:N,13,0),"-") -> - | J80: =IFERROR(VLOOKUP(Table1[[#This Row],[Child Name]],'Provider Level'!B:O,14,0),"-") -> - | K80: =IFERROR(VLOOKUP(Table1[[#This Row],[Child Name]],'Provider Level'!B:P,15,0),"-") -> - | L80: =IFERROR(VLOOKUP(Table1[[#This Row],[Child Name]],'Provider Level'!B:Q,16,0),"-") -> - | M80: =IFERROR(VLOOKUP(Table1[[#This Row],[Child Name]],'Provider Level'!B:R,17,0),"-") -> - | N80: 0 | O80: =IFERROR(IF(N80>VLOOKUP(M80,'Drop Down'!$A$3:$B$10,2,0),"1","0"),"-") -> - | P80: 0 | Q80: 0 | R80: =IFERROR(IF(M80="Select","Select Support Level", PRODUCT($Q80,VLOOKUP($J80,'Drop Down'!K:M,3,0))),"-") -> - | S80: Ok | T80: 0 | U80: 0
A81: =IF(B81="Complete Provider Level","Select",'Fee For Service Roll Up'!$E$4) -> Select | B81: Complete Provider Level | C81: =IFERROR(VLOOKUP(Table1[[#This Row],[Child Name]],'Provider Level'!B:C,2,0),"-") -> - | D81: =IFERROR(VLOOKUP(Table1[[#This Row],[Child Name]],'Provider Level'!B:D,3,0),"-") -> - | E81: =IFERROR(VLOOKUP(Table1[[#This Row],[Child Name]],'Provider Level'!B:E,4,0),"-") -> - | F81: =IFERROR(VLOOKUP(Table1[[#This Row],[Child Name]],'Provider Level'!B:F,5,0),"-") -> - | G81: =IFERROR(VLOOKUP(Table1[[#This Row],[Child Name]],'Provider Level'!B:H,6,0),"-") -> - | H81: =IFERROR(VLOOKUP(Table1[[#This Row],[Child Name]],'Provider Level'!B:L,11,0),"-") -> - | I81: =IFERROR(VLOOKUP(Table1[[#This Row],[Child Name]],'Provider Level'!B:N,13,0),"-") -> - | J81: =IFERROR(VLOOKUP(Table1[[#This Row],[Child Name]],'Provider Level'!B:O,14,0),"-") -> - | K81: =IFERROR(VLOOKUP(Table1[[#This Row],[Child Name]],'Provider Level'!B:P,15,0),"-") -> - | L81: =IFERROR(VLOOKUP(Table1[[#This Row],[Child Name]],'Provider Level'!B:Q,16,0),"-") -> - | M81: =IFERROR(VLOOKUP(Table1[[#This Row],[Child Name]],'Provider Level'!B:R,17,0),"-") -> - | N81: 0 | O81: =IFERROR(IF(N81>VLOOKUP(M81,'Drop Down'!$A$3:$B$10,2,0),"1","0"),"-") -> - | P81: 0 | Q81: 0 | R81: =IFERROR(IF(M81="Select","Select Support Level", PRODUCT($Q81,VLOOKUP($J81,'Drop Down'!K:M,3,0))),"-") -> - | S81: Ok | T81: 0 | U81: 0
A82: =IF(B82="Complete Provider Level","Select",'Fee For Service Roll Up'!$E$4) -> Select | B82: Complete Provider Level | C82: =IFERROR(VLOOKUP(Table1[[#This Row],[Child Name]],'Provider Level'!B:C,2,0),"-") -> - | D82: =IFERROR(VLOOKUP(Table1[[#This Row],[Child Name]],'Provider Level'!B:D,3,0),"-") -> - | E82: =IFERROR(VLOOKUP(Table1[[#This Row],[Child Name]],'Provider Level'!B:E,4,0),"-") -> - | F82: =IFERROR(VLOOKUP(Table1[[#This Row],[Child Name]],'Provider Level'!B:F,5,0),"-") -> - | G82: =IFERROR(VLOOKUP(Table1[[#This Row],[Child Name]],'Provider Level'!B:H,6,0),"-") -> - | H82: =IFERROR(VLOOKUP(Table1[[#This Row],[Child Name]],'Provider Level'!B:L,11,0),"-") -> - | I82: =IFERROR(VLOOKUP(Table1[[#This Row],[Child Name]],'Provider Level'!B:N,13,0),"-") -> - | J82: =IFERROR(VLOOKUP(Table1[[#This Row],[Child Name]],'Provider Level'!B:O,14,0),"-") -> - | K82: =IFERROR(VLOOKUP(Table1[[#This Row],[Child Name]],'Provider Level'!B:P,15,0),"-") -> - | L82: =IFERROR(VLOOKUP(Table1[[#This Row],[Child Name]],'Provider Level'!B:Q,16,0),"-") -> - | M82: =IFERROR(VLOOKUP(Table1[[#This Row],[Child Name]],'Provider Level'!B:R,17,0),"-") -> - | N82: 0 | O82: =IFERROR(IF(N82>VLOOKUP(M82,'Drop Down'!$A$3:$B$10,2,0),"1","0"),"-") -> - | P82: 0 | Q82: 0 | R82: =IFERROR(IF(M82="Select","Select Support Level", PRODUCT($Q82,VLOOKUP($J82,'Drop Down'!K:M,3,0))),"-") -> - | S82: Ok | T82: 0 | U82: 0
A83: =IF(B83="Complete Provider Level","Select",'Fee For Service Roll Up'!$E$4) -> Select | B83: Complete Provider Level | C83: =IFERROR(VLOOKUP(Table1[[#This Row],[Child Name]],'Provider Level'!B:C,2,0),"-") -> - | D83: =IFERROR(VLOOKUP(Table1[[#This Row],[Child Name]],'Provider Level'!B:D,3,0),"-") -> - | E83: =IFERROR(VLOOKUP(Table1[[#This Row],[Child Name]],'Provider Level'!B:E,4,0),"-") -> - | F83: =IFERROR(VLOOKUP(Table1[[#This Row],[Child Name]],'Provider Level'!B:F,5,0),"-") -> - | G83: =IFERROR(VLOOKUP(Table1[[#This Row],[Child Name]],'Provider Level'!B:H,6,0),"-") -> - | H83: =IFERROR(VLOOKUP(Table1[[#This Row],[Child Name]],'Provider Level'!B:L,11,0),"-") -> - | I83: =IFERROR(VLOOKUP(Table1[[#This Row],[Child Name]],'Provider Level'!B:N,13,0),"-") -> - | J83: =IFERROR(VLOOKUP(Table1[[#This Row],[Child Name]],'Provider Level'!B:O,14,0),"-") -> - | K83: =IFERROR(VLOOKUP(Table1[[#This Row],[Child Name]],'Provider Level'!B:P,15,0),"-") -> - | L83: =IFERROR(VLOOKUP(Table1[[#This Row],[Child Name]],'Provider Level'!B:Q,16,0),"-") -> - | M83: =IFERROR(VLOOKUP(Table1[[#This Row],[Child Name]],'Provider Level'!B:R,17,0),"-") -> - | N83: 0 | O83: =IFERROR(IF(N83>VLOOKUP(M83,'Drop Down'!$A$3:$B$10,2,0),"1","0"),"-") -> - | P83: 0 | Q83: 0 | R83: =IFERROR(IF(M83="Select","Select Support Level", PRODUCT($Q83,VLOOKUP($J83,'Drop Down'!K:M,3,0))),"-") -> - | S83: Ok | T83: 0 | U83: 0
A84: =IF(B84="Complete Provider Level","Select",'Fee For Service Roll Up'!$E$4) -> Select | B84: Complete Provider Level | C84: =IFERROR(VLOOKUP(Table1[[#This Row],[Child Name]],'Provider Level'!B:C,2,0),"-") -> - | D84: =IFERROR(VLOOKUP(Table1[[#This Row],[Child Name]],'Provider Level'!B:D,3,0),"-") -> - | E84: =IFERROR(VLOOKUP(Table1[[#This Row],[Child Name]],'Provider Level'!B:E,4,0),"-") -> - | F84: =IFERROR(VLOOKUP(Table1[[#This Row],[Child Name]],'Provider Level'!B:F,5,0),"-") -> - | G84: =IFERROR(VLOOKUP(Table1[[#This Row],[Child Name]],'Provider Level'!B:H,6,0),"-") -> - | H84: =IFERROR(VLOOKUP(Table1[[#This Row],[Child Name]],'Provider Level'!B:L,11,0),"-") -> - | I84: =IFERROR(VLOOKUP(Table1[[#This Row],[Child Name]],'Provider Level'!B:N,13,0),"-") -> - | J84: =IFERROR(VLOOKUP(Table1[[#This Row],[Child Name]],'Provider Level'!B:O,14,0),"-") -> - | K84: =IFERROR(VLOOKUP(Table1[[#This Row],[Child Name]],'Provider Level'!B:P,15,0),"-") -> - | L84: =IFERROR(VLOOKUP(Table1[[#This Row],[Child Name]],'Provider Level'!B:Q,16,0),"-") -> - | M84: =IFERROR(VLOOKUP(Table1[[#This Row],[Child Name]],'Provider Level'!B:R,17,0),"-") -> - | N84: 0 | O84: =IFERROR(IF(N84>VLOOKUP(M84,'Drop Down'!$A$3:$B$10,2,0),"1","0"),"-") -> - | P84: 0 | Q84: 0 | R84: =IFERROR(IF(M84="Select","Select Support Level", PRODUCT($Q84,VLOOKUP($J84,'Drop Down'!K:M,3,0))),"-") -> - | S84: Ok | T84: 0 | U84: 0
A85: =IF(B85="Complete Provider Level","Select",'Fee For Service Roll Up'!$E$4) -> Select | B85: Complete Provider Level | C85: =IFERROR(VLOOKUP(Table1[[#This Row],[Child Name]],'Provider Level'!B:C,2,0),"-") -> - | D85: =IFERROR(VLOOKUP(Table1[[#This Row],[Child Name]],'Provider Level'!B:D,3,0),"-") -> - | E85: =IFERROR(VLOOKUP(Table1[[#This Row],[Child Name]],'Provider Level'!B:E,4,0),"-") -> - | F85: =IFERROR(VLOOKUP(Table1[[#This Row],[Child Name]],'Provider Level'!B:F,5,0),"-") -> - | G85: =IFERROR(VLOOKUP(Table1[[#This Row],[Child Name]],'Provider Level'!B:H,6,0),"-") -> - | H85: =IFERROR(VLOOKUP(Table1[[#This Row],[Child Name]],'Provider Level'!B:L,11,0),"-") -> - | I85: =IFERROR(VLOOKUP(Table1[[#This Row],[Child Name]],'Provider Level'!B:N,13,0),"-") -> - | J85: =IFERROR(VLOOKUP(Table1[[#This Row],[Child Name]],'Provider Level'!B:O,14,0),"-") -> - | K85: =IFERROR(VLOOKUP(Table1[[#This Row],[Child Name]],'Provider Level'!B:P,15,0),"-") -> - | L85: =IFERROR(VLOOKUP(Table1[[#This Row],[Child Name]],'Provider Level'!B:Q,16,0),"-") -> - | M85: =IFERROR(VLOOKUP(Table1[[#This Row],[Child Name]],'Provider Level'!B:R,17,0),"-") -> - | N85: 0 | O85: =IFERROR(IF(N85>VLOOKUP(M85,'Drop Down'!$A$3:$B$10,2,0),"1","0"),"-") -> - | P85: 0 | Q85: 0 | R85: =IFERROR(IF(M85="Select","Select Support Level", PRODUCT($Q85,VLOOKUP($J85,'Drop Down'!K:M,3,0))),"-") -> - | S85: Ok | T85: 0 | U85: 0
A86: =IF(B86="Complete Provider Level","Select",'Fee For Service Roll Up'!$E$4) -> Select | B86: Complete Provider Level | C86: =IFERROR(VLOOKUP(Table1[[#This Row],[Child Name]],'Provider Level'!B:C,2,0),"-") -> - | D86: =IFERROR(VLOOKUP(Table1[[#This Row],[Child Name]],'Provider Level'!B:D,3,0),"-") -> - | E86: =IFERROR(VLOOKUP(Table1[[#This Row],[Child Name]],'Provider Level'!B:E,4,0),"-") -> - | F86: =IFERROR(VLOOKUP(Table1[[#This Row],[Child Name]],'Provider Level'!B:F,5,0),"-") -> - | G86: =IFERROR(VLOOKUP(Table1[[#This Row],[Child Name]],'Provider Level'!B:H,6,0),"-") -> - | H86: =IFERROR(VLOOKUP(Table1[[#This Row],[Child Name]],'Provider Level'!B:L,11,0),"-") -> - | I86: =IFERROR(VLOOKUP(Table1[[#This Row],[Child Name]],'Provider Level'!B:N,13,0),"-") -> - | J86: =IFERROR(VLOOKUP(Table1[[#This Row],[Child Name]],'Provider Level'!B:O,14,0),"-") -> - | K86: =IFERROR(VLOOKUP(Table1[[#This Row],[Child Name]],'Provider Level'!B:P,15,0),"-") -> - | L86: =IFERROR(VLOOKUP(Table1[[#This Row],[Child Name]],'Provider Level'!B:Q,16,0),"-") -> - | M86: =IFERROR(VLOOKUP(Table1[[#This Row],[Child Name]],'Provider Level'!B:R,17,0),"-") -> - | N86: 0 | O86: =IFERROR(IF(N86>VLOOKUP(M86,'Drop Down'!$A$3:$B$10,2,0),"1","0"),"-") -> - | P86: 0 | Q86: 0 | R86: =IFERROR(IF(M86="Select","Select Support Level", PRODUCT($Q86,VLOOKUP($J86,'Drop Down'!K:M,3,0))),"-") -> - | S86: Ok | T86: 0 | U86: 0
A87: =IF(B87="Complete Provider Level","Select",'Fee For Service Roll Up'!$E$4) -> Select | B87: Complete Provider Level | C87: =IFERROR(VLOOKUP(Table1[[#This Row],[Child Name]],'Provider Level'!B:C,2,0),"-") -> - | D87: =IFERROR(VLOOKUP(Table1[[#This Row],[Child Name]],'Provider Level'!B:D,3,0),"-") -> - | E87: =IFERROR(VLOOKUP(Table1[[#This Row],[Child Name]],'Provider Level'!B:E,4,0),"-") -> - | F87: =IFERROR(VLOOKUP(Table1[[#This Row],[Child Name]],'Provider Level'!B:F,5,0),"-") -> - | G87: =IFERROR(VLOOKUP(Table1[[#This Row],[Child Name]],'Provider Level'!B:H,6,0),"-") -> - | H87: =IFERROR(VLOOKUP(Table1[[#This Row],[Child Name]],'Provider Level'!B:L,11,0),"-") -> - | I87: =IFERROR(VLOOKUP(Table1[[#This Row],[Child Name]],'Provider Level'!B:N,13,0),"-") -> - | J87: =IFERROR(VLOOKUP(Table1[[#This Row],[Child Name]],'Provider Level'!B:O,14,0),"-") -> - | K87: =IFERROR(VLOOKUP(Table1[[#This Row],[Child Name]],'Provider Level'!B:P,15,0),"-") -> - | L87: =IFERROR(VLOOKUP(Table1[[#This Row],[Child Name]],'Provider Level'!B:Q,16,0),"-") -> - | M87: =IFERROR(VLOOKUP(Table1[[#This Row],[Child Name]],'Provider Level'!B:R,17,0),"-") -> - | N87: 0 | O87: =IFERROR(IF(N87>VLOOKUP(M87,'Drop Down'!$A$3:$B$10,2,0),"1","0"),"-") -> - | P87: 0 | Q87: 0 | R87: =IFERROR(IF(M87="Select","Select Support Level", PRODUCT($Q87,VLOOKUP($J87,'Drop Down'!K:M,3,0))),"-") -> - | S87: Ok | T87: 0 | U87: 0
A88: =IF(B88="Complete Provider Level","Select",'Fee For Service Roll Up'!$E$4) -> Select | B88: Complete Provider Level | C88: =IFERROR(VLOOKUP(Table1[[#This Row],[Child Name]],'Provider Level'!B:C,2,0),"-") -> - | D88: =IFERROR(VLOOKUP(Table1[[#This Row],[Child Name]],'Provider Level'!B:D,3,0),"-") -> - | E88: =IFERROR(VLOOKUP(Table1[[#This Row],[Child Name]],'Provider Level'!B:E,4,0),"-") -> - | F88: =IFERROR(VLOOKUP(Table1[[#This Row],[Child Name]],'Provider Level'!B:F,5,0),"-") -> - | G88: =IFERROR(VLOOKUP(Table1[[#This Row],[Child Name]],'Provider Level'!B:H,6,0),"-") -> - | H88: =IFERROR(VLOOKUP(Table1[[#This Row],[Child Name]],'Provider Level'!B:L,11,0),"-") -> - | I88: =IFERROR(VLOOKUP(Table1[[#This Row],[Child Name]],'Provider Level'!B:N,13,0),"-") -> - | J88: =IFERROR(VLOOKUP(Table1[[#This Row],[Child Name]],'Provider Level'!B:O,14,0),"-") -> - | K88: =IFERROR(VLOOKUP(Table1[[#This Row],[Child Name]],'Provider Level'!B:P,15,0),"-") -> - | L88: =IFERROR(VLOOKUP(Table1[[#This Row],[Child Name]],'Provider Level'!B:Q,16,0),"-") -> - | M88: =IFERROR(VLOOKUP(Table1[[#This Row],[Child Name]],'Provider Level'!B:R,17,0),"-") -> - | N88: 0 | O88: =IFERROR(IF(N88>VLOOKUP(M88,'Drop Down'!$A$3:$B$10,2,0),"1","0"),"-") -> - | P88: 0 | Q88: 0 | R88: =IFERROR(IF(M88="Select","Select Support Level", PRODUCT($Q88,VLOOKUP($J88,'Drop Down'!K:M,3,0))),"-") -> - | S88: Ok | T88: 0 | U88: 0
A89: =IF(B89="Complete Provider Level","Select",'Fee For Service Roll Up'!$E$4) -> Select | B89: Complete Provider Level | C89: =IFERROR(VLOOKUP(Table1[[#This Row],[Child Name]],'Provider Level'!B:C,2,0),"-") -> - | D89: =IFERROR(VLOOKUP(Table1[[#This Row],[Child Name]],'Provider Level'!B:D,3,0),"-") -> - | E89: =IFERROR(VLOOKUP(Table1[[#This Row],[Child Name]],'Provider Level'!B:E,4,0),"-") -> - | F89: =IFERROR(VLOOKUP(Table1[[#This Row],[Child Name]],'Provider Level'!B:F,5,0),"-") -> - | G89: =IFERROR(VLOOKUP(Table1[[#This Row],[Child Name]],'Provider Level'!B:H,6,0),"-") -> - | H89: =IFERROR(VLOOKUP(Table1[[#This Row],[Child Name]],'Provider Level'!B:L,11,0),"-") -> - | I89: =IFERROR(VLOOKUP(Table1[[#This Row],[Child Name]],'Provider Level'!B:N,13,0),"-") -> - | J89: =IFERROR(VLOOKUP(Table1[[#This Row],[Child Name]],'Provider Level'!B:O,14,0),"-") -> - | K89: =IFERROR(VLOOKUP(Table1[[#This Row],[Child Name]],'Provider Level'!B:P,15,0),"-") -> - | L89: =IFERROR(VLOOKUP(Table1[[#This Row],[Child Name]],'Provider Level'!B:Q,16,0),"-") -> - | M89: =IFERROR(VLOOKUP(Table1[[#This Row],[Child Name]],'Provider Level'!B:R,17,0),"-") -> - | N89: 0 | O89: =IFERROR(IF(N89>VLOOKUP(M89,'Drop Down'!$A$3:$B$10,2,0),"1","0"),"-") -> - | P89: 0 | Q89: 0 | R89: =IFERROR(IF(M89="Select","Select Support Level", PRODUCT($Q89,VLOOKUP($J89,'Drop Down'!K:M,3,0))),"-") -> - | S89: Ok | T89: 0 | U89: 0
A90: =IF(B90="Complete Provider Level","Select",'Fee For Service Roll Up'!$E$4) -> Select | B90: Complete Provider Level | C90: =IFERROR(VLOOKUP(Table1[[#This Row],[Child Name]],'Provider Level'!B:C,2,0),"-") -> - | D90: =IFERROR(VLOOKUP(Table1[[#This Row],[Child Name]],'Provider Level'!B:D,3,0),"-") -> - | E90: =IFERROR(VLOOKUP(Table1[[#This Row],[Child Name]],'Provider Level'!B:E,4,0),"-") -> - | F90: =IFERROR(VLOOKUP(Table1[[#This Row],[Child Name]],'Provider Level'!B:F,5,0),"-") -> - | G90: =IFERROR(VLOOKUP(Table1[[#This Row],[Child Name]],'Provider Level'!B:H,6,0),"-") -> - | H90: =IFERROR(VLOOKUP(Table1[[#This Row],[Child Name]],'Provider Level'!B:L,11,0),"-") -> - | I90: =IFERROR(VLOOKUP(Table1[[#This Row],[Child Name]],'Provider Level'!B:N,13,0),"-") -> - | J90: =IFERROR(VLOOKUP(Table1[[#This Row],[Child Name]],'Provider Level'!B:O,14,0),"-") -> - | K90: =IFERROR(VLOOKUP(Table1[[#This Row],[Child Name]],'Provider Level'!B:P,15,0),"-") -> - | L90: =IFERROR(VLOOKUP(Table1[[#This Row],[Child Name]],'Provider Level'!B:Q,16,0),"-") -> - | M90: =IFERROR(VLOOKUP(Table1[[#This Row],[Child Name]],'Provider Level'!B:R,17,0),"-") -> - | N90: 0 | O90: =IFERROR(IF(N90>VLOOKUP(M90,'Drop Down'!$A$3:$B$10,2,0),"1","0"),"-") -> - | P90: 0 | Q90: 0 | R90: =IFERROR(IF(M90="Select","Select Support Level", PRODUCT($Q90,VLOOKUP($J90,'Drop Down'!K:M,3,0))),"-") -> - | S90: Ok | T90: 0 | U90: 0
A91: =IF(B91="Complete Provider Level","Select",'Fee For Service Roll Up'!$E$4) -> Select | B91: Complete Provider Level | C91: =IFERROR(VLOOKUP(Table1[[#This Row],[Child Name]],'Provider Level'!B:C,2,0),"-") -> - | D91: =IFERROR(VLOOKUP(Table1[[#This Row],[Child Name]],'Provider Level'!B:D,3,0),"-") -> - | E91: =IFERROR(VLOOKUP(Table1[[#This Row],[Child Name]],'Provider Level'!B:E,4,0),"-") -> - | F91: =IFERROR(VLOOKUP(Table1[[#This Row],[Child Name]],'Provider Level'!B:F,5,0),"-") -> - | G91: =IFERROR(VLOOKUP(Table1[[#This Row],[Child Name]],'Provider Level'!B:H,6,0),"-") -> - | H91: =IFERROR(VLOOKUP(Table1[[#This Row],[Child Name]],'Provider Level'!B:L,11,0),"-") -> - | I91: =IFERROR(VLOOKUP(Table1[[#This Row],[Child Name]],'Provider Level'!B:N,13,0),"-") -> - | J91: =IFERROR(VLOOKUP(Table1[[#This Row],[Child Name]],'Provider Level'!B:O,14,0),"-") -> - | K91: =IFERROR(VLOOKUP(Table1[[#This Row],[Child Name]],'Provider Level'!B:P,15,0),"-") -> - | L91: =IFERROR(VLOOKUP(Table1[[#This Row],[Child Name]],'Provider Level'!B:Q,16,0),"-") -> - | M91: =IFERROR(VLOOKUP(Table1[[#This Row],[Child Name]],'Provider Level'!B:R,17,0),"-") -> - | N91: 0 | O91: =IFERROR(IF(N91>VLOOKUP(M91,'Drop Down'!$A$3:$B$10,2,0),"1","0"),"-") -> - | P91: 0 | Q91: 0 | R91: =IFERROR(IF(M91="Select","Select Support Level", PRODUCT($Q91,VLOOKUP($J91,'Drop Down'!K:M,3,0))),"-") -> - | S91: Ok | T91: 0 | U91: 0
A92: =IF(B92="Complete Provider Level","Select",'Fee For Service Roll Up'!$E$4) -> Select | B92: Complete Provider Level | C92: =IFERROR(VLOOKUP(Table1[[#This Row],[Child Name]],'Provider Level'!B:C,2,0),"-") -> - | D92: =IFERROR(VLOOKUP(Table1[[#This Row],[Child Name]],'Provider Level'!B:D,3,0),"-") -> - | E92: =IFERROR(VLOOKUP(Table1[[#This Row],[Child Name]],'Provider Level'!B:E,4,0),"-") -> - | F92: =IFERROR(VLOOKUP(Table1[[#This Row],[Child Name]],'Provider Level'!B:F,5,0),"-") -> - | G92: =IFERROR(VLOOKUP(Table1[[#This Row],[Child Name]],'Provider Level'!B:H,6,0),"-") -> - | H92: =IFERROR(VLOOKUP(Table1[[#This Row],[Child Name]],'Provider Level'!B:L,11,0),"-") -> - | I92: =IFERROR(VLOOKUP(Table1[[#This Row],[Child Name]],'Provider Level'!B:N,13,0),"-") -> - | J92: =IFERROR(VLOOKUP(Table1[[#This Row],[Child Name]],'Provider Level'!B:O,14,0),"-") -> - | K92: =IFERROR(VLOOKUP(Table1[[#This Row],[Child Name]],'Provider Level'!B:P,15,0),"-") -> - | L92: =IFERROR(VLOOKUP(Table1[[#This Row],[Child Name]],'Provider Level'!B:Q,16,0),"-") -> - | M92: =IFERROR(VLOOKUP(Table1[[#This Row],[Child Name]],'Provider Level'!B:R,17,0),"-") -> - | N92: 0 | O92: =IFERROR(IF(N92>VLOOKUP(M92,'Drop Down'!$A$3:$B$10,2,0),"1","0"),"-") -> - | P92: 0 | Q92: 0 | R92: =IFERROR(IF(M92="Select","Select Support Level", PRODUCT($Q92,VLOOKUP($J92,'Drop Down'!K:M,3,0))),"-") -> - | S92: Ok | T92: 0 | U92: 0
A93: =IF(B93="Complete Provider Level","Select",'Fee For Service Roll Up'!$E$4) -> Select | B93: Complete Provider Level | C93: =IFERROR(VLOOKUP(Table1[[#This Row],[Child Name]],'Provider Level'!B:C,2,0),"-") -> - | D93: =IFERROR(VLOOKUP(Table1[[#This Row],[Child Name]],'Provider Level'!B:D,3,0),"-") -> - | E93: =IFERROR(VLOOKUP(Table1[[#This Row],[Child Name]],'Provider Level'!B:E,4,0),"-") -> - | F93: =IFERROR(VLOOKUP(Table1[[#This Row],[Child Name]],'Provider Level'!B:F,5,0),"-") -> - | G93: =IFERROR(VLOOKUP(Table1[[#This Row],[Child Name]],'Provider Level'!B:H,6,0),"-") -> - | H93: =IFERROR(VLOOKUP(Table1[[#This Row],[Child Name]],'Provider Level'!B:L,11,0),"-") -> - | I93: =IFERROR(VLOOKUP(Table1[[#This Row],[Child Name]],'Provider Level'!B:N,13,0),"-") -> - | J93: =IFERROR(VLOOKUP(Table1[[#This Row],[Child Name]],'Provider Level'!B:O,14,0),"-") -> - | K93: =IFERROR(VLOOKUP(Table1[[#This Row],[Child Name]],'Provider Level'!B:P,15,0),"-") -> - | L93: =IFERROR(VLOOKUP(Table1[[#This Row],[Child Name]],'Provider Level'!B:Q,16,0),"-") -> - | M93: =IFERROR(VLOOKUP(Table1[[#This Row],[Child Name]],'Provider Level'!B:R,17,0),"-") -> - | N93: 0 | O93: =IFERROR(IF(N93>VLOOKUP(M93,'Drop Down'!$A$3:$B$10,2,0),"1","0"),"-") -> - | P93: 0 | Q93: 0 | R93: =IFERROR(IF(M93="Select","Select Support Level", PRODUCT($Q93,VLOOKUP($J93,'Drop Down'!K:M,3,0))),"-") -> - | S93: Ok | T93: 0 | U93: 0
A94: =IF(B94="Complete Provider Level","Select",'Fee For Service Roll Up'!$E$4) -> Select | B94: Complete Provider Level | C94: =IFERROR(VLOOKUP(Table1[[#This Row],[Child Name]],'Provider Level'!B:C,2,0),"-") -> - | D94: =IFERROR(VLOOKUP(Table1[[#This Row],[Child Name]],'Provider Level'!B:D,3,0),"-") -> - | E94: =IFERROR(VLOOKUP(Table1[[#This Row],[Child Name]],'Provider Level'!B:E,4,0),"-") -> - | F94: =IFERROR(VLOOKUP(Table1[[#This Row],[Child Name]],'Provider Level'!B:F,5,0),"-") -> - | G94: =IFERROR(VLOOKUP(Table1[[#This Row],[Child Name]],'Provider Level'!B:H,6,0),"-") -> - | H94: =IFERROR(VLOOKUP(Table1[[#This Row],[Child Name]],'Provider Level'!B:L,11,0),"-") -> - | I94: =IFERROR(VLOOKUP(Table1[[#This Row],[Child Name]],'Provider Level'!B:N,13,0),"-") -> - | J94: =IFERROR(VLOOKUP(Table1[[#This Row],[Child Name]],'Provider Level'!B:O,14,0),"-") -> - | K94: =IFERROR(VLOOKUP(Table1[[#This Row],[Child Name]],'Provider Level'!B:P,15,0),"-") -> - | L94: =IFERROR(VLOOKUP(Table1[[#This Row],[Child Name]],'Provider Level'!B:Q,16,0),"-") -> - | M94: =IFERROR(VLOOKUP(Table1[[#This Row],[Child Name]],'Provider Level'!B:R,17,0),"-") -> - | N94: 0 | O94: =IFERROR(IF(N94>VLOOKUP(M94,'Drop Down'!$A$3:$B$10,2,0),"1","0"),"-") -> - | P94: 0 | Q94: 0 | R94: =IFERROR(IF(M94="Select","Select Support Level", PRODUCT($Q94,VLOOKUP($J94,'Drop Down'!K:M,3,0))),"-") -> - | S94: Ok | T94: 0 | U94: 0
A95: =IF(B95="Complete Provider Level","Select",'Fee For Service Roll Up'!$E$4) -> Select | B95: Complete Provider Level | C95: =IFERROR(VLOOKUP(Table1[[#This Row],[Child Name]],'Provider Level'!B:C,2,0),"-") -> - | D95: =IFERROR(VLOOKUP(Table1[[#This Row],[Child Name]],'Provider Level'!B:D,3,0),"-") -> - | E95: =IFERROR(VLOOKUP(Table1[[#This Row],[Child Name]],'Provider Level'!B:E,4,0),"-") -> - | F95: =IFERROR(VLOOKUP(Table1[[#This Row],[Child Name]],'Provider Level'!B:F,5,0),"-") -> - | G95: =IFERROR(VLOOKUP(Table1[[#This Row],[Child Name]],'Provider Level'!B:H,6,0),"-") -> - | H95: =IFERROR(VLOOKUP(Table1[[#This Row],[Child Name]],'Provider Level'!B:L,11,0),"-") -> - | I95: =IFERROR(VLOOKUP(Table1[[#This Row],[Child Name]],'Provider Level'!B:N,13,0),"-") -> - | J95: =IFERROR(VLOOKUP(Table1[[#This Row],[Child Name]],'Provider Level'!B:O,14,0),"-") -> - | K95: =IFERROR(VLOOKUP(Table1[[#This Row],[Child Name]],'Provider Level'!B:P,15,0),"-") -> - | L95: =IFERROR(VLOOKUP(Table1[[#This Row],[Child Name]],'Provider Level'!B:Q,16,0),"-") -> - | M95: =IFERROR(VLOOKUP(Table1[[#This Row],[Child Name]],'Provider Level'!B:R,17,0),"-") -> - | N95: 0 | O95: =IFERROR(IF(N95>VLOOKUP(M95,'Drop Down'!$A$3:$B$10,2,0),"1","0"),"-") -> - | P95: 0 | Q95: 0 | R95: =IFERROR(IF(M95="Select","Select Support Level", PRODUCT($Q95,VLOOKUP($J95,'Drop Down'!K:M,3,0))),"-") -> - | S95: Ok | T95: 0 | U95: 0
A96: =IF(B96="Complete Provider Level","Select",'Fee For Service Roll Up'!$E$4) -> Select | B96: Complete Provider Level | C96: =IFERROR(VLOOKUP(Table1[[#This Row],[Child Name]],'Provider Level'!B:C,2,0),"-") -> - | D96: =IFERROR(VLOOKUP(Table1[[#This Row],[Child Name]],'Provider Level'!B:D,3,0),"-") -> - | E96: =IFERROR(VLOOKUP(Table1[[#This Row],[Child Name]],'Provider Level'!B:E,4,0),"-") -> - | F96: =IFERROR(VLOOKUP(Table1[[#This Row],[Child Name]],'Provider Level'!B:F,5,0),"-") -> - | G96: =IFERROR(VLOOKUP(Table1[[#This Row],[Child Name]],'Provider Level'!B:H,6,0),"-") -> - | H96: =IFERROR(VLOOKUP(Table1[[#This Row],[Child Name]],'Provider Level'!B:L,11,0),"-") -> - | I96: =IFERROR(VLOOKUP(Table1[[#This Row],[Child Name]],'Provider Level'!B:N,13,0),"-") -> - | J96: =IFERROR(VLOOKUP(Table1[[#This Row],[Child Name]],'Provider Level'!B:O,14,0),"-") -> - | K96: =IFERROR(VLOOKUP(Table1[[#This Row],[Child Name]],'Provider Level'!B:P,15,0),"-") -> - | L96: =IFERROR(VLOOKUP(Table1[[#This Row],[Child Name]],'Provider Level'!B:Q,16,0),"-") -> - | M96: =IFERROR(VLOOKUP(Table1[[#This Row],[Child Name]],'Provider Level'!B:R,17,0),"-") -> - | N96: 0 | O96: =IFERROR(IF(N96>VLOOKUP(M96,'Drop Down'!$A$3:$B$10,2,0),"1","0"),"-") -> - | P96: 0 | Q96: 0 | R96: =IFERROR(IF(M96="Select","Select Support Level", PRODUCT($Q96,VLOOKUP($J96,'Drop Down'!K:M,3,0))),"-") -> - | S96: Ok | T96: 0 | U96: 0
A97: =IF(B97="Complete Provider Level","Select",'Fee For Service Roll Up'!$E$4) -> Select | B97: Complete Provider Level | C97: =IFERROR(VLOOKUP(Table1[[#This Row],[Child Name]],'Provider Level'!B:C,2,0),"-") -> - | D97: =IFERROR(VLOOKUP(Table1[[#This Row],[Child Name]],'Provider Level'!B:D,3,0),"-") -> - | E97: =IFERROR(VLOOKUP(Table1[[#This Row],[Child Name]],'Provider Level'!B:E,4,0),"-") -> - | F97: =IFERROR(VLOOKUP(Table1[[#This Row],[Child Name]],'Provider Level'!B:F,5,0),"-") -> - | G97: =IFERROR(VLOOKUP(Table1[[#This Row],[Child Name]],'Provider Level'!B:H,6,0),"-") -> - | H97: =IFERROR(VLOOKUP(Table1[[#This Row],[Child Name]],'Provider Level'!B:L,11,0),"-") -> - | I97: =IFERROR(VLOOKUP(Table1[[#This Row],[Child Name]],'Provider Level'!B:N,13,0),"-") -> - | J97: =IFERROR(VLOOKUP(Table1[[#This Row],[Child Name]],'Provider Level'!B:O,14,0),"-") -> - | K97: =IFERROR(VLOOKUP(Table1[[#This Row],[Child Name]],'Provider Level'!B:P,15,0),"-") -> - | L97: =IFERROR(VLOOKUP(Table1[[#This Row],[Child Name]],'Provider Level'!B:Q,16,0),"-") -> - | M97: =IFERROR(VLOOKUP(Table1[[#This Row],[Child Name]],'Provider Level'!B:R,17,0),"-") -> - | N97: 0 | O97: =IFERROR(IF(N97>VLOOKUP(M97,'Drop Down'!$A$3:$B$10,2,0),"1","0"),"-") -> - | P97: 0 | Q97: 0 | R97: =IFERROR(IF(M97="Select","Select Support Level", PRODUCT($Q97,VLOOKUP($J97,'Drop Down'!K:M,3,0))),"-") -> - | S97: Ok | T97: 0 | U97: 0
A98: =IF(B98="Complete Provider Level","Select",'Fee For Service Roll Up'!$E$4) -> Select | B98: Complete Provider Level | C98: =IFERROR(VLOOKUP(Table1[[#This Row],[Child Name]],'Provider Level'!B:C,2,0),"-") -> - | D98: =IFERROR(VLOOKUP(Table1[[#This Row],[Child Name]],'Provider Level'!B:D,3,0),"-") -> - | E98: =IFERROR(VLOOKUP(Table1[[#This Row],[Child Name]],'Provider Level'!B:E,4,0),"-") -> - | F98: =IFERROR(VLOOKUP(Table1[[#This Row],[Child Name]],'Provider Level'!B:F,5,0),"-") -> - | G98: =IFERROR(VLOOKUP(Table1[[#This Row],[Child Name]],'Provider Level'!B:H,6,0),"-") -> - | H98: =IFERROR(VLOOKUP(Table1[[#This Row],[Child Name]],'Provider Level'!B:L,11,0),"-") -> - | I98: =IFERROR(VLOOKUP(Table1[[#This Row],[Child Name]],'Provider Level'!B:N,13,0),"-") -> - | J98: =IFERROR(VLOOKUP(Table1[[#This Row],[Child Name]],'Provider Level'!B:O,14,0),"-") -> - | K98: =IFERROR(VLOOKUP(Table1[[#This Row],[Child Name]],'Provider Level'!B:P,15,0),"-") -> - | L98: =IFERROR(VLOOKUP(Table1[[#This Row],[Child Name]],'Provider Level'!B:Q,16,0),"-") -> - | M98: =IFERROR(VLOOKUP(Table1[[#This Row],[Child Name]],'Provider Level'!B:R,17,0),"-") -> - | N98: 0 | O98: =IFERROR(IF(N98>VLOOKUP(M98,'Drop Down'!$A$3:$B$10,2,0),"1","0"),"-") -> - | P98: 0 | Q98: 0 | R98: =IFERROR(IF(M98="Select","Select Support Level", PRODUCT($Q98,VLOOKUP($J98,'Drop Down'!K:M,3,0))),"-") -> - | S98: Ok | T98: 0 | U98: 0
A99: =IF(B99="Complete Provider Level","Select",'Fee For Service Roll Up'!$E$4) -> Select | B99: Complete Provider Level | C99: =IFERROR(VLOOKUP(Table1[[#This Row],[Child Name]],'Provider Level'!B:C,2,0),"-") -> - | D99: =IFERROR(VLOOKUP(Table1[[#This Row],[Child Name]],'Provider Level'!B:D,3,0),"-") -> - | E99: =IFERROR(VLOOKUP(Table1[[#This Row],[Child Name]],'Provider Level'!B:E,4,0),"-") -> - | F99: =IFERROR(VLOOKUP(Table1[[#This Row],[Child Name]],'Provider Level'!B:F,5,0),"-") -> - | G99: =IFERROR(VLOOKUP(Table1[[#This Row],[Child Name]],'Provider Level'!B:H,6,0),"-") -> - | H99: =IFERROR(VLOOKUP(Table1[[#This Row],[Child Name]],'Provider Level'!B:L,11,0),"-") -> - | I99: =IFERROR(VLOOKUP(Table1[[#This Row],[Child Name]],'Provider Level'!B:N,13,0),"-") -> - | J99: =IFERROR(VLOOKUP(Table1[[#This Row],[Child Name]],'Provider Level'!B:O,14,0),"-") -> - | K99: =IFERROR(VLOOKUP(Table1[[#This Row],[Child Name]],'Provider Level'!B:P,15,0),"-") -> - | L99: =IFERROR(VLOOKUP(Table1[[#This Row],[Child Name]],'Provider Level'!B:Q,16,0),"-") -> - | M99: =IFERROR(VLOOKUP(Table1[[#This Row],[Child Name]],'Provider Level'!B:R,17,0),"-") -> - | N99: 0 | O99: =IFERROR(IF(N99>VLOOKUP(M99,'Drop Down'!$A$3:$B$10,2,0),"1","0"),"-") -> - | P99: 0 | Q99: 0 | R99: =IFERROR(IF(M99="Select","Select Support Level", PRODUCT($Q99,VLOOKUP($J99,'Drop Down'!K:M,3,0))),"-") -> - | S99: Ok | T99: 0 | U99: 0
A100: =IF(B100="Complete Provider Level","Select",'Fee For Service Roll Up'!$E$4) -> Select | B100: Complete Provider Level | C100: =IFERROR(VLOOKUP(Table1[[#This Row],[Child Name]],'Provider Level'!B:C,2,0),"-") -> - | D100: =IFERROR(VLOOKUP(Table1[[#This Row],[Child Name]],'Provider Level'!B:D,3,0),"-") -> - | E100: =IFERROR(VLOOKUP(Table1[[#This Row],[Child Name]],'Provider Level'!B:E,4,0),"-") -> - | F100: =IFERROR(VLOOKUP(Table1[[#This Row],[Child Name]],'Provider Level'!B:F,5,0),"-") -> - | G100: =IFERROR(VLOOKUP(Table1[[#This Row],[Child Name]],'Provider Level'!B:H,6,0),"-") -> - | H100: =IFERROR(VLOOKUP(Table1[[#This Row],[Child Name]],'Provider Level'!B:L,11,0),"-") -> - | I100: =IFERROR(VLOOKUP(Table1[[#This Row],[Child Name]],'Provider Level'!B:N,13,0),"-") -> - | J100: =IFERROR(VLOOKUP(Table1[[#This Row],[Child Name]],'Provider Level'!B:O,14,0),"-") -> - | K100: =IFERROR(VLOOKUP(Table1[[#This Row],[Child Name]],'Provider Level'!B:P,15,0),"-") -> - | L100: =IFERROR(VLOOKUP(Table1[[#This Row],[Child Name]],'Provider Level'!B:Q,16,0),"-") -> - | M100: =IFERROR(VLOOKUP(Table1[[#This Row],[Child Name]],'Provider Level'!B:R,17,0),"-") -> - | N100: 0 | O100: =IFERROR(IF(N100>VLOOKUP(M100,'Drop Down'!$A$3:$B$10,2,0),"1","0"),"-") -> - | P100: 0 | Q100: 0 | R100: =IFERROR(IF(M100="Select","Select Support Level", PRODUCT($Q100,VLOOKUP($J100,'Drop Down'!K:M,3,0))),"-") -> - | S100: Ok | T100: 0 | U100: 0
A101: =IF(B101="Complete Provider Level","Select",'Fee For Service Roll Up'!$E$4) -> Select | B101: Complete Provider Level | C101: =IFERROR(VLOOKUP(Table1[[#This Row],[Child Name]],'Provider Level'!B:C,2,0),"-") -> - | D101: =IFERROR(VLOOKUP(Table1[[#This Row],[Child Name]],'Provider Level'!B:D,3,0),"-") -> - | E101: =IFERROR(VLOOKUP(Table1[[#This Row],[Child Name]],'Provider Level'!B:E,4,0),"-") -> - | F101: =IFERROR(VLOOKUP(Table1[[#This Row],[Child Name]],'Provider Level'!B:F,5,0),"-") -> - | G101: =IFERROR(VLOOKUP(Table1[[#This Row],[Child Name]],'Provider Level'!B:H,6,0),"-") -> - | H101: =IFERROR(VLOOKUP(Table1[[#This Row],[Child Name]],'Provider Level'!B:L,11,0),"-") -> - | I101: =IFERROR(VLOOKUP(Table1[[#This Row],[Child Name]],'Provider Level'!B:N,13,0),"-") -> - | J101: =IFERROR(VLOOKUP(Table1[[#This Row],[Child Name]],'Provider Level'!B:O,14,0),"-") -> - | K101: =IFERROR(VLOOKUP(Table1[[#This Row],[Child Name]],'Provider Level'!B:P,15,0),"-") -> - | L101: =IFERROR(VLOOKUP(Table1[[#This Row],[Child Name]],'Provider Level'!B:Q,16,0),"-") -> - | M101: =IFERROR(VLOOKUP(Table1[[#This Row],[Child Name]],'Provider Level'!B:R,17,0),"-") -> - | N101: 0 | O101: =IFERROR(IF(N101>VLOOKUP(M101,'Drop Down'!$A$3:$B$10,2,0),"1","0"),"-") -> - | P101: 0 | Q101: 0 | R101: =IFERROR(IF(M101="Select","Select Support Level", PRODUCT($Q101,VLOOKUP($J101,'Drop Down'!K:M,3,0))),"-") -> - | S101: Ok | T101: 0 | U101: 0
A102: =IF(B102="Complete Provider Level","Select",'Fee For Service Roll Up'!$E$4) -> Select | B102: Complete Provider Level | C102: =IFERROR(VLOOKUP(Table1[[#This Row],[Child Name]],'Provider Level'!B:C,2,0),"-") -> - | D102: =IFERROR(VLOOKUP(Table1[[#This Row],[Child Name]],'Provider Level'!B:D,3,0),"-") -> - | E102: =IFERROR(VLOOKUP(Table1[[#This Row],[Child Name]],'Provider Level'!B:E,4,0),"-") -> - | F102: =IFERROR(VLOOKUP(Table1[[#This Row],[Child Name]],'Provider Level'!B:F,5,0),"-") -> - | G102: =IFERROR(VLOOKUP(Table1[[#This Row],[Child Name]],'Provider Level'!B:H,6,0),"-") -> - | H102: =IFERROR(VLOOKUP(Table1[[#This Row],[Child Name]],'Provider Level'!B:L,11,0),"-") -> - | I102: =IFERROR(VLOOKUP(Table1[[#This Row],[Child Name]],'Provider Level'!B:N,13,0),"-") -> - | J102: =IFERROR(VLOOKUP(Table1[[#This Row],[Child Name]],'Provider Level'!B:O,14,0),"-") -> - | K102: =IFERROR(VLOOKUP(Table1[[#This Row],[Child Name]],'Provider Level'!B:P,15,0),"-") -> - | L102: =IFERROR(VLOOKUP(Table1[[#This Row],[Child Name]],'Provider Level'!B:Q,16,0),"-") -> - | M102: =IFERROR(VLOOKUP(Table1[[#This Row],[Child Name]],'Provider Level'!B:R,17,0),"-") -> - | N102: 0 | O102: =IFERROR(IF(N102>VLOOKUP(M102,'Drop Down'!$A$3:$B$10,2,0),"1","0"),"-") -> - | P102: 0 | Q102: 0 | R102: =IFERROR(IF(M102="Select","Select Support Level", PRODUCT($Q102,VLOOKUP($J102,'Drop Down'!K:M,3,0))),"-") -> - | S102: Ok | T102: 0 | U102: 0
A103: =IF(B103="Complete Provider Level","Select",'Fee For Service Roll Up'!$E$4) -> Select | B103: Complete Provider Level | C103: =IFERROR(VLOOKUP(Table1[[#This Row],[Child Name]],'Provider Level'!B:C,2,0),"-") -> - | D103: =IFERROR(VLOOKUP(Table1[[#This Row],[Child Name]],'Provider Level'!B:D,3,0),"-") -> - | E103: =IFERROR(VLOOKUP(Table1[[#This Row],[Child Name]],'Provider Level'!B:E,4,0),"-") -> - | F103: =IFERROR(VLOOKUP(Table1[[#This Row],[Child Name]],'Provider Level'!B:F,5,0),"-") -> - | G103: =IFERROR(VLOOKUP(Table1[[#This Row],[Child Name]],'Provider Level'!B:H,6,0),"-") -> - | H103: =IFERROR(VLOOKUP(Table1[[#This Row],[Child Name]],'Provider Level'!B:L,11,0),"-") -> - | I103: =IFERROR(VLOOKUP(Table1[[#This Row],[Child Name]],'Provider Level'!B:N,13,0),"-") -> - | J103: =IFERROR(VLOOKUP(Table1[[#This Row],[Child Name]],'Provider Level'!B:O,14,0),"-") -> - | K103: =IFERROR(VLOOKUP(Table1[[#This Row],[Child Name]],'Provider Level'!B:P,15,0),"-") -> - | L103: =IFERROR(VLOOKUP(Table1[[#This Row],[Child Name]],'Provider Level'!B:Q,16,0),"-") -> - | M103: =IFERROR(VLOOKUP(Table1[[#This Row],[Child Name]],'Provider Level'!B:R,17,0),"-") -> - | N103: 0 | O103: =IFERROR(IF(N103>VLOOKUP(M103,'Drop Down'!$A$3:$B$10,2,0),"1","0"),"-") -> - | P103: 0 | Q103: 0 | R103: =IFERROR(IF(M103="Select","Select Support Level", PRODUCT($Q103,VLOOKUP($J103,'Drop Down'!K:M,3,0))),"-") -> - | S103: Ok | T103: 0 | U103: 0
A104: =IF(B104="Complete Provider Level","Select",'Fee For Service Roll Up'!$E$4) -> Select | B104: Complete Provider Level | C104: =IFERROR(VLOOKUP(Table1[[#This Row],[Child Name]],'Provider Level'!B:C,2,0),"-") -> - | D104: =IFERROR(VLOOKUP(Table1[[#This Row],[Child Name]],'Provider Level'!B:D,3,0),"-") -> - | E104: =IFERROR(VLOOKUP(Table1[[#This Row],[Child Name]],'Provider Level'!B:E,4,0),"-") -> - | F104: =IFERROR(VLOOKUP(Table1[[#This Row],[Child Name]],'Provider Level'!B:F,5,0),"-") -> - | G104: =IFERROR(VLOOKUP(Table1[[#This Row],[Child Name]],'Provider Level'!B:H,6,0),"-") -> - | H104: =IFERROR(VLOOKUP(Table1[[#This Row],[Child Name]],'Provider Level'!B:L,11,0),"-") -> - | I104: =IFERROR(VLOOKUP(Table1[[#This Row],[Child Name]],'Provider Level'!B:N,13,0),"-") -> - | J104: =IFERROR(VLOOKUP(Table1[[#This Row],[Child Name]],'Provider Level'!B:O,14,0),"-") -> - | K104: =IFERROR(VLOOKUP(Table1[[#This Row],[Child Name]],'Provider Level'!B:P,15,0),"-") -> - | L104: =IFERROR(VLOOKUP(Table1[[#This Row],[Child Name]],'Provider Level'!B:Q,16,0),"-") -> - | M104: =IFERROR(VLOOKUP(Table1[[#This Row],[Child Name]],'Provider Level'!B:R,17,0),"-") -> - | N104: 0 | O104: =IFERROR(IF(N104>VLOOKUP(M104,'Drop Down'!$A$3:$B$10,2,0),"1","0"),"-") -> - | P104: 0 | Q104: 0 | R104: =IFERROR(IF(M104="Select","Select Support Level", PRODUCT($Q104,VLOOKUP($J104,'Drop Down'!K:M,3,0))),"-") -> - | S104: Ok | T104: 0 | U104: 0
A105: =IF(B105="Complete Provider Level","Select",'Fee For Service Roll Up'!$E$4) -> Select | B105: Complete Provider Level | C105: =IFERROR(VLOOKUP(Table1[[#This Row],[Child Name]],'Provider Level'!B:C,2,0),"-") -> - | D105: =IFERROR(VLOOKUP(Table1[[#This Row],[Child Name]],'Provider Level'!B:D,3,0),"-") -> - | E105: =IFERROR(VLOOKUP(Table1[[#This Row],[Child Name]],'Provider Level'!B:E,4,0),"-") -> - | F105: =IFERROR(VLOOKUP(Table1[[#This Row],[Child Name]],'Provider Level'!B:F,5,0),"-") -> - | G105: =IFERROR(VLOOKUP(Table1[[#This Row],[Child Name]],'Provider Level'!B:H,6,0),"-") -> - | H105: =IFERROR(VLOOKUP(Table1[[#This Row],[Child Name]],'Provider Level'!B:L,11,0),"-") -> - | I105: =IFERROR(VLOOKUP(Table1[[#This Row],[Child Name]],'Provider Level'!B:N,13,0),"-") -> - | J105: =IFERROR(VLOOKUP(Table1[[#This Row],[Child Name]],'Provider Level'!B:O,14,0),"-") -> - | K105: =IFERROR(VLOOKUP(Table1[[#This Row],[Child Name]],'Provider Level'!B:P,15,0),"-") -> - | L105: =IFERROR(VLOOKUP(Table1[[#This Row],[Child Name]],'Provider Level'!B:Q,16,0),"-") -> - | M105: =IFERROR(VLOOKUP(Table1[[#This Row],[Child Name]],'Provider Level'!B:R,17,0),"-") -> - | N105: 0 | O105: =IFERROR(IF(N105>VLOOKUP(M105,'Drop Down'!$A$3:$B$10,2,0),"1","0"),"-") -> - | P105: 0 | Q105: 0 | R105: =IFERROR(IF(M105="Select","Select Support Level", PRODUCT($Q105,VLOOKUP($J105,'Drop Down'!K:M,3,0))),"-") -> - | S105: Ok | T105: 0 | U105: 0
A106: =IF(B106="Complete Provider Level","Select",'Fee For Service Roll Up'!$E$4) -> Select | B106: Complete Provider Level | C106: =IFERROR(VLOOKUP(Table1[[#This Row],[Child Name]],'Provider Level'!B:C,2,0),"-") -> - | D106: =IFERROR(VLOOKUP(Table1[[#This Row],[Child Name]],'Provider Level'!B:D,3,0),"-") -> - | E106: =IFERROR(VLOOKUP(Table1[[#This Row],[Child Name]],'Provider Level'!B:E,4,0),"-") -> - | F106: =IFERROR(VLOOKUP(Table1[[#This Row],[Child Name]],'Provider Level'!B:F,5,0),"-") -> - | G106: =IFERROR(VLOOKUP(Table1[[#This Row],[Child Name]],'Provider Level'!B:H,6,0),"-") -> - | H106: =IFERROR(VLOOKUP(Table1[[#This Row],[Child Name]],'Provider Level'!B:L,11,0),"-") -> - | I106: =IFERROR(VLOOKUP(Table1[[#This Row],[Child Name]],'Provider Level'!B:N,13,0),"-") -> - | J106: =IFERROR(VLOOKUP(Table1[[#This Row],[Child Name]],'Provider Level'!B:O,14,0),"-") -> - | K106: =IFERROR(VLOOKUP(Table1[[#This Row],[Child Name]],'Provider Level'!B:P,15,0),"-") -> - | L106: =IFERROR(VLOOKUP(Table1[[#This Row],[Child Name]],'Provider Level'!B:Q,16,0),"-") -> - | M106: =IFERROR(VLOOKUP(Table1[[#This Row],[Child Name]],'Provider Level'!B:R,17,0),"-") -> - | N106: 0 | O106: =IFERROR(IF(N106>VLOOKUP(M106,'Drop Down'!$A$3:$B$10,2,0),"1","0"),"-") -> - | P106: 0 | Q106: 0 | R106: =IFERROR(IF(M106="Select","Select Support Level", PRODUCT($Q106,VLOOKUP($J106,'Drop Down'!K:M,3,0))),"-") -> - | S106: Ok | T106: 0 | U106: 0
A107: =IF(B107="Complete Provider Level","Select",'Fee For Service Roll Up'!$E$4) -> Select | B107: Complete Provider Level | C107: =IFERROR(VLOOKUP(Table1[[#This Row],[Child Name]],'Provider Level'!B:C,2,0),"-") -> - | D107: =IFERROR(VLOOKUP(Table1[[#This Row],[Child Name]],'Provider Level'!B:D,3,0),"-") -> - | E107: =IFERROR(VLOOKUP(Table1[[#This Row],[Child Name]],'Provider Level'!B:E,4,0),"-") -> - | F107: =IFERROR(VLOOKUP(Table1[[#This Row],[Child Name]],'Provider Level'!B:F,5,0),"-") -> - | G107: =IFERROR(VLOOKUP(Table1[[#This Row],[Child Name]],'Provider Level'!B:H,6,0),"-") -> - | H107: =IFERROR(VLOOKUP(Table1[[#This Row],[Child Name]],'Provider Level'!B:L,11,0),"-") -> - | I107: =IFERROR(VLOOKUP(Table1[[#This Row],[Child Name]],'Provider Level'!B:N,13,0),"-") -> - | J107: =IFERROR(VLOOKUP(Table1[[#This Row],[Child Name]],'Provider Level'!B:O,14,0),"-") -> - | K107: =IFERROR(VLOOKUP(Table1[[#This Row],[Child Name]],'Provider Level'!B:P,15,0),"-") -> - | L107: =IFERROR(VLOOKUP(Table1[[#This Row],[Child Name]],'Provider Level'!B:Q,16,0),"-") -> - | M107: =IFERROR(VLOOKUP(Table1[[#This Row],[Child Name]],'Provider Level'!B:R,17,0),"-") -> - | N107: 0 | O107: =IFERROR(IF(N107>VLOOKUP(M107,'Drop Down'!$A$3:$B$10,2,0),"1","0"),"-") -> - | P107: 0 | Q107: 0 | R107: =IFERROR(IF(M107="Select","Select Support Level", PRODUCT($Q107,VLOOKUP($J107,'Drop Down'!K:M,3,0))),"-") -> - | S107: Ok | T107: 0 | U107: 0
A108: =IF(B108="Complete Provider Level","Select",'Fee For Service Roll Up'!$E$4) -> Select | B108: Complete Provider Level | C108: =IFERROR(VLOOKUP(Table1[[#This Row],[Child Name]],'Provider Level'!B:C,2,0),"-") -> - | D108: =IFERROR(VLOOKUP(Table1[[#This Row],[Child Name]],'Provider Level'!B:D,3,0),"-") -> - | E108: =IFERROR(VLOOKUP(Table1[[#This Row],[Child Name]],'Provider Level'!B:E,4,0),"-") -> - | F108: =IFERROR(VLOOKUP(Table1[[#This Row],[Child Name]],'Provider Level'!B:F,5,0),"-") -> - | G108: =IFERROR(VLOOKUP(Table1[[#This Row],[Child Name]],'Provider Level'!B:H,6,0),"-") -> - | H108: =IFERROR(VLOOKUP(Table1[[#This Row],[Child Name]],'Provider Level'!B:L,11,0),"-") -> - | I108: =IFERROR(VLOOKUP(Table1[[#This Row],[Child Name]],'Provider Level'!B:N,13,0),"-") -> - | J108: =IFERROR(VLOOKUP(Table1[[#This Row],[Child Name]],'Provider Level'!B:O,14,0),"-") -> - | K108: =IFERROR(VLOOKUP(Table1[[#This Row],[Child Name]],'Provider Level'!B:P,15,0),"-") -> - | L108: =IFERROR(VLOOKUP(Table1[[#This Row],[Child Name]],'Provider Level'!B:Q,16,0),"-") -> - | M108: =IFERROR(VLOOKUP(Table1[[#This Row],[Child Name]],'Provider Level'!B:R,17,0),"-") -> - | N108: 0 | O108: =IFERROR(IF(N108>VLOOKUP(M108,'Drop Down'!$A$3:$B$10,2,0),"1","0"),"-") -> - | P108: 0 | Q108: 0 | R108: =IFERROR(IF(M108="Select","Select Support Level", PRODUCT($Q108,VLOOKUP($J108,'Drop Down'!K:M,3,0))),"-") -> - | S108: Ok | T108: 0 | U108: 0
A109: =IF(B109="Complete Provider Level","Select",'Fee For Service Roll Up'!$E$4) -> Select | B109: Complete Provider Level | C109: =IFERROR(VLOOKUP(Table1[[#This Row],[Child Name]],'Provider Level'!B:C,2,0),"-") -> - | D109: =IFERROR(VLOOKUP(Table1[[#This Row],[Child Name]],'Provider Level'!B:D,3,0),"-") -> - | E109: =IFERROR(VLOOKUP(Table1[[#This Row],[Child Name]],'Provider Level'!B:E,4,0),"-") -> - | F109: =IFERROR(VLOOKUP(Table1[[#This Row],[Child Name]],'Provider Level'!B:F,5,0),"-") -> - | G109: =IFERROR(VLOOKUP(Table1[[#This Row],[Child Name]],'Provider Level'!B:H,6,0),"-") -> - | H109: =IFERROR(VLOOKUP(Table1[[#This Row],[Child Name]],'Provider Level'!B:L,11,0),"-") -> - | I109: =IFERROR(VLOOKUP(Table1[[#This Row],[Child Name]],'Provider Level'!B:N,13,0),"-") -> - | J109: =IFERROR(VLOOKUP(Table1[[#This Row],[Child Name]],'Provider Level'!B:O,14,0),"-") -> - | K109: =IFERROR(VLOOKUP(Table1[[#This Row],[Child Name]],'Provider Level'!B:P,15,0),"-") -> - | L109: =IFERROR(VLOOKUP(Table1[[#This Row],[Child Name]],'Provider Level'!B:Q,16,0),"-") -> - | M109: =IFERROR(VLOOKUP(Table1[[#This Row],[Child Name]],'Provider Level'!B:R,17,0),"-") -> - | N109: 0 | O109: =IFERROR(IF(N109>VLOOKUP(M109,'Drop Down'!$A$3:$B$10,2,0),"1","0"),"-") -> - | P109: 0 | Q109: 0 | R109: =IFERROR(IF(M109="Select","Select Support Level", PRODUCT($Q109,VLOOKUP($J109,'Drop Down'!K:M,3,0))),"-") -> - | S109: Ok | T109: 0 | U109: 0
A110: =IF(B110="Complete Provider Level","Select",'Fee For Service Roll Up'!$E$4) -> Select | B110: Complete Provider Level | C110: =IFERROR(VLOOKUP(Table1[[#This Row],[Child Name]],'Provider Level'!B:C,2,0),"-") -> - | D110: =IFERROR(VLOOKUP(Table1[[#This Row],[Child Name]],'Provider Level'!B:D,3,0),"-") -> - | E110: =IFERROR(VLOOKUP(Table1[[#This Row],[Child Name]],'Provider Level'!B:E,4,0),"-") -> - | F110: =IFERROR(VLOOKUP(Table1[[#This Row],[Child Name]],'Provider Level'!B:F,5,0),"-") -> - | G110: =IFERROR(VLOOKUP(Table1[[#This Row],[Child Name]],'Provider Level'!B:H,6,0),"-") -> - | H110: =IFERROR(VLOOKUP(Table1[[#This Row],[Child Name]],'Provider Level'!B:L,11,0),"-") -> - | I110: =IFERROR(VLOOKUP(Table1[[#This Row],[Child Name]],'Provider Level'!B:N,13,0),"-") -> - | J110: =IFERROR(VLOOKUP(Table1[[#This Row],[Child Name]],'Provider Level'!B:O,14,0),"-") -> - | K110: =IFERROR(VLOOKUP(Table1[[#This Row],[Child Name]],'Provider Level'!B:P,15,0),"-") -> - | L110: =IFERROR(VLOOKUP(Table1[[#This Row],[Child Name]],'Provider Level'!B:Q,16,0),"-") -> - | M110: =IFERROR(VLOOKUP(Table1[[#This Row],[Child Name]],'Provider Level'!B:R,17,0),"-") -> - | N110: 0 | O110: =IFERROR(IF(N110>VLOOKUP(M110,'Drop Down'!$A$3:$B$10,2,0),"1","0"),"-") -> - | P110: 0 | Q110: 0 | R110: =IFERROR(IF(M110="Select","Select Support Level", PRODUCT($Q110,VLOOKUP($J110,'Drop Down'!K:M,3,0))),"-") -> - | S110: Ok | T110: 0 | U110: 0
A111: =IF(B111="Complete Provider Level","Select",'Fee For Service Roll Up'!$E$4) -> Select | B111: Complete Provider Level | C111: =IFERROR(VLOOKUP(Table1[[#This Row],[Child Name]],'Provider Level'!B:C,2,0),"-") -> - | D111: =IFERROR(VLOOKUP(Table1[[#This Row],[Child Name]],'Provider Level'!B:D,3,0),"-") -> - | E111: =IFERROR(VLOOKUP(Table1[[#This Row],[Child Name]],'Provider Level'!B:E,4,0),"-") -> - | F111: =IFERROR(VLOOKUP(Table1[[#This Row],[Child Name]],'Provider Level'!B:F,5,0),"-") -> - | G111: =IFERROR(VLOOKUP(Table1[[#This Row],[Child Name]],'Provider Level'!B:H,6,0),"-") -> - | H111: =IFERROR(VLOOKUP(Table1[[#This Row],[Child Name]],'Provider Level'!B:L,11,0),"-") -> - | I111: =IFERROR(VLOOKUP(Table1[[#This Row],[Child Name]],'Provider Level'!B:N,13,0),"-") -> - | J111: =IFERROR(VLOOKUP(Table1[[#This Row],[Child Name]],'Provider Level'!B:O,14,0),"-") -> - | K111: =IFERROR(VLOOKUP(Table1[[#This Row],[Child Name]],'Provider Level'!B:P,15,0),"-") -> - | L111: =IFERROR(VLOOKUP(Table1[[#This Row],[Child Name]],'Provider Level'!B:Q,16,0),"-") -> - | M111: =IFERROR(VLOOKUP(Table1[[#This Row],[Child Name]],'Provider Level'!B:R,17,0),"-") -> - | N111: 0 | O111: =IFERROR(IF(N111>VLOOKUP(M111,'Drop Down'!$A$3:$B$10,2,0),"1","0"),"-") -> - | P111: 0 | Q111: 0 | R111: =IFERROR(IF(M111="Select","Select Support Level", PRODUCT($Q111,VLOOKUP($J111,'Drop Down'!K:M,3,0))),"-") -> - | S111: Ok | T111: 0 | U111: 0
A112: =IF(B112="Complete Provider Level","Select",'Fee For Service Roll Up'!$E$4) -> Select | B112: Complete Provider Level | C112: =IFERROR(VLOOKUP(Table1[[#This Row],[Child Name]],'Provider Level'!B:C,2,0),"-") -> - | D112: =IFERROR(VLOOKUP(Table1[[#This Row],[Child Name]],'Provider Level'!B:D,3,0),"-") -> - | E112: =IFERROR(VLOOKUP(Table1[[#This Row],[Child Name]],'Provider Level'!B:E,4,0),"-") -> - | F112: =IFERROR(VLOOKUP(Table1[[#This Row],[Child Name]],'Provider Level'!B:F,5,0),"-") -> - | G112: =IFERROR(VLOOKUP(Table1[[#This Row],[Child Name]],'Provider Level'!B:H,6,0),"-") -> - | H112: =IFERROR(VLOOKUP(Table1[[#This Row],[Child Name]],'Provider Level'!B:L,11,0),"-") -> - | I112: =IFERROR(VLOOKUP(Table1[[#This Row],[Child Name]],'Provider Level'!B:N,13,0),"-") -> - | J112: =IFERROR(VLOOKUP(Table1[[#This Row],[Child Name]],'Provider Level'!B:O,14,0),"-") -> - | K112: =IFERROR(VLOOKUP(Table1[[#This Row],[Child Name]],'Provider Level'!B:P,15,0),"-") -> - | L112: =IFERROR(VLOOKUP(Table1[[#This Row],[Child Name]],'Provider Level'!B:Q,16,0),"-") -> - | M112: =IFERROR(VLOOKUP(Table1[[#This Row],[Child Name]],'Provider Level'!B:R,17,0),"-") -> - | N112: 0 | O112: =IFERROR(IF(N112>VLOOKUP(M112,'Drop Down'!$A$3:$B$10,2,0),"1","0"),"-") -> - | P112: 0 | Q112: 0 | R112: =IFERROR(IF(M112="Select","Select Support Level", PRODUCT($Q112,VLOOKUP($J112,'Drop Down'!K:M,3,0))),"-") -> - | S112: Ok | T112: 0 | U112: 0
A113: =IF(B113="Complete Provider Level","Select",'Fee For Service Roll Up'!$E$4) -> Select | B113: Complete Provider Level | C113: =IFERROR(VLOOKUP(Table1[[#This Row],[Child Name]],'Provider Level'!B:C,2,0),"-") -> - | D113: =IFERROR(VLOOKUP(Table1[[#This Row],[Child Name]],'Provider Level'!B:D,3,0),"-") -> - | E113: =IFERROR(VLOOKUP(Table1[[#This Row],[Child Name]],'Provider Level'!B:E,4,0),"-") -> - | F113: =IFERROR(VLOOKUP(Table1[[#This Row],[Child Name]],'Provider Level'!B:F,5,0),"-") -> - | G113: =IFERROR(VLOOKUP(Table1[[#This Row],[Child Name]],'Provider Level'!B:H,6,0),"-") -> - | H113: =IFERROR(VLOOKUP(Table1[[#This Row],[Child Name]],'Provider Level'!B:L,11,0),"-") -> - | I113: =IFERROR(VLOOKUP(Table1[[#This Row],[Child Name]],'Provider Level'!B:N,13,0),"-") -> - | J113: =IFERROR(VLOOKUP(Table1[[#This Row],[Child Name]],'Provider Level'!B:O,14,0),"-") -> - | K113: =IFERROR(VLOOKUP(Table1[[#This Row],[Child Name]],'Provider Level'!B:P,15,0),"-") -> - | L113: =IFERROR(VLOOKUP(Table1[[#This Row],[Child Name]],'Provider Level'!B:Q,16,0),"-") -> - | M113: =IFERROR(VLOOKUP(Table1[[#This Row],[Child Name]],'Provider Level'!B:R,17,0),"-") -> - | N113: 0 | O113: =IFERROR(IF(N113>VLOOKUP(M113,'Drop Down'!$A$3:$B$10,2,0),"1","0"),"-") -> - | P113: 0 | Q113: 0 | R113: =IFERROR(IF(M113="Select","Select Support Level", PRODUCT($Q113,VLOOKUP($J113,'Drop Down'!K:M,3,0))),"-") -> - | S113: Ok | T113: 0 | U113: 0
A114: =IF(B114="Complete Provider Level","Select",'Fee For Service Roll Up'!$E$4) -> Select | B114: Complete Provider Level | C114: =IFERROR(VLOOKUP(Table1[[#This Row],[Child Name]],'Provider Level'!B:C,2,0),"-") -> - | D114: =IFERROR(VLOOKUP(Table1[[#This Row],[Child Name]],'Provider Level'!B:D,3,0),"-") -> - | E114: =IFERROR(VLOOKUP(Table1[[#This Row],[Child Name]],'Provider Level'!B:E,4,0),"-") -> - | F114: =IFERROR(VLOOKUP(Table1[[#This Row],[Child Name]],'Provider Level'!B:F,5,0),"-") -> - | G114: =IFERROR(VLOOKUP(Table1[[#This Row],[Child Name]],'Provider Level'!B:H,6,0),"-") -> - | H114: =IFERROR(VLOOKUP(Table1[[#This Row],[Child Name]],'Provider Level'!B:L,11,0),"-") -> - | I114: =IFERROR(VLOOKUP(Table1[[#This Row],[Child Name]],'Provider Level'!B:N,13,0),"-") -> - | J114: =IFERROR(VLOOKUP(Table1[[#This Row],[Child Name]],'Provider Level'!B:O,14,0),"-") -> - | K114: =IFERROR(VLOOKUP(Table1[[#This Row],[Child Name]],'Provider Level'!B:P,15,0),"-") -> - | L114: =IFERROR(VLOOKUP(Table1[[#This Row],[Child Name]],'Provider Level'!B:Q,16,0),"-") -> - | M114: =IFERROR(VLOOKUP(Table1[[#This Row],[Child Name]],'Provider Level'!B:R,17,0),"-") -> - | N114: 0 | O114: =IFERROR(IF(N114>VLOOKUP(M114,'Drop Down'!$A$3:$B$10,2,0),"1","0"),"-") -> - | P114: 0 | Q114: 0 | R114: =IFERROR(IF(M114="Select","Select Support Level", PRODUCT($Q114,VLOOKUP($J114,'Drop Down'!K:M,3,0))),"-") -> - | S114: Ok | T114: 0 | U114: 0
A115: =IF(B115="Complete Provider Level","Select",'Fee For Service Roll Up'!$E$4) -> Select | B115: Complete Provider Level | C115: =IFERROR(VLOOKUP(Table1[[#This Row],[Child Name]],'Provider Level'!B:C,2,0),"-") -> - | D115: =IFERROR(VLOOKUP(Table1[[#This Row],[Child Name]],'Provider Level'!B:D,3,0),"-") -> - | E115: =IFERROR(VLOOKUP(Table1[[#This Row],[Child Name]],'Provider Level'!B:E,4,0),"-") -> - | F115: =IFERROR(VLOOKUP(Table1[[#This Row],[Child Name]],'Provider Level'!B:F,5,0),"-") -> - | G115: =IFERROR(VLOOKUP(Table1[[#This Row],[Child Name]],'Provider Level'!B:H,6,0),"-") -> - | H115: =IFERROR(VLOOKUP(Table1[[#This Row],[Child Name]],'Provider Level'!B:L,11,0),"-") -> - | I115: =IFERROR(VLOOKUP(Table1[[#This Row],[Child Name]],'Provider Level'!B:N,13,0),"-") -> - | J115: =IFERROR(VLOOKUP(Table1[[#This Row],[Child Name]],'Provider Level'!B:O,14,0),"-") -> - | K115: =IFERROR(VLOOKUP(Table1[[#This Row],[Child Name]],'Provider Level'!B:P,15,0),"-") -> - | L115: =IFERROR(VLOOKUP(Table1[[#This Row],[Child Name]],'Provider Level'!B:Q,16,0),"-") -> - | M115: =IFERROR(VLOOKUP(Table1[[#This Row],[Child Name]],'Provider Level'!B:R,17,0),"-") -> - | N115: 0 | O115: =IFERROR(IF(N115>VLOOKUP(M115,'Drop Down'!$A$3:$B$10,2,0),"1","0"),"-") -> - | P115: 0 | Q115: 0 | R115: =IFERROR(IF(M115="Select","Select Support Level", PRODUCT($Q115,VLOOKUP($J115,'Drop Down'!K:M,3,0))),"-") -> - | S115: Ok | T115: 0 | U115: 0
A116: =IF(B116="Complete Provider Level","Select",'Fee For Service Roll Up'!$E$4) -> Select | B116: Complete Provider Level | C116: =IFERROR(VLOOKUP(Table1[[#This Row],[Child Name]],'Provider Level'!B:C,2,0),"-") -> - | D116: =IFERROR(VLOOKUP(Table1[[#This Row],[Child Name]],'Provider Level'!B:D,3,0),"-") -> - | E116: =IFERROR(VLOOKUP(Table1[[#This Row],[Child Name]],'Provider Level'!B:E,4,0),"-") -> - | F116: =IFERROR(VLOOKUP(Table1[[#This Row],[Child Name]],'Provider Level'!B:F,5,0),"-") -> - | G116: =IFERROR(VLOOKUP(Table1[[#This Row],[Child Name]],'Provider Level'!B:H,6,0),"-") -> - | H116: =IFERROR(VLOOKUP(Table1[[#This Row],[Child Name]],'Provider Level'!B:L,11,0),"-") -> - | I116: =IFERROR(VLOOKUP(Table1[[#This Row],[Child Name]],'Provider Level'!B:N,13,0),"-") -> - | J116: =IFERROR(VLOOKUP(Table1[[#This Row],[Child Name]],'Provider Level'!B:O,14,0),"-") -> - | K116: =IFERROR(VLOOKUP(Table1[[#This Row],[Child Name]],'Provider Level'!B:P,15,0),"-") -> - | L116: =IFERROR(VLOOKUP(Table1[[#This Row],[Child Name]],'Provider Level'!B:Q,16,0),"-") -> - | M116: =IFERROR(VLOOKUP(Table1[[#This Row],[Child Name]],'Provider Level'!B:R,17,0),"-") -> - | N116: 0 | O116: =IFERROR(IF(N116>VLOOKUP(M116,'Drop Down'!$A$3:$B$10,2,0),"1","0"),"-") -> - | P116: 0 | Q116: 0 | R116: =IFERROR(IF(M116="Select","Select Support Level", PRODUCT($Q116,VLOOKUP($J116,'Drop Down'!K:M,3,0))),"-") -> - | S116: Ok | T116: 0 | U116: 0
A117: =IF(B117="Complete Provider Level","Select",'Fee For Service Roll Up'!$E$4) -> Select | B117: Complete Provider Level | C117: =IFERROR(VLOOKUP(Table1[[#This Row],[Child Name]],'Provider Level'!B:C,2,0),"-") -> - | D117: =IFERROR(VLOOKUP(Table1[[#This Row],[Child Name]],'Provider Level'!B:D,3,0),"-") -> - | E117: =IFERROR(VLOOKUP(Table1[[#This Row],[Child Name]],'Provider Level'!B:E,4,0),"-") -> - | F117: =IFERROR(VLOOKUP(Table1[[#This Row],[Child Name]],'Provider Level'!B:F,5,0),"-") -> - | G117: =IFERROR(VLOOKUP(Table1[[#This Row],[Child Name]],'Provider Level'!B:H,6,0),"-") -> - | H117: =IFERROR(VLOOKUP(Table1[[#This Row],[Child Name]],'Provider Level'!B:L,11,0),"-") -> - | I117: =IFERROR(VLOOKUP(Table1[[#This Row],[Child Name]],'Provider Level'!B:N,13,0),"-") -> - | J117: =IFERROR(VLOOKUP(Table1[[#This Row],[Child Name]],'Provider Level'!B:O,14,0),"-") -> - | K117: =IFERROR(VLOOKUP(Table1[[#This Row],[Child Name]],'Provider Level'!B:P,15,0),"-") -> - | L117: =IFERROR(VLOOKUP(Table1[[#This Row],[Child Name]],'Provider Level'!B:Q,16,0),"-") -> - | M117: =IFERROR(VLOOKUP(Table1[[#This Row],[Child Name]],'Provider Level'!B:R,17,0),"-") -> - | N117: 0 | O117: =IFERROR(IF(N117>VLOOKUP(M117,'Drop Down'!$A$3:$B$10,2,0),"1","0"),"-") -> - | P117: 0 | Q117: 0 | R117: =IFERROR(IF(M117="Select","Select Support Level", PRODUCT($Q117,VLOOKUP($J117,'Drop Down'!K:M,3,0))),"-") -> - | S117: Ok | T117: 0 | U117: 0
A118: =IF(B118="Complete Provider Level","Select",'Fee For Service Roll Up'!$E$4) -> Select | B118: Complete Provider Level | C118: =IFERROR(VLOOKUP(Table1[[#This Row],[Child Name]],'Provider Level'!B:C,2,0),"-") -> - | D118: =IFERROR(VLOOKUP(Table1[[#This Row],[Child Name]],'Provider Level'!B:D,3,0),"-") -> - | E118: =IFERROR(VLOOKUP(Table1[[#This Row],[Child Name]],'Provider Level'!B:E,4,0),"-") -> - | F118: =IFERROR(VLOOKUP(Table1[[#This Row],[Child Name]],'Provider Level'!B:F,5,0),"-") -> - | G118: =IFERROR(VLOOKUP(Table1[[#This Row],[Child Name]],'Provider Level'!B:H,6,0),"-") -> - | H118: =IFERROR(VLOOKUP(Table1[[#This Row],[Child Name]],'Provider Level'!B:L,11,0),"-") -> - | I118: =IFERROR(VLOOKUP(Table1[[#This Row],[Child Name]],'Provider Level'!B:N,13,0),"-") -> - | J118: =IFERROR(VLOOKUP(Table1[[#This Row],[Child Name]],'Provider Level'!B:O,14,0),"-") -> - | K118: =IFERROR(VLOOKUP(Table1[[#This Row],[Child Name]],'Provider Level'!B:P,15,0),"-") -> - | L118: =IFERROR(VLOOKUP(Table1[[#This Row],[Child Name]],'Provider Level'!B:Q,16,0),"-") -> - | M118: =IFERROR(VLOOKUP(Table1[[#This Row],[Child Name]],'Provider Level'!B:R,17,0),"-") -> - | N118: 0 | O118: =IFERROR(IF(N118>VLOOKUP(M118,'Drop Down'!$A$3:$B$10,2,0),"1","0"),"-") -> - | P118: 0 | Q118: 0 | R118: =IFERROR(IF(M118="Select","Select Support Level", PRODUCT($Q118,VLOOKUP($J118,'Drop Down'!K:M,3,0))),"-") -> - | S118: Ok | T118: 0 | U118: 0
A119: =IF(B119="Complete Provider Level","Select",'Fee For Service Roll Up'!$E$4) -> Select | B119: Complete Provider Level | C119: =IFERROR(VLOOKUP(Table1[[#This Row],[Child Name]],'Provider Level'!B:C,2,0),"-") -> - | D119: =IFERROR(VLOOKUP(Table1[[#This Row],[Child Name]],'Provider Level'!B:D,3,0),"-") -> - | E119: =IFERROR(VLOOKUP(Table1[[#This Row],[Child Name]],'Provider Level'!B:E,4,0),"-") -> - | F119: =IFERROR(VLOOKUP(Table1[[#This Row],[Child Name]],'Provider Level'!B:F,5,0),"-") -> - | G119: =IFERROR(VLOOKUP(Table1[[#This Row],[Child Name]],'Provider Level'!B:H,6,0),"-") -> - | H119: =IFERROR(VLOOKUP(Table1[[#This Row],[Child Name]],'Provider Level'!B:L,11,0),"-") -> - | I119: =IFERROR(VLOOKUP(Table1[[#This Row],[Child Name]],'Provider Level'!B:N,13,0),"-") -> - | J119: =IFERROR(VLOOKUP(Table1[[#This Row],[Child Name]],'Provider Level'!B:O,14,0),"-") -> - | K119: =IFERROR(VLOOKUP(Table1[[#This Row],[Child Name]],'Provider Level'!B:P,15,0),"-") -> - | L119: =IFERROR(VLOOKUP(Table1[[#This Row],[Child Name]],'Provider Level'!B:Q,16,0),"-") -> - | M119: =IFERROR(VLOOKUP(Table1[[#This Row],[Child Name]],'Provider Level'!B:R,17,0),"-") -> - | N119: 0 | O119: =IFERROR(IF(N119>VLOOKUP(M119,'Drop Down'!$A$3:$B$10,2,0),"1","0"),"-") -> - | P119: 0 | Q119: 0 | R119: =IFERROR(IF(M119="Select","Select Support Level", PRODUCT($Q119,VLOOKUP($J119,'Drop Down'!K:M,3,0))),"-") -> - | S119: Ok | T119: 0 | U119: 0
A120: =IF(B120="Complete Provider Level","Select",'Fee For Service Roll Up'!$E$4) -> Select | B120: Complete Provider Level | C120: =IFERROR(VLOOKUP(Table1[[#This Row],[Child Name]],'Provider Level'!B:C,2,0),"-") -> - | D120: =IFERROR(VLOOKUP(Table1[[#This Row],[Child Name]],'Provider Level'!B:D,3,0),"-") -> - | E120: =IFERROR(VLOOKUP(Table1[[#This Row],[Child Name]],'Provider Level'!B:E,4,0),"-") -> - | F120: =IFERROR(VLOOKUP(Table1[[#This Row],[Child Name]],'Provider Level'!B:F,5,0),"-") -> - | G120: =IFERROR(VLOOKUP(Table1[[#This Row],[Child Name]],'Provider Level'!B:H,6,0),"-") -> - | H120: =IFERROR(VLOOKUP(Table1[[#This Row],[Child Name]],'Provider Level'!B:L,11,0),"-") -> - | I120: =IFERROR(VLOOKUP(Table1[[#This Row],[Child Name]],'Provider Level'!B:N,13,0),"-") -> - | J120: =IFERROR(VLOOKUP(Table1[[#This Row],[Child Name]],'Provider Level'!B:O,14,0),"-") -> - | K120: =IFERROR(VLOOKUP(Table1[[#This Row],[Child Name]],'Provider Level'!B:P,15,0),"-") -> - | L120: =IFERROR(VLOOKUP(Table1[[#This Row],[Child Name]],'Provider Level'!B:Q,16,0),"-") -> - | M120: =IFERROR(VLOOKUP(Table1[[#This Row],[Child Name]],'Provider Level'!B:R,17,0),"-") -> - | N120: 0 | O120: =IFERROR(IF(N120>VLOOKUP(M120,'Drop Down'!$A$3:$B$10,2,0),"1","0"),"-") -> - | P120: 0 | Q120: 0 | R120: =IFERROR(IF(M120="Select","Select Support Level", PRODUCT($Q120,VLOOKUP($J120,'Drop Down'!K:M,3,0))),"-") -> - | S120: Ok | T120: 0 | U120: 0
A121: =IF(B121="Complete Provider Level","Select",'Fee For Service Roll Up'!$E$4) -> Select | B121: Complete Provider Level | C121: =IFERROR(VLOOKUP(Table1[[#This Row],[Child Name]],'Provider Level'!B:C,2,0),"-") -> - | D121: =IFERROR(VLOOKUP(Table1[[#This Row],[Child Name]],'Provider Level'!B:D,3,0),"-") -> - | E121: =IFERROR(VLOOKUP(Table1[[#This Row],[Child Name]],'Provider Level'!B:E,4,0),"-") -> - | F121: =IFERROR(VLOOKUP(Table1[[#This Row],[Child Name]],'Provider Level'!B:F,5,0),"-") -> - | G121: =IFERROR(VLOOKUP(Table1[[#This Row],[Child Name]],'Provider Level'!B:H,6,0),"-") -> - | H121: =IFERROR(VLOOKUP(Table1[[#This Row],[Child Name]],'Provider Level'!B:L,11,0),"-") -> - | I121: =IFERROR(VLOOKUP(Table1[[#This Row],[Child Name]],'Provider Level'!B:N,13,0),"-") -> - | J121: =IFERROR(VLOOKUP(Table1[[#This Row],[Child Name]],'Provider Level'!B:O,14,0),"-") -> - | K121: =IFERROR(VLOOKUP(Table1[[#This Row],[Child Name]],'Provider Level'!B:P,15,0),"-") -> - | L121: =IFERROR(VLOOKUP(Table1[[#This Row],[Child Name]],'Provider Level'!B:Q,16,0),"-") -> - | M121: =IFERROR(VLOOKUP(Table1[[#This Row],[Child Name]],'Provider Level'!B:R,17,0),"-") -> - | N121: 0 | O121: =IFERROR(IF(N121>VLOOKUP(M121,'Drop Down'!$A$3:$B$10,2,0),"1","0"),"-") -> - | P121: 0 | Q121: 0 | R121: =IFERROR(IF(M121="Select","Select Support Level", PRODUCT($Q121,VLOOKUP($J121,'Drop Down'!K:M,3,0))),"-") -> - | S121: Ok | T121: 0 | U121: 0
A122: =IF(B122="Complete Provider Level","Select",'Fee For Service Roll Up'!$E$4) -> Select | B122: Complete Provider Level | C122: =IFERROR(VLOOKUP(Table1[[#This Row],[Child Name]],'Provider Level'!B:C,2,0),"-") -> - | D122: =IFERROR(VLOOKUP(Table1[[#This Row],[Child Name]],'Provider Level'!B:D,3,0),"-") -> - | E122: =IFERROR(VLOOKUP(Table1[[#This Row],[Child Name]],'Provider Level'!B:E,4,0),"-") -> - | F122: =IFERROR(VLOOKUP(Table1[[#This Row],[Child Name]],'Provider Level'!B:F,5,0),"-") -> - | G122: =IFERROR(VLOOKUP(Table1[[#This Row],[Child Name]],'Provider Level'!B:H,6,0),"-") -> - | H122: =IFERROR(VLOOKUP(Table1[[#This Row],[Child Name]],'Provider Level'!B:L,11,0),"-") -> - | I122: =IFERROR(VLOOKUP(Table1[[#This Row],[Child Name]],'Provider Level'!B:N,13,0),"-") -> - | J122: =IFERROR(VLOOKUP(Table1[[#This Row],[Child Name]],'Provider Level'!B:O,14,0),"-") -> - | K122: =IFERROR(VLOOKUP(Table1[[#This Row],[Child Name]],'Provider Level'!B:P,15,0),"-") -> - | L122: =IFERROR(VLOOKUP(Table1[[#This Row],[Child Name]],'Provider Level'!B:Q,16,0),"-") -> - | M122: =IFERROR(VLOOKUP(Table1[[#This Row],[Child Name]],'Provider Level'!B:R,17,0),"-") -> - | N122: 0 | O122: =IFERROR(IF(N122>VLOOKUP(M122,'Drop Down'!$A$3:$B$10,2,0),"1","0"),"-") -> - | P122: 0 | Q122: 0 | R122: =IFERROR(IF(M122="Select","Select Support Level", PRODUCT($Q122,VLOOKUP($J122,'Drop Down'!K:M,3,0))),"-") -> - | S122: Ok | T122: 0 | U122: 0
A123: =IF(B123="Complete Provider Level","Select",'Fee For Service Roll Up'!$E$4) -> Select | B123: Complete Provider Level | C123: =IFERROR(VLOOKUP(Table1[[#This Row],[Child Name]],'Provider Level'!B:C,2,0),"-") -> - | D123: =IFERROR(VLOOKUP(Table1[[#This Row],[Child Name]],'Provider Level'!B:D,3,0),"-") -> - | E123: =IFERROR(VLOOKUP(Table1[[#This Row],[Child Name]],'Provider Level'!B:E,4,0),"-") -> - | F123: =IFERROR(VLOOKUP(Table1[[#This Row],[Child Name]],'Provider Level'!B:F,5,0),"-") -> - | G123: =IFERROR(VLOOKUP(Table1[[#This Row],[Child Name]],'Provider Level'!B:H,6,0),"-") -> - | H123: =IFERROR(VLOOKUP(Table1[[#This Row],[Child Name]],'Provider Level'!B:L,11,0),"-") -> - | I123: =IFERROR(VLOOKUP(Table1[[#This Row],[Child Name]],'Provider Level'!B:N,13,0),"-") -> - | J123: =IFERROR(VLOOKUP(Table1[[#This Row],[Child Name]],'Provider Level'!B:O,14,0),"-") -> - | K123: =IFERROR(VLOOKUP(Table1[[#This Row],[Child Name]],'Provider Level'!B:P,15,0),"-") -> - | L123: =IFERROR(VLOOKUP(Table1[[#This Row],[Child Name]],'Provider Level'!B:Q,16,0),"-") -> - | M123: =IFERROR(VLOOKUP(Table1[[#This Row],[Child Name]],'Provider Level'!B:R,17,0),"-") -> - | N123: 0 | O123: =IFERROR(IF(N123>VLOOKUP(M123,'Drop Down'!$A$3:$B$10,2,0),"1","0"),"-") -> - | P123: 0 | Q123: 0 | R123: =IFERROR(IF(M123="Select","Select Support Level", PRODUCT($Q123,VLOOKUP($J123,'Drop Down'!K:M,3,0))),"-") -> - | S123: Ok | T123: 0 | U123: 0
A124: =IF(B124="Complete Provider Level","Select",'Fee For Service Roll Up'!$E$4) -> Select | B124: Complete Provider Level | C124: =IFERROR(VLOOKUP(Table1[[#This Row],[Child Name]],'Provider Level'!B:C,2,0),"-") -> - | D124: =IFERROR(VLOOKUP(Table1[[#This Row],[Child Name]],'Provider Level'!B:D,3,0),"-") -> - | E124: =IFERROR(VLOOKUP(Table1[[#This Row],[Child Name]],'Provider Level'!B:E,4,0),"-") -> - | F124: =IFERROR(VLOOKUP(Table1[[#This Row],[Child Name]],'Provider Level'!B:F,5,0),"-") -> - | G124: =IFERROR(VLOOKUP(Table1[[#This Row],[Child Name]],'Provider Level'!B:H,6,0),"-") -> - | H124: =IFERROR(VLOOKUP(Table1[[#This Row],[Child Name]],'Provider Level'!B:L,11,0),"-") -> - | I124: =IFERROR(VLOOKUP(Table1[[#This Row],[Child Name]],'Provider Level'!B:N,13,0),"-") -> - | J124: =IFERROR(VLOOKUP(Table1[[#This Row],[Child Name]],'Provider Level'!B:O,14,0),"-") -> - | K124: =IFERROR(VLOOKUP(Table1[[#This Row],[Child Name]],'Provider Level'!B:P,15,0),"-") -> - | L124: =IFERROR(VLOOKUP(Table1[[#This Row],[Child Name]],'Provider Level'!B:Q,16,0),"-") -> - | M124: =IFERROR(VLOOKUP(Table1[[#This Row],[Child Name]],'Provider Level'!B:R,17,0),"-") -> - | N124: 0 | O124: =IFERROR(IF(N124>VLOOKUP(M124,'Drop Down'!$A$3:$B$10,2,0),"1","0"),"-") -> - | P124: 0 | Q124: 0 | R124: =IFERROR(IF(M124="Select","Select Support Level", PRODUCT($Q124,VLOOKUP($J124,'Drop Down'!K:M,3,0))),"-") -> - | S124: Ok | T124: 0 | U124: 0
A125: =IF(B125="Complete Provider Level","Select",'Fee For Service Roll Up'!$E$4) -> Select | B125: Complete Provider Level | C125: =IFERROR(VLOOKUP(Table1[[#This Row],[Child Name]],'Provider Level'!B:C,2,0),"-") -> - | D125: =IFERROR(VLOOKUP(Table1[[#This Row],[Child Name]],'Provider Level'!B:D,3,0),"-") -> - | E125: =IFERROR(VLOOKUP(Table1[[#This Row],[Child Name]],'Provider Level'!B:E,4,0),"-") -> - | F125: =IFERROR(VLOOKUP(Table1[[#This Row],[Child Name]],'Provider Level'!B:F,5,0),"-") -> - | G125: =IFERROR(VLOOKUP(Table1[[#This Row],[Child Name]],'Provider Level'!B:H,6,0),"-") -> - | H125: =IFERROR(VLOOKUP(Table1[[#This Row],[Child Name]],'Provider Level'!B:L,11,0),"-") -> - | I125: =IFERROR(VLOOKUP(Table1[[#This Row],[Child Name]],'Provider Level'!B:N,13,0),"-") -> - | J125: =IFERROR(VLOOKUP(Table1[[#This Row],[Child Name]],'Provider Level'!B:O,14,0),"-") -> - | K125: =IFERROR(VLOOKUP(Table1[[#This Row],[Child Name]],'Provider Level'!B:P,15,0),"-") -> - | L125: =IFERROR(VLOOKUP(Table1[[#This Row],[Child Name]],'Provider Level'!B:Q,16,0),"-") -> - | M125: =IFERROR(VLOOKUP(Table1[[#This Row],[Child Name]],'Provider Level'!B:R,17,0),"-") -> - | N125: 0 | O125: =IFERROR(IF(N125>VLOOKUP(M125,'Drop Down'!$A$3:$B$10,2,0),"1","0"),"-") -> - | P125: 0 | Q125: 0 | R125: =IFERROR(IF(M125="Select","Select Support Level", PRODUCT($Q125,VLOOKUP($J125,'Drop Down'!K:M,3,0))),"-") -> - | S125: Ok | T125: 0 | U125: 0
A126: =IF(B126="Complete Provider Level","Select",'Fee For Service Roll Up'!$E$4) -> Select | B126: Complete Provider Level | C126: =IFERROR(VLOOKUP(Table1[[#This Row],[Child Name]],'Provider Level'!B:C,2,0),"-") -> - | D126: =IFERROR(VLOOKUP(Table1[[#This Row],[Child Name]],'Provider Level'!B:D,3,0),"-") -> - | E126: =IFERROR(VLOOKUP(Table1[[#This Row],[Child Name]],'Provider Level'!B:E,4,0),"-") -> - | F126: =IFERROR(VLOOKUP(Table1[[#This Row],[Child Name]],'Provider Level'!B:F,5,0),"-") -> - | G126: =IFERROR(VLOOKUP(Table1[[#This Row],[Child Name]],'Provider Level'!B:H,6,0),"-") -> - | H126: =IFERROR(VLOOKUP(Table1[[#This Row],[Child Name]],'Provider Level'!B:L,11,0),"-") -> - | I126: =IFERROR(VLOOKUP(Table1[[#This Row],[Child Name]],'Provider Level'!B:N,13,0),"-") -> - | J126: =IFERROR(VLOOKUP(Table1[[#This Row],[Child Name]],'Provider Level'!B:O,14,0),"-") -> - | K126: =IFERROR(VLOOKUP(Table1[[#This Row],[Child Name]],'Provider Level'!B:P,15,0),"-") -> - | L126: =IFERROR(VLOOKUP(Table1[[#This Row],[Child Name]],'Provider Level'!B:Q,16,0),"-") -> - | M126: =IFERROR(VLOOKUP(Table1[[#This Row],[Child Name]],'Provider Level'!B:R,17,0),"-") -> - | N126: 0 | O126: =IFERROR(IF(N126>VLOOKUP(M126,'Drop Down'!$A$3:$B$10,2,0),"1","0"),"-") -> - | P126: 0 | Q126: 0 | R126: =IFERROR(IF(M126="Select","Select Support Level", PRODUCT($Q126,VLOOKUP($J126,'Drop Down'!K:M,3,0))),"-") -> - | S126: Ok | T126: 0 | U126: 0
A127: =IF(B127="Complete Provider Level","Select",'Fee For Service Roll Up'!$E$4) -> Select | B127: Complete Provider Level | C127: =IFERROR(VLOOKUP(Table1[[#This Row],[Child Name]],'Provider Level'!B:C,2,0),"-") -> - | D127: =IFERROR(VLOOKUP(Table1[[#This Row],[Child Name]],'Provider Level'!B:D,3,0),"-") -> - | E127: =IFERROR(VLOOKUP(Table1[[#This Row],[Child Name]],'Provider Level'!B:E,4,0),"-") -> - | F127: =IFERROR(VLOOKUP(Table1[[#This Row],[Child Name]],'Provider Level'!B:F,5,0),"-") -> - | G127: =IFERROR(VLOOKUP(Table1[[#This Row],[Child Name]],'Provider Level'!B:H,6,0),"-") -> - | H127: =IFERROR(VLOOKUP(Table1[[#This Row],[Child Name]],'Provider Level'!B:L,11,0),"-") -> - | I127: =IFERROR(VLOOKUP(Table1[[#This Row],[Child Name]],'Provider Level'!B:N,13,0),"-") -> - | J127: =IFERROR(VLOOKUP(Table1[[#This Row],[Child Name]],'Provider Level'!B:O,14,0),"-") -> - | K127: =IFERROR(VLOOKUP(Table1[[#This Row],[Child Name]],'Provider Level'!B:P,15,0),"-") -> - | L127: =IFERROR(VLOOKUP(Table1[[#This Row],[Child Name]],'Provider Level'!B:Q,16,0),"-") -> - | M127: =IFERROR(VLOOKUP(Table1[[#This Row],[Child Name]],'Provider Level'!B:R,17,0),"-") -> - | N127: 0 | O127: =IFERROR(IF(N127>VLOOKUP(M127,'Drop Down'!$A$3:$B$10,2,0),"1","0"),"-") -> - | P127: 0 | Q127: 0 | R127: =IFERROR(IF(M127="Select","Select Support Level", PRODUCT($Q127,VLOOKUP($J127,'Drop Down'!K:M,3,0))),"-") -> - | S127: Ok | T127: 0 | U127: 0
A128: =IF(B128="Complete Provider Level","Select",'Fee For Service Roll Up'!$E$4) -> Select | B128: Complete Provider Level | C128: =IFERROR(VLOOKUP(Table1[[#This Row],[Child Name]],'Provider Level'!B:C,2,0),"-") -> - | D128: =IFERROR(VLOOKUP(Table1[[#This Row],[Child Name]],'Provider Level'!B:D,3,0),"-") -> - | E128: =IFERROR(VLOOKUP(Table1[[#This Row],[Child Name]],'Provider Level'!B:E,4,0),"-") -> - | F128: =IFERROR(VLOOKUP(Table1[[#This Row],[Child Name]],'Provider Level'!B:F,5,0),"-") -> - | G128: =IFERROR(VLOOKUP(Table1[[#This Row],[Child Name]],'Provider Level'!B:H,6,0),"-") -> - | H128: =IFERROR(VLOOKUP(Table1[[#This Row],[Child Name]],'Provider Level'!B:L,11,0),"-") -> - | I128: =IFERROR(VLOOKUP(Table1[[#This Row],[Child Name]],'Provider Level'!B:N,13,0),"-") -> - | J128: =IFERROR(VLOOKUP(Table1[[#This Row],[Child Name]],'Provider Level'!B:O,14,0),"-") -> - | K128: =IFERROR(VLOOKUP(Table1[[#This Row],[Child Name]],'Provider Level'!B:P,15,0),"-") -> - | L128: =IFERROR(VLOOKUP(Table1[[#This Row],[Child Name]],'Provider Level'!B:Q,16,0),"-") -> - | M128: =IFERROR(VLOOKUP(Table1[[#This Row],[Child Name]],'Provider Level'!B:R,17,0),"-") -> - | N128: 0 | O128: =IFERROR(IF(N128>VLOOKUP(M128,'Drop Down'!$A$3:$B$10,2,0),"1","0"),"-") -> - | P128: 0 | Q128: 0 | R128: =IFERROR(IF(M128="Select","Select Support Level", PRODUCT($Q128,VLOOKUP($J128,'Drop Down'!K:M,3,0))),"-") -> - | S128: Ok | T128: 0 | U128: 0
A129: =IF(B129="Complete Provider Level","Select",'Fee For Service Roll Up'!$E$4) -> Select | B129: Complete Provider Level | C129: =IFERROR(VLOOKUP(Table1[[#This Row],[Child Name]],'Provider Level'!B:C,2,0),"-") -> - | D129: =IFERROR(VLOOKUP(Table1[[#This Row],[Child Name]],'Provider Level'!B:D,3,0),"-") -> - | E129: =IFERROR(VLOOKUP(Table1[[#This Row],[Child Name]],'Provider Level'!B:E,4,0),"-") -> - | F129: =IFERROR(VLOOKUP(Table1[[#This Row],[Child Name]],'Provider Level'!B:F,5,0),"-") -> - | G129: =IFERROR(VLOOKUP(Table1[[#This Row],[Child Name]],'Provider Level'!B:H,6,0),"-") -> - | H129: =IFERROR(VLOOKUP(Table1[[#This Row],[Child Name]],'Provider Level'!B:L,11,0),"-") -> - | I129: =IFERROR(VLOOKUP(Table1[[#This Row],[Child Name]],'Provider Level'!B:N,13,0),"-") -> - | J129: =IFERROR(VLOOKUP(Table1[[#This Row],[Child Name]],'Provider Level'!B:O,14,0),"-") -> - | K129: =IFERROR(VLOOKUP(Table1[[#This Row],[Child Name]],'Provider Level'!B:P,15,0),"-") -> - | L129: =IFERROR(VLOOKUP(Table1[[#This Row],[Child Name]],'Provider Level'!B:Q,16,0),"-") -> - | M129: =IFERROR(VLOOKUP(Table1[[#This Row],[Child Name]],'Provider Level'!B:R,17,0),"-") -> - | N129: 0 | O129: =IFERROR(IF(N129>VLOOKUP(M129,'Drop Down'!$A$3:$B$10,2,0),"1","0"),"-") -> - | P129: 0 | Q129: =SUM($N129,$P129) -> 0 | R129: =IFERROR(IF(M129="Select","Select Support Level", PRODUCT($Q129,VLOOKUP($J129,'Drop Down'!K:M,3,0))),"-") -> - | S129: =IF(O129="1","Cannot Bill","Ok") -> Ok | T129: 0 | U129: =IF($T129="",0,ROUND(PRODUCT(T129,0.7),2)) -> 0
A130: =IF(B130="Complete Provider Level","Select",'Fee For Service Roll Up'!$E$4) -> Select | B130: Complete Provider Level | C130: =IFERROR(VLOOKUP(Table1[[#This Row],[Child Name]],'Provider Level'!B:C,2,0),"-") -> - | D130: =IFERROR(VLOOKUP(Table1[[#This Row],[Child Name]],'Provider Level'!B:D,3,0),"-") -> - | E130: =IFERROR(VLOOKUP(Table1[[#This Row],[Child Name]],'Provider Level'!B:E,4,0),"-") -> - | F130: =IFERROR(VLOOKUP(Table1[[#This Row],[Child Name]],'Provider Level'!B:F,5,0),"-") -> - | G130: =IFERROR(VLOOKUP(Table1[[#This Row],[Child Name]],'Provider Level'!B:H,6,0),"-") -> - | H130: =IFERROR(VLOOKUP(Table1[[#This Row],[Child Name]],'Provider Level'!B:L,11,0),"-") -> - | I130: =IFERROR(VLOOKUP(Table1[[#This Row],[Child Name]],'Provider Level'!B:N,13,0),"-") -> - | J130: =IFERROR(VLOOKUP(Table1[[#This Row],[Child Name]],'Provider Level'!B:O,14,0),"-") -> - | K130: =IFERROR(VLOOKUP(Table1[[#This Row],[Child Name]],'Provider Level'!B:P,15,0),"-") -> - | L130: =IFERROR(VLOOKUP(Table1[[#This Row],[Child Name]],'Provider Level'!B:Q,16,0),"-") -> - | M130: =IFERROR(VLOOKUP(Table1[[#This Row],[Child Name]],'Provider Level'!B:R,17,0),"-") -> - | N130: 0 | O130: =IFERROR(IF(N130>VLOOKUP(M130,'Drop Down'!$A$3:$B$10,2,0),"1","0"),"-") -> - | P130: 0 | Q130: 0 | R130: =IFERROR(IF(M130="Select","Select Support Level", PRODUCT($Q130,VLOOKUP($J130,'Drop Down'!K:M,3,0))),"-") -> - | S130: Ok | T130: 0 | U130: 0
A131: =IF(B131="Complete Provider Level","Select",'Fee For Service Roll Up'!$E$4) -> Select | B131: Complete Provider Level | C131: =IFERROR(VLOOKUP(Table1[[#This Row],[Child Name]],'Provider Level'!B:C,2,0),"-") -> - | D131: =IFERROR(VLOOKUP(Table1[[#This Row],[Child Name]],'Provider Level'!B:D,3,0),"-") -> - | E131: =IFERROR(VLOOKUP(Table1[[#This Row],[Child Name]],'Provider Level'!B:E,4,0),"-") -> - | F131: =IFERROR(VLOOKUP(Table1[[#This Row],[Child Name]],'Provider Level'!B:F,5,0),"-") -> - | G131: =IFERROR(VLOOKUP(Table1[[#This Row],[Child Name]],'Provider Level'!B:H,6,0),"-") -> - | H131: =IFERROR(VLOOKUP(Table1[[#This Row],[Child Name]],'Provider Level'!B:L,11,0),"-") -> - | I131: =IFERROR(VLOOKUP(Table1[[#This Row],[Child Name]],'Provider Level'!B:N,13,0),"-") -> - | J131: =IFERROR(VLOOKUP(Table1[[#This Row],[Child Name]],'Provider Level'!B:O,14,0),"-") -> - | K131: =IFERROR(VLOOKUP(Table1[[#This Row],[Child Name]],'Provider Level'!B:P,15,0),"-") -> - | L131: =IFERROR(VLOOKUP(Table1[[#This Row],[Child Name]],'Provider Level'!B:Q,16,0),"-") -> - | M131: =IFERROR(VLOOKUP(Table1[[#This Row],[Child Name]],'Provider Level'!B:R,17,0),"-") -> - | N131: 0 | O131: =IFERROR(IF(N131>VLOOKUP(M131,'Drop Down'!$A$3:$B$10,2,0),"1","0"),"-") -> - | P131: 0 | Q131: 0 | R131: =IFERROR(IF(M131="Select","Select Support Level", PRODUCT($Q131,VLOOKUP($J131,'Drop Down'!K:M,3,0))),"-") -> - | S131: Ok | T131: 0 | U131: 0
A132: =IF(B132="Complete Provider Level","Select",'Fee For Service Roll Up'!$E$4) -> Select | B132: Complete Provider Level | C132: =IFERROR(VLOOKUP(Table1[[#This Row],[Child Name]],'Provider Level'!B:C,2,0),"-") -> - | D132: =IFERROR(VLOOKUP(Table1[[#This Row],[Child Name]],'Provider Level'!B:D,3,0),"-") -> - | E132: =IFERROR(VLOOKUP(Table1[[#This Row],[Child Name]],'Provider Level'!B:E,4,0),"-") -> - | F132: =IFERROR(VLOOKUP(Table1[[#This Row],[Child Name]],'Provider Level'!B:F,5,0),"-") -> - | G132: =IFERROR(VLOOKUP(Table1[[#This Row],[Child Name]],'Provider Level'!B:H,6,0),"-") -> - | H132: =IFERROR(VLOOKUP(Table1[[#This Row],[Child Name]],'Provider Level'!B:L,11,0),"-") -> - | I132: =IFERROR(VLOOKUP(Table1[[#This Row],[Child Name]],'Provider Level'!B:N,13,0),"-") -> - | J132: =IFERROR(VLOOKUP(Table1[[#This Row],[Child Name]],'Provider Level'!B:O,14,0),"-") -> - | K132: =IFERROR(VLOOKUP(Table1[[#This Row],[Child Name]],'Provider Level'!B:P,15,0),"-") -> - | L132: =IFERROR(VLOOKUP(Table1[[#This Row],[Child Name]],'Provider Level'!B:Q,16,0),"-") -> - | M132: =IFERROR(VLOOKUP(Table1[[#This Row],[Child Name]],'Provider Level'!B:R,17,0),"-") -> - | N132: 0 | O132: =IFERROR(IF(N132>VLOOKUP(M132,'Drop Down'!$A$3:$B$10,2,0),"1","0"),"-") -> - | P132: 0 | Q132: 0 | R132: =IFERROR(IF(M132="Select","Select Support Level", PRODUCT($Q132,VLOOKUP($J132,'Drop Down'!K:M,3,0))),"-") -> - | S132: Ok | T132: 0 | U132: 0
A133: =IF(B133="Complete Provider Level","Select",'Fee For Service Roll Up'!$E$4) -> Select | B133: Complete Provider Level | C133: =IFERROR(VLOOKUP(Table1[[#This Row],[Child Name]],'Provider Level'!B:C,2,0),"-") -> - | D133: =IFERROR(VLOOKUP(Table1[[#This Row],[Child Name]],'Provider Level'!B:D,3,0),"-") -> - | E133: =IFERROR(VLOOKUP(Table1[[#This Row],[Child Name]],'Provider Level'!B:E,4,0),"-") -> - | F133: =IFERROR(VLOOKUP(Table1[[#This Row],[Child Name]],'Provider Level'!B:F,5,0),"-") -> - | G133: =IFERROR(VLOOKUP(Table1[[#This Row],[Child Name]],'Provider Level'!B:H,6,0),"-") -> - | H133: =IFERROR(VLOOKUP(Table1[[#This Row],[Child Name]],'Provider Level'!B:L,11,0),"-") -> - | I133: =IFERROR(VLOOKUP(Table1[[#This Row],[Child Name]],'Provider Level'!B:N,13,0),"-") -> - | J133: =IFERROR(VLOOKUP(Table1[[#This Row],[Child Name]],'Provider Level'!B:O,14,0),"-") -> - | K133: =IFERROR(VLOOKUP(Table1[[#This Row],[Child Name]],'Provider Level'!B:P,15,0),"-") -> - | L133: =IFERROR(VLOOKUP(Table1[[#This Row],[Child Name]],'Provider Level'!B:Q,16,0),"-") -> - | M133: =IFERROR(VLOOKUP(Table1[[#This Row],[Child Name]],'Provider Level'!B:R,17,0),"-") -> - | N133: 0 | O133: =IFERROR(IF(N133>VLOOKUP(M133,'Drop Down'!$A$3:$B$10,2,0),"1","0"),"-") -> - | P133: 0 | Q133: 0 | R133: =IFERROR(IF(M133="Select","Select Support Level", PRODUCT($Q133,VLOOKUP($J133,'Drop Down'!K:M,3,0))),"-") -> - | S133: Ok | T133: 0 | U133: 0
A134: =IF(B134="Complete Provider Level","Select",'Fee For Service Roll Up'!$E$4) -> Select | B134: Complete Provider Level | C134: =IFERROR(VLOOKUP(Table1[[#This Row],[Child Name]],'Provider Level'!B:C,2,0),"-") -> - | D134: =IFERROR(VLOOKUP(Table1[[#This Row],[Child Name]],'Provider Level'!B:D,3,0),"-") -> - | E134: =IFERROR(VLOOKUP(Table1[[#This Row],[Child Name]],'Provider Level'!B:E,4,0),"-") -> - | F134: =IFERROR(VLOOKUP(Table1[[#This Row],[Child Name]],'Provider Level'!B:F,5,0),"-") -> - | G134: =IFERROR(VLOOKUP(Table1[[#This Row],[Child Name]],'Provider Level'!B:H,6,0),"-") -> - | H134: =IFERROR(VLOOKUP(Table1[[#This Row],[Child Name]],'Provider Level'!B:L,11,0),"-") -> - | I134: =IFERROR(VLOOKUP(Table1[[#This Row],[Child Name]],'Provider Level'!B:N,13,0),"-") -> - | J134: =IFERROR(VLOOKUP(Table1[[#This Row],[Child Name]],'Provider Level'!B:O,14,0),"-") -> - | K134: =IFERROR(VLOOKUP(Table1[[#This Row],[Child Name]],'Provider Level'!B:P,15,0),"-") -> - | L134: =IFERROR(VLOOKUP(Table1[[#This Row],[Child Name]],'Provider Level'!B:Q,16,0),"-") -> - | M134: =IFERROR(VLOOKUP(Table1[[#This Row],[Child Name]],'Provider Level'!B:R,17,0),"-") -> - | N134: 0 | O134: =IFERROR(IF(N134>VLOOKUP(M134,'Drop Down'!$A$3:$B$10,2,0),"1","0"),"-") -> - | P134: 0 | Q134: 0 | R134: =IFERROR(IF(M134="Select","Select Support Level", PRODUCT($Q134,VLOOKUP($J134,'Drop Down'!K:M,3,0))),"-") -> - | S134: Ok | T134: 0 | U134: 0
A135: =IF(B135="Complete Provider Level","Select",'Fee For Service Roll Up'!$E$4) -> Select | B135: Complete Provider Level | C135: =IFERROR(VLOOKUP(Table1[[#This Row],[Child Name]],'Provider Level'!B:C,2,0),"-") -> - | D135: =IFERROR(VLOOKUP(Table1[[#This Row],[Child Name]],'Provider Level'!B:D,3,0),"-") -> - | E135: =IFERROR(VLOOKUP(Table1[[#This Row],[Child Name]],'Provider Level'!B:E,4,0),"-") -> - | F135: =IFERROR(VLOOKUP(Table1[[#This Row],[Child Name]],'Provider Level'!B:F,5,0),"-") -> - | G135: =IFERROR(VLOOKUP(Table1[[#This Row],[Child Name]],'Provider Level'!B:H,6,0),"-") -> - | H135: =IFERROR(VLOOKUP(Table1[[#This Row],[Child Name]],'Provider Level'!B:L,11,0),"-") -> - | I135: =IFERROR(VLOOKUP(Table1[[#This Row],[Child Name]],'Provider Level'!B:N,13,0),"-") -> - | J135: =IFERROR(VLOOKUP(Table1[[#This Row],[Child Name]],'Provider Level'!B:O,14,0),"-") -> - | K135: =IFERROR(VLOOKUP(Table1[[#This Row],[Child Name]],'Provider Level'!B:P,15,0),"-") -> - | L135: =IFERROR(VLOOKUP(Table1[[#This Row],[Child Name]],'Provider Level'!B:Q,16,0),"-") -> - | M135: =IFERROR(VLOOKUP(Table1[[#This Row],[Child Name]],'Provider Level'!B:R,17,0),"-") -> - | N135: 0 | O135: =IFERROR(IF(N135>VLOOKUP(M135,'Drop Down'!$A$3:$B$10,2,0),"1","0"),"-") -> - | P135: 0 | Q135: 0 | R135: =IFERROR(IF(M135="Select","Select Support Level", PRODUCT($Q135,VLOOKUP($J135,'Drop Down'!K:M,3,0))),"-") -> - | S135: Ok | T135: 0 | U135: 0
A136: =IF(B136="Complete Provider Level","Select",'Fee For Service Roll Up'!$E$4) -> Select | B136: Complete Provider Level | C136: =IFERROR(VLOOKUP(Table1[[#This Row],[Child Name]],'Provider Level'!B:C,2,0),"-") -> - | D136: =IFERROR(VLOOKUP(Table1[[#This Row],[Child Name]],'Provider Level'!B:D,3,0),"-") -> - | E136: =IFERROR(VLOOKUP(Table1[[#This Row],[Child Name]],'Provider Level'!B:E,4,0),"-") -> - | F136: =IFERROR(VLOOKUP(Table1[[#This Row],[Child Name]],'Provider Level'!B:F,5,0),"-") -> - | G136: =IFERROR(VLOOKUP(Table1[[#This Row],[Child Name]],'Provider Level'!B:H,6,0),"-") -> - | H136: =IFERROR(VLOOKUP(Table1[[#This Row],[Child Name]],'Provider Level'!B:L,11,0),"-") -> - | I136: =IFERROR(VLOOKUP(Table1[[#This Row],[Child Name]],'Provider Level'!B:N,13,0),"-") -> - | J136: =IFERROR(VLOOKUP(Table1[[#This Row],[Child Name]],'Provider Level'!B:O,14,0),"-") -> - | K136: =IFERROR(VLOOKUP(Table1[[#This Row],[Child Name]],'Provider Level'!B:P,15,0),"-") -> - | L136: =IFERROR(VLOOKUP(Table1[[#This Row],[Child Name]],'Provider Level'!B:Q,16,0),"-") -> - | M136: =IFERROR(VLOOKUP(Table1[[#This Row],[Child Name]],'Provider Level'!B:R,17,0),"-") -> - | N136: 0 | O136: =IFERROR(IF(N136>VLOOKUP(M136,'Drop Down'!$A$3:$B$10,2,0),"1","0"),"-") -> - | P136: 0 | Q136: 0 | R136: =IFERROR(IF(M136="Select","Select Support Level", PRODUCT($Q136,VLOOKUP($J136,'Drop Down'!K:M,3,0))),"-") -> - | S136: Ok | T136: 0 | U136: 0
A137: =IF(B137="Complete Provider Level","Select",'Fee For Service Roll Up'!$E$4) -> Select | B137: Complete Provider Level | C137: =IFERROR(VLOOKUP(Table1[[#This Row],[Child Name]],'Provider Level'!B:C,2,0),"-") -> - | D137: =IFERROR(VLOOKUP(Table1[[#This Row],[Child Name]],'Provider Level'!B:D,3,0),"-") -> - | E137: =IFERROR(VLOOKUP(Table1[[#This Row],[Child Name]],'Provider Level'!B:E,4,0),"-") -> - | F137: =IFERROR(VLOOKUP(Table1[[#This Row],[Child Name]],'Provider Level'!B:F,5,0),"-") -> - | G137: =IFERROR(VLOOKUP(Table1[[#This Row],[Child Name]],'Provider Level'!B:H,6,0),"-") -> - | H137: =IFERROR(VLOOKUP(Table1[[#This Row],[Child Name]],'Provider Level'!B:L,11,0),"-") -> - | I137: =IFERROR(VLOOKUP(Table1[[#This Row],[Child Name]],'Provider Level'!B:N,13,0),"-") -> - | J137: =IFERROR(VLOOKUP(Table1[[#This Row],[Child Name]],'Provider Level'!B:O,14,0),"-") -> - | K137: =IFERROR(VLOOKUP(Table1[[#This Row],[Child Name]],'Provider Level'!B:P,15,0),"-") -> - | L137: =IFERROR(VLOOKUP(Table1[[#This Row],[Child Name]],'Provider Level'!B:Q,16,0),"-") -> - | M137: =IFERROR(VLOOKUP(Table1[[#This Row],[Child Name]],'Provider Level'!B:R,17,0),"-") -> - | N137: 0 | O137: =IFERROR(IF(N137>VLOOKUP(M137,'Drop Down'!$A$3:$B$10,2,0),"1","0"),"-") -> - | P137: 0 | Q137: 0 | R137: =IFERROR(IF(M137="Select","Select Support Level", PRODUCT($Q137,VLOOKUP($J137,'Drop Down'!K:M,3,0))),"-") -> - | S137: Ok | T137: 0 | U137: 0
A138: =IF(B138="Complete Provider Level","Select",'Fee For Service Roll Up'!$E$4) -> Select | B138: Complete Provider Level | C138: =IFERROR(VLOOKUP(Table1[[#This Row],[Child Name]],'Provider Level'!B:C,2,0),"-") -> - | D138: =IFERROR(VLOOKUP(Table1[[#This Row],[Child Name]],'Provider Level'!B:D,3,0),"-") -> - | E138: =IFERROR(VLOOKUP(Table1[[#This Row],[Child Name]],'Provider Level'!B:E,4,0),"-") -> - | F138: =IFERROR(VLOOKUP(Table1[[#This Row],[Child Name]],'Provider Level'!B:F,5,0),"-") -> - | G138: =IFERROR(VLOOKUP(Table1[[#This Row],[Child Name]],'Provider Level'!B:H,6,0),"-") -> - | H138: =IFERROR(VLOOKUP(Table1[[#This Row],[Child Name]],'Provider Level'!B:L,11,0),"-") -> - | I138: =IFERROR(VLOOKUP(Table1[[#This Row],[Child Name]],'Provider Level'!B:N,13,0),"-") -> - | J138: =IFERROR(VLOOKUP(Table1[[#This Row],[Child Name]],'Provider Level'!B:O,14,0),"-") -> - | K138: =IFERROR(VLOOKUP(Table1[[#This Row],[Child Name]],'Provider Level'!B:P,15,0),"-") -> - | L138: =IFERROR(VLOOKUP(Table1[[#This Row],[Child Name]],'Provider Level'!B:Q,16,0),"-") -> - | M138: =IFERROR(VLOOKUP(Table1[[#This Row],[Child Name]],'Provider Level'!B:R,17,0),"-") -> - | N138: 0 | O138: =IFERROR(IF(N138>VLOOKUP(M138,'Drop Down'!$A$3:$B$10,2,0),"1","0"),"-") -> - | P138: 0 | Q138: 0 | R138: =IFERROR(IF(M138="Select","Select Support Level", PRODUCT($Q138,VLOOKUP($J138,'Drop Down'!K:M,3,0))),"-") -> - | S138: Ok | T138: 0 | U138: 0
A139: =IF(B139="Complete Provider Level","Select",'Fee For Service Roll Up'!$E$4) -> Select | B139: Complete Provider Level | C139: =IFERROR(VLOOKUP(Table1[[#This Row],[Child Name]],'Provider Level'!B:C,2,0),"-") -> - | D139: =IFERROR(VLOOKUP(Table1[[#This Row],[Child Name]],'Provider Level'!B:D,3,0),"-") -> - | E139: =IFERROR(VLOOKUP(Table1[[#This Row],[Child Name]],'Provider Level'!B:E,4,0),"-") -> - | F139: =IFERROR(VLOOKUP(Table1[[#This Row],[Child Name]],'Provider Level'!B:F,5,0),"-") -> - | G139: =IFERROR(VLOOKUP(Table1[[#This Row],[Child Name]],'Provider Level'!B:H,6,0),"-") -> - | H139: =IFERROR(VLOOKUP(Table1[[#This Row],[Child Name]],'Provider Level'!B:L,11,0),"-") -> - | I139: =IFERROR(VLOOKUP(Table1[[#This Row],[Child Name]],'Provider Level'!B:N,13,0),"-") -> - | J139: =IFERROR(VLOOKUP(Table1[[#This Row],[Child Name]],'Provider Level'!B:O,14,0),"-") -> - | K139: =IFERROR(VLOOKUP(Table1[[#This Row],[Child Name]],'Provider Level'!B:P,15,0),"-") -> - | L139: =IFERROR(VLOOKUP(Table1[[#This Row],[Child Name]],'Provider Level'!B:Q,16,0),"-") -> - | M139: =IFERROR(VLOOKUP(Table1[[#This Row],[Child Name]],'Provider Level'!B:R,17,0),"-") -> - | N139: 0 | O139: =IFERROR(IF(N139>VLOOKUP(M139,'Drop Down'!$A$3:$B$10,2,0),"1","0"),"-") -> - | P139: 0 | Q139: 0 | R139: =IFERROR(IF(M139="Select","Select Support Level", PRODUCT($Q139,VLOOKUP($J139,'Drop Down'!K:M,3,0))),"-") -> - | S139: Ok | T139: 0 | U139: 0
A140: =IF(B140="Complete Provider Level","Select",'Fee For Service Roll Up'!$E$4) -> Select | B140: Complete Provider Level | C140: =IFERROR(VLOOKUP(Table1[[#This Row],[Child Name]],'Provider Level'!B:C,2,0),"-") -> - | D140: =IFERROR(VLOOKUP(Table1[[#This Row],[Child Name]],'Provider Level'!B:D,3,0),"-") -> - | E140: =IFERROR(VLOOKUP(Table1[[#This Row],[Child Name]],'Provider Level'!B:E,4,0),"-") -> - | F140: =IFERROR(VLOOKUP(Table1[[#This Row],[Child Name]],'Provider Level'!B:F,5,0),"-") -> - | G140: =IFERROR(VLOOKUP(Table1[[#This Row],[Child Name]],'Provider Level'!B:H,6,0),"-") -> - | H140: =IFERROR(VLOOKUP(Table1[[#This Row],[Child Name]],'Provider Level'!B:L,11,0),"-") -> - | I140: =IFERROR(VLOOKUP(Table1[[#This Row],[Child Name]],'Provider Level'!B:N,13,0),"-") -> - | J140: =IFERROR(VLOOKUP(Table1[[#This Row],[Child Name]],'Provider Level'!B:O,14,0),"-") -> - | K140: =IFERROR(VLOOKUP(Table1[[#This Row],[Child Name]],'Provider Level'!B:P,15,0),"-") -> - | L140: =IFERROR(VLOOKUP(Table1[[#This Row],[Child Name]],'Provider Level'!B:Q,16,0),"-") -> - | M140: =IFERROR(VLOOKUP(Table1[[#This Row],[Child Name]],'Provider Level'!B:R,17,0),"-") -> - | N140: 0 | O140: =IFERROR(IF(N140>VLOOKUP(M140,'Drop Down'!$A$3:$B$10,2,0),"1","0"),"-") -> - | P140: 0 | Q140: 0 | R140: =IFERROR(IF(M140="Select","Select Support Level", PRODUCT($Q140,VLOOKUP($J140,'Drop Down'!K:M,3,0))),"-") -> - | S140: Ok | T140: 0 | U140: 0
A141: =IF(B141="Complete Provider Level","Select",'Fee For Service Roll Up'!$E$4) -> Select | B141: Complete Provider Level | C141: =IFERROR(VLOOKUP(Table1[[#This Row],[Child Name]],'Provider Level'!B:C,2,0),"-") -> - | D141: =IFERROR(VLOOKUP(Table1[[#This Row],[Child Name]],'Provider Level'!B:D,3,0),"-") -> - | E141: =IFERROR(VLOOKUP(Table1[[#This Row],[Child Name]],'Provider Level'!B:E,4,0),"-") -> - | F141: =IFERROR(VLOOKUP(Table1[[#This Row],[Child Name]],'Provider Level'!B:F,5,0),"-") -> - | G141: =IFERROR(VLOOKUP(Table1[[#This Row],[Child Name]],'Provider Level'!B:H,6,0),"-") -> - | H141: =IFERROR(VLOOKUP(Table1[[#This Row],[Child Name]],'Provider Level'!B:L,11,0),"-") -> - | I141: =IFERROR(VLOOKUP(Table1[[#This Row],[Child Name]],'Provider Level'!B:N,13,0),"-") -> - | J141: =IFERROR(VLOOKUP(Table1[[#This Row],[Child Name]],'Provider Level'!B:O,14,0),"-") -> - | K141: =IFERROR(VLOOKUP(Table1[[#This Row],[Child Name]],'Provider Level'!B:P,15,0),"-") -> - | L141: =IFERROR(VLOOKUP(Table1[[#This Row],[Child Name]],'Provider Level'!B:Q,16,0),"-") -> - | M141: =IFERROR(VLOOKUP(Table1[[#This Row],[Child Name]],'Provider Level'!B:R,17,0),"-") -> - | N141: 0 | O141: =IFERROR(IF(N141>VLOOKUP(M141,'Drop Down'!$A$3:$B$10,2,0),"1","0"),"-") -> - | P141: 0 | Q141: 0 | R141: =IFERROR(IF(M141="Select","Select Support Level", PRODUCT($Q141,VLOOKUP($J141,'Drop Down'!K:M,3,0))),"-") -> - | S141: Ok | T141: 0 | U141: 0
A142: =IF(B142="Complete Provider Level","Select",'Fee For Service Roll Up'!$E$4) -> Select | B142: Complete Provider Level | C142: =IFERROR(VLOOKUP(Table1[[#This Row],[Child Name]],'Provider Level'!B:C,2,0),"-") -> - | D142: =IFERROR(VLOOKUP(Table1[[#This Row],[Child Name]],'Provider Level'!B:D,3,0),"-") -> - | E142: =IFERROR(VLOOKUP(Table1[[#This Row],[Child Name]],'Provider Level'!B:E,4,0),"-") -> - | F142: =IFERROR(VLOOKUP(Table1[[#This Row],[Child Name]],'Provider Level'!B:F,5,0),"-") -> - | G142: =IFERROR(VLOOKUP(Table1[[#This Row],[Child Name]],'Provider Level'!B:H,6,0),"-") -> - | H142: =IFERROR(VLOOKUP(Table1[[#This Row],[Child Name]],'Provider Level'!B:L,11,0),"-") -> - | I142: =IFERROR(VLOOKUP(Table1[[#This Row],[Child Name]],'Provider Level'!B:N,13,0),"-") -> - | J142: =IFERROR(VLOOKUP(Table1[[#This Row],[Child Name]],'Provider Level'!B:O,14,0),"-") -> - | K142: =IFERROR(VLOOKUP(Table1[[#This Row],[Child Name]],'Provider Level'!B:P,15,0),"-") -> - | L142: =IFERROR(VLOOKUP(Table1[[#This Row],[Child Name]],'Provider Level'!B:Q,16,0),"-") -> - | M142: =IFERROR(VLOOKUP(Table1[[#This Row],[Child Name]],'Provider Level'!B:R,17,0),"-") -> - | N142: 0 | O142: =IFERROR(IF(N142>VLOOKUP(M142,'Drop Down'!$A$3:$B$10,2,0),"1","0"),"-") -> - | P142: 0 | Q142: 0 | R142: =IFERROR(IF(M142="Select","Select Support Level", PRODUCT($Q142,VLOOKUP($J142,'Drop Down'!K:M,3,0))),"-") -> - | S142: Ok | T142: 0 | U142: 0
A143: =IF(B143="Complete Provider Level","Select",'Fee For Service Roll Up'!$E$4) -> Select | B143: Complete Provider Level | C143: =IFERROR(VLOOKUP(Table1[[#This Row],[Child Name]],'Provider Level'!B:C,2,0),"-") -> - | D143: =IFERROR(VLOOKUP(Table1[[#This Row],[Child Name]],'Provider Level'!B:D,3,0),"-") -> - | E143: =IFERROR(VLOOKUP(Table1[[#This Row],[Child Name]],'Provider Level'!B:E,4,0),"-") -> - | F143: =IFERROR(VLOOKUP(Table1[[#This Row],[Child Name]],'Provider Level'!B:F,5,0),"-") -> - | G143: =IFERROR(VLOOKUP(Table1[[#This Row],[Child Name]],'Provider Level'!B:H,6,0),"-") -> - | H143: =IFERROR(VLOOKUP(Table1[[#This Row],[Child Name]],'Provider Level'!B:L,11,0),"-") -> - | I143: =IFERROR(VLOOKUP(Table1[[#This Row],[Child Name]],'Provider Level'!B:N,13,0),"-") -> - | J143: =IFERROR(VLOOKUP(Table1[[#This Row],[Child Name]],'Provider Level'!B:O,14,0),"-") -> - | K143: =IFERROR(VLOOKUP(Table1[[#This Row],[Child Name]],'Provider Level'!B:P,15,0),"-") -> - | L143: =IFERROR(VLOOKUP(Table1[[#This Row],[Child Name]],'Provider Level'!B:Q,16,0),"-") -> - | M143: =IFERROR(VLOOKUP(Table1[[#This Row],[Child Name]],'Provider Level'!B:R,17,0),"-") -> - | N143: 0 | O143: =IFERROR(IF(N143>VLOOKUP(M143,'Drop Down'!$A$3:$B$10,2,0),"1","0"),"-") -> - | P143: 0 | Q143: 0 | R143: =IFERROR(IF(M143="Select","Select Support Level", PRODUCT($Q143,VLOOKUP($J143,'Drop Down'!K:M,3,0))),"-") -> - | S143: Ok | T143: 0 | U143: 0
A144: =IF(B144="Complete Provider Level","Select",'Fee For Service Roll Up'!$E$4) -> Select | B144: Complete Provider Level | C144: =IFERROR(VLOOKUP(Table1[[#This Row],[Child Name]],'Provider Level'!B:C,2,0),"-") -> - | D144: =IFERROR(VLOOKUP(Table1[[#This Row],[Child Name]],'Provider Level'!B:D,3,0),"-") -> - | E144: =IFERROR(VLOOKUP(Table1[[#This Row],[Child Name]],'Provider Level'!B:E,4,0),"-") -> - | F144: =IFERROR(VLOOKUP(Table1[[#This Row],[Child Name]],'Provider Level'!B:F,5,0),"-") -> - | G144: =IFERROR(VLOOKUP(Table1[[#This Row],[Child Name]],'Provider Level'!B:H,6,0),"-") -> - | H144: =IFERROR(VLOOKUP(Table1[[#This Row],[Child Name]],'Provider Level'!B:L,11,0),"-") -> - | I144: =IFERROR(VLOOKUP(Table1[[#This Row],[Child Name]],'Provider Level'!B:N,13,0),"-") -> - | J144: =IFERROR(VLOOKUP(Table1[[#This Row],[Child Name]],'Provider Level'!B:O,14,0),"-") -> - | K144: =IFERROR(VLOOKUP(Table1[[#This Row],[Child Name]],'Provider Level'!B:P,15,0),"-") -> - | L144: =IFERROR(VLOOKUP(Table1[[#This Row],[Child Name]],'Provider Level'!B:Q,16,0),"-") -> - | M144: =IFERROR(VLOOKUP(Table1[[#This Row],[Child Name]],'Provider Level'!B:R,17,0),"-") -> - | N144: 0 | O144: =IFERROR(IF(N144>VLOOKUP(M144,'Drop Down'!$A$3:$B$10,2,0),"1","0"),"-") -> - | P144: 0 | Q144: 0 | R144: =IFERROR(IF(M144="Select","Select Support Level", PRODUCT($Q144,VLOOKUP($J144,'Drop Down'!K:M,3,0))),"-") -> - | S144: Ok | T144: 0 | U144: 0
A145: =IF(B145="Complete Provider Level","Select",'Fee For Service Roll Up'!$E$4) -> Select | B145: Complete Provider Level | C145: =IFERROR(VLOOKUP(Table1[[#This Row],[Child Name]],'Provider Level'!B:C,2,0),"-") -> - | D145: =IFERROR(VLOOKUP(Table1[[#This Row],[Child Name]],'Provider Level'!B:D,3,0),"-") -> - | E145: =IFERROR(VLOOKUP(Table1[[#This Row],[Child Name]],'Provider Level'!B:E,4,0),"-") -> - | F145: =IFERROR(VLOOKUP(Table1[[#This Row],[Child Name]],'Provider Level'!B:F,5,0),"-") -> - | G145: =IFERROR(VLOOKUP(Table1[[#This Row],[Child Name]],'Provider Level'!B:H,6,0),"-") -> - | H145: =IFERROR(VLOOKUP(Table1[[#This Row],[Child Name]],'Provider Level'!B:L,11,0),"-") -> - | I145: =IFERROR(VLOOKUP(Table1[[#This Row],[Child Name]],'Provider Level'!B:N,13,0),"-") -> - | J145: =IFERROR(VLOOKUP(Table1[[#This Row],[Child Name]],'Provider Level'!B:O,14,0),"-") -> - | K145: =IFERROR(VLOOKUP(Table1[[#This Row],[Child Name]],'Provider Level'!B:P,15,0),"-") -> - | L145: =IFERROR(VLOOKUP(Table1[[#This Row],[Child Name]],'Provider Level'!B:Q,16,0),"-") -> - | M145: =IFERROR(VLOOKUP(Table1[[#This Row],[Child Name]],'Provider Level'!B:R,17,0),"-") -> - | N145: 0 | O145: =IFERROR(IF(N145>VLOOKUP(M145,'Drop Down'!$A$3:$B$10,2,0),"1","0"),"-") -> - | P145: 0 | Q145: 0 | R145: =IFERROR(IF(M145="Select","Select Support Level", PRODUCT($Q145,VLOOKUP($J145,'Drop Down'!K:M,3,0))),"-") -> - | S145: Ok | T145: 0 | U145: 0
A146: =IF(B146="Complete Provider Level","Select",'Fee For Service Roll Up'!$E$4) -> Select | B146: Complete Provider Level | C146: =IFERROR(VLOOKUP(Table1[[#This Row],[Child Name]],'Provider Level'!B:C,2,0),"-") -> - | D146: =IFERROR(VLOOKUP(Table1[[#This Row],[Child Name]],'Provider Level'!B:D,3,0),"-") -> - | E146: =IFERROR(VLOOKUP(Table1[[#This Row],[Child Name]],'Provider Level'!B:E,4,0),"-") -> - | F146: =IFERROR(VLOOKUP(Table1[[#This Row],[Child Name]],'Provider Level'!B:F,5,0),"-") -> - | G146: =IFERROR(VLOOKUP(Table1[[#This Row],[Child Name]],'Provider Level'!B:H,6,0),"-") -> - | H146: =IFERROR(VLOOKUP(Table1[[#This Row],[Child Name]],'Provider Level'!B:L,11,0),"-") -> - | I146: =IFERROR(VLOOKUP(Table1[[#This Row],[Child Name]],'Provider Level'!B:N,13,0),"-") -> - | J146: =IFERROR(VLOOKUP(Table1[[#This Row],[Child Name]],'Provider Level'!B:O,14,0),"-") -> - | K146: =IFERROR(VLOOKUP(Table1[[#This Row],[Child Name]],'Provider Level'!B:P,15,0),"-") -> - | L146: =IFERROR(VLOOKUP(Table1[[#This Row],[Child Name]],'Provider Level'!B:Q,16,0),"-") -> - | M146: =IFERROR(VLOOKUP(Table1[[#This Row],[Child Name]],'Provider Level'!B:R,17,0),"-") -> - | N146: 0 | O146: =IFERROR(IF(N146>VLOOKUP(M146,'Drop Down'!$A$3:$B$10,2,0),"1","0"),"-") -> - | P146: 0 | Q146: 0 | R146: =IFERROR(IF(M146="Select","Select Support Level", PRODUCT($Q146,VLOOKUP($J146,'Drop Down'!K:M,3,0))),"-") -> - | S146: Ok | T146: 0 | U146: 0
A147: =IF(B147="Complete Provider Level","Select",'Fee For Service Roll Up'!$E$4) -> Select | B147: Complete Provider Level | C147: =IFERROR(VLOOKUP(Table1[[#This Row],[Child Name]],'Provider Level'!B:C,2,0),"-") -> - | D147: =IFERROR(VLOOKUP(Table1[[#This Row],[Child Name]],'Provider Level'!B:D,3,0),"-") -> - | E147: =IFERROR(VLOOKUP(Table1[[#This Row],[Child Name]],'Provider Level'!B:E,4,0),"-") -> - | F147: =IFERROR(VLOOKUP(Table1[[#This Row],[Child Name]],'Provider Level'!B:F,5,0),"-") -> - | G147: =IFERROR(VLOOKUP(Table1[[#This Row],[Child Name]],'Provider Level'!B:H,6,0),"-") -> - | H147: =IFERROR(VLOOKUP(Table1[[#This Row],[Child Name]],'Provider Level'!B:L,11,0),"-") -> - | I147: =IFERROR(VLOOKUP(Table1[[#This Row],[Child Name]],'Provider Level'!B:N,13,0),"-") -> - | J147: =IFERROR(VLOOKUP(Table1[[#This Row],[Child Name]],'Provider Level'!B:O,14,0),"-") -> - | K147: =IFERROR(VLOOKUP(Table1[[#This Row],[Child Name]],'Provider Level'!B:P,15,0),"-") -> - | L147: =IFERROR(VLOOKUP(Table1[[#This Row],[Child Name]],'Provider Level'!B:Q,16,0),"-") -> - | M147: =IFERROR(VLOOKUP(Table1[[#This Row],[Child Name]],'Provider Level'!B:R,17,0),"-") -> - | N147: 0 | O147: =IFERROR(IF(N147>VLOOKUP(M147,'Drop Down'!$A$3:$B$10,2,0),"1","0"),"-") -> - | P147: 0 | Q147: 0 | R147: =IFERROR(IF(M147="Select","Select Support Level", PRODUCT($Q147,VLOOKUP($J147,'Drop Down'!K:M,3,0))),"-") -> - | S147: Ok | T147: 0 | U147: 0
A148: =IF(B148="Complete Provider Level","Select",'Fee For Service Roll Up'!$E$4) -> Select | B148: Complete Provider Level | C148: =IFERROR(VLOOKUP(Table1[[#This Row],[Child Name]],'Provider Level'!B:C,2,0),"-") -> - | D148: =IFERROR(VLOOKUP(Table1[[#This Row],[Child Name]],'Provider Level'!B:D,3,0),"-") -> - | E148: =IFERROR(VLOOKUP(Table1[[#This Row],[Child Name]],'Provider Level'!B:E,4,0),"-") -> - | F148: =IFERROR(VLOOKUP(Table1[[#This Row],[Child Name]],'Provider Level'!B:F,5,0),"-") -> - | G148: =IFERROR(VLOOKUP(Table1[[#This Row],[Child Name]],'Provider Level'!B:H,6,0),"-") -> - | H148: =IFERROR(VLOOKUP(Table1[[#This Row],[Child Name]],'Provider Level'!B:L,11,0),"-") -> - | I148: =IFERROR(VLOOKUP(Table1[[#This Row],[Child Name]],'Provider Level'!B:N,13,0),"-") -> - | J148: =IFERROR(VLOOKUP(Table1[[#This Row],[Child Name]],'Provider Level'!B:O,14,0),"-") -> - | K148: =IFERROR(VLOOKUP(Table1[[#This Row],[Child Name]],'Provider Level'!B:P,15,0),"-") -> - | L148: =IFERROR(VLOOKUP(Table1[[#This Row],[Child Name]],'Provider Level'!B:Q,16,0),"-") -> - | M148: =IFERROR(VLOOKUP(Table1[[#This Row],[Child Name]],'Provider Level'!B:R,17,0),"-") -> - | N148: 0 | O148: =IFERROR(IF(N148>VLOOKUP(M148,'Drop Down'!$A$3:$B$10,2,0),"1","0"),"-") -> - | P148: 0 | Q148: 0 | R148: =IFERROR(IF(M148="Select","Select Support Level", PRODUCT($Q148,VLOOKUP($J148,'Drop Down'!K:M,3,0))),"-") -> - | S148: Ok | T148: 0 | U148: 0
A149: =IF(B149="Complete Provider Level","Select",'Fee For Service Roll Up'!$E$4) -> Select | B149: Complete Provider Level | C149: =IFERROR(VLOOKUP(Table1[[#This Row],[Child Name]],'Provider Level'!B:C,2,0),"-") -> - | D149: =IFERROR(VLOOKUP(Table1[[#This Row],[Child Name]],'Provider Level'!B:D,3,0),"-") -> - | E149: =IFERROR(VLOOKUP(Table1[[#This Row],[Child Name]],'Provider Level'!B:E,4,0),"-") -> - | F149: =IFERROR(VLOOKUP(Table1[[#This Row],[Child Name]],'Provider Level'!B:F,5,0),"-") -> - | G149: =IFERROR(VLOOKUP(Table1[[#This Row],[Child Name]],'Provider Level'!B:H,6,0),"-") -> - | H149: =IFERROR(VLOOKUP(Table1[[#This Row],[Child Name]],'Provider Level'!B:L,11,0),"-") -> - | I149: =IFERROR(VLOOKUP(Table1[[#This Row],[Child Name]],'Provider Level'!B:N,13,0),"-") -> - | J149: =IFERROR(VLOOKUP(Table1[[#This Row],[Child Name]],'Provider Level'!B:O,14,0),"-") -> - | K149: =IFERROR(VLOOKUP(Table1[[#This Row],[Child Name]],'Provider Level'!B:P,15,0),"-") -> - | L149: =IFERROR(VLOOKUP(Table1[[#This Row],[Child Name]],'Provider Level'!B:Q,16,0),"-") -> - | M149: =IFERROR(VLOOKUP(Table1[[#This Row],[Child Name]],'Provider Level'!B:R,17,0),"-") -> - | N149: 0 | O149: =IFERROR(IF(N149>VLOOKUP(M149,'Drop Down'!$A$3:$B$10,2,0),"1","0"),"-") -> - | P149: 0 | Q149: 0 | R149: =IFERROR(IF(M149="Select","Select Support Level", PRODUCT($Q149,VLOOKUP($J149,'Drop Down'!K:M,3,0))),"-") -> - | S149: Ok | T149: 0 | U149: 0
A150: =IF(B150="Complete Provider Level","Select",'Fee For Service Roll Up'!$E$4) -> Select | B150: Complete Provider Level | C150: =IFERROR(VLOOKUP(Table1[[#This Row],[Child Name]],'Provider Level'!B:C,2,0),"-") -> - | D150: =IFERROR(VLOOKUP(Table1[[#This Row],[Child Name]],'Provider Level'!B:D,3,0),"-") -> - | E150: =IFERROR(VLOOKUP(Table1[[#This Row],[Child Name]],'Provider Level'!B:E,4,0),"-") -> - | F150: =IFERROR(VLOOKUP(Table1[[#This Row],[Child Name]],'Provider Level'!B:F,5,0),"-") -> - | G150: =IFERROR(VLOOKUP(Table1[[#This Row],[Child Name]],'Provider Level'!B:H,6,0),"-") -> - | H150: =IFERROR(VLOOKUP(Table1[[#This Row],[Child Name]],'Provider Level'!B:L,11,0),"-") -> - | I150: =IFERROR(VLOOKUP(Table1[[#This Row],[Child Name]],'Provider Level'!B:N,13,0),"-") -> - | J150: =IFERROR(VLOOKUP(Table1[[#This Row],[Child Name]],'Provider Level'!B:O,14,0),"-") -> - | K150: =IFERROR(VLOOKUP(Table1[[#This Row],[Child Name]],'Provider Level'!B:P,15,0),"-") -> - | L150: =IFERROR(VLOOKUP(Table1[[#This Row],[Child Name]],'Provider Level'!B:Q,16,0),"-") -> - | M150: =IFERROR(VLOOKUP(Table1[[#This Row],[Child Name]],'Provider Level'!B:R,17,0),"-") -> - | N150: 0 | O150: =IFERROR(IF(N150>VLOOKUP(M150,'Drop Down'!$A$3:$B$10,2,0),"1","0"),"-") -> - | P150: 0 | Q150: 0 | R150: =IFERROR(IF(M150="Select","Select Support Level", PRODUCT($Q150,VLOOKUP($J150,'Drop Down'!K:M,3,0))),"-") -> - | S150: Ok | T150: 0 | U150: 0
A151: =IF(B151="Complete Provider Level","Select",'Fee For Service Roll Up'!$E$4) -> Select | B151: Complete Provider Level | C151: =IFERROR(VLOOKUP(Table1[[#This Row],[Child Name]],'Provider Level'!B:C,2,0),"-") -> - | D151: =IFERROR(VLOOKUP(Table1[[#This Row],[Child Name]],'Provider Level'!B:D,3,0),"-") -> - | E151: =IFERROR(VLOOKUP(Table1[[#This Row],[Child Name]],'Provider Level'!B:E,4,0),"-") -> - | F151: =IFERROR(VLOOKUP(Table1[[#This Row],[Child Name]],'Provider Level'!B:F,5,0),"-") -> - | G151: =IFERROR(VLOOKUP(Table1[[#This Row],[Child Name]],'Provider Level'!B:H,6,0),"-") -> - | H151: =IFERROR(VLOOKUP(Table1[[#This Row],[Child Name]],'Provider Level'!B:L,11,0),"-") -> - | I151: =IFERROR(VLOOKUP(Table1[[#This Row],[Child Name]],'Provider Level'!B:N,13,0),"-") -> - | J151: =IFERROR(VLOOKUP(Table1[[#This Row],[Child Name]],'Provider Level'!B:O,14,0),"-") -> - | K151: =IFERROR(VLOOKUP(Table1[[#This Row],[Child Name]],'Provider Level'!B:P,15,0),"-") -> - | L151: =IFERROR(VLOOKUP(Table1[[#This Row],[Child Name]],'Provider Level'!B:Q,16,0),"-") -> - | M151: =IFERROR(VLOOKUP(Table1[[#This Row],[Child Name]],'Provider Level'!B:R,17,0),"-") -> - | N151: 0 | O151: =IFERROR(IF(N151>VLOOKUP(M151,'Drop Down'!$A$3:$B$10,2,0),"1","0"),"-") -> - | P151: 0 | Q151: 0 | R151: =IFERROR(IF(M151="Select","Select Support Level", PRODUCT($Q151,VLOOKUP($J151,'Drop Down'!K:M,3,0))),"-") -> - | S151: Ok | T151: 0 | U151: 0
